Workbook

Sheet Menu
Z1: 2
Z4: 2
A6: Southwest Extension District - 10
D8: Budgets
D11: Forage Crops
D13: =+CoastalPastureDryland!A3 -> Dryland Coastal Bermudagrass Pasture
D14: =CoastalPastureIrrigated!A3 -> Irrigated Coastal Bermudagrass Pasture
D15: =CoastalHayIrrigated!A3 -> Irrigated Bermudagrass Hay
D16: =CoastalEstablishDryland!A3 -> Dryland Coastal Bermudagrass Establishment
D17: =CoastalEstablishIrrigated!A3 -> Irrigated Coastal Bermudagrass Establishment
B18: Comparative Returns
D19: Field Crops
B20: Links
D21: =CornDryland!A3 -> Dryland Corn
D22: =CornIrrigated!A3 -> Irrigated Corn
D23: =CottonDryland!A3 -> Dryland Cotton
D24: =CottonIrrigated!A3 -> Irrigated Cotton
D25: =PeanutsDryland!A3 -> Dryland Runner Peanuts
D26: =PeanutsIrrigated!A3 -> Irrigated Runner Peanuts
D27: =SesameDryland!A3 -> Dryland Sesame
D28: =SesameIrrigated!A3 -> Irrigated Sesame
D29: =SorghumDryland!A3 -> Dryland Sorghum
D30: =SorghumIrrigated!A3 -> Irrigated Sorghum
D31: =WinterWheatDryland!A3 -> Dryland Winter Wheat
D32: =WinterWheatIrrigated!A3 -> Irrigated Winter Wheat
D33: =CanolaIrrigated!A3 -> Irrigated Canola
D34: =BarleyIrrigated!A3 -> Irrigated Malting Barley
D36: Horticultural Crops
D38: =Cabbage!A3 -> Irrigated Cabbage
D39: =Cucumbers!A3 -> Irrigated Pickling Cucumbers
D40: =Onions!A3 -> Irrigated Onions
D41: =FreshSpinach!A3 -> Fresh Market Spinach
D42: =Pecans!A3 -> Pecan, Drip Irrigated Years 10-20
D43: =Peaches!A3 -> Peaches, Drip Irrigated, Years 5-20
D45: Livestock
D47: =+CowCalfWest!A3 -> Cow-Calf Enterprise, 35 ac. per AU, West of Texas Highway 16
D48: =CowCalfEast!A3 -> Cow-Calf Enterprise, 20 ac. per AU, East of Texas Highway 16
D49: =MeatGoatsRange!A3 -> Meat Goats, 6 Head per AU, Western Range Budget
D50: =MeatGoatsFarm!A3 -> Meat Goats, 6 Head per AU, Western Farm Flock Budget
D51: =Angoras!A3 -> Angora Goats, 7 Head per AU
D52: =SheepWool!A3 -> Wool Sheep, 5 Head per AU
D53: =SheepHair!A3 -> Hair Sheep, 5 Head per AU
D54: =+StockersSummer!A3 -> Stocker Steers - Summer Growth, 0.6 AU per Head
D55: =StockerWinter!A3 -> Stocker Steers - Winter Growth, 0.45 AU per Head
D57: Other Budgets
D59: ='Livestock Budget'!A3 -> Livestock Budget
D60: ='Crop Budget'!A3 -> Crop Enterprise
A74: Developed by Extension Agricultural Economists, Texas A&M AgriLife Extension, budgets@tamu.edu.

Sheet Links
B2: Texas Crop and Livestock Budgets
B3: A Program of the Texas A&M AgriLife Extension Service
B4: Agricultural Economics Department, The Texas A&M University System
B6: Developed by Texas A&M AgriLife Extension Service Economists and Other Specialists
B8: Contact Us | G8: Clickable Logos
B10: Resources
B12: Decision Aids (includes Machinery Cost Estimator)
B14: Custom Rate Survey
B16: Basis Data
B18: Master Marketer
B20: Extension Ag Economics
B22: Department of Agricultural Economics
B24: Menu Page
B26: Links last checked 11/14/2024

Sheet CoastalPastureDryland
A1: Projections for Planning Purposes Only -- Not to be Used without Updating
A2: 2025 Estimated Costs and Returns per Acre
A3: Dryland Coastal Bermudagrass Pasture
A4: Enter your name for this budget in the cell above.
A5: Enter Your Values in the cells highlighed in MAROON.
E6: Your Acres | R6: Your
C7: Crop Acres | D7: 100 | L7: Your | Q7: Enterprise | R7: Enterprise
E8: Your | H8: Your | I8: Cash | J8: Your | K8: Landlord | L8: Landlord | N8: Your | P8: Your | Q8: Total | R8: Total
A9: REVENUE | D9: Quantity | E9: Quantity | F9: Units | G9: $/Unit | H9: $/Unit | I9: Total | J9: Total | K9: Share | L9: Share | M9: Landlord | N9: Landlord | O9: Tenant | P9: Tenant | Q9: (100 acres) | R9: ="(" & E7 & " acres)" -> ( acres)
B10: AUM Grazing Lease | D10: 5 | F10: AUM | G10: 15.5 | I10: 77.5 | J10: =E10*H10 -> 0 | K10: 0 | M10: 0 | N10: =J10*L10 -> 0 | O10: 77.5 | P10: =+J10-N10 -> 0 | Q10: 7750 | R10: =+J10*E$7 -> 0
D11: 0 | G11: 0 | I11: 0 | J11: 0 | K11: 0 | M11: 0 | N11: 0 | O11: 0 | P11: 0 | Q11: 0 | R11: 0
D12: 0 | G12: 0 | I12: 0 | J12: 0 | K12: 0 | M12: 0 | N12: 0 | O12: 0 | P12: 0 | Q12: 0 | R12: 0
A13: Total Revenue | I13: 77.5 | J13: =SUM(J10:J12) -> 0 | M13: 0 | N13: =SUM(N10:N12) -> 0 | O13: 77.5 | P13: =SUM(P10:P12) -> 0 | Q13: 7750 | R13: =SUM(R10:R12) -> 0
Q14: Enterprise | R14: Enterprise
A15: VARIABLE COSTS | D15: Quantity | E15: Quantity | F15: Units | G15: $/Unit | H15: $/Unit | I15: Total | J15: Total | K15: Share | L15: Share | M15: Landlord | N15: Landlord | O15: Tenant | P15: Tenant | Q15: Total | R15: Total
A16: Production Costs
B17: Fertilizer
C18: Fertilizer 22-6-17 | D18: 772 | F18: Pound | G18: 0.28 | I18: 216.16 | J18: =E18*H18 -> 0 | K18: 0 | M18: 0 | N18: =J18*L18 -> 0 | O18: 216.16 | P18: =+J18-N18 -> 0 | Q18: 21616 | R18: =+J18*E$7 -> 0
B19: Herbicide
C20: Prowl H2O | D20: 4 | F20: Pint | G20: 6.09375 | I20: 24.375 | J20: 0 | K20: 0 | M20: 0 | N20: 0 | O20: 24.375 | P20: 0 | Q20: 2437.5 | R20: 0
B21: Miscellaneous
C22: Miscellaneous Forage Overhead | D22: 1 | F22: Acre | G22: 4 | I22: 4 | J22: 0 | K22: 0 | M22: 0 | N22: 0 | O22: 4 | P22: 0 | Q22: 400 | R22: 0
D23: 0 | G23: 0 | I23: 0 | J23: 0 | K23: 0 | M23: 0 | N23: 0 | O23: 0 | P23: 0 | Q23: 0 | R23: 0
D24: 0 | G24: 0 | I24: 0 | J24: 0 | K24: 0 | M24: 0 | N24: 0 | O24: 0 | P24: 0 | Q24: 0 | R24: 0
D25: 0 | G25: 0 | I25: 0 | J25: =E25*H25 -> 0 | K25: 0 | M25: 0 | N25: =J25*L25 -> 0 | O25: 0 | P25: =+J25-N25 -> 0 | Q25: 0 | R25: =+J25*E$7 -> 0
B26: Machinery Labor
C27: Tractors/Self-Propelled | D27: 0.47 | F27: Hour | G27: 17.21 | I27: 8.0887 | J27: =E27*H27 -> 0 | K27: 0 | M27: 0 | N27: =J27*L27 -> 0 | O27: 8.0887 | P27: =+J27-N27 -> 0 | Q27: 808.87 | R27: =+J27*E$7 -> 0
C28: Other Labor | D28: 0 | F28: Hour | G28: 17.21 | I28: 0 | J28: =E28*H28 -> 0 | K28: 0 | M28: 0 | N28: =J28*L28 -> 0 | O28: 0 | P28: =+J28-N28 -> 0 | Q28: 0 | R28: =+J28*E$7 -> 0
B30: Diesel Fuel
C31: Pickup/General Use Equipment | D31: 1 | F31: Acre | G31: 0 | I31: 0 | J31: =E31*H31 -> 0 | K31: 0 | M31: 0 | N31: =J31*L31 -> 0 | O31: 0 | P31: =+J31-N31 -> 0 | Q31: 0 | R31: =+J31*E$7 -> 0
C32: Tractors/Self-Propelled | D32: 2.24 | F32: Gallon | G32: 3 | I32: 6.72 | J32: =E32*H32 -> 0 | K32: 0 | M32: 0 | N32: =J32*L32 -> 0 | O32: 6.72 | P32: =+J32-N32 -> 0 | Q32: 672 | R32: =+J32*E$7 -> 0
B34: Gasoline
C35: Pickup/General Use Equipment | D35: 1 | F35: Acre | G35: 27.17915915 | I35: 27.17915915 | J35: =E35*H35 -> 0 | K35: 0 | M35: 0 | N35: =J35*L35 -> 0 | O35: 27.17915915 | P35: =+J35-N35 -> 0 | Q35: 2717.915915 | R35: =+J35*E$7 -> 0
C36: Tractors/Self-Propelled | D36: 0 | F36: Gallon | G36: 2.75 | I36: 0 | J36: =E36*H36 -> 0 | K36: 0 | M36: 0 | N36: =J36*L36 -> 0 | O36: 0 | P36: =+J36-N36 -> 0 | Q36: 0 | R36: =+J36*E$7 -> 0
B38: Repairs & Maintenance
C39: Pickup/General Use Equipment | D39: 1 | F39: Acre | G39: 4.2 | I39: 4.2 | J39: =E39*H39 -> 0 | K39: 0 | M39: 0 | N39: =J39*L39 -> 0 | O39: 4.2 | P39: =+J39-N39 -> 0 | Q39: 420 | R39: =+J39*E$7 -> 0
C40: Irrigation Equipment | D40: 1 | F40: Acre | G40: 0 | I40: 0 | J40: 0 | K40: 0 | M40: 0 | N40: 0 | O40: 0 | P40: 0 | Q40: 0 | R40: 0
C41: Tractors/Self-Propelled | D41: 1 | F41: Acre | G41: 3.212339164 | I41: 3.212339164 | J41: 0 | K41: 0 | M41: 0 | N41: 0 | O41: 3.212339164 | P41: 0 | Q41: 321.2339164 | R41: 0
C42: Implements | D42: 1 | F42: Acre | G42: 0.2192352381 | I42: 0.2192352381 | J42: 0 | K42: 0 | M42: 0 | N42: 0 | O42: 0.2192352381 | P42: 0 | Q42: 21.92352381 | R42: 0
I43: 0 | J43: 0 | K43: 0 | M43: 0 | N43: 0 | O43: 0 | P43: 0 | Q43: 0 | R43: =+J43*E$7 -> 0
I44: 0 | J44: 0 | K44: 0 | M44: 0 | N44: 0 | O44: 0 | P44: 0 | Q44: 0 | R44: 0
B45: Interest on Credit Line | G45: 0.086 | I45: 6.610599662 | J45: =+SUM(J17:J44)/2*H45 -> 0 | M45: 0 | N45: =+SUM(N17:N44)/2*L45 -> 0 | O45: 6.610599662 | P45: =+SUM(P17:P44)/2*L45 -> 0 | Q45: 661.0599662 | R45: =+J45*E$7 -> 0
A46: Total Variable Costs | I46: 300.7650332 | J46: =SUM(J18:J45) -> 0 | M46: 0 | N46: =SUM(N18:N45) -> 0 | O46: 300.7650332 | P46: =SUM(P18:P45) -> 0 | Q46: 30076.50332 | R46: =SUM(R18:R45) -> 0
A47: Planned Returns Above Variable Costs: | I47: -223.2650332 | J47: =+J13-J46 -> 0 | M47: 0 | N47: =+N13-N46 -> 0 | O47: -223.2650332 | P47: =+P13-P46 -> 0 | Q47: -22326.50332 | R47: =+R13-R46 -> 0
B48: Breakeven Price to Cover Variable Costs | G48: 60.15300664 | H48: =IF(E10=0,"n/a",(YVarExp-(YTotExp+YTotRet-J10))/E10) -> n/a | I48: AUM
Q49: Enterprise | R49: Enterprise
A50: FIXED COSTS | D50: Quantity | E50: Quantity | F50: Units | G50: $/Unit | H50: $/Unit | J50: Total | K50: Share | L50: Share | M50: Landlord | N50: Landlord | O50: Tenant | P50: Tenant | Q50: Total | R50: Total
B51: Machinery Depreciation
C52: Pickup/General Use Equipment | D52: 1 | F52: Acre | G52: 25.74 | I52: 25.74 | J52: =E52*H52 -> 0 | K52: 0 | M52: 0 | N52: =J52*L52 -> 0 | O52: 25.74 | P52: =+J52-N52 -> 0 | Q52: 2574 | R52: =+J52*E$7 -> 0
C53: Tractors/Self-Propelled | D53: 1 | F53: Acre | G53: 3.612589624 | I53: 3.612589624 | J53: 0 | K53: 0 | M53: 0 | N53: =J53*L53 -> 0 | O53: 3.612589624 | P53: 0 | Q53: 361.2589624 | R53: 0
C54: Implements | D54: 1 | F54: Acre | G54: 0.6769381448 | I54: 0.6769381448 | J54: 0 | K54: 0 | M54: 0 | N54: =J54*L54 -> 0 | O54: 0.6769381448 | P54: 0 | Q54: 67.69381448 | R54: 0
B55: Equipment Investment
C56: Pickup/General Use Equipment | D56: 107.25 | F56: Dollars | G56: 0.086 | I56: 9.2235 | J56: =E56*H56 -> 0 | K56: 0 | M56: 0 | N56: =J56*L56 -> 0 | O56: 9.2235 | P56: =+J56-N56 -> 0 | Q56: 922.35 | R56: =+J56*E$7 -> 0
C57: Tractors/Self-Propelled | D57: 27.90635028 | F57: Dollars | G57: 0.086 | I57: 2.399946124 | J57: 0 | K57: 0 | M57: 0 | N57: =J57*L57 -> 0 | O57: 2.399946124 | P57: 0 | Q57: 239.9946124 | R57: 0
C58: Implements | D58: 13.45423259 | F58: Dollars | G58: 0.086 | I58: 1.157064003 | J58: 0 | K58: 0 | M58: 0 | N58: =J58*L58 -> 0 | O58: 1.157064003 | P58: 0 | Q58: 115.7064003 | R58: 0
B59: Salaried Labor | D59: 1 | F59: Acre | G59: 0 | I59: 0 | J59: 0 | K59: 0 | M59: 0 | N59: =J59*L59 -> 0 | O59: 0 | P59: =+J59-N59 -> 0 | Q59: 0 | R59: =+J59*E$7 -> 0
B60: Management Fee, Owner/Operator Labor | D60: 1 | F60: Acre | G60: 0 | I60: 0 | J60: 0 | K60: 0 | M60: 0 | N60: 0 | O60: 0 | P60: 0 | Q60: 0 | R60: 0
B61: Allocated Establishment Cost | D61: 1 | F61: Acre | G61: 0 | I61: 0 | J61: 0 | K61: 0 | M61: 0 | N61: 0 | O61: 0 | P61: 0 | Q61: 0 | R61: 0
B62: Dryland Winter Garden Rent | D62: 1 | F62: Acre | G62: 20 | I62: 20 | J62: 0 | K62: 0 | M62: 0 | N62: 0 | O62: 20 | P62: 0 | Q62: 2000 | R62: 0
B63: Property Taxes | D63: 1 | F63: Acre | G63: 0 | I63: 0 | J63: =E63*H63 -> 0 | K63: 0 | M63: 0 | N63: 0 | O63: 0 | P63: 0 | Q63: 0 | R63: =+J63*E$7 -> 0
B64: Whole Farm Insurance | D64: 1 | F64: Acre | G64: 0 | I64: 0 | J64: 0 | K64: 0 | M64: 0 | N64: 0 | O64: 0 | P64: 0 | Q64: 0 | R64: 0
D65: 1 | G65: 0 | I65: 0 | J65: 0 | K65: 0 | M65: 0 | N65: 0 | O65: 0 | P65: 0 | Q65: 0 | R65: 0
D66: 1 | G66: 0 | I66: 0 | J66: 0 | K66: 0 | M66: 0 | N66: 0 | O66: 0 | P66: 0 | Q66: 0 | R66: 0
A67: Total Fixed Costs | I67: 62.8100379 | J67: =+SUM(J52:J66) -> 0 | M67: 0 | N67: =+SUM(N52:N66) -> 0 | O67: 62.8100379 | P67: =+SUM(P52:P66) -> 0 | Q67: 6281.00379 | R67: =+SUM(R52:R66) -> 0
A68: Total Specified Costs | I68: 363.5750711 | J68: =+J46+J67 -> 0 | M68: 0 | N68: =+N46+N67 -> 0 | O68: 363.5750711 | P68: =+P46+P67 -> 0 | Q68: 36357.50711 | R68: =+R46+R67 -> 0
A70: Returns Above Specified Costs | I70: -286.0750711 | J70: =+J13-J68 -> 0 | M70: 0 | N70: =+N13-N68 -> 0 | O70: -286.0750711 | P70: =+P13-P68 -> 0 | Q70: -28607.50711 | R70: =+R13-R68 -> 0
A72: Breakeven Price to Cover Total Costs | G72: 72.71501422 | H72: =IF(E10=0,"n/a",(YTotExp-(YTotExp+YTotRet-J10))/E10) -> n/a | I72: AUM
D74: Example Breakeven Prices
B75: Example | C75: Example | D75: To Cover | G75: To Cover
B76: Yield | C76: Yield | D76: Variable | G76: Total
B77: Percent | C77: AUM | D77: Costs | G77: Costs
B78: 0.75 | C78: 3.75 | D78: 80.20400886 | G78: 96.9533523
B79: 0.9 | C79: 4.5 | D79: 66.83667405 | G79: 80.79446025
B80: 1 | C80: 5 | D80: 60.15300664 | G80: 72.71501422
B81: 1.1 | C81: 5.5 | D81: 54.68455149 | G81: 66.10455838
B82: 1.25 | C82: 6.25 | D82: 48.12240531 | G82: 58.17201138
D84: Your Breakeven Prices
B85: Your | C85: Your | E85: To Cover | H85: To Cover
B86: Yield | C86: Yield | E86: Variable | H86: Total
B87: Percent | C87: AUM | E87: Costs | H87: Costs
B88: 0.75 | C88: =E10*YPER1 -> 0 | E88: =IF($E$10=0,0,(YVarExp-(YTotExp+YTotRet-J10))/($E$10*YPER1)) -> 0 | H88: =IF($E$10=0,0,(YTotExp-(YTotExp+YTotRet-J10))/($E$10*YPER1)) -> 0
B89: 0.9 | C89: =E10*YPER2 -> 0 | E89: =IF($E$10=0,0,(YVarExp-(YTotExp+YTotRet-J10))/($E$10*YPER2)) -> 0 | H89: =IF($E$10=0,0,(YTotExp-(YTotExp+YTotRet-J10))/($E$10*YPER2)) -> 0
B90: 1 | C90: =+E10 -> 0 | E90: =IF($E$10=0,0,(YVarExp-(YTotExp+YTotRet-J10))/($E$10*YPER3)) -> 0 | H90: =IF($E$10=0,0,(YTotExp-(YTotExp+YTotRet-J10))/($E$10*YPER3)) -> 0
B91: 1.1 | C91: =E10*YPER4 -> 0 | E91: =IF($E$10=0,0,(YVarExp-(YTotExp+YTotRet-J10))/($E$10*YPER4)) -> 0 | H91: =IF($E$10=0,0,(YTotExp-(YTotExp+YTotRet-J10))/($E$10*YPER4)) -> 0
B92: 1.25 | C92: =E10*YPER5 -> 0 | E92: =IF($E$10=0,0,(YVarExp-(YTotExp+YTotRet-J10))/($E$10*YPER5)) -> 0 | H92: =IF($E$10=0,0,(YTotExp-(YTotExp+YTotRet-J10))/($E$10*YPER5)) -> 0
A94: Developed by Extension Agricultural Economists, Texas A&M AgriLife Extension, budgets@tamu.edu.
A96: Information presented is prepared solely as a general guide and not intended to recognize or predict the costs and returns from any one operation. Brand names are mentioned only as examples and imply no endorsement.

Sheet CoastalPastureIrrigated
A1: Projections for Planning Purposes Only -- Not to be Used without Updating
A2: 2025 Estimated Costs and Returns per Acre
A3: Irrigated Coastal Bermudagrass Pasture
A4: Enter your name for this budget in the cell above.
A5: Enter Your Values in the cells highlighed in MAROON.
E6: Your Acres | R6: Your
C7: Crop Acres | D7: 100 | L7: Your | Q7: Enterprise | R7: Enterprise
E8: Your | H8: Your | I8: Cash | J8: Your | K8: Landlord | L8: Landlord | N8: Your | P8: Your | Q8: Total | R8: Total
A9: REVENUE | D9: Quantity | E9: Quantity | F9: Units | G9: $/Unit | H9: $/Unit | I9: Total | J9: Total | K9: Share | L9: Share | M9: Landlord | N9: Landlord | O9: Tenant | P9: Tenant | Q9: (100 acres) | R9: ="(" & E7 & " acres)" -> ( acres)
B10: AUM Grazing Lease | D10: 16 | F10: AUM | G10: 15.5 | I10: 248 | J10: =E10*H10 -> 0 | K10: 0 | M10: 0 | N10: =J10*L10 -> 0 | O10: 248 | P10: =+J10-N10 -> 0 | Q10: 24800 | R10: =+J10*E$7 -> 0
D11: 0 | G11: 0 | I11: 0 | J11: 0 | K11: 0 | M11: 0 | N11: 0 | O11: 0 | P11: =+J11-N11 -> 0 | Q11: 0 | R11: 0
D12: 0 | G12: 0 | I12: 0 | J12: 0 | K12: 0 | M12: 0 | N12: 0 | O12: 0 | P12: 0 | Q12: 0 | R12: 0
A13: Total Revenue | I13: 248 | J13: =SUM(J10:J12) -> 0 | M13: 0 | N13: =SUM(N10:N12) -> 0 | O13: 248 | P13: =SUM(P10:P12) -> 0 | Q13: 24800 | R13: =SUM(R10:R12) -> 0
Q14: Enterprise | R14: Enterprise
A15: VARIABLE COSTS | D15: Quantity | E15: Quantity | F15: Units | G15: $/Unit | H15: $/Unit | I15: Total | J15: Total | K15: Share | L15: Share | M15: Landlord | N15: Landlord | O15: Tenant | P15: Tenant | Q15: Total | R15: Total
A16: Production Costs
B17: Fertilizer
C18: Fertilizer 22-6-17 | D18: 1816 | F18: Pound | G18: 0.28 | I18: 508.48 | J18: =E18*H18 -> 0 | K18: 0 | M18: 0 | N18: =J18*L18 -> 0 | O18: 508.48 | P18: =+J18-N18 -> 0 | Q18: 50848 | R18: =+J18*E$7 -> 0
B19: Herbicide
C20: Prowl H2O | D20: 4 | F20: Pint | G20: 6.09375 | I20: 24.375 | J20: 0 | K20: 0 | M20: 0 | N20: 0 | O20: 24.375 | P20: 0 | Q20: 2437.5 | R20: 0
B21: Miscellaneous
C22: Miscellaneous Forage Overhead | D22: 1 | F22: Acre | G22: 4 | I22: 4 | J22: 0 | K22: 0 | M22: 0 | N22: 0 | O22: 4 | P22: 0 | Q22: 400 | R22: 0
D23: 0 | G23: 0 | I23: 0 | J23: 0 | K23: 0 | M23: 0 | N23: 0 | O23: 0 | P23: 0 | Q23: 0 | R23: 0
D24: 0 | G24: 0 | I24: 0 | J24: 0 | K24: 0 | M24: 0 | N24: 0 | O24: 0 | P24: 0 | Q24: 0 | R24: 0
D25: 0 | G25: 0 | I25: 0 | J25: =E25*H25 -> 0 | K25: 0 | M25: 0 | N25: =J25*L25 -> 0 | O25: 0 | P25: =+J25-N25 -> 0 | Q25: 0 | R25: =+J25*E$7 -> 0
B26: Irrigation
C27: Energy Cost | D27: 3036 | F27: kWh | G27: 0.17 | I27: 516.12 | J27: =E27*H27 -> 0 | K27: 0 | M27: 0 | N27: =J27*L27 -> 0 | O27: 516.12 | P27: =+J27-N27 -> 0 | Q27: 51612 | R27: =+J27*E$7 -> 0
C28: Irrigation Labor | D28: 0.368 | F28: Hour | G28: 17.5 | I28: 6.44 | J28: 0 | K28: 0 | M28: 0 | N28: 0 | O28: 6.44 | P28: 0 | Q28: 644 | R28: 0
B29: Machinery Labor
C30: Tractors/Self-Propelled | D30: 0.93 | F30: Hour | G30: 17.21 | I30: 16.0053 | J30: =E30*H30 -> 0 | K30: 0 | M30: 0 | N30: =J30*L30 -> 0 | O30: 16.0053 | P30: =+J30-N30 -> 0 | Q30: 1600.53 | R30: =+J30*E$7 -> 0
C31: Other Labor | D31: 0 | F31: Hour | G31: 17.21 | I31: 0 | J31: =E31*H31 -> 0 | K31: 0 | M31: 0 | N31: =J31*L31 -> 0 | O31: 0 | P31: =+J31-N31 -> 0 | Q31: 0 | R31: =+J31*E$7 -> 0
B33: Diesel Fuel
C34: Pickup/General Use Equipment | D34: 1 | F34: Acre | G34: 0 | I34: 0 | J34: =E34*H34 -> 0 | K34: 0 | M34: 0 | N34: =J34*L34 -> 0 | O34: 0 | P34: =+J34-N34 -> 0 | Q34: 0 | R34: =+J34*E$7 -> 0
C35: Tractors/Self-Propelled | D35: 4.4 | F35: Gallon | G35: 3 | I35: 13.2 | J35: =E35*H35 -> 0 | K35: 0 | M35: 0 | N35: =J35*L35 -> 0 | O35: 13.2 | P35: =+J35-N35 -> 0 | Q35: 1320 | R35: =+J35*E$7 -> 0
B37: Gasoline
C38: Pickup/General Use Equipment | D38: 1 | F38: Acre | G38: 27.17915915 | I38: 27.17915915 | J38: =E38*H38 -> 0 | K38: 0 | M38: 0 | N38: =J38*L38 -> 0 | O38: 27.17915915 | P38: =+J38-N38 -> 0 | Q38: 2717.915915 | R38: =+J38*E$7 -> 0
C39: Tractors/Self-Propelled | D39: 0 | F39: Gallon | G39: 2.75 | I39: 0 | J39: =E39*H39 -> 0 | K39: 0 | M39: 0 | N39: =J39*L39 -> 0 | O39: 0 | P39: =+J39-N39 -> 0 | Q39: 0 | R39: =+J39*E$7 -> 0
B41: Repairs & Maintenance
C42: Pickup/General Use Equipment | D42: 1 | F42: Acre | G42: 4.94208 | I42: 4.94208 | J42: =E42*H42 -> 0 | K42: 0 | M42: 0 | N42: =J42*L42 -> 0 | O42: 4.94208 | P42: =+J42-N42 -> 0 | Q42: 494.208 | R42: =+J42*E$7 -> 0
C43: Irrigation Equipment | D43: 1 | F43: Acre | G43: 28.61730868 | I43: 28.61730868 | J43: 0 | K43: 0 | M43: 0 | N43: 0 | O43: 28.61730868 | P43: 0 | Q43: 2861.730868 | R43: 0
C44: Tractors/Self-Propelled | D44: 1 | F44: Acre | G44: 6.284355994 | I44: 6.284355994 | J44: 0 | K44: 0 | M44: 0 | N44: 0 | O44: 6.284355994 | P44: 0 | Q44: 628.4355994 | R44: 0
C45: Implements | D45: 1 | F45: Acre | G45: 0.4384704762 | I45: 0.4384704762 | J45: 0 | K45: 0 | M45: 0 | N45: 0 | O45: 0.4384704762 | P45: 0 | Q45: 43.84704762 | R45: 0
I46: 0 | J46: 0 | K46: 0 | M46: 0 | N46: 0 | O46: 0 | P46: 0 | Q46: 0 | R46: 0
I47: 0 | J47: 0 | K47: 0 | M47: 0 | N47: 0 | O47: 0 | P47: 0 | Q47: 0 | R47: 0
B48: Interest on Credit Line | G48: 0.086 | I48: 4.159072953 | J48: =+SUM(J17:J47)/2*H48 -> 0 | M48: 0 | N48: =+SUM(N17:N47)/2*L48 -> 0 | O48: 4.159072953 | P48: =+SUM(P17:P47)/2*L48 -> 0 | Q48: 415.9072953 | R48: =+J48*E$7 -> 0
A49: Total Variable Costs | I49: 1160.240747 | J49: =SUM(J18:J48) -> 0 | M49: 0 | N49: =SUM(N18:N48) -> 0 | O49: 1160.240747 | P49: =SUM(P18:P48) -> 0 | Q49: 116024.0747 | R49: =SUM(R18:R48) -> 0
A50: Planned Returns Above Variable Costs: | I50: -912.2407472 | J50: =+J13-J49 -> 0 | M50: 0 | N50: =+N13-N49 -> 0 | O50: -912.2407472 | P50: =+P13-P49 -> 0 | Q50: -91224.07472 | R50: =+R13-R49 -> 0
B51: Breakeven Price to Cover Variable Costs | G51: 72.5150467 | H51: =IF(E10=0,"n/a",(YVarExp-(YTotExp+YTotRet-J10))/E10) -> n/a | I51: AUM
Q52: Enterprise | R52: Enterprise
A53: FIXED COSTS | D53: Quantity | E53: Quantity | F53: Units | G53: $/Unit | H53: $/Unit | I53: Total | J53: Total | K53: Share | L53: Share | M53: Landlord | N53: Landlord | O53: Tenant | P53: Tenant | Q53: Total | R53: Total
B54: Machinery Depreciation
C55: Pickup/General Use Equipment | D55: 1 | F55: Acre | G55: 25.74 | I55: 25.74 | J55: =E55*H55 -> 0 | K55: 0 | M55: 0 | N55: =J55*L55 -> 0 | O55: 25.74 | P55: =+J55-N55 -> 0 | Q55: 2574 | R55: =+J55*E$7 -> 0
C56: Irrigation Equipment | D56: 1 | F56: Acre | G56: 98.3125 | I56: 98.3125 | J56: 0 | K56: 0 | M56: 0 | N56: =J56*L56 -> 0 | O56: 98.3125 | P56: 0 | Q56: 9831.25 | R56: 0
C57: Tractors/Self-Propelled | D57: 1 | F57: Acre | G57: 6.570341692 | I57: 6.570341692 | J57: 0 | K57: 0 | M57: 0 | N57: =J57*L57 -> 0 | O57: 6.570341692 | P57: 0 | Q57: 657.0341692 | R57: 0
C58: Implements | D58: 1 | F58: Acre | G58: 1.35387629 | I58: 1.35387629 | J58: 0 | K58: 0 | M58: 0 | N58: =J58*L58 -> 0 | O58: 1.35387629 | P58: 0 | Q58: 135.387629 | R58: 0
B59: Equipment Investment
C60: Pickup/General Use Equipment | D60: 107.25 | F60: Dollars | G60: 0.086 | I60: 9.2235 | J60: =E60*H60 -> 0 | K60: 0 | M60: 0 | N60: =J60*L60 -> 0 | O60: 9.2235 | P60: =+J60-N60 -> 0 | Q60: 922.35 | R60: =+J60*E$7 -> 0
C61: Irrigation Equipment | D61: 788.125 | F61: Dollars | G61: 0.086 | I61: 67.77875 | J61: 0 | K61: 0 | M61: 0 | N61: =J61*L61 -> 0 | O61: 67.77875 | P61: 0 | Q61: 6777.875 | R61: 0
C62: Tractors/Self-Propelled | D62: 50.94819301 | F62: Dollars | G62: 0.086 | I62: 4.381544599 | J62: 0 | K62: 0 | M62: 0 | N62: =J62*L62 -> 0 | O62: 4.381544599 | P62: 0 | Q62: 438.1544599 | R62: 0
C63: Implements | D63: 26.90846518 | F63: Dollars | G63: 0.086 | I63: 2.314128005 | J63: 0 | K63: 0 | M63: 0 | N63: =J63*L63 -> 0 | O63: 2.314128005 | P63: 0 | Q63: 231.4128005 | R63: 0
B64: Salaried Labor | D64: 1 | F64: Acre | G64: 0 | I64: 0 | J64: 0 | K64: 0 | M64: 0 | N64: =J64*L64 -> 0 | O64: 0 | P64: =+J64-N64 -> 0 | Q64: 0 | R64: =+J64*E$7 -> 0
B65: Management Fee, Owner/Operator Labor | D65: 1 | F65: Acre | G65: 0 | I65: 0 | J65: 0 | K65: 0 | M65: 0 | N65: 0 | O65: 0 | P65: 0 | Q65: 0 | R65: 0
B66: Allocated Establishment Cost | D66: 1 | F66: Acre | G66: 0 | I66: 0 | J66: 0 | K66: 0 | M66: 0 | N66: 0 | O66: 0 | P66: 0 | Q66: 0 | R66: 0
B67: Irrigated Winter Garden Rent | D67: 1 | F67: Acre | G67: 50 | I67: 50 | J67: 0 | K67: 0 | M67: 0 | N67: 0 | O67: 50 | P67: 0 | Q67: 5000 | R67: 0
B68: Property Taxes | D68: 1 | F68: Acre | G68: 0 | I68: 0 | J68: 0 | K68: 0 | M68: 0 | N68: 0 | O68: 0 | P68: 0 | Q68: 0 | R68: 0
B69: Whole Farm Insurance | D69: 1 | F69: Acre | G69: 0 | I69: 0 | J69: 0 | K69: 0 | M69: 0 | N69: 0 | O69: 0 | P69: 0 | Q69: 0 | R69: 0
D70: 1 | G70: 0 | I70: 0 | J70: 0 | K70: 0 | M70: 0 | N70: 0 | O70: 0 | P70: 0 | Q70: 0 | R70: 0
D71: 1 | G71: 0 | I71: 0 | J71: =E71*H71 -> 0 | K71: 0 | M71: 0 | N71: 0 | O71: 0 | P71: 0 | Q71: 0 | R71: 0
A72: Total Fixed Costs | I72: 265.6746406 | J72: =+SUM(J55:J71) -> 0 | M72: 0 | N72: =+SUM(N55:N71) -> 0 | O72: 265.6746406 | P72: =+SUM(P55:P71) -> 0 | Q72: 26567.46406 | R72: =+SUM(R55:R71) -> 0
A73: Total Specified Costs | I73: 1425.915388 | J73: =+J49+J72 -> 0 | M73: 0 | N73: =+N49+N72 -> 0 | O73: 1425.915388 | P73: =+P49+P72 -> 0 | Q73: 142591.5388 | R73: =+R49+R72 -> 0
A75: Returns Above Specified Costs | I75: -1177.915388 | J75: =+J13-J73 -> 0 | M75: 0 | N75: =+N13-N73 -> 0 | O75: -1177.915388 | P75: =+P13-P73 -> 0 | Q75: -117791.5388 | R75: =+R13-R73 -> 0
A77: Breakeven Price to Cover Total Costs | G77: 89.11971174 | H77: =IF(E10=0,"n/a",(YTotExp-(YTotExp+YTotRet-J10))/E10) -> n/a | I77: AUM
D79: Example Breakeven Prices
B80: Example | C80: Example | D80: To Cover | G80: To Cover
B81: Yield | C81: Yield | D81: Variable | G81: Total
B82: Percent | C82: AUM | D82: Costs | G82: Costs
B83: 0.75 | C83: 12 | D83: 96.68672894 | G83: 118.8262823
B84: 0.9 | C84: 14.4 | D84: 80.57227411 | G84: 99.02190193
B85: 1 | C85: 16 | D85: 72.5150467 | G85: 89.11971174
B86: 1.1 | C86: 17.6 | D86: 65.92276973 | G86: 81.01791976
B87: 1.25 | C87: 20 | D87: 58.01203736 | G87: 71.29576939
D89: Your Breakeven Prices
B90: Your | C90: Your | E90: To Cover | H90: To Cover
B91: Yield | C91: Yield | E91: Variable | H91: Total
B92: Percent | C92: AUM | E92: Costs | H92: Costs
B93: 0.75 | C93: =E10*YPER1 -> 0 | E93: =IF($E$10=0,0,(YVarExp-(YTotExp+YTotRet-J10))/($E$10*YPER1)) -> 0 | H93: =IF($E$10=0,0,(YTotExp-(YTotExp+YTotRet-J10))/($E$10*YPER1)) -> 0
B94: 0.9 | C94: =E10*YPER2 -> 0 | E94: =IF($E$10=0,0,(YVarExp-(YTotExp+YTotRet-J10))/($E$10*YPER2)) -> 0 | H94: =IF($E$10=0,0,(YTotExp-(YTotExp+YTotRet-J10))/($E$10*YPER2)) -> 0
B95: 1 | C95: =+E10 -> 0 | E95: =IF($E$10=0,0,(YVarExp-(YTotExp+YTotRet-J10))/($E$10*YPER3)) -> 0 | H95: =IF($E$10=0,0,(YTotExp-(YTotExp+YTotRet-J10))/($E$10*YPER3)) -> 0
B96: 1.1 | C96: =E10*YPER4 -> 0 | E96: =IF($E$10=0,0,(YVarExp-(YTotExp+YTotRet-J10))/($E$10*YPER4)) -> 0 | H96: =IF($E$10=0,0,(YTotExp-(YTotExp+YTotRet-J10))/($E$10*YPER4)) -> 0
B97: 1.25 | C97: =E10*YPER5 -> 0 | E97: =IF($E$10=0,0,(YVarExp-(YTotExp+YTotRet-J10))/($E$10*YPER5)) -> 0 | H97: =IF($E$10=0,0,(YTotExp-(YTotExp+YTotRet-J10))/($E$10*YPER5)) -> 0
A99: Developed by Extension Agricultural Economists, Texas A&M AgriLife Extension, budgets@tamu.edu.
A101: Information presented is prepared solely as a general guide and not intended to recognize or predict the costs and returns from any one operation. Brand names are mentioned only as examples and imply no endorsement.

Sheet CoastalHayIrrigated
A1: Projections for Planning Purposes Only -- Not to be Used without Updating
A2: 2025 Estimated Costs and Returns per Acre
A3: Irrigated Bermudagrass Hay
A4: Enter your name for this budget in the cell above.
A5: Enter Your Values in the cells highlighed in MAROON.
E6: Your Acres | R6: Your
C7: Crop Acres | D7: 100 | L7: Your | Q7: Enterprise | R7: Enterprise
E8: Your | H8: Your | I8: Cash | J8: Your | K8: Landlord | L8: Landlord | N8: Your | P8: Your | Q8: Total | R8: Total
A9: REVENUE | D9: Quantity | E9: Quantity | F9: Units | G9: $/Unit | H9: $/Unit | I9: Total | J9: Total | K9: Share | L9: Share | M9: Landlord | N9: Landlord | O9: Tenant | P9: Tenant | Q9: (100 acres) | R9: ="(" & E7 & " acres)" -> ( acres)
B10: Bermuda Hay | D10: 12 | F10: Ton | G10: 166 | I10: 1992 | J10: =E10*H10 -> 0 | K10: 0 | M10: 0 | N10: =J10*L10 -> 0 | O10: 1992 | P10: =+J10-N10 -> 0 | Q10: 199200 | R10: =+J10*E$7 -> 0
D11: 0 | G11: 0 | I11: 0 | J11: 0 | K11: 0 | M11: 0 | N11: 0 | O11: 0 | P11: =+J11-N11 -> 0 | Q11: 0 | R11: 0
D12: 0 | G12: 0 | I12: 0 | J12: 0 | K12: 0 | M12: 0 | N12: 0 | O12: 0 | P12: 0 | Q12: 0 | R12: 0
A13: Total Revenue | I13: 1992 | J13: =SUM(J10:J12) -> 0 | M13: 0 | N13: =SUM(N10:N12) -> 0 | O13: 1992 | P13: =SUM(P10:P12) -> 0 | Q13: 199200 | R13: =SUM(R10:R12) -> 0
Q14: Enterprise | R14: Enterprise
A15: VARIABLE COSTS | D15: Quantity | E15: Quantity | F15: Units | G15: $/Unit | H15: $/Unit | I15: Total | J15: Total | K15: Share | L15: Share | M15: Landlord | N15: Landlord | O15: Tenant | P15: Tenant | Q15: Total | R15: Total
A16: Production Costs
B17: Fertilizer
C18: Fertilizer 22-6-17 | D18: 1816 | F18: Pound | G18: 0.28 | I18: 508.48 | J18: =E18*H18 -> 0 | K18: 0 | M18: 0 | N18: =J18*L18 -> 0 | O18: 508.48 | P18: =+J18-N18 -> 0 | Q18: 50848 | R18: =+J18*E$7 -> 0
B19: Herbicide
C20: Prowl H2O | D20: 4 | F20: Pint | G20: 6.09375 | I20: 24.375 | J20: 0 | K20: 0 | M20: 0 | N20: 0 | O20: 24.375 | P20: 0 | Q20: 2437.5 | R20: 0
B21: Miscellaneous
C22: Miscellaneous Forage Overhead | D22: 1 | F22: Acre | G22: 4 | I22: 4 | J22: 0 | K22: 0 | M22: 0 | N22: 0 | O22: 4 | P22: 0 | Q22: 400 | R22: 0
D23: 0 | G23: 0 | I23: 0 | J23: 0 | K23: 0 | M23: 0 | N23: 0 | O23: 0 | P23: 0 | Q23: 0 | R23: 0
D24: 0 | G24: 0 | I24: 0 | J24: 0 | K24: 0 | M24: 0 | N24: 0 | O24: 0 | P24: 0 | Q24: 0 | R24: 0
D25: 0 | G25: 0 | I25: 0 | J25: =E25*H25 -> 0 | K25: 0 | M25: 0 | N25: =J25*L25 -> 0 | O25: 0 | P25: =+J25-N25 -> 0 | Q25: 0 | R25: =+J25*E$7 -> 0
B26: Irrigation
C27: Energy Cost | D27: 3036 | F27: kWh | G27: 0.17 | I27: 516.12 | J27: =E27*H27 -> 0 | K27: 0 | M27: 0 | N27: =J27*L27 -> 0 | O27: 516.12 | P27: =+J27-N27 -> 0 | Q27: 51612 | R27: =+J27*E$7 -> 0
C28: Irrigation Labor | D28: 0.368 | F28: Hour | G28: 17.5 | I28: 6.44 | J28: 0 | K28: 0 | M28: 0 | N28: 0 | O28: 6.44 | P28: 0 | Q28: 644 | R28: 0
B29: Machinery Labor
C30: Tractors/Self-Propelled | D30: 4.03 | F30: Hour | G30: 17.21 | I30: 69.3563 | J30: =E30*H30 -> 0 | K30: 0 | M30: 0 | N30: =J30*L30 -> 0 | O30: 69.3563 | P30: =+J30-N30 -> 0 | Q30: 6935.63 | R30: =+J30*E$7 -> 0
C31: Other Labor | D31: 0 | F31: Hour | G31: 17.21 | I31: 0 | J31: =E31*H31 -> 0 | K31: 0 | M31: 0 | N31: =J31*L31 -> 0 | O31: 0 | P31: =+J31-N31 -> 0 | Q31: 0 | R31: =+J31*E$7 -> 0
B33: Diesel Fuel
C34: Pickup/General Use Equipment | D34: 1 | F34: Acre | G34: 0 | I34: 0 | J34: =E34*H34 -> 0 | K34: 0 | M34: 0 | N34: =J34*L34 -> 0 | O34: 0 | P34: =+J34-N34 -> 0 | Q34: 0 | R34: =+J34*E$7 -> 0
C35: Tractors/Self-Propelled | D35: 18.03 | F35: Gallon | G35: 3 | I35: 54.09 | J35: =E35*H35 -> 0 | K35: 0 | M35: 0 | N35: =J35*L35 -> 0 | O35: 54.09 | P35: =+J35-N35 -> 0 | Q35: 5409 | R35: =+J35*E$7 -> 0
B37: Gasoline
C38: Pickup/General Use Equipment | D38: 1 | F38: Acre | G38: 27.17915915 | I38: 27.17915915 | J38: =E38*H38 -> 0 | K38: 0 | M38: 0 | N38: =J38*L38 -> 0 | O38: 27.17915915 | P38: =+J38-N38 -> 0 | Q38: 2717.915915 | R38: =+J38*E$7 -> 0
C39: Tractors/Self-Propelled | D39: 0 | F39: Gallon | G39: 2.75 | I39: 0 | J39: =E39*H39 -> 0 | K39: 0 | M39: 0 | N39: =J39*L39 -> 0 | O39: 0 | P39: =+J39-N39 -> 0 | Q39: 0 | R39: =+J39*E$7 -> 0
B41: Repairs & Maintenance
C42: Pickup/General Use Equipment | D42: 1 | F42: Acre | G42: 13.44 | I42: 13.44 | J42: =E42*H42 -> 0 | K42: 0 | M42: 0 | N42: =J42*L42 -> 0 | O42: 13.44 | P42: =+J42-N42 -> 0 | Q42: 1344 | R42: =+J42*E$7 -> 0
C43: Irrigation Equipment | D43: 1 | F43: Acre | G43: 28.61730868 | I43: 28.61730868 | J43: 0 | K43: 0 | M43: 0 | N43: 0 | O43: 28.61730868 | P43: 0 | Q43: 2861.730868 | R43: 0
C44: Tractors/Self-Propelled | D44: 1 | F44: Acre | G44: 25.21162372 | I44: 25.21162372 | J44: 0 | K44: 0 | M44: 0 | N44: 0 | O44: 25.21162372 | P44: 0 | Q44: 2521.162372 | R44: 0
C45: Implements | D45: 1 | F45: Acre | G45: 17.83934482 | I45: 17.83934482 | J45: 0 | K45: 0 | M45: 0 | N45: 0 | O45: 17.83934482 | P45: 0 | Q45: 1783.934482 | R45: 0
I46: 0 | J46: 0 | K46: 0 | M46: 0 | N46: 0 | O46: 0 | P46: 0 | Q46: 0 | R46: 0
I47: 0 | J47: 0 | K47: 0 | M47: 0 | N47: 0 | O47: 0 | P47: 0 | Q47: 0 | R47: 0
B48: Interest on Credit Line | G48: 0.086 | I48: 16.81500662 | J48: =+SUM(J17:J47)/2*H48 -> 0 | M48: 0 | N48: =+SUM(N17:N47)/2*L48 -> 0 | O48: 16.81500662 | P48: =+SUM(P17:P47)/2*L48 -> 0 | Q48: 1681.500662 | R48: =+J48*E$7 -> 0
A49: Total Variable Costs | I49: 1311.963743 | J49: =SUM(J18:J48) -> 0 | M49: 0 | N49: =SUM(N18:N48) -> 0 | O49: 1311.963743 | P49: =SUM(P18:P48) -> 0 | Q49: 131196.3743 | R49: =SUM(R18:R48) -> 0
A50: Planned Returns Above Variable Costs: | I50: 680.036257 | J50: =+J13-J49 -> 0 | M50: 0 | N50: =+N13-N49 -> 0 | O50: 680.036257 | P50: =+P13-P49 -> 0 | Q50: 68003.6257 | R50: =+R13-R49 -> 0
B51: Breakeven Price to Cover Variable Costs | G51: 109.3303119 | H51: =IF(E10=0,"n/a",(YVarExp-(YTotExp+YTotRet-J10))/E10) -> n/a | I51: Ton
Q52: Enterprise | R52: Enterprise
A53: FIXED COSTS | D53: Quantity | E53: Quantity | F53: Units | G53: $/Unit | H53: $/Unit | I53: Total | J53: Total | K53: Share | L53: Share | M53: Landlord | N53: Landlord | O53: Tenant | P53: Tenant | Q53: Total | R53: Total
B54: Machinery Depreciation
C55: Pickup/General Use Equipment | D55: 1 | F55: Acre | G55: 25.74 | I55: 25.74 | J55: =E55*H55 -> 0 | K55: 0 | M55: 0 | N55: =J55*L55 -> 0 | O55: 25.74 | P55: =+J55-N55 -> 0 | Q55: 2574 | R55: =+J55*E$7 -> 0
C56: Irrigation Equipment | D56: 1 | F56: Acre | G56: 98.3125 | I56: 98.3125 | J56: 0 | K56: 0 | M56: 0 | N56: =J56*L56 -> 0 | O56: 98.3125 | P56: 0 | Q56: 9831.25 | R56: 0
C57: Tractors/Self-Propelled | D57: 1 | F57: Acre | G57: 24.39519575 | I57: 24.39519575 | J57: 0 | K57: 0 | M57: 0 | N57: =J57*L57 -> 0 | O57: 24.39519575 | P57: 0 | Q57: 2439.519575 | R57: 0
C58: Implements | D58: 1 | F58: Acre | G58: 29.45904771 | I58: 29.45904771 | J58: 0 | K58: 0 | M58: 0 | N58: =J58*L58 -> 0 | O58: 29.45904771 | P58: 0 | Q58: 2945.904771 | R58: 0
B59: Equipment Investment
C60: Pickup/General Use Equipment | D60: 107.25 | F60: Dollars | G60: 0.086 | I60: 9.2235 | J60: =E60*H60 -> 0 | K60: 0 | M60: 0 | N60: =J60*L60 -> 0 | O60: 9.2235 | P60: =+J60-N60 -> 0 | Q60: 922.35 | R60: =+J60*E$7 -> 0
C61: Irrigation Equipment | D61: 788.125 | F61: Dollars | G61: 0.086 | I61: 67.77875 | J61: 0 | K61: 0 | M61: 0 | N61: =J61*L61 -> 0 | O61: 67.77875 | P61: 0 | Q61: 6777.875 | R61: 0
C62: Tractors/Self-Propelled | D62: 189.8095561 | F62: Dollars | G62: 0.086 | I62: 16.32362182 | J62: 0 | K62: 0 | M62: 0 | N62: =J62*L62 -> 0 | O62: 16.32362182 | P62: 0 | Q62: 1632.362182 | R62: 0
C63: Implements | D63: 229.6510696 | F63: Dollars | G63: 0.086 | I63: 19.74999199 | J63: 0 | K63: 0 | M63: 0 | N63: =J63*L63 -> 0 | O63: 19.74999199 | P63: 0 | Q63: 1974.999199 | R63: 0
B64: Salaried Labor | D64: 1 | F64: Acre | G64: 0 | I64: 0 | J64: 0 | K64: 0 | M64: 0 | N64: =J64*L64 -> 0 | O64: 0 | P64: =+J64-N64 -> 0 | Q64: 0 | R64: =+J64*E$7 -> 0
B65: Management Fee, Owner/Operator Labor | D65: 1 | F65: Acre | G65: 0 | I65: 0 | J65: 0 | K65: 0 | M65: 0 | N65: 0 | O65: 0 | P65: 0 | Q65: 0 | R65: 0
B66: Allocated Establishment Cost | D66: 1 | F66: Acre | G66: 0 | I66: 0 | J66: 0 | K66: 0 | M66: 0 | N66: 0 | O66: 0 | P66: 0 | Q66: 0 | R66: 0
B67: Irrigated Winter Garden Rent | D67: 1 | F67: Acre | G67: 50 | I67: 50 | J67: 0 | K67: 0 | M67: 0 | N67: 0 | O67: 50 | P67: 0 | Q67: 5000 | R67: 0
B68: Property Taxes | D68: 1 | F68: Acre | G68: 0 | I68: 0 | J68: 0 | K68: 0 | M68: 0 | N68: 0 | O68: 0 | P68: 0 | Q68: 0 | R68: 0
B69: Whole Farm Insurance | D69: 1 | F69: Acre | G69: 0 | I69: 0 | J69: 0 | K69: 0 | M69: 0 | N69: 0 | O69: 0 | P69: 0 | Q69: 0 | R69: 0
D70: 1 | G70: 0 | I70: 0 | J70: 0 | K70: 0 | M70: 0 | N70: 0 | O70: 0 | P70: 0 | Q70: 0 | R70: 0
D71: 1 | G71: 0 | I71: 0 | J71: =E71*H71 -> 0 | K71: 0 | M71: 0 | N71: 0 | O71: 0 | P71: 0 | Q71: 0 | R71: 0
A72: Total Fixed Costs | I72: 340.9826073 | J72: =+SUM(J55:J71) -> 0 | M72: 0 | N72: =+SUM(N55:N71) -> 0 | O72: 340.9826073 | P72: =+SUM(P55:P71) -> 0 | Q72: 34098.26073 | R72: =+SUM(R55:R71) -> 0
A73: Total Specified Costs | I73: 1652.94635 | J73: =+J49+J72 -> 0 | M73: 0 | N73: =+N49+N72 -> 0 | O73: 1652.94635 | P73: =+P49+P72 -> 0 | Q73: 165294.635 | R73: =+R49+R72 -> 0
A75: Returns Above Specified Costs | I75: 339.0536497 | J75: =+J13-J73 -> 0 | M75: 0 | N75: =+N13-N73 -> 0 | O75: 339.0536497 | P75: =+P13-P73 -> 0 | Q75: 33905.36497 | R75: =+R13-R73 -> 0
A77: Breakeven Price to Cover Total Costs | G77: 137.7455292 | H77: =IF(E10=0,"n/a",(YTotExp-(YTotExp+YTotRet-J10))/E10) -> n/a | I77: Ton
D79: Example Breakeven Prices
B80: Example | C80: Example | D80: To Cover | G80: To Cover
B81: Yield | C81: Yield | D81: Variable | G81: Total
B82: Percent | C82: Ton | D82: Costs | G82: Costs
B83: 0.75 | C83: 9 | D83: 145.7737492 | G83: 183.6607056
B84: 0.9 | C84: 10.8 | D84: 121.4781243 | G84: 153.050588
B85: 1 | C85: 12 | D85: 109.3303119 | G85: 137.7455292
B86: 1.1 | C86: 13.2 | D86: 99.39119265 | G86: 125.2232084
B87: 1.25 | C87: 15 | D87: 87.46424953 | G87: 110.1964234
D89: Your Breakeven Prices
B90: Your | C90: Your | E90: To Cover | H90: To Cover
B91: Yield | C91: Yield | E91: Variable | H91: Total
B92: Percent | C92: Ton | E92: Costs | H92: Costs
B93: 0.75 | C93: =E10*YPER1 -> 0 | E93: =IF($E$10=0,0,(YVarExp-(YTotExp+YTotRet-J10))/($E$10*YPER1)) -> 0 | H93: =IF($E$10=0,0,(YTotExp-(YTotExp+YTotRet-J10))/($E$10*YPER1)) -> 0
B94: 0.9 | C94: =E10*YPER2 -> 0 | E94: =IF($E$10=0,0,(YVarExp-(YTotExp+YTotRet-J10))/($E$10*YPER2)) -> 0 | H94: =IF($E$10=0,0,(YTotExp-(YTotExp+YTotRet-J10))/($E$10*YPER2)) -> 0
B95: 1 | C95: =+E10 -> 0 | E95: =IF($E$10=0,0,(YVarExp-(YTotExp+YTotRet-J10))/($E$10*YPER3)) -> 0 | H95: =IF($E$10=0,0,(YTotExp-(YTotExp+YTotRet-J10))/($E$10*YPER3)) -> 0
B96: 1.1 | C96: =E10*YPER4 -> 0 | E96: =IF($E$10=0,0,(YVarExp-(YTotExp+YTotRet-J10))/($E$10*YPER4)) -> 0 | H96: =IF($E$10=0,0,(YTotExp-(YTotExp+YTotRet-J10))/($E$10*YPER4)) -> 0
B97: 1.25 | C97: =E10*YPER5 -> 0 | E97: =IF($E$10=0,0,(YVarExp-(YTotExp+YTotRet-J10))/($E$10*YPER5)) -> 0 | H97: =IF($E$10=0,0,(YTotExp-(YTotExp+YTotRet-J10))/($E$10*YPER5)) -> 0
A99: Developed by Extension Agricultural Economists, Texas A&M AgriLife Extension, budgets@tamu.edu.
A101: Information presented is prepared solely as a general guide and not intended to recognize or predict the costs and returns from any one operation. Brand names are mentioned only as examples and imply no endorsement.

Sheet CoastalEstablishDryland
A1: Projections for Planning Purposes Only -- Not to be Used without Updating
A2: 2025 Estimated Costs and Returns per Acre
A3: Dryland Coastal Bermudagrass Establishment
A4: Enter your name for this budget in the cell above.
A5: Enter Your Values in the cells highlighed in MAROON.
E6: Your Acres | R6: Your
C7: Crop Acres | D7: 100 | L7: Your | Q7: Enterprise | R7: Enterprise
E8: Your | H8: Your | I8: Cash | J8: Your | K8: Landlord | L8: Landlord | N8: Your | P8: Your | Q8: Total | R8: Total
A9: REVENUE | D9: Quantity | E9: Quantity | F9: Units | G9: $/Unit | H9: $/Unit | I9: Total | J9: Total | K9: Share | L9: Share | M9: Landlord | N9: Landlord | O9: Tenant | P9: Tenant | Q9: (100 acres) | R9: ="(" & E7 & " acres)" -> ( acres)
B10: 0 | D10: 0 | G10: 0 | I10: 0 | J10: =E10*H10 -> 0 | K10: 0 | M10: 0 | N10: =J10*L10 -> 0 | O10: 0 | P10: =+J10-N10 -> 0 | Q10: 0 | R10: =+J10*E$7 -> 0
D11: 0 | G11: 0 | I11: 0 | J11: 0 | K11: 0 | M11: 0 | N11: 0 | O11: 0 | P11: =+J11-N11 -> 0 | Q11: 0 | R11: 0
D12: 0 | G12: 0 | I12: 0 | J12: 0 | K12: 0 | M12: 0 | N12: 0 | O12: 0 | P12: 0 | Q12: 0 | R12: 0
A13: Total Revenue | I13: 0 | J13: =SUM(J10:J12) -> 0 | M13: 0 | N13: =SUM(N10:N12) -> 0 | O13: 0 | P13: =SUM(P10:P12) -> 0 | Q13: 0 | R13: =SUM(R10:R12) -> 0
Q14: Enterprise | R14: Enterprise
A15: VARIABLE COSTS | D15: Quantity | E15: Quantity | F15: Units | G15: $/Unit | H15: $/Unit | I15: Total | J15: Total | K15: Share | L15: Share | M15: Landlord | N15: Landlord | O15: Tenant | P15: Tenant | Q15: Total | R15: Total
A16: Production Costs
B17: Custom
C18: Custom Sprigging | D18: 1 | F18: Acre | G18: 100 | I18: 100 | J18: =E18*H18 -> 0 | K18: 0 | M18: 0 | N18: =J18*L18 -> 0 | O18: 100 | P18: =+J18-N18 -> 0 | Q18: 10000 | R18: =+J18*E$7 -> 0
B19: Fertilizer
C20: Fertilizer 22-6-17 | D20: 353 | F20: Pound | G20: 0.28 | I20: 98.84 | J20: 0 | K20: 0 | M20: 0 | N20: 0 | O20: 98.84 | P20: 0 | Q20: 9884 | R20: 0
B21: Herbicide
C22: Prowl H2O | D22: 4 | F22: Pint | G22: 6.09375 | I22: 24.375 | J22: 0 | K22: 0 | M22: 0 | N22: 0 | O22: 24.375 | P22: 0 | Q22: 2437.5 | R22: 0
B23: Seed
C24: Coastal Bermudagrass Sprigs | D24: 30 | F24: Bushel | G24: 0.75 | I24: 22.5 | J24: 0 | K24: 0 | M24: 0 | N24: 0 | O24: 22.5 | P24: 0 | Q24: 2250 | R24: 0
D25: 0 | G25: 0 | I25: 0 | J25: 0 | K25: 0 | M25: 0 | N25: 0 | O25: 0 | P25: 0 | Q25: 0 | R25: 0
D26: 0 | G26: 0 | I26: 0 | J26: 0 | K26: 0 | M26: 0 | N26: 0 | O26: 0 | P26: 0 | Q26: 0 | R26: 0
D27: 0 | G27: 0 | I27: 0 | J27: =E27*H27 -> 0 | K27: 0 | M27: 0 | N27: =J27*L27 -> 0 | O27: 0 | P27: =+J27-N27 -> 0 | Q27: 0 | R27: =+J27*E$7 -> 0
B28: Machinery Labor
C29: Tractors/Self-Propelled | D29: 0.32 | F29: Hour | G29: 17.21 | I29: 5.5072 | J29: =E29*H29 -> 0 | K29: 0 | M29: 0 | N29: =J29*L29 -> 0 | O29: 5.5072 | P29: =+J29-N29 -> 0 | Q29: 550.72 | R29: =+J29*E$7 -> 0
C30: Other Labor | D30: 0 | F30: Hour | G30: 17.21 | I30: 0 | J30: =E30*H30 -> 0 | K30: 0 | M30: 0 | N30: =J30*L30 -> 0 | O30: 0 | P30: =+J30-N30 -> 0 | Q30: 0 | R30: =+J30*E$7 -> 0
B32: Diesel Fuel
C33: Pickup/General Use Equipment | D33: 1 | F33: Acre | G33: 0 | I33: 0 | J33: =E33*H33 -> 0 | K33: 0 | M33: 0 | N33: =J33*L33 -> 0 | O33: 0 | P33: =+J33-N33 -> 0 | Q33: 0 | R33: =+J33*E$7 -> 0
C34: Tractors/Self-Propelled | D34: 2.12 | F34: Gallon | G34: 3 | I34: 6.36 | J34: =E34*H34 -> 0 | K34: 0 | M34: 0 | N34: =J34*L34 -> 0 | O34: 6.36 | P34: =+J34-N34 -> 0 | Q34: 636 | R34: =+J34*E$7 -> 0
B36: Gasoline
C37: Pickup/General Use Equipment | D37: 1 | F37: Acre | G37: 27.17915915 | I37: 27.17915915 | J37: =E37*H37 -> 0 | K37: 0 | M37: 0 | N37: =J37*L37 -> 0 | O37: 27.17915915 | P37: =+J37-N37 -> 0 | Q37: 2717.915915 | R37: =+J37*E$7 -> 0
C38: Tractors/Self-Propelled | D38: 0 | F38: Gallon | G38: 2.75 | I38: 0 | J38: =E38*H38 -> 0 | K38: 0 | M38: 0 | N38: =J38*L38 -> 0 | O38: 0 | P38: =+J38-N38 -> 0 | Q38: 0 | R38: =+J38*E$7 -> 0
B40: Repairs & Maintenance
C41: Pickup/General Use Equipment | D41: 1 | F41: Acre | G41: 13.44 | I41: 13.44 | J41: =E41*H41 -> 0 | K41: 0 | M41: 0 | N41: =J41*L41 -> 0 | O41: 13.44 | P41: =+J41-N41 -> 0 | Q41: 1344 | R41: =+J41*E$7 -> 0
C42: Irrigation Equipment | D42: 1 | F42: Acre | G42: 0 | I42: 0 | J42: 0 | K42: 0 | M42: 0 | N42: 0 | O42: 0 | P42: 0 | Q42: 0 | R42: 0
C43: Tractors/Self-Propelled | D43: 1 | F43: Acre | G43: 5.063175838 | I43: 5.063175838 | J43: 0 | K43: 0 | M43: 0 | N43: 0 | O43: 5.063175838 | P43: 0 | Q43: 506.3175838 | R43: 0
C44: Implements | D44: 1 | F44: Acre | G44: 4.435929124 | I44: 4.435929124 | J44: 0 | K44: 0 | M44: 0 | N44: 0 | O44: 4.435929124 | P44: 0 | Q44: 443.5929124 | R44: 0
I45: 0 | J45: 0 | K45: 0 | M45: 0 | N45: 0 | O45: 0 | P45: 0 | Q45: 0 | R45: 0
I46: 0 | J46: 0 | K46: 0 | M46: 0 | N46: 0 | O46: 0 | P46: 0 | Q46: 0 | R46: 0
B47: Interest on Credit Line | G47: 0.086 | I47: 16.4392763 | J47: =+SUM(J17:J46)/2*H47 -> 0 | M47: 0 | N47: =+SUM(N17:N46)/2*L47 -> 0 | O47: 16.4392763 | P47: =+SUM(P17:P46)/2*L47 -> 0 | Q47: 1643.92763 | R47: =+J47*E$7 -> 0
A48: Total Variable Costs | I48: 324.1397404 | J48: =SUM(J18:J47) -> 0 | M48: 0 | N48: =SUM(N18:N47) -> 0 | O48: 324.1397404 | P48: =SUM(P18:P47) -> 0 | Q48: 32413.97404 | R48: =SUM(R18:R47) -> 0
A49: Planned Returns Above Variable Costs: | I49: -324.1397404 | J49: =+J13-J48 -> 0 | M49: 0 | N49: =+N13-N48 -> 0 | O49: -324.1397404 | P49: =+P13-P48 -> 0 | Q49: -32413.97404 | R49: =+R13-R48 -> 0
B50: Breakeven Price to Cover Variable Costs | G50: n/a | H50: =IF(E10=0,"n/a",(YVarExp-(YTotExp+YTotRet-J10))/E10) -> n/a
Q51: Enterprise | R51: Enterprise
A52: FIXED COSTS | D52: Quantity | E52: Quantity | F52: Units | G52: $/Unit | H52: $/Unit | I52: Total | J52: Total | K52: Share | L52: Share | M52: Landlord | N52: Landlord | O52: Tenant | P52: Tenant | Q52: Total | R52: Total
B53: Machinery Depreciation
C54: Pickup/General Use Equipment | D54: 1 | F54: Acre | G54: 25.74 | I54: 25.74 | J54: =E54*H54 -> 0 | K54: 0 | M54: 0 | N54: =J54*L54 -> 0 | O54: 25.74 | P54: =+J54-N54 -> 0 | Q54: 2574 | R54: =+J54*E$7 -> 0
C55: Tractors/Self-Propelled | D55: 1 | F55: Acre | G55: 5.633453515 | I55: 5.633453515 | J55: 0 | K55: 0 | M55: 0 | N55: =J55*L55 -> 0 | O55: 5.633453515 | P55: 0 | Q55: 563.3453515 | R55: 0
C56: Implements | D56: 1 | F56: Acre | G56: 5.405645904 | I56: 5.405645904 | J56: 0 | K56: 0 | M56: 0 | N56: =J56*L56 -> 0 | O56: 5.405645904 | P56: 0 | Q56: 540.5645904 | R56: 0
B57: Equipment Investment
C58: Pickup/General Use Equipment | D58: 107.25 | F58: Dollars | G58: 0.086 | I58: 9.2235 | J58: =E58*H58 -> 0 | K58: 0 | M58: 0 | N58: =J58*L58 -> 0 | O58: 9.2235 | P58: =+J58-N58 -> 0 | Q58: 922.35 | R58: =+J58*E$7 -> 0
C59: Tractors/Self-Propelled | D59: 43.64953188 | F59: Dollars | G59: 0.086 | I59: 3.753859742 | J59: 0 | K59: 0 | M59: 0 | N59: =J59*L59 -> 0 | O59: 3.753859742 | P59: 0 | Q59: 375.3859742 | R59: 0
C60: Implements | D60: 23.30751581 | F60: Dollars | G60: 0.086 | I60: 2.00444636 | J60: 0 | K60: 0 | M60: 0 | N60: =J60*L60 -> 0 | O60: 2.00444636 | P60: 0 | Q60: 200.444636 | R60: 0
B61: Salaried Labor | D61: 1 | F61: Acre | G61: 0 | I61: 0 | J61: 0 | K61: 0 | M61: 0 | N61: =J61*L61 -> 0 | O61: 0 | P61: =+J61-N61 -> 0 | Q61: 0 | R61: =+J61*E$7 -> 0
B62: Management Fee, Owner/Operator Labor | D62: 1 | F62: Acre | G62: 0 | I62: 0 | J62: 0 | K62: 0 | M62: 0 | N62: 0 | O62: 0 | P62: 0 | Q62: 0 | R62: 0
B63: Allocated Establishment Cost | D63: 1 | F63: Acre | G63: 0 | I63: 0 | J63: 0 | K63: 0 | M63: 0 | N63: 0 | O63: 0 | P63: 0 | Q63: 0 | R63: 0
B64: Dryland Winter Garden Rent | D64: 1 | F64: Acre | G64: 20 | I64: 20 | J64: 0 | K64: 0 | M64: 0 | N64: 0 | O64: 20 | P64: 0 | Q64: 2000 | R64: 0
B65: Property Taxes | D65: 1 | F65: Acre | G65: 0 | I65: 0 | J65: 0 | K65: 0 | M65: 0 | N65: 0 | O65: 0 | P65: 0 | Q65: 0 | R65: 0
B66: Whole Farm Insurance | D66: 1 | F66: Acre | G66: 0 | I66: 0 | J66: 0 | K66: 0 | M66: 0 | N66: 0 | O66: 0 | P66: 0 | Q66: 0 | R66: 0
D67: 1 | G67: 0 | I67: 0 | J67: 0 | K67: 0 | M67: 0 | N67: 0 | O67: 0 | P67: 0 | Q67: 0 | R67: 0
D68: 1 | G68: 0 | I68: 0 | J68: =E68*H68 -> 0 | K68: 0 | M68: 0 | N68: 0 | O68: 0 | P68: 0 | Q68: 0 | R68: 0
A69: Total Fixed Costs | I69: 71.76090552 | J69: =+SUM(J54:J68) -> 0 | M69: 0 | N69: =+SUM(N54:N68) -> 0 | O69: 71.76090552 | P69: =+SUM(P54:P68) -> 0 | Q69: 7176.090552 | R69: =+SUM(R54:R68) -> 0
A70: Total Specified Costs | I70: 395.9006459 | J70: =+J48+J69 -> 0 | M70: 0 | N70: =+N48+N69 -> 0 | O70: 395.9006459 | P70: =+P48+P69 -> 0 | Q70: 39590.06459 | R70: =+R48+R69 -> 0
A72: Returns Above Specified Costs | I72: -395.9006459 | J72: =+J13-J70 -> 0 | M72: 0 | N72: =+N13-N70 -> 0 | O72: -395.9006459 | P72: =+P13-P70 -> 0 | Q72: -39590.06459 | R72: =+R13-R70 -> 0
A74: Breakeven Price to Cover Total Costs | G74: n/a | H74: =IF(E10=0,"n/a",(YTotExp-(YTotExp+YTotRet-J10))/E10) -> n/a
D76: Example Breakeven Prices
B77: Example | C77: Example | D77: To Cover | G77: To Cover
B78: Yield | C78: Yield | D78: Variable | G78: Total
B79: Percent | D79: Costs | G79: Costs
B80: 0.75 | C80: 0 | D80: 0 | G80: 0
B81: 0.9 | C81: 0 | D81: 0 | G81: 0
B82: 1 | C82: 0 | D82: 0 | G82: 0
B83: 1.1 | C83: 0 | D83: 0 | G83: 0
B84: 1.25 | C84: 0 | D84: 0 | G84: 0
D86: Your Breakeven Prices
B87: Your | C87: Your | E87: To Cover | H87: To Cover
B88: Yield | C88: Yield | E88: Variable | H88: Total
B89: Percent | E89: Costs | H89: Costs
B90: 0.75 | C90: =E10*YPER1 -> 0 | E90: =IF($E$10=0,0,(YVarExp-(YTotExp+YTotRet-J10))/($E$10*YPER1)) -> 0 | H90: =IF($E$10=0,0,(YTotExp-(YTotExp+YTotRet-J10))/($E$10*YPER1)) -> 0
B91: 0.9 | C91: =E10*YPER2 -> 0 | E91: =IF($E$10=0,0,(YVarExp-(YTotExp+YTotRet-J10))/($E$10*YPER2)) -> 0 | H91: =IF($E$10=0,0,(YTotExp-(YTotExp+YTotRet-J10))/($E$10*YPER2)) -> 0
B92: 1 | C92: =+E10 -> 0 | E92: =IF($E$10=0,0,(YVarExp-(YTotExp+YTotRet-J10))/($E$10*YPER3)) -> 0 | H92: =IF($E$10=0,0,(YTotExp-(YTotExp+YTotRet-J10))/($E$10*YPER3)) -> 0
B93: 1.1 | C93: =E10*YPER4 -> 0 | E93: =IF($E$10=0,0,(YVarExp-(YTotExp+YTotRet-J10))/($E$10*YPER4)) -> 0 | H93: =IF($E$10=0,0,(YTotExp-(YTotExp+YTotRet-J10))/($E$10*YPER4)) -> 0
B94: 1.25 | C94: =E10*YPER5 -> 0 | E94: =IF($E$10=0,0,(YVarExp-(YTotExp+YTotRet-J10))/($E$10*YPER5)) -> 0 | H94: =IF($E$10=0,0,(YTotExp-(YTotExp+YTotRet-J10))/($E$10*YPER5)) -> 0
A96: Developed by Extension Agricultural Economists, Texas A&M AgriLife Extension, budgets@tamu.edu.
A98: Information presented is prepared solely as a general guide and not intended to recognize or predict the costs and returns from any one operation. Brand names are mentioned only as examples and imply no endorsement.

Sheet CoastalEstablishIrrigated
A1: Projections for Planning Purposes Only -- Not to be Used without Updating
A2: 2025 Estimated Costs and Returns per Acre
A3: Irrigated Coastal Bermudagrass Establishment
A4: Enter your name for this budget in the cell above.
A5: Enter Your Values in the cells highlighed in MAROON.
E6: Your Acres | R6: Your
C7: Crop Acres | D7: 100 | L7: Your | Q7: Enterprise | R7: Enterprise
E8: Your | H8: Your | I8: Cash | J8: Your | K8: Landlord | L8: Landlord | N8: Your | P8: Your | Q8: Total | R8: Total
A9: REVENUE | D9: Quantity | E9: Quantity | F9: Units | G9: $/Unit | H9: $/Unit | I9: Total | J9: Total | K9: Share | L9: Share | M9: Landlord | N9: Landlord | O9: Tenant | P9: Tenant | Q9: (100 acres) | R9: ="(" & E7 & " acres)" -> ( acres)
B10: 0 | D10: 0 | G10: 0 | I10: 0 | J10: =E10*H10 -> 0 | K10: 0 | M10: 0 | N10: =J10*L10 -> 0 | O10: 0 | P10: =+J10-N10 -> 0 | Q10: 0 | R10: =+J10*E$7 -> 0
D11: 0 | G11: 0 | I11: 0 | J11: 0 | K11: 0 | M11: 0 | N11: 0 | O11: 0 | P11: =+J11-N11 -> 0 | Q11: 0 | R11: 0
D12: 0 | G12: 0 | I12: 0 | J12: 0 | K12: 0 | M12: 0 | N12: 0 | O12: 0 | P12: 0 | Q12: 0 | R12: 0
A13: Total Revenue | I13: 0 | J13: =SUM(J10:J12) -> 0 | M13: 0 | N13: =SUM(N10:N12) -> 0 | O13: 0 | P13: =SUM(P10:P12) -> 0 | Q13: 0 | R13: =SUM(R10:R12) -> 0
Q14: Enterprise | R14: Enterprise
A15: VARIABLE COSTS | D15: Quantity | E15: Quantity | F15: Units | G15: $/Unit | H15: $/Unit | I15: Total | J15: Total | K15: Share | L15: Share | M15: Landlord | N15: Landlord | O15: Tenant | P15: Tenant | Q15: Total | R15: Total
A16: Production Costs
B17: Custom
C18: Custom Sprigging | D18: 1 | F18: Acre | G18: 100 | I18: 100 | J18: =E18*H18 -> 0 | K18: 0 | M18: 0 | N18: =J18*L18 -> 0 | O18: 100 | P18: =+J18-N18 -> 0 | Q18: 10000 | R18: =+J18*E$7 -> 0
B19: Fertilizer
C20: Fertilizer 22-6-17 | D20: 353 | F20: Pound | G20: 0.28 | I20: 98.84 | J20: 0 | K20: 0 | M20: 0 | N20: 0 | O20: 98.84 | P20: 0 | Q20: 9884 | R20: 0
B21: Herbicide
C22: Prowl H2O | D22: 4 | F22: Pint | G22: 6.09375 | I22: 24.375 | J22: 0 | K22: 0 | M22: 0 | N22: 0 | O22: 24.375 | P22: 0 | Q22: 2437.5 | R22: 0
B23: Seed
C24: Coastal Bermudagrass Sprigs | D24: 30 | F24: Bushel | G24: 0.75 | I24: 22.5 | J24: 0 | K24: 0 | M24: 0 | N24: 0 | O24: 22.5 | P24: 0 | Q24: 2250 | R24: 0
D25: 0 | G25: 0 | I25: 0 | J25: 0 | K25: 0 | M25: 0 | N25: 0 | O25: 0 | P25: 0 | Q25: 0 | R25: 0
D26: 0 | G26: 0 | I26: 0 | J26: 0 | K26: 0 | M26: 0 | N26: 0 | O26: 0 | P26: 0 | Q26: 0 | R26: 0
D27: 0 | G27: 0 | I27: 0 | J27: =E27*H27 -> 0 | K27: 0 | M27: 0 | N27: =J27*L27 -> 0 | O27: 0 | P27: =+J27-N27 -> 0 | Q27: 0 | R27: =+J27*E$7 -> 0
B28: Irrigation
C29: Energy Cost | D29: 594 | F29: kWh | G29: 0.17 | I29: 100.98 | J29: =E29*H29 -> 0 | K29: 0 | M29: 0 | N29: =J29*L29 -> 0 | O29: 100.98 | P29: =+J29-N29 -> 0 | Q29: 10098 | R29: =+J29*E$7 -> 0
C30: Irrigation Labor | D30: 0.072 | F30: Hour | G30: 17.5 | I30: 1.26 | J30: 0 | K30: 0 | M30: 0 | N30: 0 | O30: 1.26 | P30: 0 | Q30: 126 | R30: 0
B31: Machinery Labor
C32: Tractors/Self-Propelled | D32: 0.32 | F32: Hour | G32: 17.21 | I32: 5.5072 | J32: =E32*H32 -> 0 | K32: 0 | M32: 0 | N32: =J32*L32 -> 0 | O32: 5.5072 | P32: =+J32-N32 -> 0 | Q32: 550.72 | R32: =+J32*E$7 -> 0
C33: Other Labor | D33: 0 | F33: Hour | G33: 17.21 | I33: 0 | J33: =E33*H33 -> 0 | K33: 0 | M33: 0 | N33: =J33*L33 -> 0 | O33: 0 | P33: =+J33-N33 -> 0 | Q33: 0 | R33: =+J33*E$7 -> 0
B35: Diesel Fuel
C36: Pickup/General Use Equipment | D36: 1 | F36: Acre | G36: 0 | I36: 0 | J36: =E36*H36 -> 0 | K36: 0 | M36: 0 | N36: =J36*L36 -> 0 | O36: 0 | P36: =+J36-N36 -> 0 | Q36: 0 | R36: =+J36*E$7 -> 0
C37: Tractors/Self-Propelled | D37: 2.12 | F37: Gallon | G37: 3 | I37: 6.36 | J37: =E37*H37 -> 0 | K37: 0 | M37: 0 | N37: =J37*L37 -> 0 | O37: 6.36 | P37: =+J37-N37 -> 0 | Q37: 636 | R37: =+J37*E$7 -> 0
B39: Gasoline
C40: Pickup/General Use Equipment | D40: 1 | F40: Acre | G40: 27.17915915 | I40: 27.17915915 | J40: =E40*H40 -> 0 | K40: 0 | M40: 0 | N40: =J40*L40 -> 0 | O40: 27.17915915 | P40: =+J40-N40 -> 0 | Q40: 2717.915915 | R40: =+J40*E$7 -> 0
C41: Tractors/Self-Propelled | D41: 0 | F41: Gallon | G41: 2.75 | I41: 0 | J41: =E41*H41 -> 0 | K41: 0 | M41: 0 | N41: =J41*L41 -> 0 | O41: 0 | P41: =+J41-N41 -> 0 | Q41: 0 | R41: =+J41*E$7 -> 0
B43: Repairs & Maintenance
C44: Pickup/General Use Equipment | D44: 1 | F44: Acre | G44: 13.44 | I44: 13.44 | J44: =E44*H44 -> 0 | K44: 0 | M44: 0 | N44: =J44*L44 -> 0 | O44: 13.44 | P44: =+J44-N44 -> 0 | Q44: 1344 | R44: =+J44*E$7 -> 0
C45: Irrigation Equipment | D45: 1 | F45: Acre | G45: 5.599038654 | I45: 5.599038654 | J45: 0 | K45: 0 | M45: 0 | N45: 0 | O45: 5.599038654 | P45: 0 | Q45: 559.9038654 | R45: 0
C46: Tractors/Self-Propelled | D46: 1 | F46: Acre | G46: 5.063175838 | I46: 5.063175838 | J46: 0 | K46: 0 | M46: 0 | N46: 0 | O46: 5.063175838 | P46: 0 | Q46: 506.3175838 | R46: 0
C47: Implements | D47: 1 | F47: Acre | G47: 4.435929124 | I47: 4.435929124 | J47: 0 | K47: 0 | M47: 0 | N47: 0 | O47: 4.435929124 | P47: 0 | Q47: 443.5929124 | R47: 0
I48: 0 | J48: 0 | K48: 0 | M48: 0 | N48: 0 | O48: 0 | P48: 0 | Q48: 0 | R48: 0
I49: 0 | J49: 0 | K49: 0 | M49: 0 | N49: 0 | O49: 0 | P49: 0 | Q49: 0 | R49: 0
B50: Interest on Credit Line | G50: 0.086 | I50: 20.34882756 | J50: =+SUM(J17:J49)/2*H50 -> 0 | M50: 0 | N50: =+SUM(N17:N49)/2*L50 -> 0 | O50: 20.34882756 | P50: =+SUM(P17:P49)/2*L50 -> 0 | Q50: 2034.882756 | R50: =+J50*E$7 -> 0
A51: Total Variable Costs | I51: 435.8883303 | J51: =SUM(J18:J50) -> 0 | M51: 0 | N51: =SUM(N18:N50) -> 0 | O51: 435.8883303 | P51: =SUM(P18:P50) -> 0 | Q51: 43588.83303 | R51: =SUM(R18:R50) -> 0
A52: Planned Returns Above Variable Costs: | I52: -435.8883303 | J52: =+J13-J51 -> 0 | M52: 0 | N52: =+N13-N51 -> 0 | O52: -435.8883303 | P52: =+P13-P51 -> 0 | Q52: -43588.83303 | R52: =+R13-R51 -> 0
B53: Breakeven Price to Cover Variable Costs | G53: n/a | H53: =IF(E10=0,"n/a",(YVarExp-(YTotExp+YTotRet-J10))/E10) -> n/a
Q54: Enterprise | R54: Enterprise
A55: FIXED COSTS | D55: Quantity | E55: Quantity | F55: Units | G55: $/Unit | H55: $/Unit | I55: Total | J55: Total | K55: Share | L55: Share | M55: Landlord | N55: Landlord | O55: Tenant | P55: Tenant | Q55: Total | R55: Total
B56: Machinery Depreciation
C57: Pickup/General Use Equipment | D57: 1 | F57: Acre | G57: 25.74 | I57: 25.74 | J57: =E57*H57 -> 0 | K57: 0 | M57: 0 | N57: =J57*L57 -> 0 | O57: 25.74 | P57: =+J57-N57 -> 0 | Q57: 2574 | R57: =+J57*E$7 -> 0
C58: Irrigation Equipment | D58: 1 | F58: Acre | G58: 98.3125 | I58: 98.3125 | J58: 0 | K58: 0 | M58: 0 | N58: =J58*L58 -> 0 | O58: 98.3125 | P58: 0 | Q58: 9831.25 | R58: 0
C59: Tractors/Self-Propelled | D59: 1 | F59: Acre | G59: 5.633453515 | I59: 5.633453515 | J59: 0 | K59: 0 | M59: 0 | N59: =J59*L59 -> 0 | O59: 5.633453515 | P59: 0 | Q59: 563.3453515 | R59: 0
C60: Implements | D60: 1 | F60: Acre | G60: 5.405645904 | I60: 5.405645904 | J60: 0 | K60: 0 | M60: 0 | N60: =J60*L60 -> 0 | O60: 5.405645904 | P60: 0 | Q60: 540.5645904 | R60: 0
B61: Equipment Investment
C62: Pickup/General Use Equipment | D62: 107.25 | F62: Dollars | G62: 0.086 | I62: 9.2235 | J62: =E62*H62 -> 0 | K62: 0 | M62: 0 | N62: =J62*L62 -> 0 | O62: 9.2235 | P62: =+J62-N62 -> 0 | Q62: 922.35 | R62: =+J62*E$7 -> 0
C63: Irrigation Equipment | D63: 788.125 | F63: Dollars | G63: 0.086 | I63: 67.77875 | J63: 0 | K63: 0 | M63: 0 | N63: =J63*L63 -> 0 | O63: 67.77875 | P63: 0 | Q63: 6777.875 | R63: 0
C64: Tractors/Self-Propelled | D64: 43.64953188 | F64: Dollars | G64: 0.086 | I64: 3.753859742 | J64: 0 | K64: 0 | M64: 0 | N64: =J64*L64 -> 0 | O64: 3.753859742 | P64: 0 | Q64: 375.3859742 | R64: 0
C65: Implements | D65: 23.30751581 | F65: Dollars | G65: 0.086 | I65: 2.00444636 | J65: 0 | K65: 0 | M65: 0 | N65: =J65*L65 -> 0 | O65: 2.00444636 | P65: 0 | Q65: 200.444636 | R65: 0
B66: Salaried Labor | D66: 1 | F66: Acre | G66: 0 | I66: 0 | J66: 0 | K66: 0 | M66: 0 | N66: =J66*L66 -> 0 | O66: 0 | P66: =+J66-N66 -> 0 | Q66: 0 | R66: =+J66*E$7 -> 0
B67: Management Fee, Owner/Operator Labor | D67: 1 | F67: Acre | G67: 0 | I67: 0 | J67: 0 | K67: 0 | M67: 0 | N67: 0 | O67: 0 | P67: 0 | Q67: 0 | R67: 0
B68: Allocated Establishment Cost | D68: 1 | F68: Acre | G68: 0 | I68: 0 | J68: 0 | K68: 0 | M68: 0 | N68: 0 | O68: 0 | P68: 0 | Q68: 0 | R68: 0
B69: Irrigated Winter Garden Rent | D69: 1 | F69: Acre | G69: 50 | I69: 50 | J69: 0 | K69: 0 | M69: 0 | N69: 0 | O69: 50 | P69: 0 | Q69: 5000 | R69: 0
B70: Property Taxes | D70: 1 | F70: Acre | G70: 0 | I70: 0 | J70: 0 | K70: 0 | M70: 0 | N70: 0 | O70: 0 | P70: 0 | Q70: 0 | R70: 0
B71: Whole Farm Insurance | D71: 1 | F71: Acre | G71: 0 | I71: 0 | J71: 0 | K71: 0 | M71: 0 | N71: 0 | O71: 0 | P71: 0 | Q71: 0 | R71: 0
D72: 1 | G72: 0 | I72: 0 | J72: 0 | K72: 0 | M72: 0 | N72: 0 | O72: 0 | P72: 0 | Q72: 0 | R72: 0
D73: 1 | G73: 0 | I73: 0 | J73: =E73*H73 -> 0 | K73: 0 | M73: 0 | N73: 0 | O73: 0 | P73: 0 | Q73: 0 | R73: 0
A74: Total Fixed Costs | I74: 267.8521555 | J74: =+SUM(J57:J73) -> 0 | M74: 0 | N74: =+SUM(N57:N73) -> 0 | O74: 267.8521555 | P74: =+SUM(P57:P73) -> 0 | Q74: 26785.21555 | R74: =+SUM(R57:R73) -> 0
A75: Total Specified Costs | I75: 703.7404858 | J75: =+J51+J74 -> 0 | M75: 0 | N75: =+N51+N74 -> 0 | O75: 703.7404858 | P75: =+P51+P74 -> 0 | Q75: 70374.04858 | R75: =+R51+R74 -> 0
A77: Returns Above Specified Costs | I77: -703.7404858 | J77: =+J13-J75 -> 0 | M77: 0 | N77: =+N13-N75 -> 0 | O77: -703.7404858 | P77: =+P13-P75 -> 0 | Q77: -70374.04858 | R77: =+R13-R75 -> 0
A79: Breakeven Price to Cover Total Costs | G79: n/a | H79: =IF(E10=0,"n/a",(YTotExp-(YTotExp+YTotRet-J10))/E10) -> n/a
D81: Example Breakeven Prices
B82: Example | C82: Example | D82: To Cover | G82: To Cover
B83: Yield | C83: Yield | D83: Variable | G83: Total
B84: Percent | D84: Costs | G84: Costs
B85: 0.75 | C85: 0 | D85: 0 | G85: 0
B86: 0.9 | C86: 0 | D86: 0 | G86: 0
B87: 1 | C87: 0 | D87: 0 | G87: 0
B88: 1.1 | C88: 0 | D88: 0 | G88: 0
B89: 1.25 | C89: 0 | D89: 0 | G89: 0
D91: Your Breakeven Prices
B92: Your | C92: Your | E92: To Cover | H92: To Cover
B93: Yield | C93: Yield | E93: Variable | H93: Total
B94: Percent | E94: Costs | H94: Costs
B95: 0.75 | C95: =E10*YPER1 -> 0 | E95: =IF($E$10=0,0,(YVarExp-(YTotExp+YTotRet-J10))/($E$10*YPER1)) -> 0 | H95: =IF($E$10=0,0,(YTotExp-(YTotExp+YTotRet-J10))/($E$10*YPER1)) -> 0
B96: 0.9 | C96: =E10*YPER2 -> 0 | E96: =IF($E$10=0,0,(YVarExp-(YTotExp+YTotRet-J10))/($E$10*YPER2)) -> 0 | H96: =IF($E$10=0,0,(YTotExp-(YTotExp+YTotRet-J10))/($E$10*YPER2)) -> 0
B97: 1 | C97: =+E10 -> 0 | E97: =IF($E$10=0,0,(YVarExp-(YTotExp+YTotRet-J10))/($E$10*YPER3)) -> 0 | H97: =IF($E$10=0,0,(YTotExp-(YTotExp+YTotRet-J10))/($E$10*YPER3)) -> 0
B98: 1.1 | C98: =E10*YPER4 -> 0 | E98: =IF($E$10=0,0,(YVarExp-(YTotExp+YTotRet-J10))/($E$10*YPER4)) -> 0 | H98: =IF($E$10=0,0,(YTotExp-(YTotExp+YTotRet-J10))/($E$10*YPER4)) -> 0
B99: 1.25 | C99: =E10*YPER5 -> 0 | E99: =IF($E$10=0,0,(YVarExp-(YTotExp+YTotRet-J10))/($E$10*YPER5)) -> 0 | H99: =IF($E$10=0,0,(YTotExp-(YTotExp+YTotRet-J10))/($E$10*YPER5)) -> 0
A101: Developed by Extension Agricultural Economists, Texas A&M AgriLife Extension, budgets@tamu.edu.
A103: Information presented is prepared solely as a general guide and not intended to recognize or predict the costs and returns from any one operation. Brand names are mentioned only as examples and imply no endorsement.

Sheet CornDryland
A1: Projections for Planning Purposes Only -- Not to be Used without Updating
A2: 2025 Estimated Costs and Returns per Acre
A3: Dryland Corn
A4: Enter your name for this budget in the cell above.
A5: Enter Your Values in the cells highlighed in MAROON.
E6: Your Acres | R6: Your
C7: Crop Acres | D7: 100 | L7: Your | Q7: Enterprise | R7: Enterprise
E8: Your | H8: Your | I8: Cash | J8: Your | K8: Landlord | L8: Landlord | N8: Your | P8: Your | Q8: Total | R8: Total
A9: REVENUE | D9: Quantity | E9: Quantity | F9: Units | G9: $/Unit | H9: $/Unit | I9: Total | J9: Total | K9: Share | L9: Share | M9: Landlord | N9: Landlord | O9: Tenant | P9: Tenant | Q9: (100 acres) | R9: ="(" & E7 & " acres)" -> ( acres)
B10: Corn | D10: 55 | F10: Bushel | G10: 4.3 | I10: 236.5 | J10: =E10*H10 -> 0 | K10: 0 | M10: 0 | N10: =J10*L10 -> 0 | O10: 236.5 | P10: =+J10-N10 -> 0 | Q10: 23650 | R10: =+J10*E$7 -> 0
D11: 0 | G11: 0 | I11: 0 | J11: 0 | K11: 0 | M11: 0 | N11: 0 | O11: 0 | P11: =+J11-N11 -> 0 | Q11: 0 | R11: 0
D12: 0 | G12: 0 | I12: 0 | J12: 0 | K12: 0 | M12: 0 | N12: 0 | O12: 0 | P12: 0 | Q12: 0 | R12: 0
A13: Total Revenue | I13: 236.5 | J13: =SUM(J10:J12) -> 0 | M13: 0 | N13: =SUM(N10:N12) -> 0 | O13: 236.5 | P13: =SUM(P10:P12) -> 0 | Q13: 23650 | R13: =SUM(R10:R12) -> 0
Q14: Enterprise | R14: Enterprise
A15: VARIABLE COSTS | D15: Quantity | E15: Quantity | F15: Units | G15: $/Unit | H15: $/Unit | I15: Total | J15: Total | K15: Share | L15: Share | M15: Landlord | N15: Landlord | O15: Tenant | P15: Tenant | Q15: Total | R15: Total
A16: Production Costs
B17: Custom
C18: Haul Corn | D18: 55 | F18: Bushel | G18: 0.16 | I18: 8.8 | J18: =E18*H18 -> 0 | K18: 0 | M18: 0 | N18: =J18*L18 -> 0 | O18: 8.8 | P18: =+J18-N18 -> 0 | Q18: 880 | R18: =+J18*E$7 -> 0
B19: Fertilizer
C20: UAN(32% N) | D20: 1.375 | F20: CWT | G20: 17.08 | I20: 23.485 | J20: 0 | K20: 0 | M20: 0 | N20: 0 | O20: 23.485 | P20: 0 | Q20: 2348.5 | R20: 0
C21: Fertilizer 18-46-0 | D21: 87 | F21: Pound | G21: 0.35 | I21: 30.45 | J21: 0 | K21: 0 | M21: 0 | N21: 0 | O21: 30.45 | P21: 0 | Q21: 3045 | R21: 0
B22: Herbicide
C23: Glyphosate | D23: 4.4 | F23: Pint | G23: 1.63125 | I23: 7.1775 | J23: 0 | K23: 0 | M23: 0 | N23: 0 | O23: 7.1775 | P23: 0 | Q23: 717.75 | R23: 0
B24: Miscellaneous
C25: Crop Insurance - Corn Dry | D25: 1 | F25: Acre | G25: 8 | I25: 8 | J25: 0 | K25: 0 | M25: 0 | N25: 0 | O25: 8 | P25: 0 | Q25: 800 | R25: 0
C26: Miscellaneous Corn Overhead | D26: 1 | F26: Acre | G26: 4 | I26: 4 | J26: 0 | K26: 0 | M26: 0 | N26: 0 | O26: 4 | P26: 0 | Q26: 400 | R26: 0
B27: Seed
C28: Corn Seed BtRR | D28: 20 | F28: Thousand | G28: 2.356828194 | I28: 47.13656388 | J28: 0 | K28: 0 | M28: 0 | N28: 0 | O28: 47.13656388 | P28: 0 | Q28: 4713.656388 | R28: 0
D29: 0 | G29: 0 | I29: 0 | J29: 0 | K29: 0 | M29: 0 | N29: 0 | O29: 0 | P29: 0 | Q29: 0 | R29: 0
D30: 0 | G30: 0 | I30: 0 | J30: 0 | K30: 0 | M30: 0 | N30: 0 | O30: 0 | P30: 0 | Q30: 0 | R30: 0
D31: 0 | G31: 0 | I31: 0 | J31: =E31*H31 -> 0 | K31: 0 | M31: 0 | N31: =J31*L31 -> 0 | O31: 0 | P31: =+J31-N31 -> 0 | Q31: 0 | R31: =+J31*E$7 -> 0
B32: Machinery Labor
C33: Tractors/Self-Propelled | D33: 0.6 | F33: Hour | G33: 17.21 | I33: 10.326 | J33: =E33*H33 -> 0 | K33: 0 | M33: 0 | N33: =J33*L33 -> 0 | O33: 10.326 | P33: =+J33-N33 -> 0 | Q33: 1032.6 | R33: =+J33*E$7 -> 0
C34: Other Labor | D34: 0.16 | F34: Hour | G34: 17.21 | I34: 2.7536 | J34: =E34*H34 -> 0 | K34: 0 | M34: 0 | N34: =J34*L34 -> 0 | O34: 2.7536 | P34: =+J34-N34 -> 0 | Q34: 275.36 | R34: =+J34*E$7 -> 0
B36: Diesel Fuel
C37: Pickup/General Use Equipment | D37: 1 | F37: Acre | G37: 0 | I37: 0 | J37: =E37*H37 -> 0 | K37: 0 | M37: 0 | N37: =J37*L37 -> 0 | O37: 0 | P37: =+J37-N37 -> 0 | Q37: 0 | R37: =+J37*E$7 -> 0
C38: Tractors/Self-Propelled | D38: 4.23 | F38: Gallon | G38: 3 | I38: 12.69 | J38: =E38*H38 -> 0 | K38: 0 | M38: 0 | N38: =J38*L38 -> 0 | O38: 12.69 | P38: =+J38-N38 -> 0 | Q38: 1269 | R38: =+J38*E$7 -> 0
B40: Gasoline
C41: Pickup/General Use Equipment | D41: 1 | F41: Acre | G41: 26.608967 | I41: 26.608967 | J41: =E41*H41 -> 0 | K41: 0 | M41: 0 | N41: =J41*L41 -> 0 | O41: 26.608967 | P41: =+J41-N41 -> 0 | Q41: 2660.8967 | R41: =+J41*E$7 -> 0
C42: Tractors/Self-Propelled | D42: 0 | F42: Gallon | G42: 2.75 | I42: 0 | J42: =E42*H42 -> 0 | K42: 0 | M42: 0 | N42: =J42*L42 -> 0 | O42: 0 | P42: =+J42-N42 -> 0 | Q42: 0 | R42: =+J42*E$7 -> 0
B44: Repairs & Maintenance
C45: Pickup/General Use Equipment | D45: 1 | F45: Acre | G45: 4.8384 | I45: 4.8384 | J45: =E45*H45 -> 0 | K45: 0 | M45: 0 | N45: =J45*L45 -> 0 | O45: 4.8384 | P45: =+J45-N45 -> 0 | Q45: 483.84 | R45: =+J45*E$7 -> 0
C46: Irrigation Equipment | D46: 1 | F46: Acre | G46: 0 | I46: 0 | J46: 0 | K46: 0 | M46: 0 | N46: 0 | O46: 0 | P46: 0 | Q46: 0 | R46: 0
C47: Tractors/Self-Propelled | D47: 1 | F47: Acre | G47: 15.16930807 | I47: 15.16930807 | J47: 0 | K47: 0 | M47: 0 | N47: 0 | O47: 15.16930807 | P47: 0 | Q47: 1516.930807 | R47: 0
C48: Implements | D48: 1 | F48: Acre | G48: 8.380328864 | I48: 8.380328864 | J48: 0 | K48: 0 | M48: 0 | N48: 0 | O48: 8.380328864 | P48: 0 | Q48: 838.0328864 | R48: 0
I49: 0 | J49: 0 | K49: 0 | M49: 0 | N49: 0 | O49: 0 | P49: 0 | Q49: 0 | R49: 0
I50: 0 | J50: 0 | K50: 0 | M50: 0 | N50: 0 | O50: 0 | P50: 0 | Q50: 0 | R50: 0
B51: Interest on Credit Line | G51: 0.086 | I51: 10.24321629 | J51: =+SUM(J17:J50)/2*H51 -> 0 | M51: 0 | N51: =+SUM(N17:N50)/2*L51 -> 0 | O51: 10.24321629 | P51: =+SUM(P17:P50)/2*L51 -> 0 | Q51: 1024.321629 | R51: =+J51*E$7 -> 0
A52: Total Variable Costs | I52: 220.0588841 | J52: =SUM(J18:J51) -> 0 | M52: 0 | N52: =SUM(N18:N51) -> 0 | O52: 220.0588841 | P52: =SUM(P18:P51) -> 0 | Q52: 22005.88841 | R52: =SUM(R18:R51) -> 0
A53: Planned Returns Above Variable Costs: | I53: 16.4411159 | J53: =+J13-J52 -> 0 | M53: 0 | N53: =+N13-N52 -> 0 | O53: 16.4411159 | P53: =+P13-P52 -> 0 | Q53: 1644.11159 | R53: =+R13-R52 -> 0
B54: Breakeven Price to Cover Variable Costs | G54: 4.00107062 | H54: =IF(E10=0,"n/a",(YVarExp-(YTotExp+YTotRet-J10))/E10) -> n/a | I54: Bushel
Q55: Enterprise | R55: Enterprise
A56: FIXED COSTS | D56: Quantity | E56: Quantity | F56: Units | G56: $/Unit | H56: $/Unit | I56: Total | J56: Total | K56: Share | L56: Share | M56: Landlord | N56: Landlord | O56: Tenant | P56: Tenant | Q56: Total | R56: Total
B57: Machinery Depreciation
C58: Pickup/General Use Equipment | D58: 1 | F58: Acre | G58: 25.2 | I58: 25.2 | J58: =E58*H58 -> 0 | K58: 0 | M58: 0 | N58: =J58*L58 -> 0 | O58: 25.2 | P58: =+J58-N58 -> 0 | Q58: 2520 | R58: =+J58*E$7 -> 0
C59: Tractors/Self-Propelled | D59: 1 | F59: Acre | G59: 14.87556749 | I59: 14.87556749 | J59: 0 | K59: 0 | M59: 0 | N59: =J59*L59 -> 0 | O59: 14.87556749 | P59: 0 | Q59: 1487.556749 | R59: 0
C60: Implements | D60: 1 | F60: Acre | G60: 10.78831549 | I60: 10.78831549 | J60: 0 | K60: 0 | M60: 0 | N60: =J60*L60 -> 0 | O60: 10.78831549 | P60: 0 | Q60: 1078.831549 | R60: 0
B61: Equipment Investment
C62: Pickup/General Use Equipment | D62: 105 | F62: Dollars | G62: 0.086 | I62: 9.03 | J62: =E62*H62 -> 0 | K62: 0 | M62: 0 | N62: =J62*L62 -> 0 | O62: 9.03 | P62: =+J62-N62 -> 0 | Q62: 903 | R62: =+J62*E$7 -> 0
C63: Tractors/Self-Propelled | D63: 113.2478219 | F63: Dollars | G63: 0.086 | I63: 9.739312682 | J63: 0 | K63: 0 | M63: 0 | N63: =J63*L63 -> 0 | O63: 9.739312682 | P63: 0 | Q63: 973.9312682 | R63: 0
C64: Implements | D64: 50.72560877 | F64: Dollars | G64: 0.086 | I64: 4.362402354 | J64: 0 | K64: 0 | M64: 0 | N64: =J64*L64 -> 0 | O64: 4.362402354 | P64: 0 | Q64: 436.2402354 | R64: 0
B65: Salaried Labor | D65: 1 | F65: Acre | G65: 0 | I65: 0 | J65: 0 | K65: 0 | M65: 0 | N65: =J65*L65 -> 0 | O65: 0 | P65: =+J65-N65 -> 0 | Q65: 0 | R65: =+J65*E$7 -> 0
B66: Management Fee, Owner/Operator Labor | D66: 1 | F66: Acre | G66: 0 | I66: 0 | J66: 0 | K66: 0 | M66: 0 | N66: 0 | O66: 0 | P66: 0 | Q66: 0 | R66: 0
B67: Allocated Establishment Cost | D67: 1 | F67: Acre | G67: 0 | I67: 0 | J67: 0 | K67: 0 | M67: 0 | N67: 0 | O67: 0 | P67: 0 | Q67: 0 | R67: 0
B68: Dryland Winter Garden Rent | D68: 1 | F68: Acre | G68: 20 | I68: 20 | J68: 0 | K68: 0 | M68: 0 | N68: 0 | O68: 20 | P68: 0 | Q68: 2000 | R68: 0
B69: Property Taxes | D69: 1 | F69: Acre | G69: 0 | I69: 0 | J69: 0 | K69: 0 | M69: 0 | N69: 0 | O69: 0 | P69: 0 | Q69: 0 | R69: 0
B70: Whole Farm Insurance | D70: 1 | F70: Acre | G70: 0 | I70: 0 | J70: 0 | K70: 0 | M70: 0 | N70: 0 | O70: 0 | P70: 0 | Q70: 0 | R70: 0
D71: 1 | G71: 0 | I71: 0 | J71: 0 | K71: 0 | M71: 0 | N71: 0 | O71: 0 | P71: 0 | Q71: 0 | R71: 0
D72: 1 | G72: 0 | I72: 0 | J72: =E72*H72 -> 0 | K72: 0 | M72: 0 | N72: 0 | O72: 0 | P72: 0 | Q72: 0 | R72: 0
A73: Total Fixed Costs | I73: 93.99559802 | J73: =+SUM(J58:J72) -> 0 | M73: 0 | N73: =+SUM(N58:N72) -> 0 | O73: 93.99559802 | P73: =+SUM(P58:P72) -> 0 | Q73: 9399.559802 | R73: =+SUM(R58:R72) -> 0
A74: Total Specified Costs | I74: 314.0544821 | J74: =+J52+J73 -> 0 | M74: 0 | N74: =+N52+N73 -> 0 | O74: 314.0544821 | P74: =+P52+P73 -> 0 | Q74: 31405.44821 | R74: =+R52+R73 -> 0
A76: Returns Above Specified Costs | I76: -77.55448211 | J76: =+J13-J74 -> 0 | M76: 0 | N76: =+N13-N74 -> 0 | O76: -77.55448211 | P76: =+P13-P74 -> 0 | Q76: -7755.448211 | R76: =+R13-R74 -> 0
A78: Breakeven Price to Cover Total Costs | G78: 5.710081493 | H78: =IF(E10=0,"n/a",(YTotExp-(YTotExp+YTotRet-J10))/E10) -> n/a | I78: Bushel
D80: Example Breakeven Prices
B81: Example | C81: Example | D81: To Cover | G81: To Cover
B82: Yield | C82: Yield | D82: Variable | G82: Total
B83: Percent | C83: Bushel | D83: Costs | G83: Costs
B84: 0.75 | C84: 41.25 | D84: 5.334760827 | G84: 7.613441991
B85: 0.9 | C85: 49.5 | D85: 4.445634022 | G85: 6.344534992
B86: 1 | C86: 55 | D86: 4.00107062 | G86: 5.710081493
B87: 1.1 | C87: 60.5 | D87: 3.637336927 | G87: 5.190983175
B88: 1.25 | C88: 68.75 | D88: 3.200856496 | G88: 4.568065194
D90: Your Breakeven Prices
B91: Your | C91: Your | E91: To Cover | H91: To Cover
B92: Yield | C92: Yield | E92: Variable | H92: Total
B93: Percent | C93: Bushel | E93: Costs | H93: Costs
B94: 0.75 | C94: =E10*YPER1 -> 0 | E94: =IF($E$10=0,0,(YVarExp-(YTotExp+YTotRet-J10))/($E$10*YPER1)) -> 0 | H94: =IF($E$10=0,0,(YTotExp-(YTotExp+YTotRet-J10))/($E$10*YPER1)) -> 0
B95: 0.9 | C95: =E10*YPER2 -> 0 | E95: =IF($E$10=0,0,(YVarExp-(YTotExp+YTotRet-J10))/($E$10*YPER2)) -> 0 | H95: =IF($E$10=0,0,(YTotExp-(YTotExp+YTotRet-J10))/($E$10*YPER2)) -> 0
B96: 1 | C96: =+E10 -> 0 | E96: =IF($E$10=0,0,(YVarExp-(YTotExp+YTotRet-J10))/($E$10*YPER3)) -> 0 | H96: =IF($E$10=0,0,(YTotExp-(YTotExp+YTotRet-J10))/($E$10*YPER3)) -> 0
B97: 1.1 | C97: =E10*YPER4 -> 0 | E97: =IF($E$10=0,0,(YVarExp-(YTotExp+YTotRet-J10))/($E$10*YPER4)) -> 0 | H97: =IF($E$10=0,0,(YTotExp-(YTotExp+YTotRet-J10))/($E$10*YPER4)) -> 0
B98: 1.25 | C98: =E10*YPER5 -> 0 | E98: =IF($E$10=0,0,(YVarExp-(YTotExp+YTotRet-J10))/($E$10*YPER5)) -> 0 | H98: =IF($E$10=0,0,(YTotExp-(YTotExp+YTotRet-J10))/($E$10*YPER5)) -> 0
A100: Developed by Extension Agricultural Economists, Texas A&M AgriLife Extension, budgets@tamu.edu.
A102: Information presented is prepared solely as a general guide and not intended to recognize or predict the costs and returns from any one operation. Brand names are mentioned only as examples and imply no endorsement.

Sheet CornIrrigated
A1: Projections for Planning Purposes Only -- Not to be Used without Updating
A2: 2025 Estimated Costs and Returns per Acre
A3: Irrigated Corn
A4: Enter your name for this budget in the cell above.
A5: Enter Your Values in the cells highlighed in MAROON.
E6: Your Acres | R6: Your
C7: Crop Acres | D7: 122 | L7: Your | Q7: Enterprise | R7: Enterprise
E8: Your | H8: Your | I8: Cash | J8: Your | K8: Landlord | L8: Landlord | N8: Your | P8: Your | Q8: Total | R8: Total
A9: REVENUE | D9: Quantity | E9: Quantity | F9: Units | G9: $/Unit | H9: $/Unit | I9: Total | J9: Total | K9: Share | L9: Share | M9: Landlord | N9: Landlord | O9: Tenant | P9: Tenant | Q9: (122 acres) | R9: ="(" & E7 & " acres)" -> ( acres)
B10: Corn | D10: 140 | F10: Bushel | G10: 4.3 | I10: 602 | J10: =E10*H10 -> 0 | K10: 0 | M10: 0 | N10: =J10*L10 -> 0 | O10: 602 | P10: =+J10-N10 -> 0 | Q10: 73444 | R10: =+J10*E$7 -> 0
D11: 0 | G11: 0 | I11: 0 | J11: 0 | K11: 0 | M11: 0 | N11: 0 | O11: 0 | P11: =+J11-N11 -> 0 | Q11: 0 | R11: 0
D12: 0 | G12: 0 | I12: 0 | J12: 0 | K12: 0 | M12: 0 | N12: 0 | O12: 0 | P12: 0 | Q12: 0 | R12: 0
A13: Total Revenue | I13: 602 | J13: =SUM(J10:J12) -> 0 | M13: 0 | N13: =SUM(N10:N12) -> 0 | O13: 602 | P13: =SUM(P10:P12) -> 0 | Q13: 73444 | R13: =SUM(R10:R12) -> 0
Q14: Enterprise | R14: Enterprise
A15: VARIABLE COSTS | D15: Quantity | E15: Quantity | F15: Units | G15: $/Unit | H15: $/Unit | I15: Total | J15: Total | K15: Share | L15: Share | M15: Landlord | N15: Landlord | O15: Tenant | P15: Tenant | Q15: Total | R15: Total
A16: Production Costs
B17: Custom
C18: Haul Corn | D18: 140 | F18: Bushel | G18: 0.16 | I18: 22.4 | J18: =E18*H18 -> 0 | K18: 0 | M18: 0 | N18: =J18*L18 -> 0 | O18: 22.4 | P18: =+J18-N18 -> 0 | Q18: 2732.8 | R18: =+J18*E$7 -> 0
B19: Fertilizer
C20: UAN(32% N) | D20: 2.75 | F20: CWT | G20: 17.08 | I20: 46.97 | J20: 0 | K20: 0 | M20: 0 | N20: 0 | O20: 46.97 | P20: 0 | Q20: 5730.34 | R20: 0
C21: Fertilizer 18-46-0 | D21: 174 | F21: Pound | G21: 0.35 | I21: 60.9 | J21: 0 | K21: 0 | M21: 0 | N21: 0 | O21: 60.9 | P21: 0 | Q21: 7429.8 | R21: 0
B22: Herbicide
C23: Glyphosate | D23: 4.4 | F23: Pint | G23: 1.63125 | I23: 7.1775 | J23: 0 | K23: 0 | M23: 0 | N23: 0 | O23: 7.1775 | P23: 0 | Q23: 875.655 | R23: 0
B24: Insecticide
C25: Oberon 2 SC | D25: 2 | F25: Ounce | G25: 2.7375 | I25: 5.475 | J25: 0 | K25: 0 | M25: 0 | N25: 0 | O25: 5.475 | P25: 0 | Q25: 667.95 | R25: 0
B26: Miscellaneous
C27: Crop Insurance - Corn Irrigated | D27: 1 | F27: Acre | G27: 5 | I27: 5 | J27: 0 | K27: 0 | M27: 0 | N27: 0 | O27: 5 | P27: 0 | Q27: 610 | R27: 0
C28: Miscellaneous Corn Overhead | D28: 1 | F28: Acre | G28: 4 | I28: 4 | J28: 0 | K28: 0 | M28: 0 | N28: 0 | O28: 4 | P28: 0 | Q28: 488 | R28: 0
B29: Seed
C30: Corn Seed BtRR | D30: 30 | F30: Thousand | G30: 2.356828194 | I30: 70.70484581 | J30: 0 | K30: 0 | M30: 0 | N30: 0 | O30: 70.70484581 | P30: 0 | Q30: 8625.991189 | R30: 0
D31: 0 | G31: 0 | I31: 0 | J31: 0 | K31: 0 | M31: 0 | N31: 0 | O31: 0 | P31: 0 | Q31: 0 | R31: 0
D32: 0 | G32: 0 | I32: 0 | J32: 0 | K32: 0 | M32: 0 | N32: 0 | O32: 0 | P32: 0 | Q32: 0 | R32: 0
D33: 0 | G33: 0 | I33: 0 | J33: =E33*H33 -> 0 | K33: 0 | M33: 0 | N33: =J33*L33 -> 0 | O33: 0 | P33: =+J33-N33 -> 0 | Q33: 0 | R33: =+J33*E$7 -> 0
B34: Irrigation
C35: Energy Cost | D35: 1650 | F35: kWh | G35: 0.17 | I35: 280.5 | J35: =E35*H35 -> 0 | K35: 0 | M35: 0 | N35: =J35*L35 -> 0 | O35: 280.5 | P35: =+J35-N35 -> 0 | Q35: 34221 | R35: =+J35*E$7 -> 0
C36: Irrigation Labor | D36: 0.2 | F36: Hour | G36: 17.5 | I36: 3.5 | J36: 0 | K36: 0 | M36: 0 | N36: 0 | O36: 3.5 | P36: 0 | Q36: 427 | R36: 0
B37: Machinery Labor
C38: Tractors/Self-Propelled | D38: 0.6 | F38: Hour | G38: 17.21 | I38: 10.326 | J38: =E38*H38 -> 0 | K38: 0 | M38: 0 | N38: =J38*L38 -> 0 | O38: 10.326 | P38: =+J38-N38 -> 0 | Q38: 1259.772 | R38: =+J38*E$7 -> 0
C39: Other Labor | D39: 0.11 | F39: Hour | G39: 17.21 | I39: 1.8931 | J39: =E39*H39 -> 0 | K39: 0 | M39: 0 | N39: =J39*L39 -> 0 | O39: 1.8931 | P39: =+J39-N39 -> 0 | Q39: 230.9582 | R39: =+J39*E$7 -> 0
B41: Diesel Fuel
C42: Pickup/General Use Equipment | D42: 1 | F42: Acre | G42: 0 | I42: 0 | J42: =E42*H42 -> 0 | K42: 0 | M42: 0 | N42: =J42*L42 -> 0 | O42: 0 | P42: =+J42-N42 -> 0 | Q42: 0 | R42: =+J42*E$7 -> 0
C43: Tractors/Self-Propelled | D43: 4.65 | F43: Gallon | G43: 3 | I43: 13.95 | J43: =E43*H43 -> 0 | K43: 0 | M43: 0 | N43: =J43*L43 -> 0 | O43: 13.95 | P43: =+J43-N43 -> 0 | Q43: 1701.9 | R43: =+J43*E$7 -> 0
B45: Gasoline
C46: Pickup/General Use Equipment | D46: 1 | F46: Acre | G46: 26.61286176 | I46: 26.61286176 | J46: =E46*H46 -> 0 | K46: 0 | M46: 0 | N46: =J46*L46 -> 0 | O46: 26.61286176 | P46: =+J46-N46 -> 0 | Q46: 3246.769134 | R46: =+J46*E$7 -> 0
C47: Tractors/Self-Propelled | D47: 0 | F47: Gallon | G47: 2.75 | I47: 0 | J47: =E47*H47 -> 0 | K47: 0 | M47: 0 | N47: =J47*L47 -> 0 | O47: 0 | P47: =+J47-N47 -> 0 | Q47: 0 | R47: =+J47*E$7 -> 0
B49: Repairs & Maintenance
C50: Pickup/General Use Equipment | D50: 1 | F50: Acre | G50: 4.839108197 | I50: 4.839108197 | J50: =E50*H50 -> 0 | K50: 0 | M50: 0 | N50: =J50*L50 -> 0 | O50: 4.839108197 | P50: =+J50-N50 -> 0 | Q50: 590.3712 | R50: =+J50*E$7 -> 0
C51: Irrigation Equipment | D51: 1 | F51: Acre | G51: 15.55288515 | I51: 15.55288515 | J51: 0 | K51: 0 | M51: 0 | N51: 0 | O51: 15.55288515 | P51: 0 | Q51: 1897.451988 | R51: 0
C52: Tractors/Self-Propelled | D52: 1 | F52: Acre | G52: 17.25994355 | I52: 17.25994355 | J52: 0 | K52: 0 | M52: 0 | N52: 0 | O52: 17.25994355 | P52: 0 | Q52: 2105.713113 | R52: 0
C53: Implements | D53: 1 | F53: Acre | G53: 9.727836591 | I53: 9.727836591 | J53: 0 | K53: 0 | M53: 0 | N53: 0 | O53: 9.727836591 | P53: 0 | Q53: 1186.796064 | R53: 0
I54: 0 | J54: 0 | K54: 0 | M54: 0 | N54: 0 | O54: 0 | P54: 0 | Q54: 0 | R54: 0
I55: 0 | J55: 0 | K55: 0 | M55: 0 | N55: 0 | O55: 0 | P55: 0 | Q55: 0 | R55: 0
B56: Interest on Credit Line | G56: 0.086 | I56: 30.31557978 | J56: =+SUM(J17:J55)/2*H56 -> 0 | M56: 0 | N56: =+SUM(N17:N55)/2*L56 -> 0 | O56: 30.31557978 | P56: =+SUM(P17:P55)/2*L56 -> 0 | Q56: 3698.500733 | R56: =+J56*E$7 -> 0
A57: Total Variable Costs | I57: 637.1046608 | J57: =SUM(J18:J56) -> 0 | M57: 0 | N57: =SUM(N18:N56) -> 0 | O57: 637.1046608 | P57: =SUM(P18:P56) -> 0 | Q57: 77726.76862 | R57: =SUM(R18:R56) -> 0
A58: Planned Returns Above Variable Costs: | I58: -35.10466083 | J58: =+J13-J57 -> 0 | M58: 0 | N58: =+N13-N57 -> 0 | O58: -35.10466083 | P58: =+P13-P57 -> 0 | Q58: -4282.768621 | R58: =+R13-R57 -> 0
B59: Breakeven Price to Cover Variable Costs | G59: 4.550747577 | H59: =IF(E10=0,"n/a",(YVarExp-(YTotExp+YTotRet-J10))/E10) -> n/a | I59: Bushel
Q60: Enterprise | R60: Enterprise
A61: FIXED COSTS | D61: Quantity | E61: Quantity | F61: Units | G61: $/Unit | H61: $/Unit | I61: Total | J61: Total | K61: Share | L61: Share | M61: Landlord | N61: Landlord | O61: Tenant | P61: Tenant | Q61: Total | R61: Total
B62: Machinery Depreciation
C63: Pickup/General Use Equipment | D63: 1 | F63: Acre | G63: 25.20368852 | I63: 25.20368852 | J63: =E63*H63 -> 0 | K63: 0 | M63: 0 | N63: =J63*L63 -> 0 | O63: 25.20368852 | P63: =+J63-N63 -> 0 | Q63: 3074.85 | R63: =+J63*E$7 -> 0
C64: Irrigation Equipment | D64: 1 | F64: Acre | G64: 80.58401639 | I64: 80.58401639 | J64: 0 | K64: 0 | M64: 0 | N64: =J64*L64 -> 0 | O64: 80.58401639 | P64: 0 | Q64: 9831.25 | R64: 0
C65: Tractors/Self-Propelled | D65: 1 | F65: Acre | G65: 17.54572863 | I65: 17.54572863 | J65: 0 | K65: 0 | M65: 0 | N65: =J65*L65 -> 0 | O65: 17.54572863 | P65: 0 | Q65: 2140.578893 | R65: 0
C66: Implements | D66: 1 | F66: Acre | G66: 11.39059036 | I66: 11.39059036 | J66: 0 | K66: 0 | M66: 0 | N66: =J66*L66 -> 0 | O66: 11.39059036 | P66: 0 | Q66: 1389.652024 | R66: 0
B67: Equipment Investment
C68: Pickup/General Use Equipment | D68: 105.0153689 | F68: Dollars | G68: 0.086 | I68: 9.031321721 | J68: =E68*H68 -> 0 | K68: 0 | M68: 0 | N68: =J68*L68 -> 0 | O68: 9.031321721 | P68: =+J68-N68 -> 0 | Q68: 1101.82125 | R68: =+J68*E$7 -> 0
C69: Irrigation Equipment | D69: 646.0040984 | F69: Dollars | G69: 0.086 | I69: 55.55635246 | J69: 0 | K69: 0 | M69: 0 | N69: =J69*L69 -> 0 | O69: 55.55635246 | P69: 0 | Q69: 6777.875 | R69: 0
C70: Tractors/Self-Propelled | D70: 133.8123502 | F70: Dollars | G70: 0.086 | I70: 11.50786212 | J70: 0 | K70: 0 | M70: 0 | N70: =J70*L70 -> 0 | O70: 11.50786212 | P70: 0 | Q70: 1403.959179 | R70: 0
C71: Implements | D71: 53.30200686 | F71: Dollars | G71: 0.086 | I71: 4.58397259 | J71: 0 | K71: 0 | M71: 0 | N71: =J71*L71 -> 0 | O71: 4.58397259 | P71: 0 | Q71: 559.2446559 | R71: 0
B72: Salaried Labor | D72: 1 | F72: Acre | G72: 0 | I72: 0 | J72: 0 | K72: 0 | M72: 0 | N72: =J72*L72 -> 0 | O72: 0 | P72: =+J72-N72 -> 0 | Q72: 0 | R72: =+J72*E$7 -> 0
B73: Management Fee, Owner/Operator Labor | D73: 1 | F73: Acre | G73: 0 | I73: 0 | J73: 0 | K73: 0 | M73: 0 | N73: 0 | O73: 0 | P73: 0 | Q73: 0 | R73: 0
B74: Allocated Establishment Cost | D74: 1 | F74: Acre | G74: 0 | I74: 0 | J74: 0 | K74: 0 | M74: 0 | N74: 0 | O74: 0 | P74: 0 | Q74: 0 | R74: 0
B75: Irrigated Winter Garden Rent | D75: 1 | F75: Acre | G75: 50 | I75: 50 | J75: 0 | K75: 0 | M75: 0 | N75: 0 | O75: 50 | P75: 0 | Q75: 6100 | R75: 0
B76: Property Taxes | D76: 1 | F76: Acre | G76: 0 | I76: 0 | J76: 0 | K76: 0 | M76: 0 | N76: 0 | O76: 0 | P76: 0 | Q76: 0 | R76: 0
B77: Whole Farm Insurance | D77: 1 | F77: Acre | G77: 0 | I77: 0 | J77: 0 | K77: 0 | M77: 0 | N77: 0 | O77: 0 | P77: 0 | Q77: 0 | R77: 0
D78: 1 | G78: 0 | I78: 0 | J78: 0 | K78: 0 | M78: 0 | N78: 0 | O78: 0 | P78: 0 | Q78: 0 | R78: 0
D79: 1 | G79: 0 | I79: 0 | J79: =E79*H79 -> 0 | K79: 0 | M79: 0 | N79: 0 | O79: 0 | P79: 0 | Q79: 0 | R79: 0
A80: Total Fixed Costs | I80: 265.4035328 | J80: =+SUM(J63:J79) -> 0 | M80: 0 | N80: =+SUM(N63:N79) -> 0 | O80: 265.4035328 | P80: =+SUM(P63:P79) -> 0 | Q80: 32379.231 | R80: =+SUM(R63:R79) -> 0
A81: Total Specified Costs | I81: 902.5081936 | J81: =+J57+J80 -> 0 | M81: 0 | N81: =+N57+N80 -> 0 | O81: 902.5081936 | P81: =+P57+P80 -> 0 | Q81: 110105.9996 | R81: =+R57+R80 -> 0
A83: Returns Above Specified Costs | I83: -300.5081936 | J83: =+J13-J81 -> 0 | M83: 0 | N83: =+N13-N81 -> 0 | O83: -300.5081936 | P83: =+P13-P81 -> 0 | Q83: -36661.99962 | R83: =+R13-R81 -> 0
A85: Breakeven Price to Cover Total Costs | G85: 6.446487097 | H85: =IF(E10=0,"n/a",(YTotExp-(YTotExp+YTotRet-J10))/E10) -> n/a | I85: Bushel
D87: Example Breakeven Prices
B88: Example | C88: Example | D88: To Cover | G88: To Cover
B89: Yield | C89: Yield | D89: Variable | G89: Total
B90: Percent | C90: Bushel | D90: Costs | G90: Costs
B91: 0.75 | C91: 105 | D91: 6.067663436 | G91: 8.59531613
B92: 0.9 | C92: 126 | D92: 5.056386197 | G92: 7.162763442
B93: 1 | C93: 140 | D93: 4.550747577 | G93: 6.446487097
B94: 1.1 | C94: 154 | D94: 4.137043252 | G94: 5.860442816
B95: 1.25 | C95: 175 | D95: 3.640598062 | G95: 5.157189678
D97: Your Breakeven Prices
B98: Your | C98: Your | E98: To Cover | H98: To Cover
B99: Yield | C99: Yield | E99: Variable | H99: Total
B100: Percent | C100: Bushel | E100: Costs | H100: Costs
B101: 0.75 | C101: =E10*YPER1 -> 0 | E101: =IF($E$10=0,0,(YVarExp-(YTotExp+YTotRet-J10))/($E$10*YPER1)) -> 0 | H101: =IF($E$10=0,0,(YTotExp-(YTotExp+YTotRet-J10))/($E$10*YPER1)) -> 0
B102: 0.9 | C102: =E10*YPER2 -> 0 | E102: =IF($E$10=0,0,(YVarExp-(YTotExp+YTotRet-J10))/($E$10*YPER2)) -> 0 | H102: =IF($E$10=0,0,(YTotExp-(YTotExp+YTotRet-J10))/($E$10*YPER2)) -> 0
B103: 1 | C103: =+E10 -> 0 | E103: =IF($E$10=0,0,(YVarExp-(YTotExp+YTotRet-J10))/($E$10*YPER3)) -> 0 | H103: =IF($E$10=0,0,(YTotExp-(YTotExp+YTotRet-J10))/($E$10*YPER3)) -> 0
B104: 1.1 | C104: =E10*YPER4 -> 0 | E104: =IF($E$10=0,0,(YVarExp-(YTotExp+YTotRet-J10))/($E$10*YPER4)) -> 0 | H104: =IF($E$10=0,0,(YTotExp-(YTotExp+YTotRet-J10))/($E$10*YPER4)) -> 0
B105: 1.25 | C105: =E10*YPER5 -> 0 | E105: =IF($E$10=0,0,(YVarExp-(YTotExp+YTotRet-J10))/($E$10*YPER5)) -> 0 | H105: =IF($E$10=0,0,(YTotExp-(YTotExp+YTotRet-J10))/($E$10*YPER5)) -> 0
A107: Developed by Extension Agricultural Economists, Texas A&M AgriLife Extension, budgets@tamu.edu.
A109: Information presented is prepared solely as a general guide and not intended to recognize or predict the costs and returns from any one operation. Brand names are mentioned only as examples and imply no endorsement.

Sheet CottonDryland
A1: Projections for Planning Purposes Only -- Not to be Used without Updating
A2: 2025 Estimated Costs and Returns per Acre
A3: Dryland Cotton
A4: Enter your name for this budget in the cell above.
A5: Enter Your Values in the cells highlighed in MAROON.
E6: Your Acres | R6: Your
C7: Crop Acres | D7: 100 | L7: Your | Q7: Enterprise | R7: Enterprise
E8: Your | H8: Your | I8: Cash | J8: Your | K8: Landlord | L8: Landlord | N8: Your | P8: Your | Q8: Total | R8: Total
A9: REVENUE | D9: Quantity | E9: Quantity | F9: Units | G9: $/Unit | H9: $/Unit | I9: Total | J9: Total | K9: Share | L9: Share | M9: Landlord | N9: Landlord | O9: Tenant | P9: Tenant | Q9: (100 acres) | R9: ="(" & E7 & " acres)" -> ( acres)
B10: Cotton Lint | D10: 400 | F10: Pound | G10: 0.72 | I10: 288 | J10: =E10*H10 -> 0 | K10: 0 | M10: 0 | N10: =J10*L10 -> 0 | O10: 288 | P10: =+J10-N10 -> 0 | Q10: 28800 | R10: =+J10*E$7 -> 0
B11: Cottonseed | D11: 680 | F11: Pound | G11: 0.1 | I11: 68 | J11: 0 | K11: 0 | M11: 0 | N11: 0 | O11: 68 | P11: =+J11-N11 -> 0 | Q11: 6800 | R11: 0
D12: 0 | G12: 0 | I12: 0 | J12: 0 | K12: 0 | M12: 0 | N12: 0 | O12: 0 | P12: 0 | Q12: 0 | R12: 0
D13: 0 | G13: 0 | I13: 0 | J13: 0 | K13: 0 | M13: 0 | N13: 0 | O13: 0 | P13: 0 | Q13: 0 | R13: 0
A14: Total Revenue | I14: 356 | J14: =SUM(J10:J13) -> 0 | M14: 0 | N14: =SUM(N10:N13) -> 0 | O14: 356 | P14: =SUM(P10:P13) -> 0 | Q14: 35600 | R14: =SUM(R10:R13) -> 0
Q15: Enterprise | R15: Enterprise
A16: VARIABLE COSTS | D16: Quantity | E16: Quantity | F16: Units | G16: $/Unit | H16: $/Unit | I16: Total | J16: Total | K16: Share | L16: Share | M16: Landlord | N16: Landlord | O16: Tenant | P16: Tenant | Q16: Total | R16: Total
A17: Production Costs
B18: Custom
C19: Custom Apply Fertilizer | D19: 1 | F19: Acre | G19: 6.39 | I19: 6.39 | J19: =E19*H19 -> 0 | K19: 0 | M19: 0 | N19: =J19*L19 -> 0 | O19: 6.39 | P19: =+J19-N19 -> 0 | Q19: 639 | R19: =+J19*E$7 -> 0
C20: Gin, Bag, Tie - CWT | D20: 10.8 | F20: CWT | G20: 3 | I20: 32.4 | J20: 0 | K20: 0 | M20: 0 | N20: 0 | O20: 32.4 | P20: 0 | Q20: 3240 | R20: 0
B21: Fertilizer
C22: UAN(32% N) | D22: 1.26 | F22: CWT | G22: 17.08 | I22: 21.5208 | J22: 0 | K22: 0 | M22: 0 | N22: 0 | O22: 21.5208 | P22: 0 | Q22: 2152.08 | R22: 0
C23: Fertilizer 18-46-0 | D23: 54 | F23: Pound | G23: 0.35 | I23: 18.9 | J23: 0 | K23: 0 | M23: 0 | N23: 0 | O23: 18.9 | P23: 0 | Q23: 1890 | R23: 0
B24: Herbicide
C25: Glyphosate | D25: 1.4 | F25: Pint | G25: 1.63125 | I25: 2.28375 | J25: 0 | K25: 0 | M25: 0 | N25: 0 | O25: 2.28375 | P25: 0 | Q25: 228.375 | R25: 0
C26: Prowl H2O | D26: 2 | F26: Pint | G26: 6.09375 | I26: 12.1875 | J26: 0 | K26: 0 | M26: 0 | N26: 0 | O26: 12.1875 | P26: 0 | Q26: 1218.75 | R26: 0
B27: Insecticide
C28: Karate Z | D28: 1 | F28: Ounce | G28: 0.81 | I28: 0.81 | J28: 0 | K28: 0 | M28: 0 | N28: 0 | O28: 0.81 | P28: 0 | Q28: 81 | R28: 0
B29: Miscellaneous
C30: Crop Insurance - Cotton Dry | D30: 1 | F30: Acre | G30: 11 | I30: 11 | J30: 0 | K30: 0 | M30: 0 | N30: 0 | O30: 11 | P30: 0 | Q30: 1100 | R30: 0
C31: Boll Weevil Eradication Program | D31: 1 | F31: Acre | G31: 2 | I31: 2 | J31: 0 | K31: 0 | M31: 0 | N31: 0 | O31: 2 | P31: 0 | Q31: 200 | R31: 0
B32: Seed
C33: Cotton Seed BIIRRF | D33: 35 | F33: Thousand | G33: 1.679245283 | I33: 58.77358491 | J33: 0 | K33: 0 | M33: 0 | N33: 0 | O33: 58.77358491 | P33: 0 | Q33: 5877.358491 | R33: 0
B34: Other Chemicals
C35: Gramoxone SL | D35: 24 | F35: Ounce | G35: 0.284375 | I35: 6.825 | J35: 0 | K35: 0 | M35: 0 | N35: 0 | O35: 6.825 | P35: 0 | Q35: 682.5 | R35: 0
C36: Aim | D36: 0.75 | F36: Ounce | G36: 5.9375 | I36: 4.453125 | J36: 0 | K36: 0 | M36: 0 | N36: 0 | O36: 4.453125 | P36: 0 | Q36: 445.3125 | R36: 0
C37: Crop Oil Concentrate | D37: 0.25 | F37: Pint | G37: 1.61875 | I37: 0.4046875 | J37: 0 | K37: 0 | M37: 0 | N37: 0 | O37: 0.4046875 | P37: 0 | Q37: 40.46875 | R37: 0
D38: 0 | G38: 0 | I38: 0 | J38: 0 | K38: 0 | M38: 0 | N38: 0 | O38: 0 | P38: 0 | Q38: 0 | R38: 0
D39: 0 | G39: 0 | I39: 0 | J39: 0 | K39: 0 | M39: 0 | N39: 0 | O39: 0 | P39: 0 | Q39: 0 | R39: 0
D40: 0 | G40: 0 | I40: 0 | J40: =E40*H40 -> 0 | K40: 0 | M40: 0 | N40: =J40*L40 -> 0 | O40: 0 | P40: =+J40-N40 -> 0 | Q40: 0 | R40: =+J40*E$7 -> 0
B41: Machinery Labor
C42: Tractors/Self-Propelled | D42: 1.17 | F42: Hour | G42: 17.21 | I42: 20.1357 | J42: =E42*H42 -> 0 | K42: 0 | M42: 0 | N42: =J42*L42 -> 0 | O42: 20.1357 | P42: =+J42-N42 -> 0 | Q42: 2013.57 | R42: =+J42*E$7 -> 0
C43: Other Labor | D43: 0.32 | F43: Hour | G43: 17.21 | I43: 5.5072 | J43: =E43*H43 -> 0 | K43: 0 | M43: 0 | N43: =J43*L43 -> 0 | O43: 5.5072 | P43: =+J43-N43 -> 0 | Q43: 550.72 | R43: =+J43*E$7 -> 0
B45: Diesel Fuel
C46: Pickup/General Use Equipment | D46: 1 | F46: Acre | G46: 0 | I46: 0 | J46: =E46*H46 -> 0 | K46: 0 | M46: 0 | N46: =J46*L46 -> 0 | O46: 0 | P46: =+J46-N46 -> 0 | Q46: 0 | R46: =+J46*E$7 -> 0
C47: Tractors/Self-Propelled | D47: 9.81 | F47: Gallon | G47: 3 | I47: 29.43 | J47: =E47*H47 -> 0 | K47: 0 | M47: 0 | N47: =J47*L47 -> 0 | O47: 29.43 | P47: =+J47-N47 -> 0 | Q47: 2943 | R47: =+J47*E$7 -> 0
B49: Gasoline
C50: Pickup/General Use Equipment | D50: 1 | F50: Acre | G50: 26.608967 | I50: 26.608967 | J50: =E50*H50 -> 0 | K50: 0 | M50: 0 | N50: =J50*L50 -> 0 | O50: 26.608967 | P50: =+J50-N50 -> 0 | Q50: 2660.8967 | R50: =+J50*E$7 -> 0
C51: Tractors/Self-Propelled | D51: 0 | F51: Gallon | G51: 2.75 | I51: 0 | J51: =E51*H51 -> 0 | K51: 0 | M51: 0 | N51: =J51*L51 -> 0 | O51: 0 | P51: =+J51-N51 -> 0 | Q51: 0 | R51: =+J51*E$7 -> 0
B53: Repairs & Maintenance
C54: Pickup/General Use Equipment | D54: 1 | F54: Acre | G54: 4.8384 | I54: 4.8384 | J54: =E54*H54 -> 0 | K54: 0 | M54: 0 | N54: =J54*L54 -> 0 | O54: 4.8384 | P54: =+J54-N54 -> 0 | Q54: 483.84 | R54: =+J54*E$7 -> 0
C55: Irrigation Equipment | D55: 1 | F55: Acre | G55: 0 | I55: 0 | J55: 0 | K55: 0 | M55: 0 | N55: 0 | O55: 0 | P55: 0 | Q55: 0 | R55: 0
C56: Tractors/Self-Propelled | D56: 1 | F56: Acre | G56: 25.25411238 | I56: 25.25411238 | J56: 0 | K56: 0 | M56: 0 | N56: 0 | O56: 25.25411238 | P56: 0 | Q56: 2525.411238 | R56: 0
C57: Implements | D57: 1 | F57: Acre | G57: 11.85885506 | I57: 11.85885506 | J57: 0 | K57: 0 | M57: 0 | N57: 0 | O57: 11.85885506 | P57: 0 | Q57: 1185.885506 | R57: 0
I58: 0 | J58: 0 | K58: 0 | M58: 0 | N58: 0 | O58: 0 | P58: 0 | Q58: 0 | R58: 0
I59: 0 | J59: 0 | K59: 0 | M59: 0 | N59: 0 | O59: 0 | P59: 0 | Q59: 0 | R59: 0
B60: Interest on Credit Line | G60: 0.086 | I60: 11.20725016 | J60: =+SUM(J18:J59)/2*H60 -> 0 | M60: 0 | N60: =+SUM(N18:N59)/2*L60 -> 0 | O60: 11.20725016 | P60: =+SUM(P18:P59)/2*L60 -> 0 | Q60: 1120.725016 | R60: =+J60*E$7 -> 0
A61: Total Variable Costs | I61: 312.788932 | J61: =SUM(J19:J60) -> 0 | M61: 0 | N61: =SUM(N19:N60) -> 0 | O61: 312.788932 | P61: =SUM(P19:P60) -> 0 | Q61: 31278.8932 | R61: =SUM(R19:R60) -> 0
A62: Planned Returns Above Variable Costs: | I62: 43.21106799 | J62: =+J14-J61 -> 0 | M62: 0 | N62: =+N14-N61 -> 0 | O62: 43.21106799 | P62: =+P14-P61 -> 0 | Q62: 4321.106799 | R62: =+R14-R61 -> 0
B63: Breakeven Price to Cover Variable Costs | G63: 0.61197233 | H63: =IF(E10=0,"n/a",(YVarExp-(YTotExp+YTotRet-J10))/E10) -> n/a | I63: Pound
Q64: Enterprise | R64: Enterprise
A65: FIXED COSTS | D65: Quantity | E65: Quantity | F65: Units | G65: $/Unit | H65: $/Unit | I65: Total | J65: Total | K65: Share | L65: Share | M65: Landlord | N65: Landlord | O65: Tenant | P65: Tenant | Q65: Total | R65: Total
B66: Machinery Depreciation
C67: Pickup/General Use Equipment | D67: 1 | F67: Acre | G67: 25.2 | I67: 25.2 | J67: =E67*H67 -> 0 | K67: 0 | M67: 0 | N67: =J67*L67 -> 0 | O67: 25.2 | P67: =+J67-N67 -> 0 | Q67: 2520 | R67: =+J67*E$7 -> 0
C68: Tractors/Self-Propelled | D68: 1 | F68: Acre | G68: 30.3167578 | I68: 30.3167578 | J68: 0 | K68: 0 | M68: 0 | N68: =J68*L68 -> 0 | O68: 30.3167578 | P68: 0 | Q68: 3031.67578 | R68: 0
C69: Implements | D69: 1 | F69: Acre | G69: 15.47527485 | I69: 15.47527485 | J69: 0 | K69: 0 | M69: 0 | N69: =J69*L69 -> 0 | O69: 15.47527485 | P69: 0 | Q69: 1547.527485 | R69: 0
B70: Equipment Investment
C71: Pickup/General Use Equipment | D71: 105 | F71: Dollars | G71: 0.086 | I71: 9.03 | J71: =E71*H71 -> 0 | K71: 0 | M71: 0 | N71: =J71*L71 -> 0 | O71: 9.03 | P71: =+J71-N71 -> 0 | Q71: 903 | R71: =+J71*E$7 -> 0
C72: Tractors/Self-Propelled | D72: 268.9997399 | F72: Dollars | G72: 0.086 | I72: 23.13397763 | J72: 0 | K72: 0 | M72: 0 | N72: =J72*L72 -> 0 | O72: 23.13397763 | P72: 0 | Q72: 2313.397763 | R72: 0
C73: Implements | D73: 112.1044936 | F73: Dollars | G73: 0.086 | I73: 9.640986453 | J73: 0 | K73: 0 | M73: 0 | N73: =J73*L73 -> 0 | O73: 9.640986453 | P73: 0 | Q73: 964.0986453 | R73: 0
B74: Salaried Labor | D74: 1 | F74: Acre | G74: 0 | I74: 0 | J74: 0 | K74: 0 | M74: 0 | N74: =J74*L74 -> 0 | O74: 0 | P74: =+J74-N74 -> 0 | Q74: 0 | R74: =+J74*E$7 -> 0
B75: Management Fee, Owner/Operator Labor | D75: 1 | F75: Acre | G75: 0 | I75: 0 | J75: 0 | K75: 0 | M75: 0 | N75: 0 | O75: 0 | P75: 0 | Q75: 0 | R75: 0
B76: Allocated Establishment Cost | D76: 1 | F76: Acre | G76: 0 | I76: 0 | J76: 0 | K76: 0 | M76: 0 | N76: 0 | O76: 0 | P76: 0 | Q76: 0 | R76: 0
B77: Dryland Winter Garden Rent | D77: 1 | F77: Acre | G77: 20 | I77: 20 | J77: 0 | K77: 0 | M77: 0 | N77: 0 | O77: 20 | P77: 0 | Q77: 2000 | R77: 0
B78: Property Taxes | D78: 1 | F78: Acre | G78: 0 | I78: 0 | J78: 0 | K78: 0 | M78: 0 | N78: 0 | O78: 0 | P78: 0 | Q78: 0 | R78: 0
B79: Whole Farm Insurance | D79: 1 | F79: Acre | G79: 0 | I79: 0 | J79: 0 | K79: 0 | M79: 0 | N79: 0 | O79: 0 | P79: 0 | Q79: 0 | R79: 0
D80: 1 | G80: 0 | I80: 0 | J80: 0 | K80: 0 | M80: 0 | N80: 0 | O80: 0 | P80: 0 | Q80: 0 | R80: 0
D81: 1 | G81: 0 | I81: 0 | J81: =E81*H81 -> 0 | K81: 0 | M81: 0 | N81: 0 | O81: 0 | P81: 0 | Q81: 0 | R81: 0
A82: Total Fixed Costs | I82: 132.7969967 | J82: =+SUM(J67:J81) -> 0 | M82: 0 | N82: =+SUM(N67:N81) -> 0 | O82: 132.7969967 | P82: =+SUM(P67:P81) -> 0 | Q82: 13279.69967 | R82: =+SUM(R67:R81) -> 0
A83: Total Specified Costs | I83: 445.5859287 | J83: =+J61+J82 -> 0 | M83: 0 | N83: =+N61+N82 -> 0 | O83: 445.5859287 | P83: =+P61+P82 -> 0 | Q83: 44558.59287 | R83: =+R61+R82 -> 0
A85: Returns Above Specified Costs | I85: -89.58592874 | J85: =+J14-J83 -> 0 | M85: 0 | N85: =+N14-N83 -> 0 | O85: -89.58592874 | P85: =+P14-P83 -> 0 | Q85: -8958.592874 | R85: =+R14-R83 -> 0
A87: Breakeven Price to Cover Total Costs | G87: 0.9439648219 | H87: =IF(E10=0,"n/a",(YTotExp-(YTotExp+YTotRet-J10))/E10) -> n/a | I87: Pound
D89: Example Breakeven Prices
B90: Example | C90: Example | D90: To Cover | G90: To Cover
B91: Yield | C91: Yield | D91: Variable | G91: Total
B92: Percent | C92: Pound | D92: Costs | G92: Costs
B93: 0.75 | C93: 300 | D93: 0.8159631067 | G93: 1.258619762
B94: 0.9 | C94: 360 | D94: 0.6799692556 | G94: 1.048849802
B95: 1 | C95: 400 | D95: 0.61197233 | G95: 0.9439648219
B96: 1.1 | C96: 440 | D96: 0.5563384818 | G96: 0.8581498381
B97: 1.25 | C97: 500 | D97: 0.489577864 | G97: 0.7551718575
D99: Your Breakeven Prices
B100: Your | C100: Your | E100: To Cover | H100: To Cover
B101: Yield | C101: Yield | E101: Variable | H101: Total
B102: Percent | C102: Pound | E102: Costs | H102: Costs
B103: 0.75 | C103: =E10*YPER1 -> 0 | E103: =IF($E$10=0,0,(YVarExp-(YTotExp+YTotRet-J10))/($E$10*YPER1)) -> 0 | H103: =IF($E$10=0,0,(YTotExp-(YTotExp+YTotRet-J10))/($E$10*YPER1)) -> 0
B104: 0.9 | C104: =E10*YPER2 -> 0 | E104: =IF($E$10=0,0,(YVarExp-(YTotExp+YTotRet-J10))/($E$10*YPER2)) -> 0 | H104: =IF($E$10=0,0,(YTotExp-(YTotExp+YTotRet-J10))/($E$10*YPER2)) -> 0
B105: 1 | C105: =+E10 -> 0 | E105: =IF($E$10=0,0,(YVarExp-(YTotExp+YTotRet-J10))/($E$10*YPER3)) -> 0 | H105: =IF($E$10=0,0,(YTotExp-(YTotExp+YTotRet-J10))/($E$10*YPER3)) -> 0
B106: 1.1 | C106: =E10*YPER4 -> 0 | E106: =IF($E$10=0,0,(YVarExp-(YTotExp+YTotRet-J10))/($E$10*YPER4)) -> 0 | H106: =IF($E$10=0,0,(YTotExp-(YTotExp+YTotRet-J10))/($E$10*YPER4)) -> 0
B107: 1.25 | C107: =E10*YPER5 -> 0 | E107: =IF($E$10=0,0,(YVarExp-(YTotExp+YTotRet-J10))/($E$10*YPER5)) -> 0 | H107: =IF($E$10=0,0,(YTotExp-(YTotExp+YTotRet-J10))/($E$10*YPER5)) -> 0
A109: Developed by Extension Agricultural Economists, Texas A&M AgriLife Extension, budgets@tamu.edu.
A111: Information presented is prepared solely as a general guide and not intended to recognize or predict the costs and returns from any one operation. Brand names are mentioned only as examples and imply no endorsement.

Sheet CottonIrrigated
A1: Projections for Planning Purposes Only -- Not to be Used without Updating
A2: 2025 Estimated Costs and Returns per Acre
A3: Irrigated Cotton
A4: Enter your name for this budget in the cell above.
A5: Enter Your Values in the cells highlighed in MAROON.
E6: Your Acres | R6: Your
C7: Crop Acres | D7: 122 | L7: Your | Q7: Enterprise | R7: Enterprise
E8: Your | H8: Your | I8: Cash | J8: Your | K8: Landlord | L8: Landlord | N8: Your | P8: Your | Q8: Total | R8: Total
A9: REVENUE | D9: Quantity | E9: Quantity | F9: Units | G9: $/Unit | H9: $/Unit | I9: Total | J9: Total | K9: Share | L9: Share | M9: Landlord | N9: Landlord | O9: Tenant | P9: Tenant | Q9: (122 acres) | R9: ="(" & E7 & " acres)" -> ( acres)
B10: Cotton Lint | D10: 1250 | F10: Pound | G10: 0.72 | I10: 900 | J10: =E10*H10 -> 0 | K10: 0 | M10: 0 | N10: =J10*L10 -> 0 | O10: 900 | P10: =+J10-N10 -> 0 | Q10: 109800 | R10: =+J10*E$7 -> 0
B11: Cottonseed | D11: 2120 | F11: Pound | G11: 0.1 | I11: 212 | J11: 0 | K11: 0 | M11: 0 | N11: 0 | O11: 212 | P11: =+J11-N11 -> 0 | Q11: 25864 | R11: 0
D12: 0 | G12: 0 | I12: 0 | J12: 0 | K12: 0 | M12: 0 | N12: 0 | O12: 0 | P12: 0 | Q12: 0 | R12: 0
D13: 0 | G13: 0 | I13: 0 | J13: 0 | K13: 0 | M13: 0 | N13: 0 | O13: 0 | P13: 0 | Q13: 0 | R13: 0
A14: Total Revenue | I14: 1112 | J14: =SUM(J10:J13) -> 0 | M14: 0 | N14: =SUM(N10:N13) -> 0 | O14: 1112 | P14: =SUM(P10:P13) -> 0 | Q14: 135664 | R14: =SUM(R10:R13) -> 0
Q15: Enterprise | R15: Enterprise
A16: VARIABLE COSTS | D16: Quantity | E16: Quantity | F16: Units | G16: $/Unit | H16: $/Unit | I16: Total | J16: Total | K16: Share | L16: Share | M16: Landlord | N16: Landlord | O16: Tenant | P16: Tenant | Q16: Total | R16: Total
A17: Production Costs
B18: Custom
C19: Custom Apply Fertilizer | D19: 1 | F19: Acre | G19: 6.39 | I19: 6.39 | J19: =E19*H19 -> 0 | K19: 0 | M19: 0 | N19: =J19*L19 -> 0 | O19: 6.39 | P19: =+J19-N19 -> 0 | Q19: 779.58 | R19: =+J19*E$7 -> 0
C20: Gin, Bag, Tie - CWT | D20: 33.7 | F20: CWT | G20: 3 | I20: 101.1 | J20: 0 | K20: 0 | M20: 0 | N20: 0 | O20: 101.1 | P20: 0 | Q20: 12334.2 | R20: 0
B21: Fertilizer
C22: UAN(32% N) | D22: 5 | F22: CWT | G22: 17.08 | I22: 85.4 | J22: 0 | K22: 0 | M22: 0 | N22: 0 | O22: 85.4 | P22: 0 | Q22: 10418.8 | R22: 0
C23: Fertilizer 18-46-0 | D23: 217 | F23: Pound | G23: 0.35 | I23: 75.95 | J23: 0 | K23: 0 | M23: 0 | N23: 0 | O23: 75.95 | P23: 0 | Q23: 9265.9 | R23: 0
B24: Herbicide
C25: Glyphosate | D25: 4.2 | F25: Pint | G25: 1.63125 | I25: 6.85125 | J25: 0 | K25: 0 | M25: 0 | N25: 0 | O25: 6.85125 | P25: 0 | Q25: 835.8525 | R25: 0
C26: Prowl H2O | D26: 2 | F26: Pint | G26: 6.09375 | I26: 12.1875 | J26: 0 | K26: 0 | M26: 0 | N26: 0 | O26: 12.1875 | P26: 0 | Q26: 1486.875 | R26: 0
B27: Insecticide
C28: Karate Z | D28: 1 | F28: Ounce | G28: 0.81 | I28: 0.81 | J28: 0 | K28: 0 | M28: 0 | N28: 0 | O28: 0.81 | P28: 0 | Q28: 98.82 | R28: 0
B29: Miscellaneous
C30: Crop Insurance - Cotton Irrigated | D30: 1 | F30: Acre | G30: 24 | I30: 24 | J30: 0 | K30: 0 | M30: 0 | N30: 0 | O30: 24 | P30: 0 | Q30: 2928 | R30: 0
C31: Boll Weevil Eradication Program | D31: 1 | F31: Acre | G31: 2 | I31: 2 | J31: 0 | K31: 0 | M31: 0 | N31: 0 | O31: 2 | P31: 0 | Q31: 244 | R31: 0
B32: Seed
C33: Cotton Seed BIIRRF | D33: 52 | F33: Thousand | G33: 1.679245283 | I33: 87.32075472 | J33: 0 | K33: 0 | M33: 0 | N33: 0 | O33: 87.32075472 | P33: 0 | Q33: 10653.13208 | R33: 0
B34: Other Chemicals
C35: GinStar | D35: 5 | F35: Ounce | G35: 1.519140625 | I35: 7.595703125 | J35: 0 | K35: 0 | M35: 0 | N35: 0 | O35: 7.595703125 | P35: 0 | Q35: 926.6757812 | R35: 0
C36: Ethephon 6 | D36: 24 | F36: Ounce | G36: 0.20703125 | I36: 4.96875 | J36: 0 | K36: 0 | M36: 0 | N36: 0 | O36: 4.96875 | P36: 0 | Q36: 606.1875 | R36: 0
C37: Surfactant | D37: 1 | F37: Ounce | G37: 0.3953125 | I37: 0.3953125 | J37: 0 | K37: 0 | M37: 0 | N37: 0 | O37: 0.3953125 | P37: 0 | Q37: 48.228125 | R37: 0
C38: Gramoxone SL | D38: 24 | F38: Ounce | G38: 0.284375 | I38: 6.825 | J38: 0 | K38: 0 | M38: 0 | N38: 0 | O38: 6.825 | P38: 0 | Q38: 832.65 | R38: 0
C39: Crop Oil Concentrate | D39: 0.25 | F39: Pint | G39: 1.61875 | I39: 0.4046875 | J39: 0 | K39: 0 | M39: 0 | N39: 0 | O39: 0.4046875 | P39: 0 | Q39: 49.371875 | R39: 0
D40: 0 | G40: 0 | I40: 0 | J40: 0 | K40: 0 | M40: 0 | N40: 0 | O40: 0 | P40: 0 | Q40: 0 | R40: 0
D41: 0 | G41: 0 | I41: 0 | J41: 0 | K41: 0 | M41: 0 | N41: 0 | O41: 0 | P41: 0 | Q41: 0 | R41: 0
D42: 0 | G42: 0 | I42: 0 | J42: =E42*H42 -> 0 | K42: 0 | M42: 0 | N42: =J42*L42 -> 0 | O42: 0 | P42: =+J42-N42 -> 0 | Q42: 0 | R42: =+J42*E$7 -> 0
B43: Irrigation
C44: Energy Cost | D44: 990 | F44: kWh | G44: 0.17 | I44: 168.3 | J44: =E44*H44 -> 0 | K44: 0 | M44: 0 | N44: =J44*L44 -> 0 | O44: 168.3 | P44: =+J44-N44 -> 0 | Q44: 20532.6 | R44: =+J44*E$7 -> 0
C45: Irrigation Labor | D45: 0.12 | F45: Hour | G45: 17.5 | I45: 2.1 | J45: 0 | K45: 0 | M45: 0 | N45: 0 | O45: 2.1 | P45: 0 | Q45: 256.2 | R45: 0
B46: Machinery Labor
C47: Tractors/Self-Propelled | D47: 1.49 | F47: Hour | G47: 17.21 | I47: 25.6429 | J47: =E47*H47 -> 0 | K47: 0 | M47: 0 | N47: =J47*L47 -> 0 | O47: 25.6429 | P47: =+J47-N47 -> 0 | Q47: 3128.4338 | R47: =+J47*E$7 -> 0
C48: Other Labor | D48: 0.32 | F48: Hour | G48: 17.21 | I48: 5.5072 | J48: =E48*H48 -> 0 | K48: 0 | M48: 0 | N48: =J48*L48 -> 0 | O48: 5.5072 | P48: =+J48-N48 -> 0 | Q48: 671.8784 | R48: =+J48*E$7 -> 0
B50: Diesel Fuel
C51: Pickup/General Use Equipment | D51: 1 | F51: Acre | G51: 0 | I51: 0 | J51: =E51*H51 -> 0 | K51: 0 | M51: 0 | N51: =J51*L51 -> 0 | O51: 0 | P51: =+J51-N51 -> 0 | Q51: 0 | R51: =+J51*E$7 -> 0
C52: Tractors/Self-Propelled | D52: 12.06 | F52: Gallon | G52: 3 | I52: 36.18 | J52: =E52*H52 -> 0 | K52: 0 | M52: 0 | N52: =J52*L52 -> 0 | O52: 36.18 | P52: =+J52-N52 -> 0 | Q52: 4413.96 | R52: =+J52*E$7 -> 0
B54: Gasoline
C55: Pickup/General Use Equipment | D55: 1 | F55: Acre | G55: 26.61286176 | I55: 26.61286176 | J55: =E55*H55 -> 0 | K55: 0 | M55: 0 | N55: =J55*L55 -> 0 | O55: 26.61286176 | P55: =+J55-N55 -> 0 | Q55: 3246.769134 | R55: =+J55*E$7 -> 0
C56: Tractors/Self-Propelled | D56: 0 | F56: Gallon | G56: 2.75 | I56: 0 | J56: =E56*H56 -> 0 | K56: 0 | M56: 0 | N56: =J56*L56 -> 0 | O56: 0 | P56: =+J56-N56 -> 0 | Q56: 0 | R56: =+J56*E$7 -> 0
B58: Repairs & Maintenance
C59: Pickup/General Use Equipment | D59: 1 | F59: Acre | G59: 4.839108197 | I59: 4.839108197 | J59: =E59*H59 -> 0 | K59: 0 | M59: 0 | N59: =J59*L59 -> 0 | O59: 4.839108197 | P59: =+J59-N59 -> 0 | Q59: 590.3712 | R59: =+J59*E$7 -> 0
C60: Irrigation Equipment | D60: 1 | F60: Acre | G60: 9.33173109 | I60: 9.33173109 | J60: 0 | K60: 0 | M60: 0 | N60: 0 | O60: 9.33173109 | P60: 0 | Q60: 1138.471193 | R60: 0
C61: Tractors/Self-Propelled | D61: 1 | F61: Acre | G61: 31.39264213 | I61: 31.39264213 | J61: 0 | K61: 0 | M61: 0 | N61: 0 | O61: 31.39264213 | P61: 0 | Q61: 3829.902339 | R61: 0
C62: Implements | D62: 1 | F62: Acre | G62: 17.17489562 | I62: 17.17489562 | J62: 0 | K62: 0 | M62: 0 | N62: 0 | O62: 17.17489562 | P62: 0 | Q62: 2095.337265 | R62: 0
I63: 0 | J63: 0 | K63: 0 | M63: 0 | N63: 0 | O63: 0 | P63: 0 | Q63: 0 | R63: 0
I64: 0 | J64: 0 | K64: 0 | M64: 0 | N64: 0 | O64: 0 | P64: 0 | Q64: 0 | R64: 0
B65: Interest on Credit Line | G65: 0.086 | I65: 28.3204481 | J65: =+SUM(J18:J64)/2*H65 -> 0 | M65: 0 | N65: =+SUM(N18:N64)/2*L65 -> 0 | O65: 28.3204481 | P65: =+SUM(P18:P64)/2*L65 -> 0 | Q65: 3455.094668 | R65: =+J65*E$7 -> 0
A66: Total Variable Costs | I66: 777.6007447 | J66: =SUM(J19:J65) -> 0 | M66: 0 | N66: =SUM(N19:N65) -> 0 | O66: 777.6007447 | P66: =SUM(P19:P65) -> 0 | Q66: 94867.29086 | R66: =SUM(R19:R65) -> 0
A67: Planned Returns Above Variable Costs: | I67: 334.3992553 | J67: =+J14-J66 -> 0 | M67: 0 | N67: =+N14-N66 -> 0 | O67: 334.3992553 | P67: =+P14-P66 -> 0 | Q67: 40796.70914 | R67: =+R14-R66 -> 0
B68: Breakeven Price to Cover Variable Costs | G68: 0.4524805958 | H68: =IF(E10=0,"n/a",(YVarExp-(YTotExp+YTotRet-J10))/E10) -> n/a | I68: Pound
Q69: Enterprise | R69: Enterprise
A70: FIXED COSTS | D70: Quantity | E70: Quantity | F70: Units | G70: $/Unit | H70: $/Unit | I70: Total | J70: Total | K70: Share | L70: Share | M70: Landlord | N70: Landlord | O70: Tenant | P70: Tenant | Q70: Total | R70: Total
B71: Machinery Depreciation
C72: Pickup/General Use Equipment | D72: 1 | F72: Acre | G72: 25.20368852 | I72: 25.20368852 | J72: =E72*H72 -> 0 | K72: 0 | M72: 0 | N72: =J72*L72 -> 0 | O72: 25.20368852 | P72: =+J72-N72 -> 0 | Q72: 3074.85 | R72: =+J72*E$7 -> 0
C73: Irrigation Equipment | D73: 1 | F73: Acre | G73: 80.58401639 | I73: 80.58401639 | J73: 0 | K73: 0 | M73: 0 | N73: =J73*L73 -> 0 | O73: 80.58401639 | P73: 0 | Q73: 9831.25 | R73: 0
C74: Tractors/Self-Propelled | D74: 1 | F74: Acre | G74: 37.16974301 | I74: 37.16974301 | J74: 0 | K74: 0 | M74: 0 | N74: =J74*L74 -> 0 | O74: 37.16974301 | P74: 0 | Q74: 4534.708648 | R74: 0
C75: Implements | D75: 1 | F75: Acre | G75: 21.69113984 | I75: 21.69113984 | J75: 0 | K75: 0 | M75: 0 | N75: =J75*L75 -> 0 | O75: 21.69113984 | P75: 0 | Q75: 2646.31906 | R75: 0
B76: Equipment Investment
C77: Pickup/General Use Equipment | D77: 105.0153689 | F77: Dollars | G77: 0.086 | I77: 9.031321721 | J77: =E77*H77 -> 0 | K77: 0 | M77: 0 | N77: =J77*L77 -> 0 | O77: 9.031321721 | P77: =+J77-N77 -> 0 | Q77: 1101.82125 | R77: =+J77*E$7 -> 0
C78: Irrigation Equipment | D78: 646.0040984 | F78: Dollars | G78: 0.086 | I78: 55.55635246 | J78: 0 | K78: 0 | M78: 0 | N78: =J78*L78 -> 0 | O78: 55.55635246 | P78: 0 | Q78: 6777.875 | R78: 0
C79: Tractors/Self-Propelled | D79: 322.1498171 | F79: Dollars | G79: 0.086 | I79: 27.70488427 | J79: 0 | K79: 0 | M79: 0 | N79: =J79*L79 -> 0 | O79: 27.70488427 | P79: 0 | Q79: 3379.995881 | R79: 0
C80: Implements | D80: 138.6945828 | F80: Dollars | G80: 0.086 | I80: 11.92773412 | J80: 0 | K80: 0 | M80: 0 | N80: =J80*L80 -> 0 | O80: 11.92773412 | P80: 0 | Q80: 1455.183562 | R80: 0
B81: Salaried Labor | D81: 1 | F81: Acre | G81: 0 | I81: 0 | J81: 0 | K81: 0 | M81: 0 | N81: =J81*L81 -> 0 | O81: 0 | P81: =+J81-N81 -> 0 | Q81: 0 | R81: =+J81*E$7 -> 0
B82: Management Fee, Owner/Operator Labor | D82: 1 | F82: Acre | G82: 0 | I82: 0 | J82: 0 | K82: 0 | M82: 0 | N82: 0 | O82: 0 | P82: 0 | Q82: 0 | R82: 0
B83: Allocated Establishment Cost | D83: 1 | F83: Acre | G83: 0 | I83: 0 | J83: 0 | K83: 0 | M83: 0 | N83: 0 | O83: 0 | P83: 0 | Q83: 0 | R83: 0
B84: Irrigated Winter Garden Rent | D84: 1 | F84: Acre | G84: 50 | I84: 50 | J84: 0 | K84: 0 | M84: 0 | N84: 0 | O84: 50 | P84: 0 | Q84: 6100 | R84: 0
B85: Property Taxes | D85: 1 | F85: Acre | G85: 0 | I85: 0 | J85: 0 | K85: 0 | M85: 0 | N85: 0 | O85: 0 | P85: 0 | Q85: 0 | R85: 0
B86: Whole Farm Insurance | D86: 1 | F86: Acre | G86: 0 | I86: 0 | J86: 0 | K86: 0 | M86: 0 | N86: 0 | O86: 0 | P86: 0 | Q86: 0 | R86: 0
D87: 1 | G87: 0 | I87: 0 | J87: 0 | K87: 0 | M87: 0 | N87: 0 | O87: 0 | P87: 0 | Q87: 0 | R87: 0
D88: 1 | G88: 0 | I88: 0 | J88: =E88*H88 -> 0 | K88: 0 | M88: 0 | N88: 0 | O88: 0 | P88: 0 | Q88: 0 | R88: 0
A89: Total Fixed Costs | I89: 318.8688803 | J89: =+SUM(J72:J88) -> 0 | M89: 0 | N89: =+SUM(N72:N88) -> 0 | O89: 318.8688803 | P89: =+SUM(P72:P88) -> 0 | Q89: 38902.0034 | R89: =+SUM(R72:R88) -> 0
A90: Total Specified Costs | I90: 1096.469625 | J90: =+J66+J89 -> 0 | M90: 0 | N90: =+N66+N89 -> 0 | O90: 1096.469625 | P90: =+P66+P89 -> 0 | Q90: 133769.2943 | R90: =+R66+R89 -> 0
A92: Returns Above Specified Costs | I92: 15.53037494 | J92: =+J14-J90 -> 0 | M92: 0 | N92: =+N14-N90 -> 0 | O92: 15.53037494 | P92: =+P14-P90 -> 0 | Q92: 1894.705743 | R92: =+R14-R90 -> 0
A94: Breakeven Price to Cover Total Costs | G94: 0.7075757 | H94: =IF(E10=0,"n/a",(YTotExp-(YTotExp+YTotRet-J10))/E10) -> n/a | I94: Pound
D96: Example Breakeven Prices
B97: Example | C97: Example | D97: To Cover | G97: To Cover
B98: Yield | C98: Yield | D98: Variable | G98: Total
B99: Percent | C99: Pound | D99: Costs | G99: Costs
B100: 0.75 | C100: 937.5 | D100: 0.603307461 | G100: 0.9434342667
B101: 0.9 | C101: 1125 | D101: 0.5027562175 | G101: 0.7861952223
B102: 1 | C102: 1250 | D102: 0.4524805958 | G102: 0.7075757
B103: 1.1 | C103: 1375 | D103: 0.4113459962 | G103: 0.6432506364
B104: 1.25 | C104: 1562.5 | D104: 0.3619844766 | G104: 0.56606056
D106: Your Breakeven Prices
B107: Your | C107: Your | E107: To Cover | H107: To Cover
B108: Yield | C108: Yield | E108: Variable | H108: Total
B109: Percent | C109: Pound | E109: Costs | H109: Costs
B110: 0.75 | C110: =E10*YPER1 -> 0 | E110: =IF($E$10=0,0,(YVarExp-(YTotExp+YTotRet-J10))/($E$10*YPER1)) -> 0 | H110: =IF($E$10=0,0,(YTotExp-(YTotExp+YTotRet-J10))/($E$10*YPER1)) -> 0
B111: 0.9 | C111: =E10*YPER2 -> 0 | E111: =IF($E$10=0,0,(YVarExp-(YTotExp+YTotRet-J10))/($E$10*YPER2)) -> 0 | H111: =IF($E$10=0,0,(YTotExp-(YTotExp+YTotRet-J10))/($E$10*YPER2)) -> 0
B112: 1 | C112: =+E10 -> 0 | E112: =IF($E$10=0,0,(YVarExp-(YTotExp+YTotRet-J10))/($E$10*YPER3)) -> 0 | H112: =IF($E$10=0,0,(YTotExp-(YTotExp+YTotRet-J10))/($E$10*YPER3)) -> 0
B113: 1.1 | C113: =E10*YPER4 -> 0 | E113: =IF($E$10=0,0,(YVarExp-(YTotExp+YTotRet-J10))/($E$10*YPER4)) -> 0 | H113: =IF($E$10=0,0,(YTotExp-(YTotExp+YTotRet-J10))/($E$10*YPER4)) -> 0
B114: 1.25 | C114: =E10*YPER5 -> 0 | E114: =IF($E$10=0,0,(YVarExp-(YTotExp+YTotRet-J10))/($E$10*YPER5)) -> 0 | H114: =IF($E$10=0,0,(YTotExp-(YTotExp+YTotRet-J10))/($E$10*YPER5)) -> 0
A116: Developed by Extension Agricultural Economists, Texas A&M AgriLife Extension, budgets@tamu.edu.
A118: Information presented is prepared solely as a general guide and not intended to recognize or predict the costs and returns from any one operation. Brand names are mentioned only as examples and imply no endorsement.

Sheet PeanutsDryland
A1: Projections for Planning Purposes Only -- Not to be Used without Updating
A2: 2025 Estimated Costs and Returns per Acre
A3: Dryland Runner Peanuts
A4: Enter your name for this budget in the cell above.
A5: Enter Your Values in the cells highlighed in MAROON.
E6: Your Acres | R6: Your
C7: Crop Acres | D7: 100 | L7: Your | Q7: Enterprise | R7: Enterprise
E8: Your | H8: Your | I8: Cash | J8: Your | K8: Landlord | L8: Landlord | N8: Your | P8: Your | Q8: Total | R8: Total
A9: REVENUE | D9: Quantity | E9: Quantity | F9: Units | G9: $/Unit | H9: $/Unit | I9: Total | J9: Total | K9: Share | L9: Share | M9: Landlord | N9: Landlord | O9: Tenant | P9: Tenant | Q9: (100 acres) | R9: ="(" & E7 & " acres)" -> ( acres)
B10: Peanuts | D10: 15 | F10: CWT | G10: 26.7 | I10: 400.5 | J10: =E10*H10 -> 0 | K10: 0 | M10: 0 | N10: =J10*L10 -> 0 | O10: 400.5 | P10: =+J10-N10 -> 0 | Q10: 40050 | R10: =+J10*E$7 -> 0
D11: 0 | G11: 0 | I11: 0 | J11: 0 | K11: 0 | M11: 0 | N11: 0 | O11: 0 | P11: =+J11-N11 -> 0 | Q11: 0 | R11: 0
D12: 0 | G12: 0 | I12: 0 | J12: 0 | K12: 0 | M12: 0 | N12: 0 | O12: 0 | P12: 0 | Q12: 0 | R12: 0
A13: Total Revenue | I13: 400.5 | J13: =SUM(J10:J12) -> 0 | M13: 0 | N13: =SUM(N10:N12) -> 0 | O13: 400.5 | P13: =SUM(P10:P12) -> 0 | Q13: 40050 | R13: =SUM(R10:R12) -> 0
Q14: Enterprise | R14: Enterprise
A15: VARIABLE COSTS | D15: Quantity | E15: Quantity | F15: Units | G15: $/Unit | H15: $/Unit | I15: Total | J15: Total | K15: Share | L15: Share | M15: Landlord | N15: Landlord | O15: Tenant | P15: Tenant | Q15: Total | R15: Total
A16: Production Costs
B17: Herbicide
C18: Trifluralin | D18: 1 | F18: Pint | G18: 3.46875 | I18: 3.46875 | J18: =E18*H18 -> 0 | K18: 0 | M18: 0 | N18: =J18*L18 -> 0 | O18: 3.46875 | P18: =+J18-N18 -> 0 | Q18: 346.875 | R18: =+J18*E$7 -> 0
B19: Miscellaneous
C20: Miscellaneous Peanut Overhead | D20: 1 | F20: Acre | G20: 4 | I20: 4 | J20: 0 | K20: 0 | M20: 0 | N20: 0 | O20: 4 | P20: 0 | Q20: 400 | R20: 0
C21: Crop Insurance - Peanuts Dry | D21: 1 | F21: Acre | G21: 10 | I21: 10 | J21: 0 | K21: 0 | M21: 0 | N21: 0 | O21: 10 | P21: 0 | Q21: 1000 | R21: 0
B22: Seed
C23: Peanut Seed | D23: 65 | F23: Pound | G23: 0.65 | I23: 42.25 | J23: 0 | K23: 0 | M23: 0 | N23: 0 | O23: 42.25 | P23: 0 | Q23: 4225 | R23: 0
C24: Peanut Seed Treatment | D24: 1 | F24: Acre | G24: 5.91 | I24: 5.91 | J24: 0 | K24: 0 | M24: 0 | N24: 0 | O24: 5.91 | P24: 0 | Q24: 591 | R24: 0
B25: Fungicides
C26: Quadris | D26: 2 | F26: Ounce | G26: 1.6875 | I26: 3.375 | J26: 0 | K26: 0 | M26: 0 | N26: 0 | O26: 3.375 | P26: 0 | Q26: 337.5 | R26: 0
B27: Custom
C28: Haul Peanuts | D28: 0.75 | F28: Ton | G28: 10.5 | I28: 7.875 | J28: 0 | K28: 0 | M28: 0 | N28: 0 | O28: 7.875 | P28: 0 | Q28: 787.5 | R28: 0
C29: Dry Peanuts | D29: 0.75 | F29: Ton | G29: 24 | I29: 18 | J29: 0 | K29: 0 | M29: 0 | N29: 0 | O29: 18 | P29: 0 | Q29: 1800 | R29: 0
D30: 0 | G30: 0 | I30: 0 | J30: 0 | K30: 0 | M30: 0 | N30: 0 | O30: 0 | P30: 0 | Q30: 0 | R30: 0
D31: 0 | G31: 0 | I31: 0 | J31: 0 | K31: 0 | M31: 0 | N31: 0 | O31: 0 | P31: 0 | Q31: 0 | R31: 0
D32: 0 | G32: 0 | I32: 0 | J32: =E32*H32 -> 0 | K32: 0 | M32: 0 | N32: =J32*L32 -> 0 | O32: 0 | P32: =+J32-N32 -> 0 | Q32: 0 | R32: =+J32*E$7 -> 0
B33: Machinery Labor
C34: Tractors/Self-Propelled | D34: 0.79 | F34: Hour | G34: 17.21 | I34: 13.5959 | J34: =E34*H34 -> 0 | K34: 0 | M34: 0 | N34: =J34*L34 -> 0 | O34: 13.5959 | P34: =+J34-N34 -> 0 | Q34: 1359.59 | R34: =+J34*E$7 -> 0
C35: Other Labor | D35: 0.03 | F35: Hour | G35: 17.21 | I35: 0.5163 | J35: =E35*H35 -> 0 | K35: 0 | M35: 0 | N35: =J35*L35 -> 0 | O35: 0.5163 | P35: =+J35-N35 -> 0 | Q35: 51.63 | R35: =+J35*E$7 -> 0
B37: Diesel Fuel
C38: Pickup/General Use Equipment | D38: 1 | F38: Acre | G38: 0 | I38: 0 | J38: =E38*H38 -> 0 | K38: 0 | M38: 0 | N38: =J38*L38 -> 0 | O38: 0 | P38: =+J38-N38 -> 0 | Q38: 0 | R38: =+J38*E$7 -> 0
C39: Tractors/Self-Propelled | D39: 7.57 | F39: Gallon | G39: 3 | I39: 22.71 | J39: =E39*H39 -> 0 | K39: 0 | M39: 0 | N39: =J39*L39 -> 0 | O39: 22.71 | P39: =+J39-N39 -> 0 | Q39: 2271 | R39: =+J39*E$7 -> 0
B41: Gasoline
C42: Pickup/General Use Equipment | D42: 1 | F42: Acre | G42: 26.608967 | I42: 26.608967 | J42: =E42*H42 -> 0 | K42: 0 | M42: 0 | N42: =J42*L42 -> 0 | O42: 26.608967 | P42: =+J42-N42 -> 0 | Q42: 2660.8967 | R42: =+J42*E$7 -> 0
C43: Tractors/Self-Propelled | D43: 0 | F43: Gallon | G43: 2.75 | I43: 0 | J43: =E43*H43 -> 0 | K43: 0 | M43: 0 | N43: =J43*L43 -> 0 | O43: 0 | P43: =+J43-N43 -> 0 | Q43: 0 | R43: =+J43*E$7 -> 0
B45: Repairs & Maintenance
C46: Pickup/General Use Equipment | D46: 1 | F46: Acre | G46: 4.8384 | I46: 4.8384 | J46: =E46*H46 -> 0 | K46: 0 | M46: 0 | N46: =J46*L46 -> 0 | O46: 4.8384 | P46: =+J46-N46 -> 0 | Q46: 483.84 | R46: =+J46*E$7 -> 0
C47: Irrigation Equipment | D47: 1 | F47: Acre | G47: 0 | I47: 0 | J47: 0 | K47: 0 | M47: 0 | N47: 0 | O47: 0 | P47: 0 | Q47: 0 | R47: 0
C48: Tractors/Self-Propelled | D48: 1 | F48: Acre | G48: 20.53716212 | I48: 20.53716212 | J48: 0 | K48: 0 | M48: 0 | N48: 0 | O48: 20.53716212 | P48: 0 | Q48: 2053.716212 | R48: 0
C49: Implements | D49: 1 | F49: Acre | G49: 9.326732258 | I49: 9.326732258 | J49: 0 | K49: 0 | M49: 0 | N49: 0 | O49: 9.326732258 | P49: 0 | Q49: 932.6732258 | R49: 0
I50: 0 | J50: 0 | K50: 0 | M50: 0 | N50: 0 | O50: 0 | P50: 0 | Q50: 0 | R50: 0
I51: 0 | J51: 0 | K51: 0 | M51: 0 | N51: 0 | O51: 0 | P51: 0 | Q51: 0 | R51: 0
B52: Interest on Credit Line | G52: 0.086 | I52: 5.275634515 | J52: =+SUM(J17:J51)/2*H52 -> 0 | M52: 0 | N52: =+SUM(N17:N51)/2*L52 -> 0 | O52: 5.275634515 | P52: =+SUM(P17:P51)/2*L52 -> 0 | Q52: 527.5634515 | R52: =+J52*E$7 -> 0
A53: Total Variable Costs | I53: 198.2878459 | J53: =SUM(J18:J52) -> 0 | M53: 0 | N53: =SUM(N18:N52) -> 0 | O53: 198.2878459 | P53: =SUM(P18:P52) -> 0 | Q53: 19828.78459 | R53: =SUM(R18:R52) -> 0
A54: Planned Returns Above Variable Costs: | I54: 202.2121541 | J54: =+J13-J53 -> 0 | M54: 0 | N54: =+N13-N53 -> 0 | O54: 202.2121541 | P54: =+P13-P53 -> 0 | Q54: 20221.21541 | R54: =+R13-R53 -> 0
B55: Breakeven Price to Cover Variable Costs | G55: 13.21918973 | H55: =IF(E10=0,"n/a",(YVarExp-(YTotExp+YTotRet-J10))/E10) -> n/a | I55: CWT
Q56: Enterprise | R56: Enterprise
A57: FIXED COSTS | D57: Quantity | E57: Quantity | F57: Units | G57: $/Unit | H57: $/Unit | I57: Total | J57: Total | K57: Share | L57: Share | M57: Landlord | N57: Landlord | O57: Tenant | P57: Tenant | Q57: Total | R57: Total
B58: Machinery Depreciation
C59: Pickup/General Use Equipment | D59: 1 | F59: Acre | G59: 25.2 | I59: 25.2 | J59: =E59*H59 -> 0 | K59: 0 | M59: 0 | N59: =J59*L59 -> 0 | O59: 25.2 | P59: =+J59-N59 -> 0 | Q59: 2520 | R59: =+J59*E$7 -> 0
C60: Tractors/Self-Propelled | D60: 1 | F60: Acre | G60: 22.75124762 | I60: 22.75124762 | J60: 0 | K60: 0 | M60: 0 | N60: =J60*L60 -> 0 | O60: 22.75124762 | P60: 0 | Q60: 2275.124762 | R60: 0
C61: Implements | D61: 1 | F61: Acre | G61: 12.00305961 | I61: 12.00305961 | J61: 0 | K61: 0 | M61: 0 | N61: =J61*L61 -> 0 | O61: 12.00305961 | P61: 0 | Q61: 1200.305961 | R61: 0
B62: Equipment Investment
C63: Pickup/General Use Equipment | D63: 105 | F63: Dollars | G63: 0.086 | I63: 9.03 | J63: =E63*H63 -> 0 | K63: 0 | M63: 0 | N63: =J63*L63 -> 0 | O63: 9.03 | P63: =+J63-N63 -> 0 | Q63: 903 | R63: =+J63*E$7 -> 0
C64: Tractors/Self-Propelled | D64: 176.5288934 | F64: Dollars | G64: 0.086 | I64: 15.18148483 | J64: 0 | K64: 0 | M64: 0 | N64: =J64*L64 -> 0 | O64: 15.18148483 | P64: 0 | Q64: 1518.148483 | R64: 0
C65: Implements | D65: 103.5856721 | F65: Dollars | G65: 0.086 | I65: 8.908367804 | J65: 0 | K65: 0 | M65: 0 | N65: =J65*L65 -> 0 | O65: 8.908367804 | P65: 0 | Q65: 890.8367804 | R65: 0
B66: Salaried Labor | D66: 1 | F66: Acre | G66: 0 | I66: 0 | J66: 0 | K66: 0 | M66: 0 | N66: =J66*L66 -> 0 | O66: 0 | P66: =+J66-N66 -> 0 | Q66: 0 | R66: =+J66*E$7 -> 0
B67: Management Fee, Owner/Operator Labor | D67: 1 | F67: Acre | G67: 0 | I67: 0 | J67: 0 | K67: 0 | M67: 0 | N67: 0 | O67: 0 | P67: 0 | Q67: 0 | R67: 0
B68: Allocated Establishment Cost | D68: 1 | F68: Acre | G68: 0 | I68: 0 | J68: 0 | K68: 0 | M68: 0 | N68: 0 | O68: 0 | P68: 0 | Q68: 0 | R68: 0
B69: Dryland Winter Garden Rent | D69: 1 | F69: Acre | G69: 20 | I69: 20 | J69: 0 | K69: 0 | M69: 0 | N69: 0 | O69: 20 | P69: 0 | Q69: 2000 | R69: 0
B70: Property Taxes | D70: 1 | F70: Acre | G70: 0 | I70: 0 | J70: 0 | K70: 0 | M70: 0 | N70: 0 | O70: 0 | P70: 0 | Q70: 0 | R70: 0
B71: Whole Farm Insurance | D71: 1 | F71: Acre | G71: 0 | I71: 0 | J71: 0 | K71: 0 | M71: 0 | N71: 0 | O71: 0 | P71: 0 | Q71: 0 | R71: 0
D72: 1 | G72: 0 | I72: 0 | J72: 0 | K72: 0 | M72: 0 | N72: 0 | O72: 0 | P72: 0 | Q72: 0 | R72: 0
D73: 1 | G73: 0 | I73: 0 | J73: =E73*H73 -> 0 | K73: 0 | M73: 0 | N73: 0 | O73: 0 | P73: 0 | Q73: 0 | R73: 0
A74: Total Fixed Costs | I74: 113.0741599 | J74: =+SUM(J59:J73) -> 0 | M74: 0 | N74: =+SUM(N59:N73) -> 0 | O74: 113.0741599 | P74: =+SUM(P59:P73) -> 0 | Q74: 11307.41599 | R74: =+SUM(R59:R73) -> 0
A75: Total Specified Costs | I75: 311.3620058 | J75: =+J53+J74 -> 0 | M75: 0 | N75: =+N53+N74 -> 0 | O75: 311.3620058 | P75: =+P53+P74 -> 0 | Q75: 31136.20058 | R75: =+R53+R74 -> 0
A77: Returns Above Specified Costs | I77: 89.13799424 | J77: =+J13-J75 -> 0 | M77: 0 | N77: =+N13-N75 -> 0 | O77: 89.13799424 | P77: =+P13-P75 -> 0 | Q77: 8913.799424 | R77: =+R13-R75 -> 0
A79: Breakeven Price to Cover Total Costs | G79: 20.75746705 | H79: =IF(E10=0,"n/a",(YTotExp-(YTotExp+YTotRet-J10))/E10) -> n/a | I79: CWT
D81: Example Breakeven Prices
B82: Example | C82: Example | D82: To Cover | G82: To Cover
B83: Yield | C83: Yield | D83: Variable | G83: Total
B84: Percent | C84: CWT | D84: Costs | G84: Costs
B85: 0.75 | C85: 11.25 | D85: 17.6255863 | G85: 27.67662273
B86: 0.9 | C86: 13.5 | D86: 14.68798858 | G86: 23.06385228
B87: 1 | C87: 15 | D87: 13.21918973 | G87: 20.75746705
B88: 1.1 | C88: 16.5 | D88: 12.01744521 | G88: 18.87042459
B89: 1.25 | C89: 18.75 | D89: 10.57535178 | G89: 16.60597364
D91: Your Breakeven Prices
B92: Your | C92: Your | E92: To Cover | H92: To Cover
B93: Yield | C93: Yield | E93: Variable | H93: Total
B94: Percent | C94: CWT | E94: Costs | H94: Costs
B95: 0.75 | C95: =E10*YPER1 -> 0 | E95: =IF($E$10=0,0,(YVarExp-(YTotExp+YTotRet-J10))/($E$10*YPER1)) -> 0 | H95: =IF($E$10=0,0,(YTotExp-(YTotExp+YTotRet-J10))/($E$10*YPER1)) -> 0
B96: 0.9 | C96: =E10*YPER2 -> 0 | E96: =IF($E$10=0,0,(YVarExp-(YTotExp+YTotRet-J10))/($E$10*YPER2)) -> 0 | H96: =IF($E$10=0,0,(YTotExp-(YTotExp+YTotRet-J10))/($E$10*YPER2)) -> 0
B97: 1 | C97: =+E10 -> 0 | E97: =IF($E$10=0,0,(YVarExp-(YTotExp+YTotRet-J10))/($E$10*YPER3)) -> 0 | H97: =IF($E$10=0,0,(YTotExp-(YTotExp+YTotRet-J10))/($E$10*YPER3)) -> 0
B98: 1.1 | C98: =E10*YPER4 -> 0 | E98: =IF($E$10=0,0,(YVarExp-(YTotExp+YTotRet-J10))/($E$10*YPER4)) -> 0 | H98: =IF($E$10=0,0,(YTotExp-(YTotExp+YTotRet-J10))/($E$10*YPER4)) -> 0
B99: 1.25 | C99: =E10*YPER5 -> 0 | E99: =IF($E$10=0,0,(YVarExp-(YTotExp+YTotRet-J10))/($E$10*YPER5)) -> 0 | H99: =IF($E$10=0,0,(YTotExp-(YTotExp+YTotRet-J10))/($E$10*YPER5)) -> 0
A101: Developed by Extension Agricultural Economists, Texas A&M AgriLife Extension, budgets@tamu.edu.
A103: Information presented is prepared solely as a general guide and not intended to recognize or predict the costs and returns from any one operation. Brand names are mentioned only as examples and imply no endorsement.

Sheet PeanutsIrrigated
A1: Projections for Planning Purposes Only -- Not to be Used without Updating
A2: 2025 Estimated Costs and Returns per Acre
A3: Irrigated Runner Peanuts
A4: Enter your name for this budget in the cell above.
A5: Enter Your Values in the cells highlighed in MAROON.
E6: Your Acres | R6: Your
C7: Crop Acres | D7: 122 | L7: Your | Q7: Enterprise | R7: Enterprise
E8: Your | H8: Your | I8: Cash | J8: Your | K8: Landlord | L8: Landlord | N8: Your | P8: Your | Q8: Total | R8: Total
A9: REVENUE | D9: Quantity | E9: Quantity | F9: Units | G9: $/Unit | H9: $/Unit | I9: Total | J9: Total | K9: Share | L9: Share | M9: Landlord | N9: Landlord | O9: Tenant | P9: Tenant | Q9: (122 acres) | R9: ="(" & E7 & " acres)" -> ( acres)
B10: Peanuts | D10: 40 | F10: CWT | G10: 26.7 | I10: 1068 | J10: =E10*H10 -> 0 | K10: 0 | M10: 0 | N10: =J10*L10 -> 0 | O10: 1068 | P10: =+J10-N10 -> 0 | Q10: 130296 | R10: =+J10*E$7 -> 0
D11: 0 | G11: 0 | I11: 0 | J11: 0 | K11: 0 | M11: 0 | N11: 0 | O11: 0 | P11: =+J11-N11 -> 0 | Q11: 0 | R11: 0
D12: 0 | G12: 0 | I12: 0 | J12: 0 | K12: 0 | M12: 0 | N12: 0 | O12: 0 | P12: 0 | Q12: 0 | R12: 0
A13: Total Revenue | I13: 1068 | J13: =SUM(J10:J12) -> 0 | M13: 0 | N13: =SUM(N10:N12) -> 0 | O13: 1068 | P13: =SUM(P10:P12) -> 0 | Q13: 130296 | R13: =SUM(R10:R12) -> 0
Q14: Enterprise | R14: Enterprise
A15: VARIABLE COSTS | D15: Quantity | E15: Quantity | F15: Units | G15: $/Unit | H15: $/Unit | I15: Total | J15: Total | K15: Share | L15: Share | M15: Landlord | N15: Landlord | O15: Tenant | P15: Tenant | Q15: Total | R15: Total
A16: Production Costs
B17: Seed
C18: Peanut Seed | D18: 85 | F18: Pound | G18: 0.65 | I18: 55.25 | J18: =E18*H18 -> 0 | K18: 0 | M18: 0 | N18: =J18*L18 -> 0 | O18: 55.25 | P18: =+J18-N18 -> 0 | Q18: 6740.5 | R18: =+J18*E$7 -> 0
C19: Peanut Seed Treatment | D19: 1 | F19: Acre | G19: 5.91 | I19: 5.91 | J19: 0 | K19: 0 | M19: 0 | N19: 0 | O19: 5.91 | P19: 0 | Q19: 721.02 | R19: 0
B20: Custom
C21: Haul Peanuts | D21: 2 | F21: Ton | G21: 10.5 | I21: 21 | J21: 0 | K21: 0 | M21: 0 | N21: 0 | O21: 21 | P21: 0 | Q21: 2562 | R21: 0
C22: Dry Peanuts | D22: 2 | F22: Ton | G22: 24 | I22: 48 | J22: 0 | K22: 0 | M22: 0 | N22: 0 | O22: 48 | P22: 0 | Q22: 5856 | R22: 0
B23: Miscellaneous
C24: Miscellaneous Peanut Overhead | D24: 1 | F24: Acre | G24: 4 | I24: 4 | J24: 0 | K24: 0 | M24: 0 | N24: 0 | O24: 4 | P24: 0 | Q24: 488 | R24: 0
C25: Crop Insurance - Peanuts irrigated | D25: 1 | F25: Acre | G25: 14 | I25: 14 | J25: 0 | K25: 0 | M25: 0 | N25: 0 | O25: 14 | P25: 0 | Q25: 1708 | R25: 0
B26: Herbicide
C27: Trifluralin | D27: 2 | F27: Pint | G27: 3.46875 | I27: 6.9375 | J27: 0 | K27: 0 | M27: 0 | N27: 0 | O27: 6.9375 | P27: 0 | Q27: 846.375 | R27: 0
C28: Glyphosate | D28: 1 | F28: Pint | G28: 1.63125 | I28: 1.63125 | J28: 0 | K28: 0 | M28: 0 | N28: 0 | O28: 1.63125 | P28: 0 | Q28: 199.0125 | R28: 0
D29: 0 | G29: 0 | I29: 0 | J29: 0 | K29: 0 | M29: 0 | N29: 0 | O29: 0 | P29: 0 | Q29: 0 | R29: 0
D30: 0 | G30: 0 | I30: 0 | J30: 0 | K30: 0 | M30: 0 | N30: 0 | O30: 0 | P30: 0 | Q30: 0 | R30: 0
D31: 0 | G31: 0 | I31: 0 | J31: =E31*H31 -> 0 | K31: 0 | M31: 0 | N31: =J31*L31 -> 0 | O31: 0 | P31: =+J31-N31 -> 0 | Q31: 0 | R31: =+J31*E$7 -> 0
B32: Machinery Labor
C33: Tractors/Self-Propelled | D33: 1.6 | F33: Hour | G33: 17.21 | I33: 27.536 | J33: =E33*H33 -> 0 | K33: 0 | M33: 0 | N33: =J33*L33 -> 0 | O33: 27.536 | P33: =+J33-N33 -> 0 | Q33: 3359.392 | R33: =+J33*E$7 -> 0
C34: Other Labor | D34: 0.03 | F34: Hour | G34: 17.21 | I34: 0.5163 | J34: =E34*H34 -> 0 | K34: 0 | M34: 0 | N34: =J34*L34 -> 0 | O34: 0.5163 | P34: =+J34-N34 -> 0 | Q34: 62.9886 | R34: =+J34*E$7 -> 0
B36: Diesel Fuel
C37: Pickup/General Use Equipment | D37: 1 | F37: Acre | G37: 0 | I37: 0 | J37: =E37*H37 -> 0 | K37: 0 | M37: 0 | N37: =J37*L37 -> 0 | O37: 0 | P37: =+J37-N37 -> 0 | Q37: 0 | R37: =+J37*E$7 -> 0
C38: Tractors/Self-Propelled | D38: 10.66 | F38: Gallon | G38: 3 | I38: 31.98 | J38: =E38*H38 -> 0 | K38: 0 | M38: 0 | N38: =J38*L38 -> 0 | O38: 31.98 | P38: =+J38-N38 -> 0 | Q38: 3901.56 | R38: =+J38*E$7 -> 0
B40: Gasoline
C41: Pickup/General Use Equipment | D41: 1 | F41: Acre | G41: 5.06318166 | I41: 5.06318166 | J41: =E41*H41 -> 0 | K41: 0 | M41: 0 | N41: =J41*L41 -> 0 | O41: 5.06318166 | P41: =+J41-N41 -> 0 | Q41: 617.7081625 | R41: =+J41*E$7 -> 0
C42: Tractors/Self-Propelled | D42: 0 | F42: Gallon | G42: 2.75 | I42: 0 | J42: =E42*H42 -> 0 | K42: 0 | M42: 0 | N42: =J42*L42 -> 0 | O42: 0 | P42: =+J42-N42 -> 0 | Q42: 0 | R42: =+J42*E$7 -> 0
B44: Repairs & Maintenance
C45: Pickup/General Use Equipment | D45: 1 | F45: Acre | G45: 0.9206557377 | I45: 0.9206557377 | J45: =E45*H45 -> 0 | K45: 0 | M45: 0 | N45: =J45*L45 -> 0 | O45: 0.9206557377 | P45: =+J45-N45 -> 0 | Q45: 112.32 | R45: =+J45*E$7 -> 0
C46: Irrigation Equipment | D46: 1 | F46: Acre | G46: 0 | I46: 0 | J46: 0 | K46: 0 | M46: 0 | N46: 0 | O46: 0 | P46: 0 | Q46: 0 | R46: 0
C47: Tractors/Self-Propelled | D47: 1 | F47: Acre | G47: 29.96258647 | I47: 29.96258647 | J47: 0 | K47: 0 | M47: 0 | N47: 0 | O47: 29.96258647 | P47: 0 | Q47: 3655.43555 | R47: 0
C48: Implements | D48: 1 | F48: Acre | G48: 12.31153021 | I48: 12.31153021 | J48: 0 | K48: 0 | M48: 0 | N48: 0 | O48: 12.31153021 | P48: 0 | Q48: 1502.006685 | R48: 0
I49: 0 | J49: 0 | K49: 0 | M49: 0 | N49: 0 | O49: 0 | P49: 0 | Q49: 0 | R49: 0
I50: 0 | J50: 0 | K50: 0 | M50: 0 | N50: 0 | O50: 0 | P50: 0 | Q50: 0 | R50: 0
B51: Interest on Credit Line | G51: 0.086 | I51: 5.737682016 | J51: =+SUM(J17:J50)/2*H51 -> 0 | M51: 0 | N51: =+SUM(N17:N50)/2*L51 -> 0 | O51: 5.737682016 | P51: =+SUM(P17:P50)/2*L51 -> 0 | Q51: 699.9972059 | R51: =+J51*E$7 -> 0
A52: Total Variable Costs | I52: 270.7566861 | J52: =SUM(J18:J51) -> 0 | M52: 0 | N52: =SUM(N18:N51) -> 0 | O52: 270.7566861 | P52: =SUM(P18:P51) -> 0 | Q52: 33032.3157 | R52: =SUM(R18:R51) -> 0
A53: Planned Returns Above Variable Costs: | I53: 797.2433139 | J53: =+J13-J52 -> 0 | M53: 0 | N53: =+N13-N52 -> 0 | O53: 797.2433139 | P53: =+P13-P52 -> 0 | Q53: 97263.6843 | R53: =+R13-R52 -> 0
B54: Breakeven Price to Cover Variable Costs | G54: 6.768917152 | H54: =IF(E10=0,"n/a",(YVarExp-(YTotExp+YTotRet-J10))/E10) -> n/a | I54: CWT
Q55: Enterprise | R55: Enterprise
A56: FIXED COSTS | D56: Quantity | E56: Quantity | F56: Units | G56: $/Unit | H56: $/Unit | I56: Total | J56: Total | K56: Share | L56: Share | M56: Landlord | N56: Landlord | O56: Tenant | P56: Tenant | Q56: Total | R56: Total
B57: Machinery Depreciation
C58: Pickup/General Use Equipment | D58: 1 | F58: Acre | G58: 4.795081967 | I58: 4.795081967 | J58: =E58*H58 -> 0 | K58: 0 | M58: 0 | N58: =J58*L58 -> 0 | O58: 4.795081967 | P58: =+J58-N58 -> 0 | Q58: 585 | R58: =+J58*E$7 -> 0
C59: Tractors/Self-Propelled | D59: 1 | F59: Acre | G59: 31.47117716 | I59: 31.47117716 | J59: 0 | K59: 0 | M59: 0 | N59: =J59*L59 -> 0 | O59: 31.47117716 | P59: 0 | Q59: 3839.483614 | R59: 0
C60: Implements | D60: 1 | F60: Acre | G60: 15.49407845 | I60: 15.49407845 | J60: 0 | K60: 0 | M60: 0 | N60: =J60*L60 -> 0 | O60: 15.49407845 | P60: 0 | Q60: 1890.277571 | R60: 0
B61: Equipment Investment
C62: Pickup/General Use Equipment | D62: 19.9795082 | F62: Dollars | G62: 0.086 | I62: 1.718237705 | J62: =E62*H62 -> 0 | K62: 0 | M62: 0 | N62: =J62*L62 -> 0 | O62: 1.718237705 | P62: =+J62-N62 -> 0 | Q62: 209.625 | R62: =+J62*E$7 -> 0
C63: Tractors/Self-Propelled | D63: 244.9337339 | F63: Dollars | G63: 0.086 | I63: 21.06430111 | J63: 0 | K63: 0 | M63: 0 | N63: =J63*L63 -> 0 | O63: 21.06430111 | P63: 0 | Q63: 2569.844736 | R63: 0
C64: Implements | D64: 119.3580453 | F64: Dollars | G64: 0.086 | I64: 10.2647919 | J64: 0 | K64: 0 | M64: 0 | N64: =J64*L64 -> 0 | O64: 10.2647919 | P64: 0 | Q64: 1252.304612 | R64: 0
B65: Salaried Labor | D65: 1 | F65: Acre | G65: 0 | I65: 0 | J65: 0 | K65: 0 | M65: 0 | N65: =J65*L65 -> 0 | O65: 0 | P65: =+J65-N65 -> 0 | Q65: 0 | R65: =+J65*E$7 -> 0
B66: Management Fee, Owner/Operator Labor | D66: 1 | F66: Acre | G66: 0 | I66: 0 | J66: 0 | K66: 0 | M66: 0 | N66: 0 | O66: 0 | P66: 0 | Q66: 0 | R66: 0
B67: Allocated Establishment Cost | D67: 1 | F67: Acre | G67: 0 | I67: 0 | J67: 0 | K67: 0 | M67: 0 | N67: 0 | O67: 0 | P67: 0 | Q67: 0 | R67: 0
B68: Irrigated Winter Garden Rent | D68: 1 | F68: Acre | G68: 50 | I68: 50 | J68: 0 | K68: 0 | M68: 0 | N68: 0 | O68: 50 | P68: 0 | Q68: 6100 | R68: 0
B69: Property Taxes | D69: 1 | F69: Acre | G69: 0 | I69: 0 | J69: 0 | K69: 0 | M69: 0 | N69: 0 | O69: 0 | P69: 0 | Q69: 0 | R69: 0
B70: Whole Farm Insurance | D70: 1 | F70: Acre | G70: 0 | I70: 0 | J70: 0 | K70: 0 | M70: 0 | N70: 0 | O70: 0 | P70: 0 | Q70: 0 | R70: 0
D71: 1 | G71: 0 | I71: 0 | J71: 0 | K71: 0 | M71: 0 | N71: 0 | O71: 0 | P71: 0 | Q71: 0 | R71: 0
D72: 1 | G72: 0 | I72: 0 | J72: =E72*H72 -> 0 | K72: 0 | M72: 0 | N72: 0 | O72: 0 | P72: 0 | Q72: 0 | R72: 0
A73: Total Fixed Costs | I73: 134.8076683 | J73: =+SUM(J58:J72) -> 0 | M73: 0 | N73: =+SUM(N58:N72) -> 0 | O73: 134.8076683 | P73: =+SUM(P58:P72) -> 0 | Q73: 16446.53553 | R73: =+SUM(R58:R72) -> 0
A74: Total Specified Costs | I74: 405.5643544 | J74: =+J52+J73 -> 0 | M74: 0 | N74: =+N52+N73 -> 0 | O74: 405.5643544 | P74: =+P52+P73 -> 0 | Q74: 49478.85124 | R74: =+R52+R73 -> 0
A76: Returns Above Specified Costs | I76: 662.4356456 | J76: =+J13-J74 -> 0 | M76: 0 | N76: =+N13-N74 -> 0 | O76: 662.4356456 | P76: =+P13-P74 -> 0 | Q76: 80817.14876 | R76: =+R13-R74 -> 0
A78: Breakeven Price to Cover Total Costs | G78: 10.13910886 | H78: =IF(E10=0,"n/a",(YTotExp-(YTotExp+YTotRet-J10))/E10) -> n/a | I78: CWT
D80: Example Breakeven Prices
B81: Example | C81: Example | D81: To Cover | G81: To Cover
B82: Yield | C82: Yield | D82: Variable | G82: Total
B83: Percent | C83: CWT | D83: Costs | G83: Costs
B84: 0.75 | C84: 30 | D84: 9.02522287 | G84: 13.51881181
B85: 0.9 | C85: 36 | D85: 7.521019058 | G85: 11.26567651
B86: 1 | C86: 40 | D86: 6.768917152 | G86: 10.13910886
B87: 1.1 | C87: 44 | D87: 6.153561048 | G87: 9.217371691
B88: 1.25 | C88: 50 | D88: 5.415133722 | G88: 8.111287088
D90: Your Breakeven Prices
B91: Your | C91: Your | E91: To Cover | H91: To Cover
B92: Yield | C92: Yield | E92: Variable | H92: Total
B93: Percent | C93: CWT | E93: Costs | H93: Costs
B94: 0.75 | C94: =E10*YPER1 -> 0 | E94: =IF($E$10=0,0,(YVarExp-(YTotExp+YTotRet-J10))/($E$10*YPER1)) -> 0 | H94: =IF($E$10=0,0,(YTotExp-(YTotExp+YTotRet-J10))/($E$10*YPER1)) -> 0
B95: 0.9 | C95: =E10*YPER2 -> 0 | E95: =IF($E$10=0,0,(YVarExp-(YTotExp+YTotRet-J10))/($E$10*YPER2)) -> 0 | H95: =IF($E$10=0,0,(YTotExp-(YTotExp+YTotRet-J10))/($E$10*YPER2)) -> 0
B96: 1 | C96: =+E10 -> 0 | E96: =IF($E$10=0,0,(YVarExp-(YTotExp+YTotRet-J10))/($E$10*YPER3)) -> 0 | H96: =IF($E$10=0,0,(YTotExp-(YTotExp+YTotRet-J10))/($E$10*YPER3)) -> 0
B97: 1.1 | C97: =E10*YPER4 -> 0 | E97: =IF($E$10=0,0,(YVarExp-(YTotExp+YTotRet-J10))/($E$10*YPER4)) -> 0 | H97: =IF($E$10=0,0,(YTotExp-(YTotExp+YTotRet-J10))/($E$10*YPER4)) -> 0
B98: 1.25 | C98: =E10*YPER5 -> 0 | E98: =IF($E$10=0,0,(YVarExp-(YTotExp+YTotRet-J10))/($E$10*YPER5)) -> 0 | H98: =IF($E$10=0,0,(YTotExp-(YTotExp+YTotRet-J10))/($E$10*YPER5)) -> 0
A100: Developed by Extension Agricultural Economists, Texas A&M AgriLife Extension, budgets@tamu.edu.
A102: Information presented is prepared solely as a general guide and not intended to recognize or predict the costs and returns from any one operation. Brand names are mentioned only as examples and imply no endorsement.

Sheet SesameDryland
A1: Projections for Planning Purposes Only -- Not to be Used without Updating
A2: 2025 Estimated Costs and Returns per Acre
A3: Dryland Sesame
A4: Enter your name for this budget in the cell above.
A5: Enter Your Values in the cells highlighed in MAROON.
E6: Your Acres | R6: Your
C7: Crop Acres | D7: 100 | L7: Your | Q7: Enterprise | R7: Enterprise
E8: Your | H8: Your | I8: Cash | J8: Your | K8: Landlord | L8: Landlord | N8: Your | P8: Your | Q8: Total | R8: Total
A9: REVENUE | D9: Quantity | E9: Quantity | F9: Units | G9: $/Unit | H9: $/Unit | I9: Total | J9: Total | K9: Share | L9: Share | M9: Landlord | N9: Landlord | O9: Tenant | P9: Tenant | Q9: (100 acres) | R9: ="(" & E7 & " acres)" -> ( acres)
B10: Sesame | D10: 5 | F10: CWT | G10: 39 | I10: 195 | J10: =E10*H10 -> 0 | K10: 0 | M10: 0 | N10: =J10*L10 -> 0 | O10: 195 | P10: =+J10-N10 -> 0 | Q10: 19500 | R10: =+J10*E$7 -> 0
D11: 0 | G11: 0 | I11: 0 | J11: 0 | K11: 0 | M11: 0 | N11: 0 | O11: 0 | P11: =+J11-N11 -> 0 | Q11: 0 | R11: 0
D12: 0 | G12: 0 | I12: 0 | J12: 0 | K12: 0 | M12: 0 | N12: 0 | O12: 0 | P12: 0 | Q12: 0 | R12: 0
A13: Total Revenue | I13: 195 | J13: =SUM(J10:J12) -> 0 | M13: 0 | N13: =SUM(N10:N12) -> 0 | O13: 195 | P13: =SUM(P10:P12) -> 0 | Q13: 19500 | R13: =SUM(R10:R12) -> 0
Q14: Enterprise | R14: Enterprise
A15: VARIABLE COSTS | D15: Quantity | E15: Quantity | F15: Units | G15: $/Unit | H15: $/Unit | I15: Total | J15: Total | K15: Share | L15: Share | M15: Landlord | N15: Landlord | O15: Tenant | P15: Tenant | Q15: Total | R15: Total
A16: Production Costs
B17: Herbicide
C18: Select Max | D18: 0.1 | F18: Gallon | G18: 105 | I18: 10.5 | J18: =E18*H18 -> 0 | K18: 0 | M18: 0 | N18: =J18*L18 -> 0 | O18: 10.5 | P18: =+J18-N18 -> 0 | Q18: 1050 | R18: =+J18*E$7 -> 0
B19: Seed
C20: Sesame Seed | D20: 2.5 | F20: Pound | G20: 3.5 | I20: 8.75 | J20: 0 | K20: 0 | M20: 0 | N20: 0 | O20: 8.75 | P20: 0 | Q20: 875 | R20: 0
B21: Fertilizer
C22: UAN(32% N) | D22: 0.82 | F22: CWT | G22: 17.08 | I22: 14.0056 | J22: 0 | K22: 0 | M22: 0 | N22: 0 | O22: 14.0056 | P22: 0 | Q22: 1400.56 | R22: 0
C23: Fertilizer 18-46-0 | D23: 22 | F23: Pound | G23: 0.35 | I23: 7.7 | J23: 0 | K23: 0 | M23: 0 | N23: 0 | O23: 7.7 | P23: 0 | Q23: 770 | R23: 0
B24: Miscellaneous
C25: Crop Insurance - Sesame Dry | D25: 1 | F25: Acre | G25: 35 | I25: 35 | J25: 0 | K25: 0 | M25: 0 | N25: 0 | O25: 35 | P25: 0 | Q25: 3500 | R25: 0
C26: Miscellaneous Sesame Overhead | D26: 1 | F26: Acre | G26: 4 | I26: 4 | J26: 0 | K26: 0 | M26: 0 | N26: 0 | O26: 4 | P26: 0 | Q26: 400 | R26: 0
D27: 0 | G27: 0 | I27: 0 | J27: 0 | K27: 0 | M27: 0 | N27: 0 | O27: 0 | P27: 0 | Q27: 0 | R27: 0
D28: 0 | G28: 0 | I28: 0 | J28: 0 | K28: 0 | M28: 0 | N28: 0 | O28: 0 | P28: 0 | Q28: 0 | R28: 0
D29: 0 | G29: 0 | I29: 0 | J29: =E29*H29 -> 0 | K29: 0 | M29: 0 | N29: =J29*L29 -> 0 | O29: 0 | P29: =+J29-N29 -> 0 | Q29: 0 | R29: =+J29*E$7 -> 0
B30: Machinery Labor
C31: Tractors/Self-Propelled | D31: 0.46 | F31: Hour | G31: 17.21 | I31: 7.9166 | J31: =E31*H31 -> 0 | K31: 0 | M31: 0 | N31: =J31*L31 -> 0 | O31: 7.9166 | P31: =+J31-N31 -> 0 | Q31: 791.66 | R31: =+J31*E$7 -> 0
C32: Other Labor | D32: 0.04 | F32: Hour | G32: 17.21 | I32: 0.6884 | J32: =E32*H32 -> 0 | K32: 0 | M32: 0 | N32: =J32*L32 -> 0 | O32: 0.6884 | P32: =+J32-N32 -> 0 | Q32: 68.84 | R32: =+J32*E$7 -> 0
B34: Diesel Fuel
C35: Pickup/General Use Equipment | D35: 1 | F35: Acre | G35: 0 | I35: 0 | J35: =E35*H35 -> 0 | K35: 0 | M35: 0 | N35: =J35*L35 -> 0 | O35: 0 | P35: =+J35-N35 -> 0 | Q35: 0 | R35: =+J35*E$7 -> 0
C36: Tractors/Self-Propelled | D36: 3.75 | F36: Gallon | G36: 3 | I36: 11.25 | J36: =E36*H36 -> 0 | K36: 0 | M36: 0 | N36: =J36*L36 -> 0 | O36: 11.25 | P36: =+J36-N36 -> 0 | Q36: 1125 | R36: =+J36*E$7 -> 0
B38: Gasoline
C39: Pickup/General Use Equipment | D39: 1 | F39: Acre | G39: 26.608967 | I39: 26.608967 | J39: =E39*H39 -> 0 | K39: 0 | M39: 0 | N39: =J39*L39 -> 0 | O39: 26.608967 | P39: =+J39-N39 -> 0 | Q39: 2660.8967 | R39: =+J39*E$7 -> 0
C40: Tractors/Self-Propelled | D40: 0 | F40: Gallon | G40: 2.75 | I40: 0 | J40: =E40*H40 -> 0 | K40: 0 | M40: 0 | N40: =J40*L40 -> 0 | O40: 0 | P40: =+J40-N40 -> 0 | Q40: 0 | R40: =+J40*E$7 -> 0
B42: Repairs & Maintenance
C43: Pickup/General Use Equipment | D43: 1 | F43: Acre | G43: 4.8384 | I43: 4.8384 | J43: =E43*H43 -> 0 | K43: 0 | M43: 0 | N43: =J43*L43 -> 0 | O43: 4.8384 | P43: =+J43-N43 -> 0 | Q43: 483.84 | R43: =+J43*E$7 -> 0
C44: Irrigation Equipment | D44: 1 | F44: Acre | G44: 0 | I44: 0 | J44: 0 | K44: 0 | M44: 0 | N44: 0 | O44: 0 | P44: 0 | Q44: 0 | R44: 0
C45: Tractors/Self-Propelled | D45: 1 | F45: Acre | G45: 14.6035591 | I45: 14.6035591 | J45: 0 | K45: 0 | M45: 0 | N45: 0 | O45: 14.6035591 | P45: 0 | Q45: 1460.35591 | R45: 0
C46: Implements | D46: 1 | F46: Acre | G46: 6.148563954 | I46: 6.148563954 | J46: 0 | K46: 0 | M46: 0 | N46: 0 | O46: 6.148563954 | P46: 0 | Q46: 614.8563954 | R46: 0
I47: 0 | J47: 0 | K47: 0 | M47: 0 | N47: 0 | O47: 0 | P47: 0 | Q47: 0 | R47: 0
I48: 0 | J48: 0 | K48: 0 | M48: 0 | N48: 0 | O48: 0 | P48: 0 | Q48: 0 | R48: 0
B49: Interest on Credit Line | G49: 0.086 | I49: 6.197102743 | J49: =+SUM(J17:J48)/2*H49 -> 0 | M49: 0 | N49: =+SUM(N17:N48)/2*L49 -> 0 | O49: 6.197102743 | P49: =+SUM(P17:P48)/2*L49 -> 0 | Q49: 619.7102743 | R49: =+J49*E$7 -> 0
A50: Total Variable Costs | I50: 158.2071928 | J50: =SUM(J18:J49) -> 0 | M50: 0 | N50: =SUM(N18:N49) -> 0 | O50: 158.2071928 | P50: =SUM(P18:P49) -> 0 | Q50: 15820.71928 | R50: =SUM(R18:R49) -> 0
A51: Planned Returns Above Variable Costs: | I51: 36.7928072 | J51: =+J13-J50 -> 0 | M51: 0 | N51: =+N13-N50 -> 0 | O51: 36.7928072 | P51: =+P13-P50 -> 0 | Q51: 3679.28072 | R51: =+R13-R50 -> 0
B52: Breakeven Price to Cover Variable Costs | G52: 31.64143856 | H52: =IF(E10=0,"n/a",(YVarExp-(YTotExp+YTotRet-J10))/E10) -> n/a | I52: CWT
Q53: Enterprise | R53: Enterprise
A54: FIXED COSTS | D54: Quantity | E54: Quantity | F54: Units | G54: $/Unit | H54: $/Unit | I54: Total | J54: Total | K54: Share | L54: Share | M54: Landlord | N54: Landlord | O54: Tenant | P54: Tenant | Q54: Total | R54: Total
B55: Machinery Depreciation
C56: Pickup/General Use Equipment | D56: 1 | F56: Acre | G56: 25.2 | I56: 25.2 | J56: =E56*H56 -> 0 | K56: 0 | M56: 0 | N56: =J56*L56 -> 0 | O56: 25.2 | P56: =+J56-N56 -> 0 | Q56: 2520 | R56: =+J56*E$7 -> 0
C57: Tractors/Self-Propelled | D57: 1 | F57: Acre | G57: 14.29096022 | I57: 14.29096022 | J57: 0 | K57: 0 | M57: 0 | N57: =J57*L57 -> 0 | O57: 14.29096022 | P57: 0 | Q57: 1429.096022 | R57: 0
C58: Implements | D58: 1 | F58: Acre | G58: 7.815760296 | I58: 7.815760296 | J58: 0 | K58: 0 | M58: 0 | N58: =J58*L58 -> 0 | O58: 7.815760296 | P58: 0 | Q58: 781.5760296 | R58: 0
B59: Equipment Investment
C60: Pickup/General Use Equipment | D60: 105 | F60: Dollars | G60: 0.086 | I60: 9.03 | J60: =E60*H60 -> 0 | K60: 0 | M60: 0 | N60: =J60*L60 -> 0 | O60: 9.03 | P60: =+J60-N60 -> 0 | Q60: 903 | R60: =+J60*E$7 -> 0
C61: Tractors/Self-Propelled | D61: 108.6935427 | F61: Dollars | G61: 0.086 | I61: 9.34764467 | J61: 0 | K61: 0 | M61: 0 | N61: =J61*L61 -> 0 | O61: 9.34764467 | P61: 0 | Q61: 934.764467 | R61: 0
C62: Implements | D62: 39.19190398 | F62: Dollars | G62: 0.086 | I62: 3.370503742 | J62: 0 | K62: 0 | M62: 0 | N62: =J62*L62 -> 0 | O62: 3.370503742 | P62: 0 | Q62: 337.0503742 | R62: 0
B63: Salaried Labor | D63: 1 | F63: Acre | G63: 0 | I63: 0 | J63: 0 | K63: 0 | M63: 0 | N63: =J63*L63 -> 0 | O63: 0 | P63: =+J63-N63 -> 0 | Q63: 0 | R63: =+J63*E$7 -> 0
B64: Management Fee, Owner/Operator Labor | D64: 1 | F64: Acre | G64: 0 | I64: 0 | J64: 0 | K64: 0 | M64: 0 | N64: 0 | O64: 0 | P64: 0 | Q64: 0 | R64: 0
B65: Allocated Establishment Cost | D65: 1 | F65: Acre | G65: 0 | I65: 0 | J65: 0 | K65: 0 | M65: 0 | N65: 0 | O65: 0 | P65: 0 | Q65: 0 | R65: 0
B66: Dryland Winter Garden Rent | D66: 1 | F66: Acre | G66: 20 | I66: 20 | J66: 0 | K66: 0 | M66: 0 | N66: 0 | O66: 20 | P66: 0 | Q66: 2000 | R66: 0
B67: Property Taxes | D67: 1 | F67: Acre | G67: 0 | I67: 0 | J67: 0 | K67: 0 | M67: 0 | N67: 0 | O67: 0 | P67: 0 | Q67: 0 | R67: 0
B68: Whole Farm Insurance | D68: 1 | F68: Acre | G68: 0 | I68: 0 | J68: 0 | K68: 0 | M68: 0 | N68: 0 | O68: 0 | P68: 0 | Q68: 0 | R68: 0
D69: 1 | G69: 0 | I69: 0 | J69: 0 | K69: 0 | M69: 0 | N69: 0 | O69: 0 | P69: 0 | Q69: 0 | R69: 0
D70: 1 | G70: 0 | I70: 0 | J70: =E70*H70 -> 0 | K70: 0 | M70: 0 | N70: 0 | O70: 0 | P70: 0 | Q70: 0 | R70: 0
A71: Total Fixed Costs | I71: 89.05486893 | J71: =+SUM(J56:J70) -> 0 | M71: 0 | N71: =+SUM(N56:N70) -> 0 | O71: 89.05486893 | P71: =+SUM(P56:P70) -> 0 | Q71: 8905.486893 | R71: =+SUM(R56:R70) -> 0
A72: Total Specified Costs | I72: 247.2620617 | J72: =+J50+J71 -> 0 | M72: 0 | N72: =+N50+N71 -> 0 | O72: 247.2620617 | P72: =+P50+P71 -> 0 | Q72: 24726.20617 | R72: =+R50+R71 -> 0
A74: Returns Above Specified Costs | I74: -52.26206173 | J74: =+J13-J72 -> 0 | M74: 0 | N74: =+N13-N72 -> 0 | O74: -52.26206173 | P74: =+P13-P72 -> 0 | Q74: -5226.206173 | R74: =+R13-R72 -> 0
A76: Breakeven Price to Cover Total Costs | G76: 49.45241235 | H76: =IF(E10=0,"n/a",(YTotExp-(YTotExp+YTotRet-J10))/E10) -> n/a | I76: CWT
D78: Example Breakeven Prices
B79: Example | C79: Example | D79: To Cover | G79: To Cover
B80: Yield | C80: Yield | D80: Variable | G80: Total
B81: Percent | C81: CWT | D81: Costs | G81: Costs
B82: 0.75 | C82: 3.75 | D82: 42.18858475 | G82: 65.93654979
B83: 0.9 | C83: 4.5 | D83: 35.15715395 | G83: 54.94712483
B84: 1 | C84: 5 | D84: 31.64143856 | G84: 49.45241235
B85: 1.1 | C85: 5.5 | D85: 28.76494414 | G85: 44.9567385
B86: 1.25 | C86: 6.25 | D86: 25.31315085 | G86: 39.56192988
D88: Your Breakeven Prices
B89: Your | C89: Your | E89: To Cover | H89: To Cover
B90: Yield | C90: Yield | E90: Variable | H90: Total
B91: Percent | C91: CWT | E91: Costs | H91: Costs
B92: 0.75 | C92: =E10*YPER1 -> 0 | E92: =IF($E$10=0,0,(YVarExp-(YTotExp+YTotRet-J10))/($E$10*YPER1)) -> 0 | H92: =IF($E$10=0,0,(YTotExp-(YTotExp+YTotRet-J10))/($E$10*YPER1)) -> 0
B93: 0.9 | C93: =E10*YPER2 -> 0 | E93: =IF($E$10=0,0,(YVarExp-(YTotExp+YTotRet-J10))/($E$10*YPER2)) -> 0 | H93: =IF($E$10=0,0,(YTotExp-(YTotExp+YTotRet-J10))/($E$10*YPER2)) -> 0
B94: 1 | C94: =+E10 -> 0 | E94: =IF($E$10=0,0,(YVarExp-(YTotExp+YTotRet-J10))/($E$10*YPER3)) -> 0 | H94: =IF($E$10=0,0,(YTotExp-(YTotExp+YTotRet-J10))/($E$10*YPER3)) -> 0
B95: 1.1 | C95: =E10*YPER4 -> 0 | E95: =IF($E$10=0,0,(YVarExp-(YTotExp+YTotRet-J10))/($E$10*YPER4)) -> 0 | H95: =IF($E$10=0,0,(YTotExp-(YTotExp+YTotRet-J10))/($E$10*YPER4)) -> 0
B96: 1.25 | C96: =E10*YPER5 -> 0 | E96: =IF($E$10=0,0,(YVarExp-(YTotExp+YTotRet-J10))/($E$10*YPER5)) -> 0 | H96: =IF($E$10=0,0,(YTotExp-(YTotExp+YTotRet-J10))/($E$10*YPER5)) -> 0
A98: Developed by Extension Agricultural Economists, Texas A&M AgriLife Extension, budgets@tamu.edu.
A100: Information presented is prepared solely as a general guide and not intended to recognize or predict the costs and returns from any one operation. Brand names are mentioned only as examples and imply no endorsement.

Sheet SesameIrrigated
A1: Projections for Planning Purposes Only -- Not to be Used without Updating
A2: 2025 Estimated Costs and Returns per Acre
A3: Irrigated Sesame
A4: Enter your name for this budget in the cell above.
A5: Enter Your Values in the cells highlighed in MAROON.
E6: Your Acres | R6: Your
C7: Crop Acres | D7: 122 | L7: Your | Q7: Enterprise | R7: Enterprise
E8: Your | H8: Your | I8: Cash | J8: Your | K8: Landlord | L8: Landlord | N8: Your | P8: Your | Q8: Total | R8: Total
A9: REVENUE | D9: Quantity | E9: Quantity | F9: Units | G9: $/Unit | H9: $/Unit | I9: Total | J9: Total | K9: Share | L9: Share | M9: Landlord | N9: Landlord | O9: Tenant | P9: Tenant | Q9: (122 acres) | R9: ="(" & E7 & " acres)" -> ( acres)
B10: Sesame | D10: 10 | F10: CWT | G10: 39 | I10: 390 | J10: =E10*H10 -> 0 | K10: 0 | M10: 0 | N10: =J10*L10 -> 0 | O10: 390 | P10: =+J10-N10 -> 0 | Q10: 47580 | R10: =+J10*E$7 -> 0
D11: 0 | G11: 0 | I11: 0 | J11: 0 | K11: 0 | M11: 0 | N11: 0 | O11: 0 | P11: =+J11-N11 -> 0 | Q11: 0 | R11: 0
D12: 0 | G12: 0 | I12: 0 | J12: 0 | K12: 0 | M12: 0 | N12: 0 | O12: 0 | P12: 0 | Q12: 0 | R12: 0
A13: Total Revenue | I13: 390 | J13: =SUM(J10:J12) -> 0 | M13: 0 | N13: =SUM(N10:N12) -> 0 | O13: 390 | P13: =SUM(P10:P12) -> 0 | Q13: 47580 | R13: =SUM(R10:R12) -> 0
Q14: Enterprise | R14: Enterprise
A15: VARIABLE COSTS | D15: Quantity | E15: Quantity | F15: Units | G15: $/Unit | H15: $/Unit | I15: Total | J15: Total | K15: Share | L15: Share | M15: Landlord | N15: Landlord | O15: Tenant | P15: Tenant | Q15: Total | R15: Total
A16: Production Costs
B17: Herbicide
C18: Select Max | D18: 0.1 | F18: Gallon | G18: 105 | I18: 10.5 | J18: =E18*H18 -> 0 | K18: 0 | M18: 0 | N18: =J18*L18 -> 0 | O18: 10.5 | P18: =+J18-N18 -> 0 | Q18: 1281 | R18: =+J18*E$7 -> 0
B19: Seed
C20: Sesame Seed | D20: 2.5 | F20: Pound | G20: 3.5 | I20: 8.75 | J20: 0 | K20: 0 | M20: 0 | N20: 0 | O20: 8.75 | P20: 0 | Q20: 1067.5 | R20: 0
B21: Fertilizer
C22: UAN(32% N) | D22: 1.13 | F22: CWT | G22: 17.08 | I22: 19.3004 | J22: 0 | K22: 0 | M22: 0 | N22: 0 | O22: 19.3004 | P22: 0 | Q22: 2354.6488 | R22: 0
C23: Fertilizer 18-46-0 | D23: 76 | F23: Pound | G23: 0.35 | I23: 26.6 | J23: 0 | K23: 0 | M23: 0 | N23: 0 | O23: 26.6 | P23: 0 | Q23: 3245.2 | R23: 0
B24: Miscellaneous
C25: Crop Insurance - Sesame Irrigated | D25: 1 | F25: Acre | G25: 48 | I25: 48 | J25: 0 | K25: 0 | M25: 0 | N25: 0 | O25: 48 | P25: 0 | Q25: 5856 | R25: 0
C26: Miscellaneous Sesame Overhead | D26: 1 | F26: Acre | G26: 4 | I26: 4 | J26: 0 | K26: 0 | M26: 0 | N26: 0 | O26: 4 | P26: 0 | Q26: 488 | R26: 0
D27: 0 | G27: 0 | I27: 0 | J27: 0 | K27: 0 | M27: 0 | N27: 0 | O27: 0 | P27: 0 | Q27: 0 | R27: 0
D28: 0 | G28: 0 | I28: 0 | J28: 0 | K28: 0 | M28: 0 | N28: 0 | O28: 0 | P28: 0 | Q28: 0 | R28: 0
D29: 0 | G29: 0 | I29: 0 | J29: =E29*H29 -> 0 | K29: 0 | M29: 0 | N29: =J29*L29 -> 0 | O29: 0 | P29: =+J29-N29 -> 0 | Q29: 0 | R29: =+J29*E$7 -> 0
B30: Irrigation
C31: Energy Cost | D31: 561 | F31: kWh | G31: 0.17 | I31: 95.37 | J31: =E31*H31 -> 0 | K31: 0 | M31: 0 | N31: =J31*L31 -> 0 | O31: 95.37 | P31: =+J31-N31 -> 0 | Q31: 11635.14 | R31: =+J31*E$7 -> 0
C32: Irrigation Labor | D32: 0.068 | F32: Hour | G32: 17.5 | I32: 1.19 | J32: 0 | K32: 0 | M32: 0 | N32: 0 | O32: 1.19 | P32: 0 | Q32: 145.18 | R32: 0
B33: Machinery Labor
C34: Tractors/Self-Propelled | D34: 0.46 | F34: Hour | G34: 17.21 | I34: 7.9166 | J34: =E34*H34 -> 0 | K34: 0 | M34: 0 | N34: =J34*L34 -> 0 | O34: 7.9166 | P34: =+J34-N34 -> 0 | Q34: 965.8252 | R34: =+J34*E$7 -> 0
C35: Other Labor | D35: 0.04 | F35: Hour | G35: 17.21 | I35: 0.6884 | J35: =E35*H35 -> 0 | K35: 0 | M35: 0 | N35: =J35*L35 -> 0 | O35: 0.6884 | P35: =+J35-N35 -> 0 | Q35: 83.9848 | R35: =+J35*E$7 -> 0
B37: Diesel Fuel
C38: Pickup/General Use Equipment | D38: 1 | F38: Acre | G38: 0 | I38: 0 | J38: =E38*H38 -> 0 | K38: 0 | M38: 0 | N38: =J38*L38 -> 0 | O38: 0 | P38: =+J38-N38 -> 0 | Q38: 0 | R38: =+J38*E$7 -> 0
C39: Tractors/Self-Propelled | D39: 3.75 | F39: Gallon | G39: 3 | I39: 11.25 | J39: =E39*H39 -> 0 | K39: 0 | M39: 0 | N39: =J39*L39 -> 0 | O39: 11.25 | P39: =+J39-N39 -> 0 | Q39: 1372.5 | R39: =+J39*E$7 -> 0
B41: Gasoline
C42: Pickup/General Use Equipment | D42: 1 | F42: Acre | G42: 26.61286176 | I42: 26.61286176 | J42: =E42*H42 -> 0 | K42: 0 | M42: 0 | N42: =J42*L42 -> 0 | O42: 26.61286176 | P42: =+J42-N42 -> 0 | Q42: 3246.769134 | R42: =+J42*E$7 -> 0
C43: Tractors/Self-Propelled | D43: 0 | F43: Gallon | G43: 2.75 | I43: 0 | J43: =E43*H43 -> 0 | K43: 0 | M43: 0 | N43: =J43*L43 -> 0 | O43: 0 | P43: =+J43-N43 -> 0 | Q43: 0 | R43: =+J43*E$7 -> 0
B45: Repairs & Maintenance
C46: Pickup/General Use Equipment | D46: 1 | F46: Acre | G46: 4.839108197 | I46: 4.839108197 | J46: =E46*H46 -> 0 | K46: 0 | M46: 0 | N46: =J46*L46 -> 0 | O46: 4.839108197 | P46: =+J46-N46 -> 0 | Q46: 590.3712 | R46: =+J46*E$7 -> 0
C47: Irrigation Equipment | D47: 1 | F47: Acre | G47: 5.287980951 | I47: 5.287980951 | J47: 0 | K47: 0 | M47: 0 | N47: 0 | O47: 5.287980951 | P47: 0 | Q47: 645.133676 | R47: 0
C48: Tractors/Self-Propelled | D48: 1 | F48: Acre | G48: 14.6035591 | I48: 14.6035591 | J48: 0 | K48: 0 | M48: 0 | N48: 0 | O48: 14.6035591 | P48: 0 | Q48: 1781.63421 | R48: 0
C49: Implements | D49: 1 | F49: Acre | G49: 6.148563954 | I49: 6.148563954 | J49: 0 | K49: 0 | M49: 0 | N49: 0 | O49: 6.148563954 | P49: 0 | Q49: 750.1248024 | R49: 0
I50: 0 | J50: 0 | K50: 0 | M50: 0 | N50: 0 | O50: 0 | P50: 0 | Q50: 0 | R50: 0
I51: 0 | J51: 0 | K51: 0 | M51: 0 | N51: 0 | O51: 0 | P51: 0 | Q51: 0 | R51: 0
B52: Interest on Credit Line | G52: 0.086 | I52: 10.48433992 | J52: =+SUM(J17:J51)/2*H52 -> 0 | M52: 0 | N52: =+SUM(N17:N51)/2*L52 -> 0 | O52: 10.48433992 | P52: =+SUM(P17:P51)/2*L52 -> 0 | Q52: 1279.08947 | R52: =+J52*E$7 -> 0
A53: Total Variable Costs | I53: 301.5418139 | J53: =SUM(J18:J52) -> 0 | M53: 0 | N53: =SUM(N18:N52) -> 0 | O53: 301.5418139 | P53: =SUM(P18:P52) -> 0 | Q53: 36788.10129 | R53: =SUM(R18:R52) -> 0
A54: Planned Returns Above Variable Costs: | I54: 88.45818613 | J54: =+J13-J53 -> 0 | M54: 0 | N54: =+N13-N53 -> 0 | O54: 88.45818613 | P54: =+P13-P53 -> 0 | Q54: 10791.89871 | R54: =+R13-R53 -> 0
B55: Breakeven Price to Cover Variable Costs | G55: 30.15418139 | H55: =IF(E10=0,"n/a",(YVarExp-(YTotExp+YTotRet-J10))/E10) -> n/a | I55: CWT
Q56: Enterprise | R56: Enterprise
A57: FIXED COSTS | D57: Quantity | E57: Quantity | F57: Units | G57: $/Unit | H57: $/Unit | I57: Total | J57: Total | K57: Share | L57: Share | M57: Landlord | N57: Landlord | O57: Tenant | P57: Tenant | Q57: Total | R57: Total
B58: Machinery Depreciation
C59: Pickup/General Use Equipment | D59: 1 | F59: Acre | G59: 25.20368852 | I59: 25.20368852 | J59: =E59*H59 -> 0 | K59: 0 | M59: 0 | N59: =J59*L59 -> 0 | O59: 25.20368852 | P59: =+J59-N59 -> 0 | Q59: 3074.85 | R59: =+J59*E$7 -> 0
C60: Irrigation Equipment | D60: 1 | F60: Acre | G60: 80.58401639 | I60: 80.58401639 | J60: 0 | K60: 0 | M60: 0 | N60: =J60*L60 -> 0 | O60: 80.58401639 | P60: 0 | Q60: 9831.25 | R60: 0
C61: Tractors/Self-Propelled | D61: 1 | F61: Acre | G61: 14.29096022 | I61: 14.29096022 | J61: 0 | K61: 0 | M61: 0 | N61: =J61*L61 -> 0 | O61: 14.29096022 | P61: 0 | Q61: 1743.497147 | R61: 0
C62: Implements | D62: 1 | F62: Acre | G62: 7.815760296 | I62: 7.815760296 | J62: 0 | K62: 0 | M62: 0 | N62: =J62*L62 -> 0 | O62: 7.815760296 | P62: 0 | Q62: 953.5227561 | R62: 0
B63: Equipment Investment
C64: Pickup/General Use Equipment | D64: 105.0153689 | F64: Dollars | G64: 0.086 | I64: 9.031321721 | J64: =E64*H64 -> 0 | K64: 0 | M64: 0 | N64: =J64*L64 -> 0 | O64: 9.031321721 | P64: =+J64-N64 -> 0 | Q64: 1101.82125 | R64: =+J64*E$7 -> 0
C65: Irrigation Equipment | D65: 646.0040984 | F65: Dollars | G65: 0.086 | I65: 55.55635246 | J65: 0 | K65: 0 | M65: 0 | N65: =J65*L65 -> 0 | O65: 55.55635246 | P65: 0 | Q65: 6777.875 | R65: 0
C66: Tractors/Self-Propelled | D66: 108.6935427 | F66: Dollars | G66: 0.086 | I66: 9.34764467 | J66: 0 | K66: 0 | M66: 0 | N66: =J66*L66 -> 0 | O66: 9.34764467 | P66: 0 | Q66: 1140.41265 | R66: 0
C67: Implements | D67: 39.19190398 | F67: Dollars | G67: 0.086 | I67: 3.370503742 | J67: 0 | K67: 0 | M67: 0 | N67: =J67*L67 -> 0 | O67: 3.370503742 | P67: 0 | Q67: 411.2014565 | R67: 0
B68: Salaried Labor | D68: 1 | F68: Acre | G68: 0 | I68: 0 | J68: 0 | K68: 0 | M68: 0 | N68: =J68*L68 -> 0 | O68: 0 | P68: =+J68-N68 -> 0 | Q68: 0 | R68: =+J68*E$7 -> 0
B69: Management Fee, Owner/Operator Labor | D69: 1 | F69: Acre | G69: 0 | I69: 0 | J69: 0 | K69: 0 | M69: 0 | N69: 0 | O69: 0 | P69: 0 | Q69: 0 | R69: 0
B70: Allocated Establishment Cost | D70: 1 | F70: Acre | G70: 0 | I70: 0 | J70: 0 | K70: 0 | M70: 0 | N70: 0 | O70: 0 | P70: 0 | Q70: 0 | R70: 0
B71: Irrigated Winter Garden Rent | D71: 1 | F71: Acre | G71: 50 | I71: 50 | J71: 0 | K71: 0 | M71: 0 | N71: 0 | O71: 50 | P71: 0 | Q71: 6100 | R71: 0
B72: Property Taxes | D72: 1 | F72: Acre | G72: 0 | I72: 0 | J72: 0 | K72: 0 | M72: 0 | N72: 0 | O72: 0 | P72: 0 | Q72: 0 | R72: 0
B73: Whole Farm Insurance | D73: 1 | F73: Acre | G73: 0 | I73: 0 | J73: 0 | K73: 0 | M73: 0 | N73: 0 | O73: 0 | P73: 0 | Q73: 0 | R73: 0
D74: 1 | G74: 0 | I74: 0 | J74: 0 | K74: 0 | M74: 0 | N74: 0 | O74: 0 | P74: 0 | Q74: 0 | R74: 0
D75: 1 | G75: 0 | I75: 0 | J75: =E75*H75 -> 0 | K75: 0 | M75: 0 | N75: 0 | O75: 0 | P75: 0 | Q75: 0 | R75: 0
A76: Total Fixed Costs | I76: 255.200248 | J76: =+SUM(J59:J75) -> 0 | M76: 0 | N76: =+SUM(N59:N75) -> 0 | O76: 255.200248 | P76: =+SUM(P59:P75) -> 0 | Q76: 31134.43026 | R76: =+SUM(R59:R75) -> 0
A77: Total Specified Costs | I77: 556.7420619 | J77: =+J53+J76 -> 0 | M77: 0 | N77: =+N53+N76 -> 0 | O77: 556.7420619 | P77: =+P53+P76 -> 0 | Q77: 67922.53155 | R77: =+R53+R76 -> 0
A79: Returns Above Specified Costs | I79: -166.7420619 | J79: =+J13-J77 -> 0 | M79: 0 | N79: =+N13-N77 -> 0 | O79: -166.7420619 | P79: =+P13-P77 -> 0 | Q79: -20342.53155 | R79: =+R13-R77 -> 0
A81: Breakeven Price to Cover Total Costs | G81: 55.67420619 | H81: =IF(E10=0,"n/a",(YTotExp-(YTotExp+YTotRet-J10))/E10) -> n/a | I81: CWT
D83: Example Breakeven Prices
B84: Example | C84: Example | D84: To Cover | G84: To Cover
B85: Yield | C85: Yield | D85: Variable | G85: Total
B86: Percent | C86: CWT | D86: Costs | G86: Costs
B87: 0.75 | C87: 7.5 | D87: 40.20557518 | G87: 74.23227492
B88: 0.9 | C88: 9 | D88: 33.50464599 | G88: 61.8602291
B89: 1 | C89: 10 | D89: 30.15418139 | G89: 55.67420619
B90: 1.1 | C90: 11 | D90: 27.41289217 | G90: 50.61291472
B91: 1.25 | C91: 12.5 | D91: 24.12334511 | G91: 44.53936495
D93: Your Breakeven Prices
B94: Your | C94: Your | E94: To Cover | H94: To Cover
B95: Yield | C95: Yield | E95: Variable | H95: Total
B96: Percent | C96: CWT | E96: Costs | H96: Costs
B97: 0.75 | C97: =E10*YPER1 -> 0 | E97: =IF($E$10=0,0,(YVarExp-(YTotExp+YTotRet-J10))/($E$10*YPER1)) -> 0 | H97: =IF($E$10=0,0,(YTotExp-(YTotExp+YTotRet-J10))/($E$10*YPER1)) -> 0
B98: 0.9 | C98: =E10*YPER2 -> 0 | E98: =IF($E$10=0,0,(YVarExp-(YTotExp+YTotRet-J10))/($E$10*YPER2)) -> 0 | H98: =IF($E$10=0,0,(YTotExp-(YTotExp+YTotRet-J10))/($E$10*YPER2)) -> 0
B99: 1 | C99: =+E10 -> 0 | E99: =IF($E$10=0,0,(YVarExp-(YTotExp+YTotRet-J10))/($E$10*YPER3)) -> 0 | H99: =IF($E$10=0,0,(YTotExp-(YTotExp+YTotRet-J10))/($E$10*YPER3)) -> 0
B100: 1.1 | C100: =E10*YPER4 -> 0 | E100: =IF($E$10=0,0,(YVarExp-(YTotExp+YTotRet-J10))/($E$10*YPER4)) -> 0 | H100: =IF($E$10=0,0,(YTotExp-(YTotExp+YTotRet-J10))/($E$10*YPER4)) -> 0
B101: 1.25 | C101: =E10*YPER5 -> 0 | E101: =IF($E$10=0,0,(YVarExp-(YTotExp+YTotRet-J10))/($E$10*YPER5)) -> 0 | H101: =IF($E$10=0,0,(YTotExp-(YTotExp+YTotRet-J10))/($E$10*YPER5)) -> 0
A103: Developed by Extension Agricultural Economists, Texas A&M AgriLife Extension, budgets@tamu.edu.
A105: Information presented is prepared solely as a general guide and not intended to recognize or predict the costs and returns from any one operation. Brand names are mentioned only as examples and imply no endorsement.

Sheet SorghumDryland
A1: Projections for Planning Purposes Only -- Not to be Used without Updating
A2: 2025 Estimated Costs and Returns per Acre
A3: Dryland Sorghum
A4: Enter your name for this budget in the cell above.
A5: Enter Your Values in the cells highlighed in MAROON.
E6: Your Acres | R6: Your
C7: Crop Acres | D7: 100 | L7: Your | Q7: Enterprise | R7: Enterprise
E8: Your | H8: Your | I8: Cash | J8: Your | K8: Landlord | L8: Landlord | N8: Your | P8: Your | Q8: Total | R8: Total
A9: REVENUE | D9: Quantity | E9: Quantity | F9: Units | G9: $/Unit | H9: $/Unit | I9: Total | J9: Total | K9: Share | L9: Share | M9: Landlord | N9: Landlord | O9: Tenant | P9: Tenant | Q9: (100 acres) | R9: ="(" & E7 & " acres)" -> ( acres)
B10: Sorghum | D10: 30 | F10: CWT | G10: 8 | I10: 240 | J10: =E10*H10 -> 0 | K10: 0 | M10: 0 | N10: =J10*L10 -> 0 | O10: 240 | P10: =+J10-N10 -> 0 | Q10: 24000 | R10: =+J10*E$7 -> 0
D11: 0 | G11: 0 | I11: 0 | J11: 0 | K11: 0 | M11: 0 | N11: 0 | O11: 0 | P11: =+J11-N11 -> 0 | Q11: 0 | R11: 0
D12: 0 | G12: 0 | I12: 0 | J12: 0 | K12: 0 | M12: 0 | N12: 0 | O12: 0 | P12: 0 | Q12: 0 | R12: 0
A13: Total Revenue | I13: 240 | J13: =SUM(J10:J12) -> 0 | M13: 0 | N13: =SUM(N10:N12) -> 0 | O13: 240 | P13: =SUM(P10:P12) -> 0 | Q13: 24000 | R13: =SUM(R10:R12) -> 0
Q14: Enterprise | R14: Enterprise
A15: VARIABLE COSTS | D15: Quantity | E15: Quantity | F15: Units | G15: $/Unit | H15: $/Unit | I15: Total | J15: Total | K15: Share | L15: Share | M15: Landlord | N15: Landlord | O15: Tenant | P15: Tenant | Q15: Total | R15: Total
A16: Production Costs
B17: Herbicide
C18: Atrazine 4L | D18: 4 | F18: Pint | G18: 1.75 | I18: 7 | J18: =E18*H18 -> 0 | K18: 0 | M18: 0 | N18: =J18*L18 -> 0 | O18: 7 | P18: =+J18-N18 -> 0 | Q18: 700 | R18: =+J18*E$7 -> 0
B19: Seed
C20: Sorghum Concept Seed | D20: 4 | F20: Pound | G20: 3.9 | I20: 15.6 | J20: 0 | K20: 0 | M20: 0 | N20: 0 | O20: 15.6 | P20: 0 | Q20: 1560 | R20: 0
B21: Fertilizer
C22: UAN(32% N) | D22: 0.88 | F22: CWT | G22: 17.08 | I22: 15.0304 | J22: 0 | K22: 0 | M22: 0 | N22: 0 | O22: 15.0304 | P22: 0 | Q22: 1503.04 | R22: 0
C23: Fertilizer 18-46-0 | D23: 65 | F23: Pound | G23: 0.35 | I23: 22.75 | J23: 0 | K23: 0 | M23: 0 | N23: 0 | O23: 22.75 | P23: 0 | Q23: 2275 | R23: 0
B24: Custom
C25: Haul Sorghum | D25: 30 | F25: CWT | G25: 0.18 | I25: 5.4 | J25: 0 | K25: 0 | M25: 0 | N25: 0 | O25: 5.4 | P25: 0 | Q25: 540 | R25: 0
B26: Miscellaneous
C27: Crop Insurance - Grain Sorghum Dry | D27: 1 | F27: Acre | G27: 11 | I27: 11 | J27: 0 | K27: 0 | M27: 0 | N27: 0 | O27: 11 | P27: 0 | Q27: 1100 | R27: 0
C28: Miscellaneous Sorghum Overhead | D28: 1 | F28: Acre | G28: 4 | I28: 4 | J28: 0 | K28: 0 | M28: 0 | N28: 0 | O28: 4 | P28: 0 | Q28: 400 | R28: 0
B29: Insecticide
C30: Lorsban 4E | D30: 1 | F30: Pint | G30: 4.519 | I30: 4.519 | J30: 0 | K30: 0 | M30: 0 | N30: 0 | O30: 4.519 | P30: 0 | Q30: 451.9 | R30: 0
C31: Dimethoate 4E | D31: 0.5 | F31: Pint | G31: 5.6875 | I31: 2.84375 | J31: 0 | K31: 0 | M31: 0 | N31: 0 | O31: 2.84375 | P31: 0 | Q31: 284.375 | R31: 0
D32: 0 | G32: 0 | I32: 0 | J32: 0 | K32: 0 | M32: 0 | N32: 0 | O32: 0 | P32: 0 | Q32: 0 | R32: 0
D33: 0 | G33: 0 | I33: 0 | J33: 0 | K33: 0 | M33: 0 | N33: 0 | O33: 0 | P33: 0 | Q33: 0 | R33: 0
D34: 0 | G34: 0 | I34: 0 | J34: =E34*H34 -> 0 | K34: 0 | M34: 0 | N34: =J34*L34 -> 0 | O34: 0 | P34: =+J34-N34 -> 0 | Q34: 0 | R34: =+J34*E$7 -> 0
B35: Machinery Labor
C36: Tractors/Self-Propelled | D36: 0.7 | F36: Hour | G36: 17.21 | I36: 12.047 | J36: =E36*H36 -> 0 | K36: 0 | M36: 0 | N36: =J36*L36 -> 0 | O36: 12.047 | P36: =+J36-N36 -> 0 | Q36: 1204.7 | R36: =+J36*E$7 -> 0
C37: Other Labor | D37: 0.16 | F37: Hour | G37: 17.21 | I37: 2.7536 | J37: =E37*H37 -> 0 | K37: 0 | M37: 0 | N37: =J37*L37 -> 0 | O37: 2.7536 | P37: =+J37-N37 -> 0 | Q37: 275.36 | R37: =+J37*E$7 -> 0
B39: Diesel Fuel
C40: Pickup/General Use Equipment | D40: 1 | F40: Acre | G40: 0 | I40: 0 | J40: =E40*H40 -> 0 | K40: 0 | M40: 0 | N40: =J40*L40 -> 0 | O40: 0 | P40: =+J40-N40 -> 0 | Q40: 0 | R40: =+J40*E$7 -> 0
C41: Tractors/Self-Propelled | D41: 5.4 | F41: Gallon | G41: 3 | I41: 16.2 | J41: =E41*H41 -> 0 | K41: 0 | M41: 0 | N41: =J41*L41 -> 0 | O41: 16.2 | P41: =+J41-N41 -> 0 | Q41: 1620 | R41: =+J41*E$7 -> 0
B43: Gasoline
C44: Pickup/General Use Equipment | D44: 1 | F44: Acre | G44: 26.608967 | I44: 26.608967 | J44: =E44*H44 -> 0 | K44: 0 | M44: 0 | N44: =J44*L44 -> 0 | O44: 26.608967 | P44: =+J44-N44 -> 0 | Q44: 2660.8967 | R44: =+J44*E$7 -> 0
C45: Tractors/Self-Propelled | D45: 0 | F45: Gallon | G45: 2.75 | I45: 0 | J45: =E45*H45 -> 0 | K45: 0 | M45: 0 | N45: =J45*L45 -> 0 | O45: 0 | P45: =+J45-N45 -> 0 | Q45: 0 | R45: =+J45*E$7 -> 0
B47: Repairs & Maintenance
C48: Pickup/General Use Equipment | D48: 1 | F48: Acre | G48: 4.8384 | I48: 4.8384 | J48: =E48*H48 -> 0 | K48: 0 | M48: 0 | N48: =J48*L48 -> 0 | O48: 4.8384 | P48: =+J48-N48 -> 0 | Q48: 483.84 | R48: =+J48*E$7 -> 0
C49: Irrigation Equipment | D49: 1 | F49: Acre | G49: 0 | I49: 0 | J49: 0 | K49: 0 | M49: 0 | N49: 0 | O49: 0 | P49: 0 | Q49: 0 | R49: 0
C50: Tractors/Self-Propelled | D50: 1 | F50: Acre | G50: 18.93668481 | I50: 18.93668481 | J50: 0 | K50: 0 | M50: 0 | N50: 0 | O50: 18.93668481 | P50: 0 | Q50: 1893.668481 | R50: 0
C51: Implements | D51: 1 | F51: Acre | G51: 10.11807729 | I51: 10.11807729 | J51: 0 | K51: 0 | M51: 0 | N51: 0 | O51: 10.11807729 | P51: 0 | Q51: 1011.807729 | R51: 0
I52: 0 | J52: 0 | K52: 0 | M52: 0 | N52: 0 | O52: 0 | P52: 0 | Q52: 0 | R52: 0
I53: 0 | J53: 0 | K53: 0 | M53: 0 | N53: 0 | O53: 0 | P53: 0 | Q53: 0 | R53: 0
B54: Interest on Credit Line | G54: 0.086 | I54: 8.289546942 | J54: =+SUM(J17:J53)/2*H54 -> 0 | M54: 0 | N54: =+SUM(N17:N53)/2*L54 -> 0 | O54: 8.289546942 | P54: =+SUM(P17:P53)/2*L54 -> 0 | Q54: 828.9546942 | R54: =+J54*E$7 -> 0
A55: Total Variable Costs | I55: 187.935426 | J55: =SUM(J18:J54) -> 0 | M55: 0 | N55: =SUM(N18:N54) -> 0 | O55: 187.935426 | P55: =SUM(P18:P54) -> 0 | Q55: 18793.5426 | R55: =SUM(R18:R54) -> 0
A56: Planned Returns Above Variable Costs: | I56: 52.06457396 | J56: =+J13-J55 -> 0 | M56: 0 | N56: =+N13-N55 -> 0 | O56: 52.06457396 | P56: =+P13-P55 -> 0 | Q56: 5206.457396 | R56: =+R13-R55 -> 0
B57: Breakeven Price to Cover Variable Costs | G57: 6.264514201 | H57: =IF(E10=0,"n/a",(YVarExp-(YTotExp+YTotRet-J10))/E10) -> n/a | I57: CWT
Q58: Enterprise | R58: Enterprise
A59: FIXED COSTS | D59: Quantity | E59: Quantity | F59: Units | G59: $/Unit | H59: $/Unit | I59: Total | J59: Total | K59: Share | L59: Share | M59: Landlord | N59: Landlord | O59: Tenant | P59: Tenant | Q59: Total | R59: Total
B60: Machinery Depreciation
C61: Pickup/General Use Equipment | D61: 1 | F61: Acre | G61: 25.2 | I61: 25.2 | J61: =E61*H61 -> 0 | K61: 0 | M61: 0 | N61: =J61*L61 -> 0 | O61: 25.2 | P61: =+J61-N61 -> 0 | Q61: 2520 | R61: =+J61*E$7 -> 0
C62: Tractors/Self-Propelled | D62: 1 | F62: Acre | G62: 19.78819908 | I62: 19.78819908 | J62: 0 | K62: 0 | M62: 0 | N62: =J62*L62 -> 0 | O62: 19.78819908 | P62: 0 | Q62: 1978.819908 | R62: 0
C63: Implements | D63: 1 | F63: Acre | G63: 12.54149879 | I63: 12.54149879 | J63: 0 | K63: 0 | M63: 0 | N63: =J63*L63 -> 0 | O63: 12.54149879 | P63: 0 | Q63: 1254.149879 | R63: 0
B64: Equipment Investment
C65: Pickup/General Use Equipment | D65: 105 | F65: Dollars | G65: 0.086 | I65: 9.03 | J65: =E65*H65 -> 0 | K65: 0 | M65: 0 | N65: =J65*L65 -> 0 | O65: 9.03 | P65: =+J65-N65 -> 0 | Q65: 903 | R65: =+J65*E$7 -> 0
C66: Tractors/Self-Propelled | D66: 151.0450302 | F66: Dollars | G66: 0.086 | I66: 12.98987259 | J66: 0 | K66: 0 | M66: 0 | N66: =J66*L66 -> 0 | O66: 12.98987259 | P66: 0 | Q66: 1298.987259 | R66: 0
C67: Implements | D67: 58.22533733 | F67: Dollars | G67: 0.086 | I67: 5.00737901 | J67: 0 | K67: 0 | M67: 0 | N67: =J67*L67 -> 0 | O67: 5.00737901 | P67: 0 | Q67: 500.737901 | R67: 0
B68: Salaried Labor | D68: 1 | F68: Acre | G68: 0 | I68: 0 | J68: 0 | K68: 0 | M68: 0 | N68: =J68*L68 -> 0 | O68: 0 | P68: =+J68-N68 -> 0 | Q68: 0 | R68: =+J68*E$7 -> 0
B69: Management Fee, Owner/Operator Labor | D69: 1 | F69: Acre | G69: 0 | I69: 0 | J69: 0 | K69: 0 | M69: 0 | N69: 0 | O69: 0 | P69: 0 | Q69: 0 | R69: 0
B70: Allocated Establishment Cost | D70: 1 | F70: Acre | G70: 0 | I70: 0 | J70: 0 | K70: 0 | M70: 0 | N70: 0 | O70: 0 | P70: 0 | Q70: 0 | R70: 0
B71: Dryland Winter Garden Rent | D71: 1 | F71: Acre | G71: 20 | I71: 20 | J71: 0 | K71: 0 | M71: 0 | N71: 0 | O71: 20 | P71: 0 | Q71: 2000 | R71: 0
B72: Property Taxes | D72: 1 | F72: Acre | G72: 0 | I72: 0 | J72: 0 | K72: 0 | M72: 0 | N72: 0 | O72: 0 | P72: 0 | Q72: 0 | R72: 0
B73: Whole Farm Insurance | D73: 1 | F73: Acre | G73: 0 | I73: 0 | J73: 0 | K73: 0 | M73: 0 | N73: 0 | O73: 0 | P73: 0 | Q73: 0 | R73: 0
D74: 1 | G74: 0 | I74: 0 | J74: 0 | K74: 0 | M74: 0 | N74: 0 | O74: 0 | P74: 0 | Q74: 0 | R74: 0
D75: 1 | G75: 0 | I75: 0 | J75: =E75*H75 -> 0 | K75: 0 | M75: 0 | N75: 0 | O75: 0 | P75: 0 | Q75: 0 | R75: 0
A76: Total Fixed Costs | I76: 104.5569495 | J76: =+SUM(J61:J75) -> 0 | M76: 0 | N76: =+SUM(N61:N75) -> 0 | O76: 104.5569495 | P76: =+SUM(P61:P75) -> 0 | Q76: 10455.69495 | R76: =+SUM(R61:R75) -> 0
A77: Total Specified Costs | I77: 292.4923755 | J77: =+J55+J76 -> 0 | M77: 0 | N77: =+N55+N76 -> 0 | O77: 292.4923755 | P77: =+P55+P76 -> 0 | Q77: 29249.23755 | R77: =+R55+R76 -> 0
A79: Returns Above Specified Costs | I79: -52.4923755 | J79: =+J13-J77 -> 0 | M79: 0 | N79: =+N13-N77 -> 0 | O79: -52.4923755 | P79: =+P13-P77 -> 0 | Q79: -5249.23755 | R79: =+R13-R77 -> 0
A81: Breakeven Price to Cover Total Costs | G81: 9.74974585 | H81: =IF(E10=0,"n/a",(YTotExp-(YTotExp+YTotRet-J10))/E10) -> n/a | I81: CWT
D83: Example Breakeven Prices
B84: Example | C84: Example | D84: To Cover | G84: To Cover
B85: Yield | C85: Yield | D85: Variable | G85: Total
B86: Percent | C86: CWT | D86: Costs | G86: Costs
B87: 0.75 | C87: 22.5 | D87: 8.352685602 | G87: 12.99966113
B88: 0.9 | C88: 27 | D88: 6.960571335 | G88: 10.83305094
B89: 1 | C89: 30 | D89: 6.264514201 | G89: 9.74974585
B90: 1.1 | C90: 33 | D90: 5.69501291 | G90: 8.863405318
B91: 1.25 | C91: 37.5 | D91: 5.011611361 | G91: 7.79979668
D93: Your Breakeven Prices
B94: Your | C94: Your | E94: To Cover | H94: To Cover
B95: Yield | C95: Yield | E95: Variable | H95: Total
B96: Percent | C96: CWT | E96: Costs | H96: Costs
B97: 0.75 | C97: =E10*YPER1 -> 0 | E97: =IF($E$10=0,0,(YVarExp-(YTotExp+YTotRet-J10))/($E$10*YPER1)) -> 0 | H97: =IF($E$10=0,0,(YTotExp-(YTotExp+YTotRet-J10))/($E$10*YPER1)) -> 0
B98: 0.9 | C98: =E10*YPER2 -> 0 | E98: =IF($E$10=0,0,(YVarExp-(YTotExp+YTotRet-J10))/($E$10*YPER2)) -> 0 | H98: =IF($E$10=0,0,(YTotExp-(YTotExp+YTotRet-J10))/($E$10*YPER2)) -> 0
B99: 1 | C99: =+E10 -> 0 | E99: =IF($E$10=0,0,(YVarExp-(YTotExp+YTotRet-J10))/($E$10*YPER3)) -> 0 | H99: =IF($E$10=0,0,(YTotExp-(YTotExp+YTotRet-J10))/($E$10*YPER3)) -> 0
B100: 1.1 | C100: =E10*YPER4 -> 0 | E100: =IF($E$10=0,0,(YVarExp-(YTotExp+YTotRet-J10))/($E$10*YPER4)) -> 0 | H100: =IF($E$10=0,0,(YTotExp-(YTotExp+YTotRet-J10))/($E$10*YPER4)) -> 0
B101: 1.25 | C101: =E10*YPER5 -> 0 | E101: =IF($E$10=0,0,(YVarExp-(YTotExp+YTotRet-J10))/($E$10*YPER5)) -> 0 | H101: =IF($E$10=0,0,(YTotExp-(YTotExp+YTotRet-J10))/($E$10*YPER5)) -> 0
A103: Developed by Extension Agricultural Economists, Texas A&M AgriLife Extension, budgets@tamu.edu.
A105: Information presented is prepared solely as a general guide and not intended to recognize or predict the costs and returns from any one operation. Brand names are mentioned only as examples and imply no endorsement.

Sheet SorghumIrrigated
A1: Projections for Planning Purposes Only -- Not to be Used without Updating
A2: 2025 Estimated Costs and Returns per Acre
A3: Irrigated Sorghum
A4: Enter your name for this budget in the cell above.
A5: Enter Your Values in the cells highlighed in MAROON.
E6: Your Acres | R6: Your
C7: Crop Acres | D7: 122 | L7: Your | Q7: Enterprise | R7: Enterprise
E8: Your | H8: Your | I8: Cash | J8: Your | K8: Landlord | L8: Landlord | N8: Your | P8: Your | Q8: Total | R8: Total
A9: REVENUE | D9: Quantity | E9: Quantity | F9: Units | G9: $/Unit | H9: $/Unit | I9: Total | J9: Total | K9: Share | L9: Share | M9: Landlord | N9: Landlord | O9: Tenant | P9: Tenant | Q9: (122 acres) | R9: ="(" & E7 & " acres)" -> ( acres)
B10: Sorghum | D10: 65 | F10: CWT | G10: 8 | I10: 520 | J10: =E10*H10 -> 0 | K10: 0 | M10: 0 | N10: =J10*L10 -> 0 | O10: 520 | P10: =+J10-N10 -> 0 | Q10: 63440 | R10: =+J10*E$7 -> 0
D11: 0 | G11: 0 | I11: 0 | J11: 0 | K11: 0 | M11: 0 | N11: 0 | O11: 0 | P11: =+J11-N11 -> 0 | Q11: 0 | R11: 0
D12: 0 | G12: 0 | I12: 0 | J12: 0 | K12: 0 | M12: 0 | N12: 0 | O12: 0 | P12: 0 | Q12: 0 | R12: 0
A13: Total Revenue | I13: 520 | J13: =SUM(J10:J12) -> 0 | M13: 0 | N13: =SUM(N10:N12) -> 0 | O13: 520 | P13: =SUM(P10:P12) -> 0 | Q13: 63440 | R13: =SUM(R10:R12) -> 0
Q14: Enterprise | R14: Enterprise
A15: VARIABLE COSTS | D15: Quantity | E15: Quantity | F15: Units | G15: $/Unit | H15: $/Unit | I15: Total | J15: Total | K15: Share | L15: Share | M15: Landlord | N15: Landlord | O15: Tenant | P15: Tenant | Q15: Total | R15: Total
A16: Production Costs
B17: Seed
C18: Sorghum Concept Seed | D18: 8 | F18: Pound | G18: 3.9 | I18: 31.2 | J18: =E18*H18 -> 0 | K18: 0 | M18: 0 | N18: =J18*L18 -> 0 | O18: 31.2 | P18: =+J18-N18 -> 0 | Q18: 3806.4 | R18: =+J18*E$7 -> 0
B19: Fertilizer
C20: UAN(32% N) | D20: 1.77 | F20: CWT | G20: 17.08 | I20: 30.2316 | J20: 0 | K20: 0 | M20: 0 | N20: 0 | O20: 30.2316 | P20: 0 | Q20: 3688.2552 | R20: 0
C21: Fertilizer 18-46-0 | D21: 130 | F21: Pound | G21: 0.35 | I21: 45.5 | J21: 0 | K21: 0 | M21: 0 | N21: 0 | O21: 45.5 | P21: 0 | Q21: 5551 | R21: 0
B22: Custom
C23: Haul Sorghum | D23: 65 | F23: CWT | G23: 0.18 | I23: 11.7 | J23: 0 | K23: 0 | M23: 0 | N23: 0 | O23: 11.7 | P23: 0 | Q23: 1427.4 | R23: 0
B24: Herbicide
C25: Atrazine 4L | D25: 4 | F25: Pint | G25: 1.75 | I25: 7 | J25: 0 | K25: 0 | M25: 0 | N25: 0 | O25: 7 | P25: 0 | Q25: 854 | R25: 0
C26: Prowl H2O | D26: 2.5 | F26: Pint | G26: 6.09375 | I26: 15.234375 | J26: 0 | K26: 0 | M26: 0 | N26: 0 | O26: 15.234375 | P26: 0 | Q26: 1858.59375 | R26: 0
B27: Insecticide
C28: Lorsban 4E | D28: 1 | F28: Pint | G28: 4.519 | I28: 4.519 | J28: 0 | K28: 0 | M28: 0 | N28: 0 | O28: 4.519 | P28: 0 | Q28: 551.318 | R28: 0
C29: Dimethoate 4E | D29: 1 | F29: Pint | G29: 5.6875 | I29: 5.6875 | J29: 0 | K29: 0 | M29: 0 | N29: 0 | O29: 5.6875 | P29: 0 | Q29: 693.875 | R29: 0
B30: Miscellaneous
C31: Crop Insurance - Grain Sorghum Irrigated | D31: 1 | F31: Acre | G31: 17 | I31: 17 | J31: 0 | K31: 0 | M31: 0 | N31: 0 | O31: 17 | P31: 0 | Q31: 2074 | R31: 0
C32: Miscellaneous Sorghum Overhead | D32: 1 | F32: Acre | G32: 4 | I32: 4 | J32: 0 | K32: 0 | M32: 0 | N32: 0 | O32: 4 | P32: 0 | Q32: 488 | R32: 0
D33: 0 | G33: 0 | I33: 0 | J33: 0 | K33: 0 | M33: 0 | N33: 0 | O33: 0 | P33: 0 | Q33: 0 | R33: 0
D34: 0 | G34: 0 | I34: 0 | J34: 0 | K34: 0 | M34: 0 | N34: 0 | O34: 0 | P34: 0 | Q34: 0 | R34: 0
D35: 0 | G35: 0 | I35: 0 | J35: =E35*H35 -> 0 | K35: 0 | M35: 0 | N35: =J35*L35 -> 0 | O35: 0 | P35: =+J35-N35 -> 0 | Q35: 0 | R35: =+J35*E$7 -> 0
B36: Irrigation
C37: Energy Cost | D37: 561 | F37: kWh | G37: 0.17 | I37: 95.37 | J37: =E37*H37 -> 0 | K37: 0 | M37: 0 | N37: =J37*L37 -> 0 | O37: 95.37 | P37: =+J37-N37 -> 0 | Q37: 11635.14 | R37: =+J37*E$7 -> 0
C38: Irrigation Labor | D38: 0.068 | F38: Hour | G38: 17.5 | I38: 1.19 | J38: 0 | K38: 0 | M38: 0 | N38: 0 | O38: 1.19 | P38: 0 | Q38: 145.18 | R38: 0
B39: Machinery Labor
C40: Tractors/Self-Propelled | D40: 0.77 | F40: Hour | G40: 17.21 | I40: 13.2517 | J40: =E40*H40 -> 0 | K40: 0 | M40: 0 | N40: =J40*L40 -> 0 | O40: 13.2517 | P40: =+J40-N40 -> 0 | Q40: 1616.7074 | R40: =+J40*E$7 -> 0
C41: Other Labor | D41: 0.16 | F41: Hour | G41: 17.21 | I41: 2.7536 | J41: =E41*H41 -> 0 | K41: 0 | M41: 0 | N41: =J41*L41 -> 0 | O41: 2.7536 | P41: =+J41-N41 -> 0 | Q41: 335.9392 | R41: =+J41*E$7 -> 0
B43: Diesel Fuel
C44: Pickup/General Use Equipment | D44: 1 | F44: Acre | G44: 0 | I44: 0 | J44: =E44*H44 -> 0 | K44: 0 | M44: 0 | N44: =J44*L44 -> 0 | O44: 0 | P44: =+J44-N44 -> 0 | Q44: 0 | R44: =+J44*E$7 -> 0
C45: Tractors/Self-Propelled | D45: 5.98 | F45: Gallon | G45: 3 | I45: 17.94 | J45: =E45*H45 -> 0 | K45: 0 | M45: 0 | N45: =J45*L45 -> 0 | O45: 17.94 | P45: =+J45-N45 -> 0 | Q45: 2188.68 | R45: =+J45*E$7 -> 0
B47: Gasoline
C48: Pickup/General Use Equipment | D48: 1 | F48: Acre | G48: 26.61286176 | I48: 26.61286176 | J48: =E48*H48 -> 0 | K48: 0 | M48: 0 | N48: =J48*L48 -> 0 | O48: 26.61286176 | P48: =+J48-N48 -> 0 | Q48: 3246.769134 | R48: =+J48*E$7 -> 0
C49: Tractors/Self-Propelled | D49: 0 | F49: Gallon | G49: 2.75 | I49: 0 | J49: =E49*H49 -> 0 | K49: 0 | M49: 0 | N49: =J49*L49 -> 0 | O49: 0 | P49: =+J49-N49 -> 0 | Q49: 0 | R49: =+J49*E$7 -> 0
B51: Repairs & Maintenance
C52: Pickup/General Use Equipment | D52: 1 | F52: Acre | G52: 4.839108197 | I52: 4.839108197 | J52: =E52*H52 -> 0 | K52: 0 | M52: 0 | N52: =J52*L52 -> 0 | O52: 4.839108197 | P52: =+J52-N52 -> 0 | Q52: 590.3712 | R52: =+J52*E$7 -> 0
C53: Irrigation Equipment | D53: 1 | F53: Acre | G53: 5.287980951 | I53: 5.287980951 | J53: 0 | K53: 0 | M53: 0 | N53: 0 | O53: 5.287980951 | P53: 0 | Q53: 645.133676 | R53: 0
C54: Tractors/Self-Propelled | D54: 1 | F54: Acre | G54: 20.54539047 | I54: 20.54539047 | J54: 0 | K54: 0 | M54: 0 | N54: 0 | O54: 20.54539047 | P54: 0 | Q54: 2506.537637 | R54: 0
C55: Implements | D55: 1 | F55: Acre | G55: 10.66064761 | I55: 10.66064761 | J55: 0 | K55: 0 | M55: 0 | N55: 0 | O55: 10.66064761 | P55: 0 | Q55: 1300.599009 | R55: 0
I56: 0 | J56: 0 | K56: 0 | M56: 0 | N56: 0 | O56: 0 | P56: 0 | Q56: 0 | R56: 0
I57: 0 | J57: 0 | K57: 0 | M57: 0 | N57: 0 | O57: 0 | P57: 0 | Q57: 0 | R57: 0
B58: Interest on Credit Line | G58: 0.086 | I58: 16.90195506 | J58: =+SUM(J17:J57)/2*H58 -> 0 | M58: 0 | N58: =+SUM(N17:N57)/2*L58 -> 0 | O58: 16.90195506 | P58: =+SUM(P17:P57)/2*L58 -> 0 | Q58: 2062.038518 | R58: =+J58*E$7 -> 0
A59: Total Variable Costs | I59: 387.425719 | J59: =SUM(J18:J58) -> 0 | M59: 0 | N59: =SUM(N18:N58) -> 0 | O59: 387.425719 | P59: =SUM(P18:P58) -> 0 | Q59: 47265.93772 | R59: =SUM(R18:R58) -> 0
A60: Planned Returns Above Variable Costs: | I60: 132.574281 | J60: =+J13-J59 -> 0 | M60: 0 | N60: =+N13-N59 -> 0 | O60: 132.574281 | P60: =+P13-P59 -> 0 | Q60: 16174.06228 | R60: =+R13-R59 -> 0
B61: Breakeven Price to Cover Variable Costs | G61: 5.960395678 | H61: =IF(E10=0,"n/a",(YVarExp-(YTotExp+YTotRet-J10))/E10) -> n/a | I61: CWT
Q62: Enterprise | R62: Enterprise
A63: FIXED COSTS | D63: Quantity | E63: Quantity | F63: Units | G63: $/Unit | H63: $/Unit | I63: Total | J63: Total | K63: Share | L63: Share | M63: Landlord | N63: Landlord | O63: Tenant | P63: Tenant | Q63: Total | R63: Total
B64: Machinery Depreciation
C65: Pickup/General Use Equipment | D65: 1 | F65: Acre | G65: 25.20368852 | I65: 25.20368852 | J65: =E65*H65 -> 0 | K65: 0 | M65: 0 | N65: =J65*L65 -> 0 | O65: 25.20368852 | P65: =+J65-N65 -> 0 | Q65: 3074.85 | R65: =+J65*E$7 -> 0
C66: Irrigation Equipment | D66: 1 | F66: Acre | G66: 80.58401639 | I66: 80.58401639 | J66: 0 | K66: 0 | M66: 0 | N66: =J66*L66 -> 0 | O66: 80.58401639 | P66: 0 | Q66: 9831.25 | R66: 0
C67: Tractors/Self-Propelled | D67: 1 | F67: Acre | G67: 21.45052826 | I67: 21.45052826 | J67: 0 | K67: 0 | M67: 0 | N67: =J67*L67 -> 0 | O67: 21.45052826 | P67: 0 | Q67: 2616.964448 | R67: 0
C68: Implements | D68: 1 | F68: Acre | G68: 13.1518904 | I68: 13.1518904 | J68: 0 | K68: 0 | M68: 0 | N68: =J68*L68 -> 0 | O68: 13.1518904 | P68: 0 | Q68: 1604.530629 | R68: 0
B69: Equipment Investment
C70: Pickup/General Use Equipment | D70: 105.0153689 | F70: Dollars | G70: 0.086 | I70: 9.031321721 | J70: =E70*H70 -> 0 | K70: 0 | M70: 0 | N70: =J70*L70 -> 0 | O70: 9.031321721 | P70: =+J70-N70 -> 0 | Q70: 1101.82125 | R70: =+J70*E$7 -> 0
C71: Irrigation Equipment | D71: 646.0040984 | F71: Dollars | G71: 0.086 | I71: 55.55635246 | J71: 0 | K71: 0 | M71: 0 | N71: =J71*L71 -> 0 | O71: 55.55635246 | P71: 0 | Q71: 6777.875 | R71: 0
C72: Tractors/Self-Propelled | D72: 163.9951107 | F72: Dollars | G72: 0.086 | I72: 14.10357952 | J72: 0 | K72: 0 | M72: 0 | N72: =J72*L72 -> 0 | O72: 14.10357952 | P72: 0 | Q72: 1720.636702 | R72: 0
C73: Implements | D73: 60.83645701 | F73: Dollars | G73: 0.086 | I73: 5.231935303 | J73: 0 | K73: 0 | M73: 0 | N73: =J73*L73 -> 0 | O73: 5.231935303 | P73: 0 | Q73: 638.2961069 | R73: 0
B74: Salaried Labor | D74: 1 | F74: Acre | G74: 0 | I74: 0 | J74: 0 | K74: 0 | M74: 0 | N74: =J74*L74 -> 0 | O74: 0 | P74: =+J74-N74 -> 0 | Q74: 0 | R74: =+J74*E$7 -> 0
B75: Management Fee, Owner/Operator Labor | D75: 1 | F75: Acre | G75: 0 | I75: 0 | J75: 0 | K75: 0 | M75: 0 | N75: 0 | O75: 0 | P75: 0 | Q75: 0 | R75: 0
B76: Allocated Establishment Cost | D76: 1 | F76: Acre | G76: 0 | I76: 0 | J76: 0 | K76: 0 | M76: 0 | N76: 0 | O76: 0 | P76: 0 | Q76: 0 | R76: 0
B77: Irrigated Winter Garden Rent | D77: 1 | F77: Acre | G77: 50 | I77: 50 | J77: 0 | K77: 0 | M77: 0 | N77: 0 | O77: 50 | P77: 0 | Q77: 6100 | R77: 0
B78: Property Taxes | D78: 1 | F78: Acre | G78: 0 | I78: 0 | J78: 0 | K78: 0 | M78: 0 | N78: 0 | O78: 0 | P78: 0 | Q78: 0 | R78: 0
B79: Whole Farm Insurance | D79: 1 | F79: Acre | G79: 0 | I79: 0 | J79: 0 | K79: 0 | M79: 0 | N79: 0 | O79: 0 | P79: 0 | Q79: 0 | R79: 0
D80: 1 | G80: 0 | I80: 0 | J80: 0 | K80: 0 | M80: 0 | N80: 0 | O80: 0 | P80: 0 | Q80: 0 | R80: 0
D81: 1 | G81: 0 | I81: 0 | J81: =E81*H81 -> 0 | K81: 0 | M81: 0 | N81: 0 | O81: 0 | P81: 0 | Q81: 0 | R81: 0
A82: Total Fixed Costs | I82: 274.3133126 | J82: =+SUM(J65:J81) -> 0 | M82: 0 | N82: =+SUM(N65:N81) -> 0 | O82: 274.3133126 | P82: =+SUM(P65:P81) -> 0 | Q82: 33466.22414 | R82: =+SUM(R65:R81) -> 0
A83: Total Specified Costs | I83: 661.7390316 | J83: =+J59+J82 -> 0 | M83: 0 | N83: =+N59+N82 -> 0 | O83: 661.7390316 | P83: =+P59+P82 -> 0 | Q83: 80732.16186 | R83: =+R59+R82 -> 0
A85: Returns Above Specified Costs | I85: -141.7390316 | J85: =+J13-J83 -> 0 | M85: 0 | N85: =+N13-N83 -> 0 | O85: -141.7390316 | P85: =+P13-P83 -> 0 | Q85: -17292.16186 | R85: =+R13-R83 -> 0
A87: Breakeven Price to Cover Total Costs | G87: 10.18060049 | H87: =IF(E10=0,"n/a",(YTotExp-(YTotExp+YTotRet-J10))/E10) -> n/a | I87: CWT
D89: Example Breakeven Prices
B90: Example | C90: Example | D90: To Cover | G90: To Cover
B91: Yield | C91: Yield | D91: Variable | G91: Total
B92: Percent | C92: CWT | D92: Costs | G92: Costs
B93: 0.75 | C93: 48.75 | D93: 7.947194237 | G93: 13.57413398
B94: 0.9 | C94: 58.5 | D94: 6.622661864 | G94: 11.31177832
B95: 1 | C95: 65 | D95: 5.960395678 | G95: 10.18060049
B96: 1.1 | C96: 71.5 | D96: 5.418541525 | G96: 9.255091352
B97: 1.25 | C97: 81.25 | D97: 4.768316542 | G97: 8.144480389
D99: Your Breakeven Prices
B100: Your | C100: Your | E100: To Cover | H100: To Cover
B101: Yield | C101: Yield | E101: Variable | H101: Total
B102: Percent | C102: CWT | E102: Costs | H102: Costs
B103: 0.75 | C103: =E10*YPER1 -> 0 | E103: =IF($E$10=0,0,(YVarExp-(YTotExp+YTotRet-J10))/($E$10*YPER1)) -> 0 | H103: =IF($E$10=0,0,(YTotExp-(YTotExp+YTotRet-J10))/($E$10*YPER1)) -> 0
B104: 0.9 | C104: =E10*YPER2 -> 0 | E104: =IF($E$10=0,0,(YVarExp-(YTotExp+YTotRet-J10))/($E$10*YPER2)) -> 0 | H104: =IF($E$10=0,0,(YTotExp-(YTotExp+YTotRet-J10))/($E$10*YPER2)) -> 0
B105: 1 | C105: =+E10 -> 0 | E105: =IF($E$10=0,0,(YVarExp-(YTotExp+YTotRet-J10))/($E$10*YPER3)) -> 0 | H105: =IF($E$10=0,0,(YTotExp-(YTotExp+YTotRet-J10))/($E$10*YPER3)) -> 0
B106: 1.1 | C106: =E10*YPER4 -> 0 | E106: =IF($E$10=0,0,(YVarExp-(YTotExp+YTotRet-J10))/($E$10*YPER4)) -> 0 | H106: =IF($E$10=0,0,(YTotExp-(YTotExp+YTotRet-J10))/($E$10*YPER4)) -> 0
B107: 1.25 | C107: =E10*YPER5 -> 0 | E107: =IF($E$10=0,0,(YVarExp-(YTotExp+YTotRet-J10))/($E$10*YPER5)) -> 0 | H107: =IF($E$10=0,0,(YTotExp-(YTotExp+YTotRet-J10))/($E$10*YPER5)) -> 0
A109: Developed by Extension Agricultural Economists, Texas A&M AgriLife Extension, budgets@tamu.edu.
A111: Information presented is prepared solely as a general guide and not intended to recognize or predict the costs and returns from any one operation. Brand names are mentioned only as examples and imply no endorsement.

Sheet WinterWheatDryland
A1: Projections for Planning Purposes Only -- Not to be Used without Updating
A2: 2025 Estimated Costs and Returns per Acre
A3: Dryland Winter Wheat
A4: Enter your name for this budget in the cell above.
A5: Enter Your Values in the cells highlighed in MAROON.
E6: Your Acres | R6: Your
C7: Crop Acres | D7: 100 | L7: Your | Q7: Enterprise | R7: Enterprise
E8: Your | H8: Your | I8: Cash | J8: Your | K8: Landlord | L8: Landlord | N8: Your | P8: Your | Q8: Total | R8: Total
A9: REVENUE | D9: Quantity | E9: Quantity | F9: Units | G9: $/Unit | H9: $/Unit | I9: Total | J9: Total | K9: Share | L9: Share | M9: Landlord | N9: Landlord | O9: Tenant | P9: Tenant | Q9: (100 acres) | R9: ="(" & E7 & " acres)" -> ( acres)
B10: Winter Wheat | D10: 30 | F10: Bushel | G10: 5.4 | I10: 162 | J10: =E10*H10 -> 0 | K10: 0 | M10: 0 | N10: =J10*L10 -> 0 | O10: 162 | P10: =+J10-N10 -> 0 | Q10: 16200 | R10: =+J10*E$7 -> 0
D11: 0 | G11: 0 | I11: 0 | J11: 0 | K11: 0 | M11: 0 | N11: 0 | O11: 0 | P11: =+J11-N11 -> 0 | Q11: 0 | R11: 0
D12: 0 | G12: 0 | I12: 0 | J12: 0 | K12: 0 | M12: 0 | N12: 0 | O12: 0 | P12: 0 | Q12: 0 | R12: 0
A13: Total Revenue | I13: 162 | J13: =SUM(J10:J12) -> 0 | M13: 0 | N13: =SUM(N10:N12) -> 0 | O13: 162 | P13: =SUM(P10:P12) -> 0 | Q13: 16200 | R13: =SUM(R10:R12) -> 0
Q14: Enterprise | R14: Enterprise
A15: VARIABLE COSTS | D15: Quantity | E15: Quantity | F15: Units | G15: $/Unit | H15: $/Unit | I15: Total | J15: Total | K15: Share | L15: Share | M15: Landlord | N15: Landlord | O15: Tenant | P15: Tenant | Q15: Total | R15: Total
A16: Production Costs
B17: Herbicide
C18: 2, 4-D Amine 4 | D18: 16 | F18: Ounce | G18: 0.148046875 | I18: 2.36875 | J18: =E18*H18 -> 0 | K18: 0 | M18: 0 | N18: =J18*L18 -> 0 | O18: 2.36875 | P18: =+J18-N18 -> 0 | Q18: 236.875 | R18: =+J18*E$7 -> 0
B19: Seed
C20: Wheat Seed Public | D20: 60 | F20: Pound | G20: 0.375 | I20: 22.5 | J20: 0 | K20: 0 | M20: 0 | N20: 0 | O20: 22.5 | P20: 0 | Q20: 2250 | R20: 0
B21: Fertilizer
C22: UAN(32% N) | D22: 1.22 | F22: CWT | G22: 17.08 | I22: 20.8376 | J22: 0 | K22: 0 | M22: 0 | N22: 0 | O22: 20.8376 | P22: 0 | Q22: 2083.76 | R22: 0
C23: Fertilizer 18-46-0 | D23: 33 | F23: Pound | G23: 0.35 | I23: 11.55 | J23: 0 | K23: 0 | M23: 0 | N23: 0 | O23: 11.55 | P23: 0 | Q23: 1155 | R23: 0
B24: Custom
C25: Haul Wheat | D25: 30 | F25: Bushel | G25: 0.14 | I25: 4.2 | J25: 0 | K25: 0 | M25: 0 | N25: 0 | O25: 4.2 | P25: 0 | Q25: 420 | R25: 0
B26: Miscellaneous
C27: Crop Insurance - Wheat Dry | D27: 1 | F27: Acre | G27: 8 | I27: 8 | J27: 0 | K27: 0 | M27: 0 | N27: 0 | O27: 8 | P27: 0 | Q27: 800 | R27: 0
B28: Insecticide
C29: Lorsban 4E | D29: 1 | F29: Pint | G29: 4.519 | I29: 4.519 | J29: 0 | K29: 0 | M29: 0 | N29: 0 | O29: 4.519 | P29: 0 | Q29: 451.9 | R29: 0
D30: 0 | G30: 0 | I30: 0 | J30: 0 | K30: 0 | M30: 0 | N30: 0 | O30: 0 | P30: 0 | Q30: 0 | R30: 0
D31: 0 | G31: 0 | I31: 0 | J31: 0 | K31: 0 | M31: 0 | N31: 0 | O31: 0 | P31: 0 | Q31: 0 | R31: 0
D32: 0 | G32: 0 | I32: 0 | J32: =E32*H32 -> 0 | K32: 0 | M32: 0 | N32: =J32*L32 -> 0 | O32: 0 | P32: =+J32-N32 -> 0 | Q32: 0 | R32: =+J32*E$7 -> 0
B33: Machinery Labor
C34: Tractors/Self-Propelled | D34: 0.37 | F34: Hour | G34: 17.21 | I34: 6.3677 | J34: =E34*H34 -> 0 | K34: 0 | M34: 0 | N34: =J34*L34 -> 0 | O34: 6.3677 | P34: =+J34-N34 -> 0 | Q34: 636.77 | R34: =+J34*E$7 -> 0
C35: Other Labor | D35: 0.19 | F35: Hour | G35: 17.21 | I35: 3.2699 | J35: =E35*H35 -> 0 | K35: 0 | M35: 0 | N35: =J35*L35 -> 0 | O35: 3.2699 | P35: =+J35-N35 -> 0 | Q35: 326.99 | R35: =+J35*E$7 -> 0
B37: Diesel Fuel
C38: Pickup/General Use Equipment | D38: 1 | F38: Acre | G38: 0 | I38: 0 | J38: =E38*H38 -> 0 | K38: 0 | M38: 0 | N38: =J38*L38 -> 0 | O38: 0 | P38: =+J38-N38 -> 0 | Q38: 0 | R38: =+J38*E$7 -> 0
C39: Tractors/Self-Propelled | D39: 2.61 | F39: Gallon | G39: 3 | I39: 7.83 | J39: =E39*H39 -> 0 | K39: 0 | M39: 0 | N39: =J39*L39 -> 0 | O39: 7.83 | P39: =+J39-N39 -> 0 | Q39: 783 | R39: =+J39*E$7 -> 0
B41: Gasoline
C42: Pickup/General Use Equipment | D42: 1 | F42: Acre | G42: 26.608967 | I42: 26.608967 | J42: =E42*H42 -> 0 | K42: 0 | M42: 0 | N42: =J42*L42 -> 0 | O42: 26.608967 | P42: =+J42-N42 -> 0 | Q42: 2660.8967 | R42: =+J42*E$7 -> 0
C43: Tractors/Self-Propelled | D43: 0 | F43: Gallon | G43: 2.75 | I43: 0 | J43: =E43*H43 -> 0 | K43: 0 | M43: 0 | N43: =J43*L43 -> 0 | O43: 0 | P43: =+J43-N43 -> 0 | Q43: 0 | R43: =+J43*E$7 -> 0
B45: Repairs & Maintenance
C46: Pickup/General Use Equipment | D46: 1 | F46: Acre | G46: 4.8384 | I46: 4.8384 | J46: =E46*H46 -> 0 | K46: 0 | M46: 0 | N46: =J46*L46 -> 0 | O46: 4.8384 | P46: =+J46-N46 -> 0 | Q46: 483.84 | R46: =+J46*E$7 -> 0
C47: Irrigation Equipment | D47: 1 | F47: Acre | G47: 0 | I47: 0 | J47: 0 | K47: 0 | M47: 0 | N47: 0 | O47: 0 | P47: 0 | Q47: 0 | R47: 0
C48: Tractors/Self-Propelled | D48: 1 | F48: Acre | G48: 11.56982608 | I48: 11.56982608 | J48: 0 | K48: 0 | M48: 0 | N48: 0 | O48: 11.56982608 | P48: 0 | Q48: 1156.982608 | R48: 0
C49: Implements | D49: 1 | F49: Acre | G49: 5.681723445 | I49: 5.681723445 | J49: 0 | K49: 0 | M49: 0 | N49: 0 | O49: 5.681723445 | P49: 0 | Q49: 568.1723445 | R49: 0
I50: 0 | J50: 0 | K50: 0 | M50: 0 | N50: 0 | O50: 0 | P50: 0 | Q50: 0 | R50: 0
I51: 0 | J51: 0 | K51: 0 | M51: 0 | N51: 0 | O51: 0 | P51: 0 | Q51: 0 | R51: 0
B52: Interest on Credit Line | G52: 0.086 | I52: 6.000518101 | J52: =+SUM(J17:J51)/2*H52 -> 0 | M52: 0 | N52: =+SUM(N17:N51)/2*L52 -> 0 | O52: 6.000518101 | P52: =+SUM(P17:P51)/2*L52 -> 0 | Q52: 600.0518101 | R52: =+J52*E$7 -> 0
A53: Total Variable Costs | I53: 146.1423846 | J53: =SUM(J18:J52) -> 0 | M53: 0 | N53: =SUM(N18:N52) -> 0 | O53: 146.1423846 | P53: =SUM(P18:P52) -> 0 | Q53: 14614.23846 | R53: =SUM(R18:R52) -> 0
A54: Planned Returns Above Variable Costs: | I54: 15.85761537 | J54: =+J13-J53 -> 0 | M54: 0 | N54: =+N13-N53 -> 0 | O54: 15.85761537 | P54: =+P13-P53 -> 0 | Q54: 1585.761537 | R54: =+R13-R53 -> 0
B55: Breakeven Price to Cover Variable Costs | G55: 4.871412821 | H55: =IF(E10=0,"n/a",(YVarExp-(YTotExp+YTotRet-J10))/E10) -> n/a | I55: Bushel
Q56: Enterprise | R56: Enterprise
A57: FIXED COSTS | D57: Quantity | E57: Quantity | F57: Units | G57: $/Unit | H57: $/Unit | I57: Total | J57: Total | K57: Share | L57: Share | M57: Landlord | N57: Landlord | O57: Tenant | P57: Tenant | Q57: Total | R57: Total
B58: Machinery Depreciation
C59: Pickup/General Use Equipment | D59: 1 | F59: Acre | G59: 25.2 | I59: 25.2 | J59: =E59*H59 -> 0 | K59: 0 | M59: 0 | N59: =J59*L59 -> 0 | O59: 25.2 | P59: =+J59-N59 -> 0 | Q59: 2520 | R59: =+J59*E$7 -> 0
C60: Tractors/Self-Propelled | D60: 1 | F60: Acre | G60: 11.15610277 | I60: 11.15610277 | J60: 0 | K60: 0 | M60: 0 | N60: =J60*L60 -> 0 | O60: 11.15610277 | P60: 0 | Q60: 1115.610277 | R60: 0
C61: Implements | D61: 1 | F61: Acre | G61: 6.783119694 | I61: 6.783119694 | J61: 0 | K61: 0 | M61: 0 | N61: =J61*L61 -> 0 | O61: 6.783119694 | P61: 0 | Q61: 678.3119694 | R61: 0
B62: Equipment Investment
C63: Pickup/General Use Equipment | D63: 105 | F63: Dollars | G63: 0.086 | I63: 9.03 | J63: =E63*H63 -> 0 | K63: 0 | M63: 0 | N63: =J63*L63 -> 0 | O63: 9.03 | P63: =+J63-N63 -> 0 | Q63: 903 | R63: =+J63*E$7 -> 0
C64: Tractors/Self-Propelled | D64: 84.27199187 | F64: Dollars | G64: 0.086 | I64: 7.247391301 | J64: 0 | K64: 0 | M64: 0 | N64: =J64*L64 -> 0 | O64: 7.247391301 | P64: 0 | Q64: 724.7391301 | R64: 0
C65: Implements | D65: 33.59227121 | F65: Dollars | G65: 0.086 | I65: 2.888935324 | J65: 0 | K65: 0 | M65: 0 | N65: =J65*L65 -> 0 | O65: 2.888935324 | P65: 0 | Q65: 288.8935324 | R65: 0
B66: Salaried Labor | D66: 1 | F66: Acre | G66: 0 | I66: 0 | J66: 0 | K66: 0 | M66: 0 | N66: =J66*L66 -> 0 | O66: 0 | P66: =+J66-N66 -> 0 | Q66: 0 | R66: =+J66*E$7 -> 0
B67: Management Fee, Owner/Operator Labor | D67: 1 | F67: Acre | G67: 0 | I67: 0 | J67: 0 | K67: 0 | M67: 0 | N67: 0 | O67: 0 | P67: 0 | Q67: 0 | R67: 0
B68: Allocated Establishment Cost | D68: 1 | F68: Acre | G68: 0 | I68: 0 | J68: 0 | K68: 0 | M68: 0 | N68: 0 | O68: 0 | P68: 0 | Q68: 0 | R68: 0
B69: Dryland Winter Garden Rent | D69: 1 | F69: Acre | G69: 20 | I69: 20 | J69: 0 | K69: 0 | M69: 0 | N69: 0 | O69: 20 | P69: 0 | Q69: 2000 | R69: 0
B70: Property Taxes | D70: 1 | F70: Acre | G70: 0 | I70: 0 | J70: 0 | K70: 0 | M70: 0 | N70: 0 | O70: 0 | P70: 0 | Q70: 0 | R70: 0
B71: Whole Farm Insurance | D71: 1 | F71: Acre | G71: 0 | I71: 0 | J71: 0 | K71: 0 | M71: 0 | N71: 0 | O71: 0 | P71: 0 | Q71: 0 | R71: 0
D72: 1 | G72: 0 | I72: 0 | J72: 0 | K72: 0 | M72: 0 | N72: 0 | O72: 0 | P72: 0 | Q72: 0 | R72: 0
D73: 1 | G73: 0 | I73: 0 | J73: =E73*H73 -> 0 | K73: 0 | M73: 0 | N73: 0 | O73: 0 | P73: 0 | Q73: 0 | R73: 0
A74: Total Fixed Costs | I74: 82.30554909 | J74: =+SUM(J59:J73) -> 0 | M74: 0 | N74: =+SUM(N59:N73) -> 0 | O74: 82.30554909 | P74: =+SUM(P59:P73) -> 0 | Q74: 8230.554909 | R74: =+SUM(R59:R73) -> 0
A75: Total Specified Costs | I75: 228.4479337 | J75: =+J53+J74 -> 0 | M75: 0 | N75: =+N53+N74 -> 0 | O75: 228.4479337 | P75: =+P53+P74 -> 0 | Q75: 22844.79337 | R75: =+R53+R74 -> 0
A77: Returns Above Specified Costs | I77: -66.44793372 | J77: =+J13-J75 -> 0 | M77: 0 | N77: =+N13-N75 -> 0 | O77: -66.44793372 | P77: =+P13-P75 -> 0 | Q77: -6644.793372 | R77: =+R13-R75 -> 0
A79: Breakeven Price to Cover Total Costs | G79: 7.614931124 | H79: =IF(E10=0,"n/a",(YTotExp-(YTotExp+YTotRet-J10))/E10) -> n/a | I79: Bushel
D81: Example Breakeven Prices
B82: Example | C82: Example | D82: To Cover | G82: To Cover
B83: Yield | C83: Yield | D83: Variable | G83: Total
B84: Percent | C84: Bushel | D84: Costs | G84: Costs
B85: 0.75 | C85: 22.5 | D85: 6.495217094 | G85: 10.1532415
B86: 0.9 | C86: 27 | D86: 5.412680912 | G86: 8.461034582
B87: 1 | C87: 30 | D87: 4.871412821 | G87: 7.614931124
B88: 1.1 | C88: 33 | D88: 4.42855711 | G88: 6.922664658
B89: 1.25 | C89: 37.5 | D89: 3.897130257 | G89: 6.091944899
D91: Your Breakeven Prices
B92: Your | C92: Your | E92: To Cover | H92: To Cover
B93: Yield | C93: Yield | E93: Variable | H93: Total
B94: Percent | C94: Bushel | E94: Costs | H94: Costs
B95: 0.75 | C95: =E10*YPER1 -> 0 | E95: =IF($E$10=0,0,(YVarExp-(YTotExp+YTotRet-J10))/($E$10*YPER1)) -> 0 | H95: =IF($E$10=0,0,(YTotExp-(YTotExp+YTotRet-J10))/($E$10*YPER1)) -> 0
B96: 0.9 | C96: =E10*YPER2 -> 0 | E96: =IF($E$10=0,0,(YVarExp-(YTotExp+YTotRet-J10))/($E$10*YPER2)) -> 0 | H96: =IF($E$10=0,0,(YTotExp-(YTotExp+YTotRet-J10))/($E$10*YPER2)) -> 0
B97: 1 | C97: =+E10 -> 0 | E97: =IF($E$10=0,0,(YVarExp-(YTotExp+YTotRet-J10))/($E$10*YPER3)) -> 0 | H97: =IF($E$10=0,0,(YTotExp-(YTotExp+YTotRet-J10))/($E$10*YPER3)) -> 0
B98: 1.1 | C98: =E10*YPER4 -> 0 | E98: =IF($E$10=0,0,(YVarExp-(YTotExp+YTotRet-J10))/($E$10*YPER4)) -> 0 | H98: =IF($E$10=0,0,(YTotExp-(YTotExp+YTotRet-J10))/($E$10*YPER4)) -> 0
B99: 1.25 | C99: =E10*YPER5 -> 0 | E99: =IF($E$10=0,0,(YVarExp-(YTotExp+YTotRet-J10))/($E$10*YPER5)) -> 0 | H99: =IF($E$10=0,0,(YTotExp-(YTotExp+YTotRet-J10))/($E$10*YPER5)) -> 0
A101: Developed by Extension Agricultural Economists, Texas A&M AgriLife Extension, budgets@tamu.edu.
A103: Information presented is prepared solely as a general guide and not intended to recognize or predict the costs and returns from any one operation. Brand names are mentioned only as examples and imply no endorsement.

Sheet WinterWheatIrrigated
A1: Projections for Planning Purposes Only -- Not to be Used without Updating
A2: 2025 Estimated Costs and Returns per Acre
A3: Irrigated Winter Wheat
A4: Enter your name for this budget in the cell above.
A5: Enter Your Values in the cells highlighed in MAROON.
E6: Your Acres | R6: Your
C7: Crop Acres | D7: 122 | L7: Your | Q7: Enterprise | R7: Enterprise
E8: Your | H8: Your | I8: Cash | J8: Your | K8: Landlord | L8: Landlord | N8: Your | P8: Your | Q8: Total | R8: Total
A9: REVENUE | D9: Quantity | E9: Quantity | F9: Units | G9: $/Unit | H9: $/Unit | I9: Total | J9: Total | K9: Share | L9: Share | M9: Landlord | N9: Landlord | O9: Tenant | P9: Tenant | Q9: (122 acres) | R9: ="(" & E7 & " acres)" -> ( acres)
B10: Winter Wheat | D10: 70 | F10: Bushel | G10: 5.4 | I10: 378 | J10: =E10*H10 -> 0 | K10: 0 | M10: 0 | N10: =J10*L10 -> 0 | O10: 378 | P10: =+J10-N10 -> 0 | Q10: 46116 | R10: =+J10*E$7 -> 0
D11: 0 | G11: 0 | I11: 0 | J11: 0 | K11: 0 | M11: 0 | N11: 0 | O11: 0 | P11: =+J11-N11 -> 0 | Q11: 0 | R11: 0
D12: 0 | G12: 0 | I12: 0 | J12: 0 | K12: 0 | M12: 0 | N12: 0 | O12: 0 | P12: 0 | Q12: 0 | R12: 0
A13: Total Revenue | I13: 378 | J13: =SUM(J10:J12) -> 0 | M13: 0 | N13: =SUM(N10:N12) -> 0 | O13: 378 | P13: =SUM(P10:P12) -> 0 | Q13: 46116 | R13: =SUM(R10:R12) -> 0
Q14: Enterprise | R14: Enterprise
A15: VARIABLE COSTS | D15: Quantity | E15: Quantity | F15: Units | G15: $/Unit | H15: $/Unit | I15: Total | J15: Total | K15: Share | L15: Share | M15: Landlord | N15: Landlord | O15: Tenant | P15: Tenant | Q15: Total | R15: Total
A16: Production Costs
B17: Herbicide
C18: 2, 4-D Amine 4 | D18: 16 | F18: Ounce | G18: 0.148046875 | I18: 2.36875 | J18: =E18*H18 -> 0 | K18: 0 | M18: 0 | N18: =J18*L18 -> 0 | O18: 2.36875 | P18: =+J18-N18 -> 0 | Q18: 288.9875 | R18: =+J18*E$7 -> 0
B19: Seed
C20: Wheat Seed Public | D20: 60 | F20: Pound | G20: 0.375 | I20: 22.5 | J20: 0 | K20: 0 | M20: 0 | N20: 0 | O20: 22.5 | P20: 0 | Q20: 2745 | R20: 0
B21: Fertilizer
C22: UAN(32% N) | D22: 2.8 | F22: CWT | G22: 17.08 | I22: 47.824 | J22: 0 | K22: 0 | M22: 0 | N22: 0 | O22: 47.824 | P22: 0 | Q22: 5834.528 | R22: 0
C23: Fertilizer 18-46-0 | D23: 87 | F23: Pound | G23: 0.35 | I23: 30.45 | J23: 0 | K23: 0 | M23: 0 | N23: 0 | O23: 30.45 | P23: 0 | Q23: 3714.9 | R23: 0
B24: Custom
C25: Haul Wheat | D25: 70 | F25: Bushel | G25: 0.14 | I25: 9.8 | J25: 0 | K25: 0 | M25: 0 | N25: 0 | O25: 9.8 | P25: 0 | Q25: 1195.6 | R25: 0
B26: Miscellaneous
C27: Crop Insurance - Wheat Irrigated | D27: 1 | F27: Acre | G27: 7 | I27: 7 | J27: 0 | K27: 0 | M27: 0 | N27: 0 | O27: 7 | P27: 0 | Q27: 854 | R27: 0
B28: Insecticide
C29: Lorsban 4E | D29: 1 | F29: Pint | G29: 4.519 | I29: 4.519 | J29: 0 | K29: 0 | M29: 0 | N29: 0 | O29: 4.519 | P29: 0 | Q29: 551.318 | R29: 0
B30: Fungicides
C31: Quilt | D31: 10.5 | F31: Ounce | G31: 1.434375 | I31: 15.0609375 | J31: 0 | K31: 0 | M31: 0 | N31: 0 | O31: 15.0609375 | P31: 0 | Q31: 1837.434375 | R31: 0
D32: 0 | G32: 0 | I32: 0 | J32: 0 | K32: 0 | M32: 0 | N32: 0 | O32: 0 | P32: 0 | Q32: 0 | R32: 0
D33: 0 | G33: 0 | I33: 0 | J33: 0 | K33: 0 | M33: 0 | N33: 0 | O33: 0 | P33: 0 | Q33: 0 | R33: 0
D34: 0 | G34: 0 | I34: 0 | J34: =E34*H34 -> 0 | K34: 0 | M34: 0 | N34: =J34*L34 -> 0 | O34: 0 | P34: =+J34-N34 -> 0 | Q34: 0 | R34: =+J34*E$7 -> 0
B35: Irrigation
C36: Energy Cost | D36: 396 | F36: kWh | G36: 0.17 | I36: 67.32 | J36: =E36*H36 -> 0 | K36: 0 | M36: 0 | N36: =J36*L36 -> 0 | O36: 67.32 | P36: =+J36-N36 -> 0 | Q36: 8213.04 | R36: =+J36*E$7 -> 0
C37: Irrigation Labor | D37: 0.048 | F37: Hour | G37: 17.5 | I37: 0.84 | J37: 0 | K37: 0 | M37: 0 | N37: 0 | O37: 0.84 | P37: 0 | Q37: 102.48 | R37: 0
B38: Machinery Labor
C39: Tractors/Self-Propelled | D39: 0.57 | F39: Hour | G39: 17.21 | I39: 9.8097 | J39: =E39*H39 -> 0 | K39: 0 | M39: 0 | N39: =J39*L39 -> 0 | O39: 9.8097 | P39: =+J39-N39 -> 0 | Q39: 1196.7834 | R39: =+J39*E$7 -> 0
C40: Other Labor | D40: 0.19 | F40: Hour | G40: 17.21 | I40: 3.2699 | J40: =E40*H40 -> 0 | K40: 0 | M40: 0 | N40: =J40*L40 -> 0 | O40: 3.2699 | P40: =+J40-N40 -> 0 | Q40: 398.9278 | R40: =+J40*E$7 -> 0
B42: Diesel Fuel
C43: Pickup/General Use Equipment | D43: 1 | F43: Acre | G43: 0 | I43: 0 | J43: =E43*H43 -> 0 | K43: 0 | M43: 0 | N43: =J43*L43 -> 0 | O43: 0 | P43: =+J43-N43 -> 0 | Q43: 0 | R43: =+J43*E$7 -> 0
C44: Tractors/Self-Propelled | D44: 4.33 | F44: Gallon | G44: 3 | I44: 12.99 | J44: =E44*H44 -> 0 | K44: 0 | M44: 0 | N44: =J44*L44 -> 0 | O44: 12.99 | P44: =+J44-N44 -> 0 | Q44: 1584.78 | R44: =+J44*E$7 -> 0
B46: Gasoline
C47: Pickup/General Use Equipment | D47: 1 | F47: Acre | G47: 26.61286176 | I47: 26.61286176 | J47: =E47*H47 -> 0 | K47: 0 | M47: 0 | N47: =J47*L47 -> 0 | O47: 26.61286176 | P47: =+J47-N47 -> 0 | Q47: 3246.769134 | R47: =+J47*E$7 -> 0
C48: Tractors/Self-Propelled | D48: 0 | F48: Gallon | G48: 2.75 | I48: 0 | J48: =E48*H48 -> 0 | K48: 0 | M48: 0 | N48: =J48*L48 -> 0 | O48: 0 | P48: =+J48-N48 -> 0 | Q48: 0 | R48: =+J48*E$7 -> 0
B50: Repairs & Maintenance
C51: Pickup/General Use Equipment | D51: 1 | F51: Acre | G51: 4.839108197 | I51: 4.839108197 | J51: =E51*H51 -> 0 | K51: 0 | M51: 0 | N51: =J51*L51 -> 0 | O51: 4.839108197 | P51: =+J51-N51 -> 0 | Q51: 590.3712 | R51: =+J51*E$7 -> 0
C52: Irrigation Equipment | D52: 1 | F52: Acre | G52: 3.732692436 | I52: 3.732692436 | J52: 0 | K52: 0 | M52: 0 | N52: 0 | O52: 3.732692436 | P52: 0 | Q52: 455.3884772 | R52: 0
C53: Tractors/Self-Propelled | D53: 1 | F53: Acre | G53: 16.10465489 | I53: 16.10465489 | J53: 0 | K53: 0 | M53: 0 | N53: 0 | O53: 16.10465489 | P53: 0 | Q53: 1964.767896 | R53: 0
C54: Implements | D54: 1 | F54: Acre | G54: 8.959144572 | I54: 8.959144572 | J54: 0 | K54: 0 | M54: 0 | N54: 0 | O54: 8.959144572 | P54: 0 | Q54: 1093.015638 | R54: 0
I55: 0 | J55: 0 | K55: 0 | M55: 0 | N55: 0 | O55: 0 | P55: 0 | Q55: 0 | R55: 0
I56: 0 | J56: 0 | K56: 0 | M56: 0 | N56: 0 | O56: 0 | P56: 0 | Q56: 0 | R56: 0
B57: Interest on Credit Line | G57: 0.086 | I57: 10.56123471 | J57: =+SUM(J17:J56)/2*H57 -> 0 | M57: 0 | N57: =+SUM(N17:N56)/2*L57 -> 0 | O57: 10.56123471 | P57: =+SUM(P17:P56)/2*L57 -> 0 | Q57: 1288.470635 | R57: =+J57*E$7 -> 0
A58: Total Variable Costs | I58: 304.5619841 | J58: =SUM(J18:J57) -> 0 | M58: 0 | N58: =SUM(N18:N57) -> 0 | O58: 304.5619841 | P58: =SUM(P18:P57) -> 0 | Q58: 37156.56206 | R58: =SUM(R18:R57) -> 0
A59: Planned Returns Above Variable Costs: | I59: 73.43801594 | J59: =+J13-J58 -> 0 | M59: 0 | N59: =+N13-N58 -> 0 | O59: 73.43801594 | P59: =+P13-P58 -> 0 | Q59: 8959.437945 | R59: =+R13-R58 -> 0
B60: Breakeven Price to Cover Variable Costs | G60: 4.350885487 | H60: =IF(E10=0,"n/a",(YVarExp-(YTotExp+YTotRet-J10))/E10) -> n/a | I60: Bushel
Q61: Enterprise | R61: Enterprise
A62: FIXED COSTS | D62: Quantity | E62: Quantity | F62: Units | G62: $/Unit | H62: $/Unit | I62: Total | J62: Total | K62: Share | L62: Share | M62: Landlord | N62: Landlord | O62: Tenant | P62: Tenant | Q62: Total | R62: Total
B63: Machinery Depreciation
C64: Pickup/General Use Equipment | D64: 1 | F64: Acre | G64: 25.20368852 | I64: 25.20368852 | J64: =E64*H64 -> 0 | K64: 0 | M64: 0 | N64: =J64*L64 -> 0 | O64: 25.20368852 | P64: =+J64-N64 -> 0 | Q64: 3074.85 | R64: =+J64*E$7 -> 0
C65: Irrigation Equipment | D65: 1 | F65: Acre | G65: 80.58401639 | I65: 80.58401639 | J65: 0 | K65: 0 | M65: 0 | N65: =J65*L65 -> 0 | O65: 80.58401639 | P65: 0 | Q65: 9831.25 | R65: 0
C66: Tractors/Self-Propelled | D66: 1 | F66: Acre | G66: 16.35193035 | I66: 16.35193035 | J66: 0 | K66: 0 | M66: 0 | N66: =J66*L66 -> 0 | O66: 16.35193035 | P66: 0 | Q66: 1994.935503 | R66: 0
C67: Implements | D67: 1 | F67: Acre | G67: 11.59533641 | I67: 11.59533641 | J67: 0 | K67: 0 | M67: 0 | N67: =J67*L67 -> 0 | O67: 11.59533641 | P67: 0 | Q67: 1414.631042 | R67: 0
B68: Equipment Investment
C69: Pickup/General Use Equipment | D69: 105.0153689 | F69: Dollars | G69: 0.086 | I69: 9.031321721 | J69: =E69*H69 -> 0 | K69: 0 | M69: 0 | N69: =J69*L69 -> 0 | O69: 9.031321721 | P69: =+J69-N69 -> 0 | Q69: 1101.82125 | R69: =+J69*E$7 -> 0
C70: Irrigation Equipment | D70: 646.0040984 | F70: Dollars | G70: 0.086 | I70: 55.55635246 | J70: 0 | K70: 0 | M70: 0 | N70: =J70*L70 -> 0 | O70: 55.55635246 | P70: 0 | Q70: 6777.875 | R70: 0
C71: Tractors/Self-Propelled | D71: 124.5122765 | F71: Dollars | G71: 0.086 | I71: 10.70805578 | J71: 0 | K71: 0 | M71: 0 | N71: =J71*L71 -> 0 | O71: 10.70805578 | P71: 0 | Q71: 1306.382805 | R71: 0
C72: Implements | D72: 54.17786494 | F72: Dollars | G72: 0.086 | I72: 4.659296385 | J72: 0 | K72: 0 | M72: 0 | N72: =J72*L72 -> 0 | O72: 4.659296385 | P72: 0 | Q72: 568.434159 | R72: 0
B73: Salaried Labor | D73: 1 | F73: Acre | G73: 0 | I73: 0 | J73: 0 | K73: 0 | M73: 0 | N73: =J73*L73 -> 0 | O73: 0 | P73: =+J73-N73 -> 0 | Q73: 0 | R73: =+J73*E$7 -> 0
B74: Management Fee, Owner/Operator Labor | D74: 1 | F74: Acre | G74: 0 | I74: 0 | J74: 0 | K74: 0 | M74: 0 | N74: 0 | O74: 0 | P74: 0 | Q74: 0 | R74: 0
B75: Allocated Establishment Cost | D75: 1 | F75: Acre | G75: 0 | I75: 0 | J75: 0 | K75: 0 | M75: 0 | N75: 0 | O75: 0 | P75: 0 | Q75: 0 | R75: 0
B76: Irrigated Winter Garden Rent | D76: 1 | F76: Acre | G76: 50 | I76: 50 | J76: 0 | K76: 0 | M76: 0 | N76: 0 | O76: 50 | P76: 0 | Q76: 6100 | R76: 0
B77: Property Taxes | D77: 1 | F77: Acre | G77: 0 | I77: 0 | J77: 0 | K77: 0 | M77: 0 | N77: 0 | O77: 0 | P77: 0 | Q77: 0 | R77: 0
B78: Whole Farm Insurance | D78: 1 | F78: Acre | G78: 0 | I78: 0 | J78: 0 | K78: 0 | M78: 0 | N78: 0 | O78: 0 | P78: 0 | Q78: 0 | R78: 0
D79: 1 | G79: 0 | I79: 0 | J79: 0 | K79: 0 | M79: 0 | N79: 0 | O79: 0 | P79: 0 | Q79: 0 | R79: 0
D80: 1 | G80: 0 | I80: 0 | J80: =E80*H80 -> 0 | K80: 0 | M80: 0 | N80: 0 | O80: 0 | P80: 0 | Q80: 0 | R80: 0
A81: Total Fixed Costs | I81: 263.689998 | J81: =+SUM(J64:J80) -> 0 | M81: 0 | N81: =+SUM(N64:N80) -> 0 | O81: 263.689998 | P81: =+SUM(P64:P80) -> 0 | Q81: 32170.17976 | R81: =+SUM(R64:R80) -> 0
A82: Total Specified Costs | I82: 568.2519821 | J82: =+J58+J81 -> 0 | M82: 0 | N82: =+N58+N81 -> 0 | O82: 568.2519821 | P82: =+P58+P81 -> 0 | Q82: 69326.74181 | R82: =+R58+R81 -> 0
A84: Returns Above Specified Costs | I84: -190.2519821 | J84: =+J13-J82 -> 0 | M84: 0 | N84: =+N13-N82 -> 0 | O84: -190.2519821 | P84: =+P13-P82 -> 0 | Q84: -23210.74181 | R84: =+R13-R82 -> 0
A86: Breakeven Price to Cover Total Costs | G86: 8.117885458 | H86: =IF(E10=0,"n/a",(YTotExp-(YTotExp+YTotRet-J10))/E10) -> n/a | I86: Bushel
D88: Example Breakeven Prices
B89: Example | C89: Example | D89: To Cover | G89: To Cover
B90: Yield | C90: Yield | D90: Variable | G90: Total
B91: Percent | C91: Bushel | D91: Costs | G91: Costs
B92: 0.75 | C92: 52.5 | D92: 5.801180649 | G92: 10.82384728
B93: 0.9 | C93: 63 | D93: 4.834317207 | G93: 9.019872731
B94: 1 | C94: 70 | D94: 4.350885487 | G94: 8.117885458
B95: 1.1 | C95: 77 | D95: 3.955350442 | G95: 7.379895871
B96: 1.25 | C96: 87.5 | D96: 3.480708389 | G96: 6.494308367
D98: Your Breakeven Prices
B99: Your | C99: Your | E99: To Cover | H99: To Cover
B100: Yield | C100: Yield | E100: Variable | H100: Total
B101: Percent | C101: Bushel | E101: Costs | H101: Costs
B102: 0.75 | C102: =E10*YPER1 -> 0 | E102: =IF($E$10=0,0,(YVarExp-(YTotExp+YTotRet-J10))/($E$10*YPER1)) -> 0 | H102: =IF($E$10=0,0,(YTotExp-(YTotExp+YTotRet-J10))/($E$10*YPER1)) -> 0
B103: 0.9 | C103: =E10*YPER2 -> 0 | E103: =IF($E$10=0,0,(YVarExp-(YTotExp+YTotRet-J10))/($E$10*YPER2)) -> 0 | H103: =IF($E$10=0,0,(YTotExp-(YTotExp+YTotRet-J10))/($E$10*YPER2)) -> 0
B104: 1 | C104: =+E10 -> 0 | E104: =IF($E$10=0,0,(YVarExp-(YTotExp+YTotRet-J10))/($E$10*YPER3)) -> 0 | H104: =IF($E$10=0,0,(YTotExp-(YTotExp+YTotRet-J10))/($E$10*YPER3)) -> 0
B105: 1.1 | C105: =E10*YPER4 -> 0 | E105: =IF($E$10=0,0,(YVarExp-(YTotExp+YTotRet-J10))/($E$10*YPER4)) -> 0 | H105: =IF($E$10=0,0,(YTotExp-(YTotExp+YTotRet-J10))/($E$10*YPER4)) -> 0
B106: 1.25 | C106: =E10*YPER5 -> 0 | E106: =IF($E$10=0,0,(YVarExp-(YTotExp+YTotRet-J10))/($E$10*YPER5)) -> 0 | H106: =IF($E$10=0,0,(YTotExp-(YTotExp+YTotRet-J10))/($E$10*YPER5)) -> 0
A108: Developed by Extension Agricultural Economists, Texas A&M AgriLife Extension, budgets@tamu.edu.
A110: Information presented is prepared solely as a general guide and not intended to recognize or predict the costs and returns from any one operation. Brand names are mentioned only as examples and imply no endorsement.

Sheet CanolaIrrigated
A1: Projections for Planning Purposes Only -- Not to be Used without Updating
A2: 2025 Estimated Costs and Returns per Acre
A3: Irrigated Canola
A4: Enter your name for this budget in the cell above.
A5: Enter Your Values in the cells highlighed in MAROON.
E6: Your Acres | R6: Your
C7: Crop Acres | D7: 122 | L7: Your | Q7: Enterprise | R7: Enterprise
E8: Your | H8: Your | I8: Cash | J8: Your | K8: Landlord | L8: Landlord | N8: Your | P8: Your | Q8: Total | R8: Total
A9: REVENUE | D9: Quantity | E9: Quantity | F9: Units | G9: $/Unit | H9: $/Unit | I9: Total | J9: Total | K9: Share | L9: Share | M9: Landlord | N9: Landlord | O9: Tenant | P9: Tenant | Q9: (122 acres) | R9: ="(" & E7 & " acres)" -> ( acres)
B10: Canola | D10: 55 | F10: Bushel | G10: 11.7 | I10: 643.5 | J10: =E10*H10 -> 0 | K10: 0 | M10: 0 | N10: =J10*L10 -> 0 | O10: 643.5 | P10: =+J10-N10 -> 0 | Q10: 78507 | R10: =+J10*E$7 -> 0
D11: 0 | G11: 0 | I11: 0 | J11: 0 | K11: 0 | M11: 0 | N11: 0 | O11: 0 | P11: =+J11-N11 -> 0 | Q11: 0 | R11: 0
D12: 0 | G12: 0 | I12: 0 | J12: 0 | K12: 0 | M12: 0 | N12: 0 | O12: 0 | P12: 0 | Q12: 0 | R12: 0
A13: Total Revenue | I13: 643.5 | J13: =SUM(J10:J12) -> 0 | M13: 0 | N13: =SUM(N10:N12) -> 0 | O13: 643.5 | P13: =SUM(P10:P12) -> 0 | Q13: 78507 | R13: =SUM(R10:R12) -> 0
Q14: Enterprise | R14: Enterprise
A15: VARIABLE COSTS | D15: Quantity | E15: Quantity | F15: Units | G15: $/Unit | H15: $/Unit | I15: Total | J15: Total | K15: Share | L15: Share | M15: Landlord | N15: Landlord | O15: Tenant | P15: Tenant | Q15: Total | R15: Total
A16: Production Costs
B17: Fertilizer
C18: UAN(32% N) | D18: 3.72 | F18: CWT | G18: 17.08 | I18: 63.5376 | J18: =E18*H18 -> 0 | K18: 0 | M18: 0 | N18: =J18*L18 -> 0 | O18: 63.5376 | P18: =+J18-N18 -> 0 | Q18: 7751.5872 | R18: =+J18*E$7 -> 0
C19: Fertilizer 18-46-0 | D19: 108 | F19: Pound | G19: 0.35 | I19: 37.8 | J19: 0 | K19: 0 | M19: 0 | N19: 0 | O19: 37.8 | P19: 0 | Q19: 4611.6 | R19: 0
B20: Custom
C21: Haul Canola | D21: 55 | F21: Bushel | G21: 0.14 | I21: 7.7 | J21: 0 | K21: 0 | M21: 0 | N21: 0 | O21: 7.7 | P21: 0 | Q21: 939.4 | R21: 0
B22: Insecticide
C23: Lorsban 4E | D23: 2 | F23: Pint | G23: 4.519 | I23: 9.038 | J23: 0 | K23: 0 | M23: 0 | N23: 0 | O23: 9.038 | P23: 0 | Q23: 1102.636 | R23: 0
B24: Seed
C25: Canola RR Seed | D25: 4 | F25: Pound | G25: 6.8 | I25: 27.2 | J25: 0 | K25: 0 | M25: 0 | N25: 0 | O25: 27.2 | P25: 0 | Q25: 3318.4 | R25: 0
B26: Herbicide
C27: Glyphosate | D27: 2.75 | F27: Pint | G27: 1.63125 | I27: 4.4859375 | J27: 0 | K27: 0 | M27: 0 | N27: 0 | O27: 4.4859375 | P27: 0 | Q27: 547.284375 | R27: 0
C28: 2, 4-D Amine 4 | D28: 16 | F28: Ounce | G28: 0.148046875 | I28: 2.36875 | J28: 0 | K28: 0 | M28: 0 | N28: 0 | O28: 2.36875 | P28: 0 | Q28: 288.9875 | R28: 0
B29: Miscellaneous
C30: Crop Insurance - Canola Irrigated | D30: 1 | F30: Acre | G30: 18 | I30: 18 | J30: 0 | K30: 0 | M30: 0 | N30: 0 | O30: 18 | P30: 0 | Q30: 2196 | R30: 0
C31: Miscellaneous Canola Overhead | D31: 1 | F31: Acre | G31: 4 | I31: 4 | J31: 0 | K31: 0 | M31: 0 | N31: 0 | O31: 4 | P31: 0 | Q31: 488 | R31: 0
B32: Other Labor
C33: Hand Labor | D33: 0.1167 | F33: Hour | G33: 8.5 | I33: 0.99195 | J33: 0 | K33: 0 | M33: 0 | N33: 0 | O33: 0.99195 | P33: 0 | Q33: 121.0179 | R33: 0
D34: 0 | G34: 0 | I34: 0 | J34: 0 | K34: 0 | M34: 0 | N34: 0 | O34: 0 | P34: 0 | Q34: 0 | R34: 0
D35: 0 | G35: 0 | I35: 0 | J35: 0 | K35: 0 | M35: 0 | N35: 0 | O35: 0 | P35: 0 | Q35: 0 | R35: 0
D36: 0 | G36: 0 | I36: 0 | J36: =E36*H36 -> 0 | K36: 0 | M36: 0 | N36: =J36*L36 -> 0 | O36: 0 | P36: =+J36-N36 -> 0 | Q36: 0 | R36: =+J36*E$7 -> 0
B37: Irrigation
C38: Energy Cost | D38: 396 | F38: kWh | G38: 0.17 | I38: 67.32 | J38: =E38*H38 -> 0 | K38: 0 | M38: 0 | N38: =J38*L38 -> 0 | O38: 67.32 | P38: =+J38-N38 -> 0 | Q38: 8213.04 | R38: =+J38*E$7 -> 0
C39: Irrigation Labor | D39: 0.048 | F39: Hour | G39: 17.5 | I39: 0.84 | J39: 0 | K39: 0 | M39: 0 | N39: 0 | O39: 0.84 | P39: 0 | Q39: 102.48 | R39: 0
B40: Machinery Labor
C41: Tractors/Self-Propelled | D41: 0.57 | F41: Hour | G41: 17.21 | I41: 9.8097 | J41: =E41*H41 -> 0 | K41: 0 | M41: 0 | N41: =J41*L41 -> 0 | O41: 9.8097 | P41: =+J41-N41 -> 0 | Q41: 1196.7834 | R41: =+J41*E$7 -> 0
C42: Other Labor | D42: 0.19 | F42: Hour | G42: 17.21 | I42: 3.2699 | J42: =E42*H42 -> 0 | K42: 0 | M42: 0 | N42: =J42*L42 -> 0 | O42: 3.2699 | P42: =+J42-N42 -> 0 | Q42: 398.9278 | R42: =+J42*E$7 -> 0
B44: Diesel Fuel
C45: Pickup/General Use Equipment | D45: 1 | F45: Acre | G45: 0 | I45: 0 | J45: =E45*H45 -> 0 | K45: 0 | M45: 0 | N45: =J45*L45 -> 0 | O45: 0 | P45: =+J45-N45 -> 0 | Q45: 0 | R45: =+J45*E$7 -> 0
C46: Tractors/Self-Propelled | D46: 4.33 | F46: Gallon | G46: 3 | I46: 12.99 | J46: =E46*H46 -> 0 | K46: 0 | M46: 0 | N46: =J46*L46 -> 0 | O46: 12.99 | P46: =+J46-N46 -> 0 | Q46: 1584.78 | R46: =+J46*E$7 -> 0
B48: Gasoline
C49: Pickup/General Use Equipment | D49: 1 | F49: Acre | G49: 26.61286176 | I49: 26.61286176 | J49: =E49*H49 -> 0 | K49: 0 | M49: 0 | N49: =J49*L49 -> 0 | O49: 26.61286176 | P49: =+J49-N49 -> 0 | Q49: 3246.769134 | R49: =+J49*E$7 -> 0
C50: Tractors/Self-Propelled | D50: 0 | F50: Gallon | G50: 2.75 | I50: 0 | J50: =E50*H50 -> 0 | K50: 0 | M50: 0 | N50: =J50*L50 -> 0 | O50: 0 | P50: =+J50-N50 -> 0 | Q50: 0 | R50: =+J50*E$7 -> 0
B52: Repairs & Maintenance
C53: Pickup/General Use Equipment | D53: 1 | F53: Acre | G53: 4.839108197 | I53: 4.839108197 | J53: =E53*H53 -> 0 | K53: 0 | M53: 0 | N53: =J53*L53 -> 0 | O53: 4.839108197 | P53: =+J53-N53 -> 0 | Q53: 590.3712 | R53: =+J53*E$7 -> 0
C54: Irrigation Equipment | D54: 1 | F54: Acre | G54: 3.732692436 | I54: 3.732692436 | J54: 0 | K54: 0 | M54: 0 | N54: 0 | O54: 3.732692436 | P54: 0 | Q54: 455.3884772 | R54: 0
C55: Tractors/Self-Propelled | D55: 1 | F55: Acre | G55: 16.10465489 | I55: 16.10465489 | J55: 0 | K55: 0 | M55: 0 | N55: 0 | O55: 16.10465489 | P55: 0 | Q55: 1964.767896 | R55: 0
C56: Implements | D56: 1 | F56: Acre | G56: 8.959144572 | I56: 8.959144572 | J56: 0 | K56: 0 | M56: 0 | N56: 0 | O56: 8.959144572 | P56: 0 | Q56: 1093.015638 | R56: 0
I57: 0 | J57: 0 | K57: 0 | M57: 0 | N57: 0 | O57: 0 | P57: 0 | Q57: 0 | R57: 0
I58: 0 | J58: 0 | K58: 0 | M58: 0 | N58: 0 | O58: 0 | P58: 0 | Q58: 0 | R58: 0
B59: Interest on Credit Line | G59: 0.086 | I59: 12.50133967 | J59: =+SUM(J17:J58)/2*H59 -> 0 | M59: 0 | N59: =+SUM(N17:N58)/2*L59 -> 0 | O59: 12.50133967 | P59: =+SUM(P17:P58)/2*L59 -> 0 | Q59: 1525.16344 | R59: =+J59*E$7 -> 0
A60: Total Variable Costs | I60: 342.101639 | J60: =SUM(J18:J59) -> 0 | M60: 0 | N60: =SUM(N18:N59) -> 0 | O60: 342.101639 | P60: =SUM(P18:P59) -> 0 | Q60: 41736.39996 | R60: =SUM(R18:R59) -> 0
A61: Planned Returns Above Variable Costs: | I61: 301.398361 | J61: =+J13-J60 -> 0 | M61: 0 | N61: =+N13-N60 -> 0 | O61: 301.398361 | P61: =+P13-P60 -> 0 | Q61: 36770.60004 | R61: =+R13-R60 -> 0
B62: Breakeven Price to Cover Variable Costs | G62: 6.2200298 | H62: =IF(E10=0,"n/a",(YVarExp-(YTotExp+YTotRet-J10))/E10) -> n/a | I62: Bushel
Q63: Enterprise | R63: Enterprise
A64: FIXED COSTS | D64: Quantity | E64: Quantity | F64: Units | G64: $/Unit | H64: $/Unit | I64: Total | J64: Total | K64: Share | L64: Share | M64: Landlord | N64: Landlord | O64: Tenant | P64: Tenant | Q64: Total | R64: Total
B65: Machinery Depreciation
C66: Pickup/General Use Equipment | D66: 1 | F66: Acre | G66: 25.20368852 | I66: 25.20368852 | J66: =E66*H66 -> 0 | K66: 0 | M66: 0 | N66: =J66*L66 -> 0 | O66: 25.20368852 | P66: =+J66-N66 -> 0 | Q66: 3074.85 | R66: =+J66*E$7 -> 0
C67: Irrigation Equipment | D67: 1 | F67: Acre | G67: 80.58401639 | I67: 80.58401639 | J67: 0 | K67: 0 | M67: 0 | N67: =J67*L67 -> 0 | O67: 80.58401639 | P67: 0 | Q67: 9831.25 | R67: 0
C68: Tractors/Self-Propelled | D68: 1 | F68: Acre | G68: 16.35193035 | I68: 16.35193035 | J68: 0 | K68: 0 | M68: 0 | N68: =J68*L68 -> 0 | O68: 16.35193035 | P68: 0 | Q68: 1994.935503 | R68: 0
C69: Implements | D69: 1 | F69: Acre | G69: 11.59533641 | I69: 11.59533641 | J69: 0 | K69: 0 | M69: 0 | N69: =J69*L69 -> 0 | O69: 11.59533641 | P69: 0 | Q69: 1414.631042 | R69: 0
B70: Equipment Investment
C71: Pickup/General Use Equipment | D71: 105.0153689 | F71: Dollars | G71: 0.086 | I71: 9.031321721 | J71: =E71*H71 -> 0 | K71: 0 | M71: 0 | N71: =J71*L71 -> 0 | O71: 9.031321721 | P71: =+J71-N71 -> 0 | Q71: 1101.82125 | R71: =+J71*E$7 -> 0
C72: Irrigation Equipment | D72: 646.0040984 | F72: Dollars | G72: 0.086 | I72: 55.55635246 | J72: 0 | K72: 0 | M72: 0 | N72: =J72*L72 -> 0 | O72: 55.55635246 | P72: 0 | Q72: 6777.875 | R72: 0
C73: Tractors/Self-Propelled | D73: 124.5122765 | F73: Dollars | G73: 0.086 | I73: 10.70805578 | J73: 0 | K73: 0 | M73: 0 | N73: =J73*L73 -> 0 | O73: 10.70805578 | P73: 0 | Q73: 1306.382805 | R73: 0
C74: Implements | D74: 54.17786494 | F74: Dollars | G74: 0.086 | I74: 4.659296385 | J74: 0 | K74: 0 | M74: 0 | N74: =J74*L74 -> 0 | O74: 4.659296385 | P74: 0 | Q74: 568.434159 | R74: 0
B75: Salaried Labor | D75: 1 | F75: Acre | G75: 0 | I75: 0 | J75: 0 | K75: 0 | M75: 0 | N75: =J75*L75 -> 0 | O75: 0 | P75: =+J75-N75 -> 0 | Q75: 0 | R75: =+J75*E$7 -> 0
B76: Management Fee, Owner/Operator Labor | D76: 1 | F76: Acre | G76: 0 | I76: 0 | J76: 0 | K76: 0 | M76: 0 | N76: 0 | O76: 0 | P76: 0 | Q76: 0 | R76: 0
B77: Allocated Establishment Cost | D77: 1 | F77: Acre | G77: 0 | I77: 0 | J77: 0 | K77: 0 | M77: 0 | N77: 0 | O77: 0 | P77: 0 | Q77: 0 | R77: 0
B78: Irrigated Winter Garden Rent | D78: 1 | F78: Acre | G78: 50 | I78: 50 | J78: 0 | K78: 0 | M78: 0 | N78: 0 | O78: 50 | P78: 0 | Q78: 6100 | R78: 0
B79: Property Taxes | D79: 1 | F79: Acre | G79: 0 | I79: 0 | J79: 0 | K79: 0 | M79: 0 | N79: 0 | O79: 0 | P79: 0 | Q79: 0 | R79: 0
B80: Whole Farm Insurance | D80: 1 | F80: Acre | G80: 0 | I80: 0 | J80: 0 | K80: 0 | M80: 0 | N80: 0 | O80: 0 | P80: 0 | Q80: 0 | R80: 0
D81: 1 | G81: 0 | I81: 0 | J81: 0 | K81: 0 | M81: 0 | N81: 0 | O81: 0 | P81: 0 | Q81: 0 | R81: 0
D82: 1 | G82: 0 | I82: 0 | J82: =E82*H82 -> 0 | K82: 0 | M82: 0 | N82: 0 | O82: 0 | P82: 0 | Q82: 0 | R82: 0
A83: Total Fixed Costs | I83: 263.689998 | J83: =+SUM(J66:J82) -> 0 | M83: 0 | N83: =+SUM(N66:N82) -> 0 | O83: 263.689998 | P83: =+SUM(P66:P82) -> 0 | Q83: 32170.17976 | R83: =+SUM(R66:R82) -> 0
A84: Total Specified Costs | I84: 605.791637 | J84: =+J60+J83 -> 0 | M84: 0 | N84: =+N60+N83 -> 0 | O84: 605.791637 | P84: =+P60+P83 -> 0 | Q84: 73906.57972 | R84: =+R60+R83 -> 0
A86: Returns Above Specified Costs | I86: 37.70836296 | J86: =+J13-J84 -> 0 | M86: 0 | N86: =+N13-N84 -> 0 | O86: 37.70836296 | P86: =+P13-P84 -> 0 | Q86: 4600.420281 | R86: =+R13-R84 -> 0
A88: Breakeven Price to Cover Total Costs | G88: 11.0143934 | H88: =IF(E10=0,"n/a",(YTotExp-(YTotExp+YTotRet-J10))/E10) -> n/a | I88: Bushel
D90: Example Breakeven Prices
B91: Example | C91: Example | D91: To Cover | G91: To Cover
B92: Yield | C92: Yield | D92: Variable | G92: Total
B93: Percent | C93: Bushel | D93: Costs | G93: Costs
B94: 0.75 | C94: 41.25 | D94: 8.293373067 | G94: 14.68585787
B95: 0.9 | C95: 49.5 | D95: 6.911144223 | G95: 12.23821489
B96: 1 | C96: 55 | D96: 6.2200298 | G96: 11.0143934
B97: 1.1 | C97: 60.5 | D97: 5.654572546 | G97: 10.01308491
B98: 1.25 | C98: 68.75 | D98: 4.97602384 | G98: 8.811514721
D100: Your Breakeven Prices
B101: Your | C101: Your | E101: To Cover | H101: To Cover
B102: Yield | C102: Yield | E102: Variable | H102: Total
B103: Percent | C103: Bushel | E103: Costs | H103: Costs
B104: 0.75 | C104: =E10*YPER1 -> 0 | E104: =IF($E$10=0,0,(YVarExp-(YTotExp+YTotRet-J10))/($E$10*YPER1)) -> 0 | H104: =IF($E$10=0,0,(YTotExp-(YTotExp+YTotRet-J10))/($E$10*YPER1)) -> 0
B105: 0.9 | C105: =E10*YPER2 -> 0 | E105: =IF($E$10=0,0,(YVarExp-(YTotExp+YTotRet-J10))/($E$10*YPER2)) -> 0 | H105: =IF($E$10=0,0,(YTotExp-(YTotExp+YTotRet-J10))/($E$10*YPER2)) -> 0
B106: 1 | C106: =+E10 -> 0 | E106: =IF($E$10=0,0,(YVarExp-(YTotExp+YTotRet-J10))/($E$10*YPER3)) -> 0 | H106: =IF($E$10=0,0,(YTotExp-(YTotExp+YTotRet-J10))/($E$10*YPER3)) -> 0
B107: 1.1 | C107: =E10*YPER4 -> 0 | E107: =IF($E$10=0,0,(YVarExp-(YTotExp+YTotRet-J10))/($E$10*YPER4)) -> 0 | H107: =IF($E$10=0,0,(YTotExp-(YTotExp+YTotRet-J10))/($E$10*YPER4)) -> 0
B108: 1.25 | C108: =E10*YPER5 -> 0 | E108: =IF($E$10=0,0,(YVarExp-(YTotExp+YTotRet-J10))/($E$10*YPER5)) -> 0 | H108: =IF($E$10=0,0,(YTotExp-(YTotExp+YTotRet-J10))/($E$10*YPER5)) -> 0
A110: Developed by Extension Agricultural Economists, Texas A&M AgriLife Extension, budgets@tamu.edu.
A112: Information presented is prepared solely as a general guide and not intended to recognize or predict the costs and returns from any one operation. Brand names are mentioned only as examples and imply no endorsement.

Sheet BarleyIrrigated
A1: Projections for Planning Purposes Only -- Not to be Used without Updating
A2: 2025 Estimated Costs and Returns per Acre
A3: Irrigated Malting Barley
A4: Enter your name for this budget in the cell above.
A5: Enter Your Values in the cells highlighed in MAROON.
E6: Your Acres | R6: Your
C7: Crop Acres | D7: 122 | L7: Your | Q7: Enterprise | R7: Enterprise
E8: Your | H8: Your | I8: Cash | J8: Your | K8: Landlord | L8: Landlord | N8: Your | P8: Your | Q8: Total | R8: Total
A9: REVENUE | D9: Quantity | E9: Quantity | F9: Units | G9: $/Unit | H9: $/Unit | I9: Total | J9: Total | K9: Share | L9: Share | M9: Landlord | N9: Landlord | O9: Tenant | P9: Tenant | Q9: (122 acres) | R9: ="(" & E7 & " acres)" -> ( acres)
B10: Malting Barley | D10: 1.92 | F10: Ton | G10: 200 | I10: 384 | J10: =E10*H10 -> 0 | K10: 0 | M10: 0 | N10: =J10*L10 -> 0 | O10: 384 | P10: =+J10-N10 -> 0 | Q10: 46848 | R10: =+J10*E$7 -> 0
D11: 0 | G11: 0 | I11: 0 | J11: 0 | K11: 0 | M11: 0 | N11: 0 | O11: 0 | P11: =+J11-N11 -> 0 | Q11: 0 | R11: 0
D12: 0 | G12: 0 | I12: 0 | J12: 0 | K12: 0 | M12: 0 | N12: 0 | O12: 0 | P12: 0 | Q12: 0 | R12: 0
A13: Total Revenue | I13: 384 | J13: =SUM(J10:J12) -> 0 | M13: 0 | N13: =SUM(N10:N12) -> 0 | O13: 384 | P13: =SUM(P10:P12) -> 0 | Q13: 46848 | R13: =SUM(R10:R12) -> 0
Q14: Enterprise | R14: Enterprise
A15: VARIABLE COSTS | D15: Quantity | E15: Quantity | F15: Units | G15: $/Unit | H15: $/Unit | I15: Total | J15: Total | K15: Share | L15: Share | M15: Landlord | N15: Landlord | O15: Tenant | P15: Tenant | Q15: Total | R15: Total
A16: Production Costs
B17: Herbicide
C18: 2, 4-D Amine 4 | D18: 16 | F18: Ounce | G18: 0.148046875 | I18: 2.36875 | J18: =E18*H18 -> 0 | K18: 0 | M18: 0 | N18: =J18*L18 -> 0 | O18: 2.36875 | P18: =+J18-N18 -> 0 | Q18: 288.9875 | R18: =+J18*E$7 -> 0
B19: Seed
C20: Malting Barley Seed | D20: 60 | F20: Pound | G20: 0.8 | I20: 48 | J20: 0 | K20: 0 | M20: 0 | N20: 0 | O20: 48 | P20: 0 | Q20: 5856 | R20: 0
B21: Fertilizer
C22: UAN(32% N) | D22: 2 | F22: CWT | G22: 17.08 | I22: 34.16 | J22: 0 | K22: 0 | M22: 0 | N22: 0 | O22: 34.16 | P22: 0 | Q22: 4167.52 | R22: 0
C23: Fertilizer 18-46-0 | D23: 87 | F23: Pound | G23: 0.35 | I23: 30.45 | J23: 0 | K23: 0 | M23: 0 | N23: 0 | O23: 30.45 | P23: 0 | Q23: 3714.9 | R23: 0
B24: Custom
C25: Haul Barley | D25: 1.58 | F25: Ton | G25: 5.85 | I25: 9.243 | J25: 0 | K25: 0 | M25: 0 | N25: 0 | O25: 9.243 | P25: 0 | Q25: 1127.646 | R25: 0
B26: Miscellaneous
C27: Crop Insurance - M. Barley Irrigated | D27: 1 | F27: Acre | G27: 27 | I27: 27 | J27: 0 | K27: 0 | M27: 0 | N27: 0 | O27: 27 | P27: 0 | Q27: 3294 | R27: 0
C28: Miscellaneous Barley Overhead | D28: 1 | F28: Acre | G28: 4 | I28: 4 | J28: 0 | K28: 0 | M28: 0 | N28: 0 | O28: 4 | P28: 0 | Q28: 488 | R28: 0
B29: Insecticide
C30: Lorsban 4E | D30: 1 | F30: Pint | G30: 4.519 | I30: 4.519 | J30: 0 | K30: 0 | M30: 0 | N30: 0 | O30: 4.519 | P30: 0 | Q30: 551.318 | R30: 0
B31: Fungicides
C32: Quilt | D32: 10.5 | F32: Ounce | G32: 1.434375 | I32: 15.0609375 | J32: 0 | K32: 0 | M32: 0 | N32: 0 | O32: 15.0609375 | P32: 0 | Q32: 1837.434375 | R32: 0
B33: Other Labor
C34: Hand Labor | D34: 0.1167 | F34: Hour | G34: 8.5 | I34: 0.99195 | J34: 0 | K34: 0 | M34: 0 | N34: 0 | O34: 0.99195 | P34: 0 | Q34: 121.0179 | R34: 0
D35: 0 | G35: 0 | I35: 0 | J35: 0 | K35: 0 | M35: 0 | N35: 0 | O35: 0 | P35: 0 | Q35: 0 | R35: 0
D36: 0 | G36: 0 | I36: 0 | J36: 0 | K36: 0 | M36: 0 | N36: 0 | O36: 0 | P36: 0 | Q36: 0 | R36: 0
D37: 0 | G37: 0 | I37: 0 | J37: =E37*H37 -> 0 | K37: 0 | M37: 0 | N37: =J37*L37 -> 0 | O37: 0 | P37: =+J37-N37 -> 0 | Q37: 0 | R37: =+J37*E$7 -> 0
B38: Irrigation
C39: Energy Cost | D39: 396 | F39: kWh | G39: 0.17 | I39: 67.32 | J39: =E39*H39 -> 0 | K39: 0 | M39: 0 | N39: =J39*L39 -> 0 | O39: 67.32 | P39: =+J39-N39 -> 0 | Q39: 8213.04 | R39: =+J39*E$7 -> 0
C40: Irrigation Labor | D40: 0.048 | F40: Hour | G40: 17.5 | I40: 0.84 | J40: 0 | K40: 0 | M40: 0 | N40: 0 | O40: 0.84 | P40: 0 | Q40: 102.48 | R40: 0
B41: Machinery Labor
C42: Tractors/Self-Propelled | D42: 0.57 | F42: Hour | G42: 17.21 | I42: 9.8097 | J42: =E42*H42 -> 0 | K42: 0 | M42: 0 | N42: =J42*L42 -> 0 | O42: 9.8097 | P42: =+J42-N42 -> 0 | Q42: 1196.7834 | R42: =+J42*E$7 -> 0
C43: Other Labor | D43: 0.19 | F43: Hour | G43: 17.21 | I43: 3.2699 | J43: =E43*H43 -> 0 | K43: 0 | M43: 0 | N43: =J43*L43 -> 0 | O43: 3.2699 | P43: =+J43-N43 -> 0 | Q43: 398.9278 | R43: =+J43*E$7 -> 0
B45: Diesel Fuel
C46: Pickup/General Use Equipment | D46: 1 | F46: Acre | G46: 0 | I46: 0 | J46: =E46*H46 -> 0 | K46: 0 | M46: 0 | N46: =J46*L46 -> 0 | O46: 0 | P46: =+J46-N46 -> 0 | Q46: 0 | R46: =+J46*E$7 -> 0
C47: Tractors/Self-Propelled | D47: 4.33 | F47: Gallon | G47: 3 | I47: 12.99 | J47: =E47*H47 -> 0 | K47: 0 | M47: 0 | N47: =J47*L47 -> 0 | O47: 12.99 | P47: =+J47-N47 -> 0 | Q47: 1584.78 | R47: =+J47*E$7 -> 0
B49: Gasoline
C50: Pickup/General Use Equipment | D50: 1 | F50: Acre | G50: 26.61286176 | I50: 26.61286176 | J50: =E50*H50 -> 0 | K50: 0 | M50: 0 | N50: =J50*L50 -> 0 | O50: 26.61286176 | P50: =+J50-N50 -> 0 | Q50: 3246.769134 | R50: =+J50*E$7 -> 0
C51: Tractors/Self-Propelled | D51: 0 | F51: Gallon | G51: 2.75 | I51: 0 | J51: =E51*H51 -> 0 | K51: 0 | M51: 0 | N51: =J51*L51 -> 0 | O51: 0 | P51: =+J51-N51 -> 0 | Q51: 0 | R51: =+J51*E$7 -> 0
B53: Repairs & Maintenance
C54: Pickup/General Use Equipment | D54: 1 | F54: Acre | G54: 4.839108197 | I54: 4.839108197 | J54: =E54*H54 -> 0 | K54: 0 | M54: 0 | N54: =J54*L54 -> 0 | O54: 4.839108197 | P54: =+J54-N54 -> 0 | Q54: 590.3712 | R54: =+J54*E$7 -> 0
C55: Irrigation Equipment | D55: 1 | F55: Acre | G55: 3.732692436 | I55: 3.732692436 | J55: 0 | K55: 0 | M55: 0 | N55: 0 | O55: 3.732692436 | P55: 0 | Q55: 455.3884772 | R55: 0
C56: Tractors/Self-Propelled | D56: 1 | F56: Acre | G56: 16.10465489 | I56: 16.10465489 | J56: 0 | K56: 0 | M56: 0 | N56: 0 | O56: 16.10465489 | P56: 0 | Q56: 1964.767896 | R56: 0
C57: Implements | D57: 1 | F57: Acre | G57: 8.959144572 | I57: 8.959144572 | J57: 0 | K57: 0 | M57: 0 | N57: 0 | O57: 8.959144572 | P57: 0 | Q57: 1093.015638 | R57: 0
I58: 0 | J58: 0 | K58: 0 | M58: 0 | N58: 0 | O58: 0 | P58: 0 | Q58: 0 | R58: 0
I59: 0 | J59: 0 | K59: 0 | M59: 0 | N59: 0 | O59: 0 | P59: 0 | Q59: 0 | R59: 0
B60: Interest on Credit Line | G60: 0.086 | I60: 11.98967089 | J60: =+SUM(J17:J59)/2*H60 -> 0 | M60: 0 | N60: =+SUM(N17:N59)/2*L60 -> 0 | O60: 11.98967089 | P60: =+SUM(P17:P59)/2*L60 -> 0 | Q60: 1462.739849 | R60: =+J60*E$7 -> 0
A61: Total Variable Costs | I61: 342.2613702 | J61: =SUM(J18:J60) -> 0 | M61: 0 | N61: =SUM(N18:N60) -> 0 | O61: 342.2613702 | P61: =SUM(P18:P60) -> 0 | Q61: 41755.88717 | R61: =SUM(R18:R60) -> 0
A62: Planned Returns Above Variable Costs: | I62: 41.73862976 | J62: =+J13-J61 -> 0 | M62: 0 | N62: =+N13-N61 -> 0 | O62: 41.73862976 | P62: =+P13-P61 -> 0 | Q62: 5092.112831 | R62: =+R13-R61 -> 0
B63: Breakeven Price to Cover Variable Costs | G63: 178.2611303 | H63: =IF(E10=0,"n/a",(YVarExp-(YTotExp+YTotRet-J10))/E10) -> n/a | I63: Ton
Q64: Enterprise | R64: Enterprise
A65: FIXED COSTS | D65: Quantity | E65: Quantity | F65: Units | G65: $/Unit | H65: $/Unit | I65: Total | J65: Total | K65: Share | L65: Share | M65: Landlord | N65: Landlord | O65: Tenant | P65: Tenant | Q65: Total | R65: Total
B66: Machinery Depreciation
C67: Pickup/General Use Equipment | D67: 1 | F67: Acre | G67: 25.20368852 | I67: 25.20368852 | J67: =E67*H67 -> 0 | K67: 0 | M67: 0 | N67: =J67*L67 -> 0 | O67: 25.20368852 | P67: =+J67-N67 -> 0 | Q67: 3074.85 | R67: =+J67*E$7 -> 0
C68: Irrigation Equipment | D68: 1 | F68: Acre | G68: 80.58401639 | I68: 80.58401639 | J68: 0 | K68: 0 | M68: 0 | N68: =J68*L68 -> 0 | O68: 80.58401639 | P68: 0 | Q68: 9831.25 | R68: 0
C69: Tractors/Self-Propelled | D69: 1 | F69: Acre | G69: 16.35193035 | I69: 16.35193035 | J69: 0 | K69: 0 | M69: 0 | N69: =J69*L69 -> 0 | O69: 16.35193035 | P69: 0 | Q69: 1994.935503 | R69: 0
C70: Implements | D70: 1 | F70: Acre | G70: 11.59533641 | I70: 11.59533641 | J70: 0 | K70: 0 | M70: 0 | N70: =J70*L70 -> 0 | O70: 11.59533641 | P70: 0 | Q70: 1414.631042 | R70: 0
B71: Equipment Investment
C72: Pickup/General Use Equipment | D72: 105.0153689 | F72: Dollars | G72: 0.086 | I72: 9.031321721 | J72: =E72*H72 -> 0 | K72: 0 | M72: 0 | N72: =J72*L72 -> 0 | O72: 9.031321721 | P72: =+J72-N72 -> 0 | Q72: 1101.82125 | R72: =+J72*E$7 -> 0
C73: Irrigation Equipment | D73: 646.0040984 | F73: Dollars | G73: 0.086 | I73: 55.55635246 | J73: 0 | K73: 0 | M73: 0 | N73: =J73*L73 -> 0 | O73: 55.55635246 | P73: 0 | Q73: 6777.875 | R73: 0
C74: Tractors/Self-Propelled | D74: 124.5122765 | F74: Dollars | G74: 0.086 | I74: 10.70805578 | J74: 0 | K74: 0 | M74: 0 | N74: =J74*L74 -> 0 | O74: 10.70805578 | P74: 0 | Q74: 1306.382805 | R74: 0
C75: Implements | D75: 54.17786494 | F75: Dollars | G75: 0.086 | I75: 4.659296385 | J75: 0 | K75: 0 | M75: 0 | N75: =J75*L75 -> 0 | O75: 4.659296385 | P75: 0 | Q75: 568.434159 | R75: 0
B76: Salaried Labor | D76: 1 | F76: Acre | G76: 0 | I76: 0 | J76: 0 | K76: 0 | M76: 0 | N76: =J76*L76 -> 0 | O76: 0 | P76: =+J76-N76 -> 0 | Q76: 0 | R76: =+J76*E$7 -> 0
B77: Management Fee, Owner/Operator Labor | D77: 1 | F77: Acre | G77: 0 | I77: 0 | J77: 0 | K77: 0 | M77: 0 | N77: 0 | O77: 0 | P77: 0 | Q77: 0 | R77: 0
B78: Allocated Establishment Cost | D78: 1 | F78: Acre | G78: 0 | I78: 0 | J78: 0 | K78: 0 | M78: 0 | N78: 0 | O78: 0 | P78: 0 | Q78: 0 | R78: 0
B79: Irrigated Winter Garden Rent | D79: 1 | F79: Acre | G79: 50 | I79: 50 | J79: 0 | K79: 0 | M79: 0 | N79: 0 | O79: 50 | P79: 0 | Q79: 6100 | R79: 0
B80: Property Taxes | D80: 1 | F80: Acre | G80: 0 | I80: 0 | J80: 0 | K80: 0 | M80: 0 | N80: 0 | O80: 0 | P80: 0 | Q80: 0 | R80: 0
B81: Whole Farm Insurance | D81: 1 | F81: Acre | G81: 0 | I81: 0 | J81: 0 | K81: 0 | M81: 0 | N81: 0 | O81: 0 | P81: 0 | Q81: 0 | R81: 0
D82: 1 | G82: 0 | I82: 0 | J82: 0 | K82: 0 | M82: 0 | N82: 0 | O82: 0 | P82: 0 | Q82: 0 | R82: 0
D83: 1 | G83: 0 | I83: 0 | J83: =E83*H83 -> 0 | K83: 0 | M83: 0 | N83: 0 | O83: 0 | P83: 0 | Q83: 0 | R83: 0
A84: Total Fixed Costs | I84: 263.689998 | J84: =+SUM(J67:J83) -> 0 | M84: 0 | N84: =+SUM(N67:N83) -> 0 | O84: 263.689998 | P84: =+SUM(P67:P83) -> 0 | Q84: 32170.17976 | R84: =+SUM(R67:R83) -> 0
A85: Total Specified Costs | I85: 605.9513683 | J85: =+J61+J84 -> 0 | M85: 0 | N85: =+N61+N84 -> 0 | O85: 605.9513683 | P85: =+P61+P84 -> 0 | Q85: 73926.06693 | R85: =+R61+R84 -> 0
A87: Returns Above Specified Costs | I87: -221.9513683 | J87: =+J13-J85 -> 0 | M87: 0 | N87: =+N13-N85 -> 0 | O87: -221.9513683 | P87: =+P13-P85 -> 0 | Q87: -27078.06693 | R87: =+R13-R85 -> 0
A89: Breakeven Price to Cover Total Costs | G89: 315.599671 | H89: =IF(E10=0,"n/a",(YTotExp-(YTotExp+YTotRet-J10))/E10) -> n/a | I89: Ton
D91: Example Breakeven Prices
B92: Example | C92: Example | D92: To Cover | G92: To Cover
B93: Yield | C93: Yield | D93: Variable | G93: Total
B94: Percent | C94: Ton | D94: Costs | G94: Costs
B95: 0.75 | C95: 1.44 | D95: 237.6815071 | G95: 420.7995613
B96: 0.9 | C96: 1.728 | D96: 198.0679226 | G96: 350.6663011
B97: 1 | C97: 1.92 | D97: 178.2611303 | G97: 315.599671
B98: 1.1 | C98: 2.112 | D98: 162.055573 | G98: 286.9087918
B99: 1.25 | C99: 2.4 | D99: 142.6089043 | G99: 252.4797368
D101: Your Breakeven Prices
B102: Your | C102: Your | E102: To Cover | H102: To Cover
B103: Yield | C103: Yield | E103: Variable | H103: Total
B104: Percent | C104: Ton | E104: Costs | H104: Costs
B105: 0.75 | C105: =E10*YPER1 -> 0 | E105: =IF($E$10=0,0,(YVarExp-(YTotExp+YTotRet-J10))/($E$10*YPER1)) -> 0 | H105: =IF($E$10=0,0,(YTotExp-(YTotExp+YTotRet-J10))/($E$10*YPER1)) -> 0
B106: 0.9 | C106: =E10*YPER2 -> 0 | E106: =IF($E$10=0,0,(YVarExp-(YTotExp+YTotRet-J10))/($E$10*YPER2)) -> 0 | H106: =IF($E$10=0,0,(YTotExp-(YTotExp+YTotRet-J10))/($E$10*YPER2)) -> 0
B107: 1 | C107: =+E10 -> 0 | E107: =IF($E$10=0,0,(YVarExp-(YTotExp+YTotRet-J10))/($E$10*YPER3)) -> 0 | H107: =IF($E$10=0,0,(YTotExp-(YTotExp+YTotRet-J10))/($E$10*YPER3)) -> 0
B108: 1.1 | C108: =E10*YPER4 -> 0 | E108: =IF($E$10=0,0,(YVarExp-(YTotExp+YTotRet-J10))/($E$10*YPER4)) -> 0 | H108: =IF($E$10=0,0,(YTotExp-(YTotExp+YTotRet-J10))/($E$10*YPER4)) -> 0
B109: 1.25 | C109: =E10*YPER5 -> 0 | E109: =IF($E$10=0,0,(YVarExp-(YTotExp+YTotRet-J10))/($E$10*YPER5)) -> 0 | H109: =IF($E$10=0,0,(YTotExp-(YTotExp+YTotRet-J10))/($E$10*YPER5)) -> 0
A111: Developed by Extension Agricultural Economists, Texas A&M AgriLife Extension, budgets@tamu.edu.
A113: Information presented is prepared solely as a general guide and not intended to recognize or predict the costs and returns from any one operation. Brand names are mentioned only as examples and imply no endorsement.

Sheet Cabbage
A1: Projections for Planning Purposes Only -- Not to be Used without Updating
A2: 2025 Estimated Costs and Returns per Acre
A3: Irrigated Cabbage
A4: Enter your name for this budget in the cell above.
A5: Enter Your Values in the cells highlighed in MAROON.
E6: Your Acres | R6: Your
C7: Crop Acres | D7: 122 | L7: Your | Q7: Enterprise | R7: Enterprise
E8: Your | H8: Your | I8: Cash | J8: Your | K8: Landlord | L8: Landlord | N8: Your | P8: Your | Q8: Total | R8: Total
A9: REVENUE | D9: Quantity | E9: Quantity | F9: Units | G9: $/Unit | H9: $/Unit | I9: Total | J9: Total | K9: Share | L9: Share | M9: Landlord | N9: Landlord | O9: Tenant | P9: Tenant | Q9: (122 acres) | R9: ="(" & E7 & " acres)" -> ( acres)
B10: Cabbage | D10: 700 | F10: Bag | G10: 14 | I10: 9800 | J10: =E10*H10 -> 0 | K10: 0 | M10: 0 | N10: =J10*L10 -> 0 | O10: 9800 | P10: =+J10-N10 -> 0 | Q10: 1195600 | R10: =+J10*E$7 -> 0
D11: 0 | G11: 0 | I11: 0 | J11: 0 | K11: 0 | M11: 0 | N11: 0 | O11: 0 | P11: =+J11-N11 -> 0 | Q11: 0 | R11: 0
D12: 0 | G12: 0 | I12: 0 | J12: 0 | K12: 0 | M12: 0 | N12: 0 | O12: 0 | P12: 0 | Q12: 0 | R12: 0
A13: Total Revenue | I13: 9800 | J13: =SUM(J10:J12) -> 0 | M13: 0 | N13: =SUM(N10:N12) -> 0 | O13: 9800 | P13: =SUM(P10:P12) -> 0 | Q13: 1195600 | R13: =SUM(R10:R12) -> 0
Q14: Enterprise | R14: Enterprise
A15: VARIABLE COSTS | D15: Quantity | E15: Quantity | F15: Units | G15: $/Unit | H15: $/Unit | I15: Total | J15: Total | K15: Share | L15: Share | M15: Landlord | N15: Landlord | O15: Tenant | P15: Tenant | Q15: Total | R15: Total
A16: Production Costs
B17: Seed
C18: Cabbage Seed | D18: 1 | F18: Acre | G18: 134.75 | I18: 134.75 | J18: =E18*H18 -> 0 | K18: 0 | M18: 0 | N18: =J18*L18 -> 0 | O18: 134.75 | P18: =+J18-N18 -> 0 | Q18: 16439.5 | R18: =+J18*E$7 -> 0
B19: Fertilizer
C20: UAN(32% N) | D20: 2.52 | F20: CWT | G20: 17.08 | I20: 43.0416 | J20: 0 | K20: 0 | M20: 0 | N20: 0 | O20: 43.0416 | P20: 0 | Q20: 5251.0752 | R20: 0
C21: Fertilizer 18-46-0 | D21: 109 | F21: Pound | G21: 0.35 | I21: 38.15 | J21: 0 | K21: 0 | M21: 0 | N21: 0 | O21: 38.15 | P21: 0 | Q21: 4654.3 | R21: 0
C22: N-32 in Water | D22: 313 | F22: Pound | G22: 0.168 | I22: 52.584 | J22: 0 | K22: 0 | M22: 0 | N22: 0 | O22: 52.584 | P22: 0 | Q22: 6415.248 | R22: 0
B23: Custom
C24: Cabbage Custom Plant | D24: 1 | F24: Acre | G24: 30 | I24: 30 | J24: 0 | K24: 0 | M24: 0 | N24: 0 | O24: 30 | P24: 0 | Q24: 3660 | R24: 0
C25: Custom Harvest Cabbage | D25: 700 | F25: Bag | G25: 3 | I25: 2100 | J25: 0 | K25: 0 | M25: 0 | N25: 0 | O25: 2100 | P25: 0 | Q25: 256200 | R25: 0
B26: Miscellaneous
C27: Miscellaneous Cabbage Overhead | D27: 1 | F27: Acre | G27: 4 | I27: 4 | J27: 0 | K27: 0 | M27: 0 | N27: 0 | O27: 4 | P27: 0 | Q27: 488 | R27: 0
C28: Crop Insurance - Cabbage | D28: 1 | F28: Acre | G28: 187 | I28: 187 | J28: 0 | K28: 0 | M28: 0 | N28: 0 | O28: 187 | P28: 0 | Q28: 22814 | R28: 0
B29: Herbicide
C30: Dual Magnum | D30: 2 | F30: Pint | G30: 11.4375 | I30: 22.875 | J30: 0 | K30: 0 | M30: 0 | N30: 0 | O30: 22.875 | P30: 0 | Q30: 2790.75 | R30: 0
B31: Insecticide
C32: Lorsban 4E | D32: 5 | F32: Pint | G32: 4.519 | I32: 22.595 | J32: 0 | K32: 0 | M32: 0 | N32: 0 | O32: 22.595 | P32: 0 | Q32: 2756.59 | R32: 0
C33: Asana XL | D33: 32 | F33: Ounce | G33: 0.530859375 | I33: 16.9875 | J33: 0 | K33: 0 | M33: 0 | N33: 0 | O33: 16.9875 | P33: 0 | Q33: 2072.475 | R33: 0
B34: Other Labor
C35: Hand Labor | D35: 12.5 | F35: Hour | G35: 8.5 | I35: 106.25 | J35: 0 | K35: 0 | M35: 0 | N35: 0 | O35: 106.25 | P35: 0 | Q35: 12962.5 | R35: 0
B36: Fungicides
C37: Echo 720 | D37: 4.5 | F37: Pint | G37: 5.7 | I37: 25.65 | J37: 0 | K37: 0 | M37: 0 | N37: 0 | O37: 25.65 | P37: 0 | Q37: 3129.3 | R37: 0
D38: 0 | G38: 0 | I38: 0 | J38: 0 | K38: 0 | M38: 0 | N38: 0 | O38: 0 | P38: 0 | Q38: 0 | R38: 0
D39: 0 | G39: 0 | I39: 0 | J39: 0 | K39: 0 | M39: 0 | N39: 0 | O39: 0 | P39: 0 | Q39: 0 | R39: 0
D40: 0 | G40: 0 | I40: 0 | J40: =E40*H40 -> 0 | K40: 0 | M40: 0 | N40: =J40*L40 -> 0 | O40: 0 | P40: =+J40-N40 -> 0 | Q40: 0 | R40: =+J40*E$7 -> 0
B41: Irrigation
C42: Energy Cost | D42: 858 | F42: kWh | G42: 0.17 | I42: 145.86 | J42: =E42*H42 -> 0 | K42: 0 | M42: 0 | N42: =J42*L42 -> 0 | O42: 145.86 | P42: =+J42-N42 -> 0 | Q42: 17794.92 | R42: =+J42*E$7 -> 0
C43: Irrigation Labor | D43: 0.104 | F43: Hour | G43: 17.5 | I43: 1.82 | J43: 0 | K43: 0 | M43: 0 | N43: 0 | O43: 1.82 | P43: 0 | Q43: 222.04 | R43: 0
B44: Machinery Labor
C45: Tractors/Self-Propelled | D45: 1.04 | F45: Hour | G45: 17.21 | I45: 17.8984 | J45: =E45*H45 -> 0 | K45: 0 | M45: 0 | N45: =J45*L45 -> 0 | O45: 17.8984 | P45: =+J45-N45 -> 0 | Q45: 2183.6048 | R45: =+J45*E$7 -> 0
C46: Other Labor | D46: 0.11 | F46: Hour | G46: 17.21 | I46: 1.8931 | J46: =E46*H46 -> 0 | K46: 0 | M46: 0 | N46: =J46*L46 -> 0 | O46: 1.8931 | P46: =+J46-N46 -> 0 | Q46: 230.9582 | R46: =+J46*E$7 -> 0
B48: Diesel Fuel
C49: Pickup/General Use Equipment | D49: 1 | F49: Acre | G49: 0 | I49: 0 | J49: =E49*H49 -> 0 | K49: 0 | M49: 0 | N49: =J49*L49 -> 0 | O49: 0 | P49: =+J49-N49 -> 0 | Q49: 0 | R49: =+J49*E$7 -> 0
C50: Tractors/Self-Propelled | D50: 7.9 | F50: Gallon | G50: 3 | I50: 23.7 | J50: =E50*H50 -> 0 | K50: 0 | M50: 0 | N50: =J50*L50 -> 0 | O50: 23.7 | P50: =+J50-N50 -> 0 | Q50: 2891.4 | R50: =+J50*E$7 -> 0
B52: Gasoline
C53: Pickup/General Use Equipment | D53: 1 | F53: Acre | G53: 80.90185341 | I53: 80.90185341 | J53: =E53*H53 -> 0 | K53: 0 | M53: 0 | N53: =J53*L53 -> 0 | O53: 80.90185341 | P53: =+J53-N53 -> 0 | Q53: 9870.026116 | R53: =+J53*E$7 -> 0
C54: Tractors/Self-Propelled | D54: 0 | F54: Gallon | G54: 2.75 | I54: 0 | J54: =E54*H54 -> 0 | K54: 0 | M54: 0 | N54: =J54*L54 -> 0 | O54: 0 | P54: =+J54-N54 -> 0 | Q54: 0 | R54: =+J54*E$7 -> 0
B56: Repairs & Maintenance
C57: Pickup/General Use Equipment | D57: 1 | F57: Acre | G57: 14.7106623 | I57: 14.7106623 | J57: =E57*H57 -> 0 | K57: 0 | M57: 0 | N57: =J57*L57 -> 0 | O57: 14.7106623 | P57: =+J57-N57 -> 0 | Q57: 1794.7008 | R57: =+J57*E$7 -> 0
C58: Irrigation Equipment | D58: 1 | F58: Acre | G58: 8.087500278 | I58: 8.087500278 | J58: 0 | K58: 0 | M58: 0 | N58: 0 | O58: 8.087500278 | P58: 0 | Q58: 986.6750339 | R58: 0
C59: Tractors/Self-Propelled | D59: 1 | F59: Acre | G59: 20.4885318 | I59: 20.4885318 | J59: 0 | K59: 0 | M59: 0 | N59: 0 | O59: 20.4885318 | P59: 0 | Q59: 2499.600879 | R59: 0
C60: Implements | D60: 1 | F60: Acre | G60: 13.36584891 | I60: 13.36584891 | J60: 0 | K60: 0 | M60: 0 | N60: 0 | O60: 13.36584891 | P60: 0 | Q60: 1630.633567 | R60: 0
I61: 0 | J61: 0 | K61: 0 | M61: 0 | N61: 0 | O61: 0 | P61: 0 | Q61: 0 | R61: 0
I62: 0 | J62: 0 | K62: 0 | M62: 0 | N62: 0 | O62: 0 | P62: 0 | Q62: 0 | R62: 0
B63: Interest on Credit Line | G63: 0.086 | I63: 20.25406901 | J63: =+SUM(J17:J62)/2*H63 -> 0 | M63: 0 | N63: =+SUM(N17:N62)/2*L63 -> 0 | O63: 20.25406901 | P63: =+SUM(P17:P62)/2*L63 -> 0 | Q63: 2470.996419 | R63: =+J63*E$7 -> 0
A64: Total Variable Costs | I64: 3132.863066 | J64: =SUM(J18:J63) -> 0 | M64: 0 | N64: =SUM(N18:N63) -> 0 | O64: 3132.863066 | P64: =SUM(P18:P63) -> 0 | Q64: 382209.294 | R64: =SUM(R18:R63) -> 0
A65: Planned Returns Above Variable Costs: | I65: 6667.136934 | J65: =+J13-J64 -> 0 | M65: 0 | N65: =+N13-N64 -> 0 | O65: 6667.136934 | P65: =+P13-P64 -> 0 | Q65: 813390.706 | R65: =+R13-R64 -> 0
B66: Breakeven Price to Cover Variable Costs | G66: 4.475518665 | H66: =IF(E10=0,"n/a",(YVarExp-(YTotExp+YTotRet-J10))/E10) -> n/a | I66: Bag
Q67: Enterprise | R67: Enterprise
A68: FIXED COSTS | D68: Quantity | E68: Quantity | F68: Units | G68: $/Unit | H68: $/Unit | I68: Total | J68: Total | K68: Share | L68: Share | M68: Landlord | N68: Landlord | O68: Tenant | P68: Tenant | Q68: Total | R68: Total
B69: Machinery Depreciation
C70: Pickup/General Use Equipment | D70: 1 | F70: Acre | G70: 76.61803279 | I70: 76.61803279 | J70: =E70*H70 -> 0 | K70: 0 | M70: 0 | N70: =J70*L70 -> 0 | O70: 76.61803279 | P70: =+J70-N70 -> 0 | Q70: 9347.4 | R70: =+J70*E$7 -> 0
C71: Irrigation Equipment | D71: 1 | F71: Acre | G71: 80.58401639 | I71: 80.58401639 | J71: 0 | K71: 0 | M71: 0 | N71: =J71*L71 -> 0 | O71: 80.58401639 | P71: 0 | Q71: 9831.25 | R71: 0
C72: Tractors/Self-Propelled | D72: 1 | F72: Acre | G72: 23.61233925 | I72: 23.61233925 | J72: 0 | K72: 0 | M72: 0 | N72: =J72*L72 -> 0 | O72: 23.61233925 | P72: 0 | Q72: 2880.705388 | R72: 0
C73: Implements | D73: 1 | F73: Acre | G73: 15.84624891 | I73: 15.84624891 | J73: 0 | K73: 0 | M73: 0 | N73: =J73*L73 -> 0 | O73: 15.84624891 | P73: 0 | Q73: 1933.242367 | R73: 0
B74: Equipment Investment
C75: Pickup/General Use Equipment | D75: 319.2418033 | F75: Dollars | G75: 0.086 | I75: 27.45479508 | J75: =E75*H75 -> 0 | K75: 0 | M75: 0 | N75: =J75*L75 -> 0 | O75: 27.45479508 | P75: =+J75-N75 -> 0 | Q75: 3349.485 | R75: =+J75*E$7 -> 0
C76: Irrigation Equipment | D76: 646.0040984 | F76: Dollars | G76: 0.086 | I76: 55.55635246 | J76: 0 | K76: 0 | M76: 0 | N76: =J76*L76 -> 0 | O76: 55.55635246 | P76: 0 | Q76: 6777.875 | R76: 0
C77: Tractors/Self-Propelled | D77: 182.7632984 | F77: Dollars | G77: 0.086 | I77: 15.71764367 | J77: 0 | K77: 0 | M77: 0 | N77: =J77*L77 -> 0 | O77: 15.71764367 | P77: 0 | Q77: 1917.552527 | R77: 0
C78: Implements | D78: 69.15232109 | F78: Dollars | G78: 0.086 | I78: 5.947099614 | J78: 0 | K78: 0 | M78: 0 | N78: =J78*L78 -> 0 | O78: 5.947099614 | P78: 0 | Q78: 725.5461529 | R78: 0
B79: Salaried Labor | D79: 1 | F79: Acre | G79: 0 | I79: 0 | J79: 0 | K79: 0 | M79: 0 | N79: =J79*L79 -> 0 | O79: 0 | P79: =+J79-N79 -> 0 | Q79: 0 | R79: =+J79*E$7 -> 0
B80: Management Fee, Owner/Operator Labor | D80: 1 | F80: Acre | G80: 0 | I80: 0 | J80: 0 | K80: 0 | M80: 0 | N80: 0 | O80: 0 | P80: 0 | Q80: 0 | R80: 0
B81: Allocated Establishment Cost | D81: 1 | F81: Acre | G81: 0 | I81: 0 | J81: 0 | K81: 0 | M81: 0 | N81: 0 | O81: 0 | P81: 0 | Q81: 0 | R81: 0
B82: Irrigated Winter Garden Rent | D82: 1 | F82: Acre | G82: 50 | I82: 50 | J82: 0 | K82: 0 | M82: 0 | N82: 0 | O82: 50 | P82: 0 | Q82: 6100 | R82: 0
B83: Property Taxes | D83: 1 | F83: Acre | G83: 0 | I83: 0 | J83: 0 | K83: 0 | M83: 0 | N83: 0 | O83: 0 | P83: 0 | Q83: 0 | R83: 0
B84: Whole Farm Insurance | D84: 1 | F84: Acre | G84: 0 | I84: 0 | J84: 0 | K84: 0 | M84: 0 | N84: 0 | O84: 0 | P84: 0 | Q84: 0 | R84: 0
D85: 1 | G85: 0 | I85: 0 | J85: 0 | K85: 0 | M85: 0 | N85: 0 | O85: 0 | P85: 0 | Q85: 0 | R85: 0
D86: 1 | G86: 0 | I86: 0 | J86: =E86*H86 -> 0 | K86: 0 | M86: 0 | N86: 0 | O86: 0 | P86: 0 | Q86: 0 | R86: 0
A87: Total Fixed Costs | I87: 351.3365282 | J87: =+SUM(J70:J86) -> 0 | M87: 0 | N87: =+SUM(N70:N86) -> 0 | O87: 351.3365282 | P87: =+SUM(P70:P86) -> 0 | Q87: 42863.05644 | R87: =+SUM(R70:R86) -> 0
A88: Total Specified Costs | I88: 3484.199594 | J88: =+J64+J87 -> 0 | M88: 0 | N88: =+N64+N87 -> 0 | O88: 3484.199594 | P88: =+P64+P87 -> 0 | Q88: 425072.3505 | R88: =+R64+R87 -> 0
A90: Returns Above Specified Costs | I90: 6315.800406 | J90: =+J13-J88 -> 0 | M90: 0 | N90: =+N13-N88 -> 0 | O90: 6315.800406 | P90: =+P13-P88 -> 0 | Q90: 770527.6495 | R90: =+R13-R88 -> 0
A92: Breakeven Price to Cover Total Costs | G92: 4.977427991 | H92: =IF(E10=0,"n/a",(YTotExp-(YTotExp+YTotRet-J10))/E10) -> n/a | I92: Bag
D94: Example Breakeven Prices
B95: Example | C95: Example | D95: To Cover | G95: To Cover
B96: Yield | C96: Yield | D96: Variable | G96: Total
B97: Percent | C97: Bag | D97: Costs | G97: Costs
B98: 0.75 | C98: 525 | D98: 5.96735822 | G98: 6.636570655
B99: 0.9 | C99: 630 | D99: 4.972798517 | G99: 5.530475546
B100: 1 | C100: 700 | D100: 4.475518665 | G100: 4.977427991
B101: 1.1 | C101: 770 | D101: 4.068653332 | G101: 4.524934537
B102: 1.25 | C102: 875 | D102: 3.580414932 | G102: 3.981942393
D104: Your Breakeven Prices
B105: Your | C105: Your | E105: To Cover | H105: To Cover
B106: Yield | C106: Yield | E106: Variable | H106: Total
B107: Percent | C107: Bag | E107: Costs | H107: Costs
B108: 0.75 | C108: =E10*YPER1 -> 0 | E108: =IF($E$10=0,0,(YVarExp-(YTotExp+YTotRet-J10))/($E$10*YPER1)) -> 0 | H108: =IF($E$10=0,0,(YTotExp-(YTotExp+YTotRet-J10))/($E$10*YPER1)) -> 0
B109: 0.9 | C109: =E10*YPER2 -> 0 | E109: =IF($E$10=0,0,(YVarExp-(YTotExp+YTotRet-J10))/($E$10*YPER2)) -> 0 | H109: =IF($E$10=0,0,(YTotExp-(YTotExp+YTotRet-J10))/($E$10*YPER2)) -> 0
B110: 1 | C110: =+E10 -> 0 | E110: =IF($E$10=0,0,(YVarExp-(YTotExp+YTotRet-J10))/($E$10*YPER3)) -> 0 | H110: =IF($E$10=0,0,(YTotExp-(YTotExp+YTotRet-J10))/($E$10*YPER3)) -> 0
B111: 1.1 | C111: =E10*YPER4 -> 0 | E111: =IF($E$10=0,0,(YVarExp-(YTotExp+YTotRet-J10))/($E$10*YPER4)) -> 0 | H111: =IF($E$10=0,0,(YTotExp-(YTotExp+YTotRet-J10))/($E$10*YPER4)) -> 0
B112: 1.25 | C112: =E10*YPER5 -> 0 | E112: =IF($E$10=0,0,(YVarExp-(YTotExp+YTotRet-J10))/($E$10*YPER5)) -> 0 | H112: =IF($E$10=0,0,(YTotExp-(YTotExp+YTotRet-J10))/($E$10*YPER5)) -> 0
A114: Developed by Extension Agricultural Economists, Texas A&M AgriLife Extension, budgets@tamu.edu.
A116: Information presented is prepared solely as a general guide and not intended to recognize or predict the costs and returns from any one operation. Brand names are mentioned only as examples and imply no endorsement.

Sheet Cucumbers
A1: Projections for Planning Purposes Only -- Not to be Used without Updating
A2: 2025 Estimated Costs and Returns per Acre
A3: Irrigated Pickling Cucumbers
A4: Enter your name for this budget in the cell above.
A5: Enter Your Values in the cells highlighed in MAROON.
E6: Your Acres | R6: Your
C7: Crop Acres | D7: 122 | L7: Your | Q7: Enterprise | R7: Enterprise
E8: Your | H8: Your | I8: Cash | J8: Your | K8: Landlord | L8: Landlord | N8: Your | P8: Your | Q8: Total | R8: Total
A9: REVENUE | D9: Quantity | E9: Quantity | F9: Units | G9: $/Unit | H9: $/Unit | I9: Total | J9: Total | K9: Share | L9: Share | M9: Landlord | N9: Landlord | O9: Tenant | P9: Tenant | Q9: (122 acres) | R9: ="(" & E7 & " acres)" -> ( acres)
B10: Cucumbers (Pickles) | D10: 150 | F10: CWT | G10: 6.5 | I10: 975 | J10: =E10*H10 -> 0 | K10: 0 | M10: 0 | N10: =J10*L10 -> 0 | O10: 975 | P10: =+J10-N10 -> 0 | Q10: 118950 | R10: =+J10*E$7 -> 0
D11: 0 | G11: 0 | I11: 0 | J11: 0 | K11: 0 | M11: 0 | N11: 0 | O11: 0 | P11: =+J11-N11 -> 0 | Q11: 0 | R11: 0
D12: 0 | G12: 0 | I12: 0 | J12: 0 | K12: 0 | M12: 0 | N12: 0 | O12: 0 | P12: 0 | Q12: 0 | R12: 0
A13: Total Revenue | I13: 975 | J13: =SUM(J10:J12) -> 0 | M13: 0 | N13: =SUM(N10:N12) -> 0 | O13: 975 | P13: =SUM(P10:P12) -> 0 | Q13: 118950 | R13: =SUM(R10:R12) -> 0
Q14: Enterprise | R14: Enterprise
A15: VARIABLE COSTS | D15: Quantity | E15: Quantity | F15: Units | G15: $/Unit | H15: $/Unit | I15: Total | J15: Total | K15: Share | L15: Share | M15: Landlord | N15: Landlord | O15: Tenant | P15: Tenant | Q15: Total | R15: Total
A16: Production Costs
B17: Seed
C18: Cucumber Seed | D18: 10 | F18: Pound | G18: 7.65 | I18: 76.5 | J18: =E18*H18 -> 0 | K18: 0 | M18: 0 | N18: =J18*L18 -> 0 | O18: 76.5 | P18: =+J18-N18 -> 0 | Q18: 9333 | R18: =+J18*E$7 -> 0
B19: Fertilizer
C20: UAN(32% N) | D20: 1.52 | F20: CWT | G20: 17.08 | I20: 25.9616 | J20: 0 | K20: 0 | M20: 0 | N20: 0 | O20: 25.9616 | P20: 0 | Q20: 3167.3152 | R20: 0
C21: Fertilizer 18-46-0 | D21: 174 | F21: Pound | G21: 0.35 | I21: 60.9 | J21: 0 | K21: 0 | M21: 0 | N21: 0 | O21: 60.9 | P21: 0 | Q21: 7429.8 | R21: 0
B22: Custom
C23: Custom Haul/Pack Cucumbers | D23: 150 | F23: CWT | G23: 0.43 | I23: 64.5 | J23: 0 | K23: 0 | M23: 0 | N23: 0 | O23: 64.5 | P23: 0 | Q23: 7869 | R23: 0
B24: Miscellaneous
C25: Miscellaneous Cucumber Overhead | D25: 1 | F25: Acre | G25: 4 | I25: 4 | J25: 0 | K25: 0 | M25: 0 | N25: 0 | O25: 4 | P25: 0 | Q25: 488 | R25: 0
C26: Crop Insurance - Cucumbers | D26: 1 | F26: Acre | G26: 76 | I26: 76 | J26: 0 | K26: 0 | M26: 0 | N26: 0 | O26: 76 | P26: 0 | Q26: 9272 | R26: 0
B27: Insecticide
C28: Admire | D28: 8.5 | F28: Ounce | G28: 1.726953125 | I28: 14.67910156 | J28: 0 | K28: 0 | M28: 0 | N28: 0 | O28: 14.67910156 | P28: 0 | Q28: 1790.850391 | R28: 0
C29: Asana XL | D29: 8 | F29: Ounce | G29: 0.530859375 | I29: 4.246875 | J29: 0 | K29: 0 | M29: 0 | N29: 0 | O29: 4.246875 | P29: 0 | Q29: 518.11875 | R29: 0
B30: Herbicide
C31: Prefar | D31: 6 | F31: Quart | G31: 17.4375 | I31: 104.625 | J31: 0 | K31: 0 | M31: 0 | N31: 0 | O31: 104.625 | P31: 0 | Q31: 12764.25 | R31: 0
B32: Fungicides
C33: Echo 720 | D33: 4.5 | F33: Pint | G33: 5.7 | I33: 25.65 | J33: 0 | K33: 0 | M33: 0 | N33: 0 | O33: 25.65 | P33: 0 | Q33: 3129.3 | R33: 0
D34: 0 | G34: 0 | I34: 0 | J34: 0 | K34: 0 | M34: 0 | N34: 0 | O34: 0 | P34: 0 | Q34: 0 | R34: 0
D35: 0 | G35: 0 | I35: 0 | J35: 0 | K35: 0 | M35: 0 | N35: 0 | O35: 0 | P35: 0 | Q35: 0 | R35: 0
D36: 0 | G36: 0 | I36: 0 | J36: =E36*H36 -> 0 | K36: 0 | M36: 0 | N36: =J36*L36 -> 0 | O36: 0 | P36: =+J36-N36 -> 0 | Q36: 0 | R36: =+J36*E$7 -> 0
B37: Irrigation
C38: Energy Cost | D38: 396 | F38: kWh | G38: 0.17 | I38: 67.32 | J38: =E38*H38 -> 0 | K38: 0 | M38: 0 | N38: =J38*L38 -> 0 | O38: 67.32 | P38: =+J38-N38 -> 0 | Q38: 8213.04 | R38: =+J38*E$7 -> 0
C39: Irrigation Labor | D39: 0.048 | F39: Hour | G39: 17.5 | I39: 0.84 | J39: 0 | K39: 0 | M39: 0 | N39: 0 | O39: 0.84 | P39: 0 | Q39: 102.48 | R39: 0
B40: Machinery Labor
C41: Tractors/Self-Propelled | D41: 0.93 | F41: Hour | G41: 17.21 | I41: 16.0053 | J41: =E41*H41 -> 0 | K41: 0 | M41: 0 | N41: =J41*L41 -> 0 | O41: 16.0053 | P41: =+J41-N41 -> 0 | Q41: 1952.6466 | R41: =+J41*E$7 -> 0
C42: Other Labor | D42: 0.11 | F42: Hour | G42: 17.21 | I42: 1.8931 | J42: =E42*H42 -> 0 | K42: 0 | M42: 0 | N42: =J42*L42 -> 0 | O42: 1.8931 | P42: =+J42-N42 -> 0 | Q42: 230.9582 | R42: =+J42*E$7 -> 0
B44: Diesel Fuel
C45: Pickup/General Use Equipment | D45: 1 | F45: Acre | G45: 0 | I45: 0 | J45: =E45*H45 -> 0 | K45: 0 | M45: 0 | N45: =J45*L45 -> 0 | O45: 0 | P45: =+J45-N45 -> 0 | Q45: 0 | R45: =+J45*E$7 -> 0
C46: Tractors/Self-Propelled | D46: 6.84 | F46: Gallon | G46: 3 | I46: 20.52 | J46: =E46*H46 -> 0 | K46: 0 | M46: 0 | N46: =J46*L46 -> 0 | O46: 20.52 | P46: =+J46-N46 -> 0 | Q46: 2503.44 | R46: =+J46*E$7 -> 0
B48: Gasoline
C49: Pickup/General Use Equipment | D49: 1 | F49: Acre | G49: 43.47715144 | I49: 43.47715144 | J49: =E49*H49 -> 0 | K49: 0 | M49: 0 | N49: =J49*L49 -> 0 | O49: 43.47715144 | P49: =+J49-N49 -> 0 | Q49: 5304.212475 | R49: =+J49*E$7 -> 0
C50: Tractors/Self-Propelled | D50: 0 | F50: Gallon | G50: 2.75 | I50: 0 | J50: =E50*H50 -> 0 | K50: 0 | M50: 0 | N50: =J50*L50 -> 0 | O50: 0 | P50: =+J50-N50 -> 0 | Q50: 0 | R50: =+J50*E$7 -> 0
B52: Repairs & Maintenance
C53: Pickup/General Use Equipment | D53: 1 | F53: Acre | G53: 7.9056 | I53: 7.9056 | J53: =E53*H53 -> 0 | K53: 0 | M53: 0 | N53: =J53*L53 -> 0 | O53: 7.9056 | P53: =+J53-N53 -> 0 | Q53: 964.4832 | R53: =+J53*E$7 -> 0
C54: Irrigation Equipment | D54: 1 | F54: Acre | G54: 3.732692436 | I54: 3.732692436 | J54: 0 | K54: 0 | M54: 0 | N54: 0 | O54: 3.732692436 | P54: 0 | Q54: 455.3884772 | R54: 0
C55: Tractors/Self-Propelled | D55: 1 | F55: Acre | G55: 18.04461461 | I55: 18.04461461 | J55: 0 | K55: 0 | M55: 0 | N55: 0 | O55: 18.04461461 | P55: 0 | Q55: 2201.442982 | R55: 0
C56: Implements | D56: 1 | F56: Acre | G56: 11.10771684 | I56: 11.10771684 | J56: 0 | K56: 0 | M56: 0 | N56: 0 | O56: 11.10771684 | P56: 0 | Q56: 1355.141455 | R56: 0
I57: 0 | J57: 0 | K57: 0 | M57: 0 | N57: 0 | O57: 0 | P57: 0 | Q57: 0 | R57: 0
I58: 0 | J58: 0 | K58: 0 | M58: 0 | N58: 0 | O58: 0 | P58: 0 | Q58: 0 | R58: 0
B59: Interest on Credit Line | G59: 0.086 | I59: 9.450897573 | J59: =+SUM(J17:J58)/2*H59 -> 0 | M59: 0 | N59: =+SUM(N17:N58)/2*L59 -> 0 | O59: 9.450897573 | P59: =+SUM(P17:P58)/2*L59 -> 0 | Q59: 1153.009504 | R59: =+J59*E$7 -> 0
A60: Total Variable Costs | I60: 657.3596495 | J60: =SUM(J18:J59) -> 0 | M60: 0 | N60: =SUM(N18:N59) -> 0 | O60: 657.3596495 | P60: =SUM(P18:P59) -> 0 | Q60: 80197.87723 | R60: =SUM(R18:R59) -> 0
A61: Planned Returns Above Variable Costs: | I61: 317.6403505 | J61: =+J13-J60 -> 0 | M61: 0 | N61: =+N13-N60 -> 0 | O61: 317.6403505 | P61: =+P13-P60 -> 0 | Q61: 38752.12277 | R61: =+R13-R60 -> 0
B62: Breakeven Price to Cover Variable Costs | G62: 4.382397663 | H62: =IF(E10=0,"n/a",(YVarExp-(YTotExp+YTotRet-J10))/E10) -> n/a | I62: CWT
Q63: Enterprise | R63: Enterprise
A64: FIXED COSTS | D64: Quantity | E64: Quantity | F64: Units | G64: $/Unit | H64: $/Unit | I64: Total | J64: Total | K64: Share | L64: Share | M64: Landlord | N64: Landlord | O64: Tenant | P64: Tenant | Q64: Total | R64: Total
B65: Machinery Depreciation
C66: Pickup/General Use Equipment | D66: 1 | F66: Acre | G66: 41.175 | I66: 41.175 | J66: =E66*H66 -> 0 | K66: 0 | M66: 0 | N66: =J66*L66 -> 0 | O66: 41.175 | P66: =+J66-N66 -> 0 | Q66: 5023.35 | R66: =+J66*E$7 -> 0
C67: Irrigation Equipment | D67: 1 | F67: Acre | G67: 80.58401639 | I67: 80.58401639 | J67: 0 | K67: 0 | M67: 0 | N67: =J67*L67 -> 0 | O67: 80.58401639 | P67: 0 | Q67: 9831.25 | R67: 0
C68: Tractors/Self-Propelled | D68: 1 | F68: Acre | G68: 19.04760691 | I68: 19.04760691 | J68: 0 | K68: 0 | M68: 0 | N68: =J68*L68 -> 0 | O68: 19.04760691 | P68: 0 | Q68: 2323.808043 | R68: 0
C69: Implements | D69: 1 | F69: Acre | G69: 13.3672989 | I69: 13.3672989 | J69: 0 | K69: 0 | M69: 0 | N69: =J69*L69 -> 0 | O69: 13.3672989 | P69: 0 | Q69: 1630.810466 | R69: 0
B70: Equipment Investment
C71: Pickup/General Use Equipment | D71: 171.5625 | F71: Dollars | G71: 0.086 | I71: 14.754375 | J71: =E71*H71 -> 0 | K71: 0 | M71: 0 | N71: =J71*L71 -> 0 | O71: 14.754375 | P71: =+J71-N71 -> 0 | Q71: 1800.03375 | R71: =+J71*E$7 -> 0
C72: Irrigation Equipment | D72: 646.0040984 | F72: Dollars | G72: 0.086 | I72: 55.55635246 | J72: 0 | K72: 0 | M72: 0 | N72: =J72*L72 -> 0 | O72: 55.55635246 | P72: 0 | Q72: 6777.875 | R72: 0
C73: Tractors/Self-Propelled | D73: 148.150114 | F73: Dollars | G73: 0.086 | I73: 12.7409098 | J73: 0 | K73: 0 | M73: 0 | N73: =J73*L73 -> 0 | O73: 12.7409098 | P73: 0 | Q73: 1554.390996 | R73: 0
C74: Implements | D74: 59.88703773 | F74: Dollars | G74: 0.086 | I74: 5.150285245 | J74: 0 | K74: 0 | M74: 0 | N74: =J74*L74 -> 0 | O74: 5.150285245 | P74: 0 | Q74: 628.3347999 | R74: 0
B75: Salaried Labor | D75: 1 | F75: Acre | G75: 0 | I75: 0 | J75: 0 | K75: 0 | M75: 0 | N75: =J75*L75 -> 0 | O75: 0 | P75: =+J75-N75 -> 0 | Q75: 0 | R75: =+J75*E$7 -> 0
B76: Management Fee, Owner/Operator Labor | D76: 1 | F76: Acre | G76: 0 | I76: 0 | J76: 0 | K76: 0 | M76: 0 | N76: 0 | O76: 0 | P76: 0 | Q76: 0 | R76: 0
B77: Allocated Establishment Cost | D77: 1 | F77: Acre | G77: 0 | I77: 0 | J77: 0 | K77: 0 | M77: 0 | N77: 0 | O77: 0 | P77: 0 | Q77: 0 | R77: 0
B78: Irrigated Winter Garden Rent | D78: 1 | F78: Acre | G78: 50 | I78: 50 | J78: 0 | K78: 0 | M78: 0 | N78: 0 | O78: 50 | P78: 0 | Q78: 6100 | R78: 0
B79: Property Taxes | D79: 1 | F79: Acre | G79: 0 | I79: 0 | J79: 0 | K79: 0 | M79: 0 | N79: 0 | O79: 0 | P79: 0 | Q79: 0 | R79: 0
B80: Whole Farm Insurance | D80: 1 | F80: Acre | G80: 0 | I80: 0 | J80: 0 | K80: 0 | M80: 0 | N80: 0 | O80: 0 | P80: 0 | Q80: 0 | R80: 0
D81: 1 | G81: 0 | I81: 0 | J81: 0 | K81: 0 | M81: 0 | N81: 0 | O81: 0 | P81: 0 | Q81: 0 | R81: 0
D82: 1 | G82: 0 | I82: 0 | J82: =E82*H82 -> 0 | K82: 0 | M82: 0 | N82: 0 | O82: 0 | P82: 0 | Q82: 0 | R82: 0
A83: Total Fixed Costs | I83: 292.3758447 | J83: =+SUM(J66:J82) -> 0 | M83: 0 | N83: =+SUM(N66:N82) -> 0 | O83: 292.3758447 | P83: =+SUM(P66:P82) -> 0 | Q83: 35669.85305 | R83: =+SUM(R66:R82) -> 0
A84: Total Specified Costs | I84: 949.7354942 | J84: =+J60+J83 -> 0 | M84: 0 | N84: =+N60+N83 -> 0 | O84: 949.7354942 | P84: =+P60+P83 -> 0 | Q84: 115867.7303 | R84: =+R60+R83 -> 0
A86: Returns Above Specified Costs | I86: 25.26450584 | J86: =+J13-J84 -> 0 | M86: 0 | N86: =+N13-N84 -> 0 | O86: 25.26450584 | P86: =+P13-P84 -> 0 | Q86: 3082.269712 | R86: =+R13-R84 -> 0
A88: Breakeven Price to Cover Total Costs | G88: 6.331569961 | H88: =IF(E10=0,"n/a",(YTotExp-(YTotExp+YTotRet-J10))/E10) -> n/a | I88: CWT
D90: Example Breakeven Prices
B91: Example | C91: Example | D91: To Cover | G91: To Cover
B92: Yield | C92: Yield | D92: Variable | G92: Total
B93: Percent | C93: CWT | D93: Costs | G93: Costs
B94: 0.75 | C94: 112.5 | D94: 5.843196884 | G94: 8.442093281
B95: 0.9 | C95: 135 | D95: 4.869330737 | G95: 7.035077735
B96: 1 | C96: 150 | D96: 4.382397663 | G96: 6.331569961
B97: 1.1 | C97: 165 | D97: 3.983997875 | G97: 5.755972692
B98: 1.25 | C98: 187.5 | D98: 3.50591813 | G98: 5.065255969
D100: Your Breakeven Prices
B101: Your | C101: Your | E101: To Cover | H101: To Cover
B102: Yield | C102: Yield | E102: Variable | H102: Total
B103: Percent | C103: CWT | E103: Costs | H103: Costs
B104: 0.75 | C104: =E10*YPER1 -> 0 | E104: =IF($E$10=0,0,(YVarExp-(YTotExp+YTotRet-J10))/($E$10*YPER1)) -> 0 | H104: =IF($E$10=0,0,(YTotExp-(YTotExp+YTotRet-J10))/($E$10*YPER1)) -> 0
B105: 0.9 | C105: =E10*YPER2 -> 0 | E105: =IF($E$10=0,0,(YVarExp-(YTotExp+YTotRet-J10))/($E$10*YPER2)) -> 0 | H105: =IF($E$10=0,0,(YTotExp-(YTotExp+YTotRet-J10))/($E$10*YPER2)) -> 0
B106: 1 | C106: =+E10 -> 0 | E106: =IF($E$10=0,0,(YVarExp-(YTotExp+YTotRet-J10))/($E$10*YPER3)) -> 0 | H106: =IF($E$10=0,0,(YTotExp-(YTotExp+YTotRet-J10))/($E$10*YPER3)) -> 0
B107: 1.1 | C107: =E10*YPER4 -> 0 | E107: =IF($E$10=0,0,(YVarExp-(YTotExp+YTotRet-J10))/($E$10*YPER4)) -> 0 | H107: =IF($E$10=0,0,(YTotExp-(YTotExp+YTotRet-J10))/($E$10*YPER4)) -> 0
B108: 1.25 | C108: =E10*YPER5 -> 0 | E108: =IF($E$10=0,0,(YVarExp-(YTotExp+YTotRet-J10))/($E$10*YPER5)) -> 0 | H108: =IF($E$10=0,0,(YTotExp-(YTotExp+YTotRet-J10))/($E$10*YPER5)) -> 0
A110: Developed by Extension Agricultural Economists, Texas A&M AgriLife Extension, budgets@tamu.edu.
A112: Information presented is prepared solely as a general guide and not intended to recognize or predict the costs and returns from any one operation. Brand names are mentioned only as examples and imply no endorsement.

Sheet Onions
A1: Projections for Planning Purposes Only -- Not to be Used without Updating
A2: 2025 Estimated Costs and Returns per Acre
A3: Irrigated Onions
A4: Enter your name for this budget in the cell above.
A5: Enter Your Values in the cells highlighed in MAROON.
E6: Your Acres | R6: Your
C7: Crop Acres | D7: 122 | L7: Your | Q7: Enterprise | R7: Enterprise
E8: Your | H8: Your | I8: Cash | J8: Your | K8: Landlord | L8: Landlord | N8: Your | P8: Your | Q8: Total | R8: Total
A9: REVENUE | D9: Quantity | E9: Quantity | F9: Units | G9: $/Unit | H9: $/Unit | I9: Total | J9: Total | K9: Share | L9: Share | M9: Landlord | N9: Landlord | O9: Tenant | P9: Tenant | Q9: (122 acres) | R9: ="(" & E7 & " acres)" -> ( acres)
B10: Onions | D10: 700 | F10: Bags | G10: 10 | I10: 7000 | J10: =E10*H10 -> 0 | K10: 0 | M10: 0 | N10: =J10*L10 -> 0 | O10: 7000 | P10: =+J10-N10 -> 0 | Q10: 854000 | R10: =+J10*E$7 -> 0
D11: 0 | G11: 0 | I11: 0 | J11: 0 | K11: 0 | M11: 0 | N11: 0 | O11: 0 | P11: =+J11-N11 -> 0 | Q11: 0 | R11: 0
D12: 0 | G12: 0 | I12: 0 | J12: 0 | K12: 0 | M12: 0 | N12: 0 | O12: 0 | P12: 0 | Q12: 0 | R12: 0
A13: Total Revenue | I13: 7000 | J13: =SUM(J10:J12) -> 0 | M13: 0 | N13: =SUM(N10:N12) -> 0 | O13: 7000 | P13: =SUM(P10:P12) -> 0 | Q13: 854000 | R13: =SUM(R10:R12) -> 0
Q14: Enterprise | R14: Enterprise
A15: VARIABLE COSTS | D15: Quantity | E15: Quantity | F15: Units | G15: $/Unit | H15: $/Unit | I15: Total | J15: Total | K15: Share | L15: Share | M15: Landlord | N15: Landlord | O15: Tenant | P15: Tenant | Q15: Total | R15: Total
A16: Production Costs
B17: Fertilizer
C18: UAN(32% N) | D18: 0.34 | F18: CWT | G18: 17.08 | I18: 5.8072 | J18: =E18*H18 -> 0 | K18: 0 | M18: 0 | N18: =J18*L18 -> 0 | O18: 5.8072 | P18: =+J18-N18 -> 0 | Q18: 708.4784 | R18: =+J18*E$7 -> 0
C19: Fertilizer 18-46-0 | D19: 217 | F19: Pound | G19: 0.35 | I19: 75.95 | J19: 0 | K19: 0 | M19: 0 | N19: 0 | O19: 75.95 | P19: 0 | Q19: 9265.9 | R19: 0
C20: N-32 in Water | D20: 156 | F20: Pound | G20: 0.168 | I20: 26.208 | J20: 0 | K20: 0 | M20: 0 | N20: 0 | O20: 26.208 | P20: 0 | Q20: 3197.376 | R20: 0
B21: Custom
C22: Harvest/Pack/Market Onions | D22: 700 | F22: Bag | G22: 4.02 | I22: 2814 | J22: 0 | K22: 0 | M22: 0 | N22: 0 | O22: 2814 | P22: 0 | Q22: 343308 | R22: 0
B23: Insecticide
C24: Mustang Max | D24: 15 | F24: Ounce | G24: 1.4375 | I24: 21.5625 | J24: 0 | K24: 0 | M24: 0 | N24: 0 | O24: 21.5625 | P24: 0 | Q24: 2630.625 | R24: 0
B25: Seed
C26: Onion Seed | D26: 2 | F26: Pound | G26: 310.5 | I26: 621 | J26: 0 | K26: 0 | M26: 0 | N26: 0 | O26: 621 | P26: 0 | Q26: 75762 | R26: 0
B27: Miscellaneous
C28: Miscellaneous Onion Overhead | D28: 1 | F28: Acre | G28: 4 | I28: 4 | J28: 0 | K28: 0 | M28: 0 | N28: 0 | O28: 4 | P28: 0 | Q28: 488 | R28: 0
C29: Crop Insurance - Onions | D29: 1 | F29: Acre | G29: 644 | I29: 644 | J29: 0 | K29: 0 | M29: 0 | N29: 0 | O29: 644 | P29: 0 | Q29: 78568 | R29: 0
B30: Herbicide
C31: Prefar | D31: 18 | F31: Quart | G31: 17.4375 | I31: 313.875 | J31: 0 | K31: 0 | M31: 0 | N31: 0 | O31: 313.875 | P31: 0 | Q31: 38292.75 | R31: 0
B32: Fungicides
C33: Echo 720 | D33: 9 | F33: Pint | G33: 5.7 | I33: 51.3 | J33: 0 | K33: 0 | M33: 0 | N33: 0 | O33: 51.3 | P33: 0 | Q33: 6258.6 | R33: 0
B34: Other Labor
C35: Hand Labor | D35: 4.375 | F35: Hour | G35: 8.5 | I35: 37.1875 | J35: 0 | K35: 0 | M35: 0 | N35: 0 | O35: 37.1875 | P35: 0 | Q35: 4536.875 | R35: 0
D36: 0 | G36: 0 | I36: 0 | J36: 0 | K36: 0 | M36: 0 | N36: 0 | O36: 0 | P36: 0 | Q36: 0 | R36: 0
D37: 0 | G37: 0 | I37: 0 | J37: 0 | K37: 0 | M37: 0 | N37: 0 | O37: 0 | P37: 0 | Q37: 0 | R37: 0
D38: 0 | G38: 0 | I38: 0 | J38: =E38*H38 -> 0 | K38: 0 | M38: 0 | N38: =J38*L38 -> 0 | O38: 0 | P38: =+J38-N38 -> 0 | Q38: 0 | R38: =+J38*E$7 -> 0
B39: Irrigation
C40: Energy Cost | D40: 1584 | F40: kWh | G40: 0.17 | I40: 269.28 | J40: =E40*H40 -> 0 | K40: 0 | M40: 0 | N40: =J40*L40 -> 0 | O40: 269.28 | P40: =+J40-N40 -> 0 | Q40: 32852.16 | R40: =+J40*E$7 -> 0
C41: Irrigation Labor | D41: 0.192 | F41: Hour | G41: 17.5 | I41: 3.36 | J41: 0 | K41: 0 | M41: 0 | N41: 0 | O41: 3.36 | P41: 0 | Q41: 409.92 | R41: 0
B42: Machinery Labor
C43: Tractors/Self-Propelled | D43: 1.31 | F43: Hour | G43: 17.21 | I43: 22.5451 | J43: =E43*H43 -> 0 | K43: 0 | M43: 0 | N43: =J43*L43 -> 0 | O43: 22.5451 | P43: =+J43-N43 -> 0 | Q43: 2750.5022 | R43: =+J43*E$7 -> 0
C44: Other Labor | D44: 0.04 | F44: Hour | G44: 17.21 | I44: 0.6884 | J44: =E44*H44 -> 0 | K44: 0 | M44: 0 | N44: =J44*L44 -> 0 | O44: 0.6884 | P44: =+J44-N44 -> 0 | Q44: 83.9848 | R44: =+J44*E$7 -> 0
B46: Diesel Fuel
C47: Pickup/General Use Equipment | D47: 1 | F47: Acre | G47: 0 | I47: 0 | J47: =E47*H47 -> 0 | K47: 0 | M47: 0 | N47: =J47*L47 -> 0 | O47: 0 | P47: =+J47-N47 -> 0 | Q47: 0 | R47: =+J47*E$7 -> 0
C48: Tractors/Self-Propelled | D48: 9.76 | F48: Gallon | G48: 3 | I48: 29.28 | J48: =E48*H48 -> 0 | K48: 0 | M48: 0 | N48: =J48*L48 -> 0 | O48: 29.28 | P48: =+J48-N48 -> 0 | Q48: 3572.16 | R48: =+J48*E$7 -> 0
B50: Gasoline
C51: Pickup/General Use Equipment | D51: 1 | F51: Acre | G51: 43.47715144 | I51: 43.47715144 | J51: =E51*H51 -> 0 | K51: 0 | M51: 0 | N51: =J51*L51 -> 0 | O51: 43.47715144 | P51: =+J51-N51 -> 0 | Q51: 5304.212475 | R51: =+J51*E$7 -> 0
C52: Tractors/Self-Propelled | D52: 0 | F52: Gallon | G52: 2.75 | I52: 0 | J52: =E52*H52 -> 0 | K52: 0 | M52: 0 | N52: =J52*L52 -> 0 | O52: 0 | P52: =+J52-N52 -> 0 | Q52: 0 | R52: =+J52*E$7 -> 0
B54: Repairs & Maintenance
C55: Pickup/General Use Equipment | D55: 1 | F55: Acre | G55: 7.9056 | I55: 7.9056 | J55: =E55*H55 -> 0 | K55: 0 | M55: 0 | N55: =J55*L55 -> 0 | O55: 7.9056 | P55: =+J55-N55 -> 0 | Q55: 964.4832 | R55: =+J55*E$7 -> 0
C56: Irrigation Equipment | D56: 1 | F56: Acre | G56: 14.93076974 | I56: 14.93076974 | J56: 0 | K56: 0 | M56: 0 | N56: 0 | O56: 14.93076974 | P56: 0 | Q56: 1821.553909 | R56: 0
C57: Tractors/Self-Propelled | D57: 1 | F57: Acre | G57: 25.39514008 | I57: 25.39514008 | J57: 0 | K57: 0 | M57: 0 | N57: 0 | O57: 25.39514008 | P57: 0 | Q57: 3098.20709 | R57: 0
C58: Implements | D58: 1 | F58: Acre | G58: 18.19868069 | I58: 18.19868069 | J58: 0 | K58: 0 | M58: 0 | N58: 0 | O58: 18.19868069 | P58: 0 | Q58: 2220.239044 | R58: 0
I59: 0 | J59: 0 | K59: 0 | M59: 0 | N59: 0 | O59: 0 | P59: 0 | Q59: 0 | R59: 0
I60: 0 | J60: 0 | K60: 0 | M60: 0 | N60: 0 | O60: 0 | P60: 0 | Q60: 0 | R60: 0
B61: Interest on Credit Line | G61: 0.086 | I61: 98.93299215 | J61: =+SUM(J17:J60)/2*H61 -> 0 | M61: 0 | N61: =+SUM(N17:N60)/2*L61 -> 0 | O61: 98.93299215 | P61: =+SUM(P17:P60)/2*L61 -> 0 | Q61: 12069.82504 | R61: =+J61*E$7 -> 0
A62: Total Variable Costs | I62: 5148.884034 | J62: =SUM(J18:J61) -> 0 | M62: 0 | N62: =SUM(N18:N61) -> 0 | O62: 5148.884034 | P62: =SUM(P18:P61) -> 0 | Q62: 628163.8522 | R62: =SUM(R18:R61) -> 0
A63: Planned Returns Above Variable Costs: | I63: 1851.115966 | J63: =+J13-J62 -> 0 | M63: 0 | N63: =+N13-N62 -> 0 | O63: 1851.115966 | P63: =+P13-P62 -> 0 | Q63: 225836.1478 | R63: =+R13-R62 -> 0
B64: Breakeven Price to Cover Variable Costs | G64: 7.35554862 | H64: =IF(E10=0,"n/a",(YVarExp-(YTotExp+YTotRet-J10))/E10) -> n/a | I64: Bags
Q65: Enterprise | R65: Enterprise
A66: FIXED COSTS | D66: Quantity | E66: Quantity | F66: Units | G66: $/Unit | H66: $/Unit | I66: Total | J66: Total | K66: Share | L66: Share | M66: Landlord | N66: Landlord | O66: Tenant | P66: Tenant | Q66: Total | R66: Total
B67: Machinery Depreciation
C68: Pickup/General Use Equipment | D68: 1 | F68: Acre | G68: 41.175 | I68: 41.175 | J68: =E68*H68 -> 0 | K68: 0 | M68: 0 | N68: =J68*L68 -> 0 | O68: 41.175 | P68: =+J68-N68 -> 0 | Q68: 5023.35 | R68: =+J68*E$7 -> 0
C69: Irrigation Equipment | D69: 1 | F69: Acre | G69: 80.58401639 | I69: 80.58401639 | J69: 0 | K69: 0 | M69: 0 | N69: =J69*L69 -> 0 | O69: 80.58401639 | P69: 0 | Q69: 9831.25 | R69: 0
C70: Tractors/Self-Propelled | D70: 1 | F70: Acre | G70: 29.70217677 | I70: 29.70217677 | J70: 0 | K70: 0 | M70: 0 | N70: =J70*L70 -> 0 | O70: 29.70217677 | P70: 0 | Q70: 3623.665565 | R70: 0
C71: Implements | D71: 1 | F71: Acre | G71: 21.48074068 | I71: 21.48074068 | J71: 0 | K71: 0 | M71: 0 | N71: =J71*L71 -> 0 | O71: 21.48074068 | P71: 0 | Q71: 2620.650363 | R71: 0
B72: Equipment Investment
C73: Pickup/General Use Equipment | D73: 171.5625 | F73: Dollars | G73: 0.086 | I73: 14.754375 | J73: =E73*H73 -> 0 | K73: 0 | M73: 0 | N73: =J73*L73 -> 0 | O73: 14.754375 | P73: =+J73-N73 -> 0 | Q73: 1800.03375 | R73: =+J73*E$7 -> 0
C74: Irrigation Equipment | D74: 646.0040984 | F74: Dollars | G74: 0.086 | I74: 55.55635246 | J74: 0 | K74: 0 | M74: 0 | N74: =J74*L74 -> 0 | O74: 55.55635246 | P74: 0 | Q74: 6777.875 | R74: 0
C75: Tractors/Self-Propelled | D75: 229.7313207 | F75: Dollars | G75: 0.086 | I75: 19.75689358 | J75: 0 | K75: 0 | M75: 0 | N75: =J75*L75 -> 0 | O75: 19.75689358 | P75: 0 | Q75: 2410.341017 | R75: 0
C76: Implements | D76: 93.25542478 | F76: Dollars | G76: 0.086 | I76: 8.019966531 | J76: 0 | K76: 0 | M76: 0 | N76: =J76*L76 -> 0 | O76: 8.019966531 | P76: 0 | Q76: 978.4359168 | R76: 0
B77: Salaried Labor | D77: 1 | F77: Acre | G77: 0 | I77: 0 | J77: 0 | K77: 0 | M77: 0 | N77: =J77*L77 -> 0 | O77: 0 | P77: =+J77-N77 -> 0 | Q77: 0 | R77: =+J77*E$7 -> 0
B78: Management Fee, Owner/Operator Labor | D78: 1 | F78: Acre | G78: 0 | I78: 0 | J78: 0 | K78: 0 | M78: 0 | N78: 0 | O78: 0 | P78: 0 | Q78: 0 | R78: 0
B79: Allocated Establishment Cost | D79: 1 | F79: Acre | G79: 0 | I79: 0 | J79: 0 | K79: 0 | M79: 0 | N79: 0 | O79: 0 | P79: 0 | Q79: 0 | R79: 0
B80: Irrigated Winter Garden Rent | D80: 1 | F80: Acre | G80: 50 | I80: 50 | J80: 0 | K80: 0 | M80: 0 | N80: 0 | O80: 50 | P80: 0 | Q80: 6100 | R80: 0
B81: Property Taxes | D81: 1 | F81: Acre | G81: 0 | I81: 0 | J81: 0 | K81: 0 | M81: 0 | N81: 0 | O81: 0 | P81: 0 | Q81: 0 | R81: 0
B82: Whole Farm Insurance | D82: 1 | F82: Acre | G82: 0 | I82: 0 | J82: 0 | K82: 0 | M82: 0 | N82: 0 | O82: 0 | P82: 0 | Q82: 0 | R82: 0
D83: 1 | G83: 0 | I83: 0 | J83: 0 | K83: 0 | M83: 0 | N83: 0 | O83: 0 | P83: 0 | Q83: 0 | R83: 0
D84: 1 | G84: 0 | I84: 0 | J84: =E84*H84 -> 0 | K84: 0 | M84: 0 | N84: 0 | O84: 0 | P84: 0 | Q84: 0 | R84: 0
A85: Total Fixed Costs | I85: 321.0295214 | J85: =+SUM(J68:J84) -> 0 | M85: 0 | N85: =+SUM(N68:N84) -> 0 | O85: 321.0295214 | P85: =+SUM(P68:P84) -> 0 | Q85: 39165.60161 | R85: =+SUM(R68:R84) -> 0
A86: Total Specified Costs | I86: 5469.913556 | J86: =+J62+J85 -> 0 | M86: 0 | N86: =+N62+N85 -> 0 | O86: 5469.913556 | P86: =+P62+P85 -> 0 | Q86: 667329.4538 | R86: =+R62+R85 -> 0
A88: Returns Above Specified Costs | I88: 1530.086444 | J88: =+J13-J86 -> 0 | M88: 0 | N88: =+N13-N86 -> 0 | O88: 1530.086444 | P88: =+P13-P86 -> 0 | Q88: 186670.5462 | R88: =+R13-R86 -> 0
A90: Breakeven Price to Cover Total Costs | G90: 7.814162222 | H90: =IF(E10=0,"n/a",(YTotExp-(YTotExp+YTotRet-J10))/E10) -> n/a | I90: Bags
D92: Example Breakeven Prices
B93: Example | C93: Example | D93: To Cover | G93: To Cover
B94: Yield | C94: Yield | D94: Variable | G94: Total
B95: Percent | C95: Bags | D95: Costs | G95: Costs
B96: 0.75 | C96: 525 | D96: 9.80739816 | G96: 10.41888296
B97: 0.9 | C97: 630 | D97: 8.1728318 | G97: 8.682402469
B98: 1 | C98: 700 | D98: 7.35554862 | G98: 7.814162222
B99: 1.1 | C99: 770 | D99: 6.686862382 | G99: 7.103783838
B100: 1.25 | C100: 875 | D100: 5.884438896 | G100: 6.251329778
D102: Your Breakeven Prices
B103: Your | C103: Your | E103: To Cover | H103: To Cover
B104: Yield | C104: Yield | E104: Variable | H104: Total
B105: Percent | C105: Bags | E105: Costs | H105: Costs
B106: 0.75 | C106: =E10*YPER1 -> 0 | E106: =IF($E$10=0,0,(YVarExp-(YTotExp+YTotRet-J10))/($E$10*YPER1)) -> 0 | H106: =IF($E$10=0,0,(YTotExp-(YTotExp+YTotRet-J10))/($E$10*YPER1)) -> 0
B107: 0.9 | C107: =E10*YPER2 -> 0 | E107: =IF($E$10=0,0,(YVarExp-(YTotExp+YTotRet-J10))/($E$10*YPER2)) -> 0 | H107: =IF($E$10=0,0,(YTotExp-(YTotExp+YTotRet-J10))/($E$10*YPER2)) -> 0
B108: 1 | C108: =+E10 -> 0 | E108: =IF($E$10=0,0,(YVarExp-(YTotExp+YTotRet-J10))/($E$10*YPER3)) -> 0 | H108: =IF($E$10=0,0,(YTotExp-(YTotExp+YTotRet-J10))/($E$10*YPER3)) -> 0
B109: 1.1 | C109: =E10*YPER4 -> 0 | E109: =IF($E$10=0,0,(YVarExp-(YTotExp+YTotRet-J10))/($E$10*YPER4)) -> 0 | H109: =IF($E$10=0,0,(YTotExp-(YTotExp+YTotRet-J10))/($E$10*YPER4)) -> 0
B110: 1.25 | C110: =E10*YPER5 -> 0 | E110: =IF($E$10=0,0,(YVarExp-(YTotExp+YTotRet-J10))/($E$10*YPER5)) -> 0 | H110: =IF($E$10=0,0,(YTotExp-(YTotExp+YTotRet-J10))/($E$10*YPER5)) -> 0
A112: Developed by Extension Agricultural Economists, Texas A&M AgriLife Extension, budgets@tamu.edu.
A114: Information presented is prepared solely as a general guide and not intended to recognize or predict the costs and returns from any one operation. Brand names are mentioned only as examples and imply no endorsement.

Sheet FreshSpinach
A1: Projections for Planning Purposes Only -- Not to be Used without Updating
A2: 2025 Estimated Costs and Returns per Acre
A3: Fresh Market Spinach
A4: Enter your name for this budget in the cell above.
A5: Enter Your Values in the cells highlighed in MAROON.
E6: Your Acres | R6: Your
C7: Crop Acres | D7: 122 | L7: Your | Q7: Enterprise | R7: Enterprise
E8: Your | H8: Your | I8: Cash | J8: Your | K8: Landlord | L8: Landlord | N8: Your | P8: Your | Q8: Total | R8: Total
A9: REVENUE | D9: Quantity | E9: Quantity | F9: Units | G9: $/Unit | H9: $/Unit | I9: Total | J9: Total | K9: Share | L9: Share | M9: Landlord | N9: Landlord | O9: Tenant | P9: Tenant | Q9: (122 acres) | R9: ="(" & E7 & " acres)" -> ( acres)
B10: Fresh Spinach | D10: 400 | F10: Carton | G10: 16.35 | I10: 6540 | J10: =E10*H10 -> 0 | K10: 0 | M10: 0 | N10: =J10*L10 -> 0 | O10: 6540 | P10: =+J10-N10 -> 0 | Q10: 797880 | R10: =+J10*E$7 -> 0
D11: 0 | G11: 0 | I11: 0 | J11: 0 | K11: 0 | M11: 0 | N11: 0 | O11: 0 | P11: =+J11-N11 -> 0 | Q11: 0 | R11: 0
D12: 0 | G12: 0 | I12: 0 | J12: 0 | K12: 0 | M12: 0 | N12: 0 | O12: 0 | P12: 0 | Q12: 0 | R12: 0
A13: Total Revenue | I13: 6540 | J13: =SUM(J10:J12) -> 0 | M13: 0 | N13: =SUM(N10:N12) -> 0 | O13: 6540 | P13: =SUM(P10:P12) -> 0 | Q13: 797880 | R13: =SUM(R10:R12) -> 0
Q14: Enterprise | R14: Enterprise
A15: VARIABLE COSTS | D15: Quantity | E15: Quantity | F15: Units | G15: $/Unit | H15: $/Unit | I15: Total | J15: Total | K15: Share | L15: Share | M15: Landlord | N15: Landlord | O15: Tenant | P15: Tenant | Q15: Total | R15: Total
A16: Production Costs
B17: Fertilizer
C18: Fertilizer 18-46-0 | D18: 260 | F18: Pound | G18: 0.35 | I18: 91 | J18: =E18*H18 -> 0 | K18: 0 | M18: 0 | N18: =J18*L18 -> 0 | O18: 91 | P18: =+J18-N18 -> 0 | Q18: 11102 | R18: =+J18*E$7 -> 0
C19: Fertilizer 0-0-22 Kmag | D19: 90 | F19: Pound | G19: 0.25 | I19: 22.5 | J19: 0 | K19: 0 | M19: 0 | N19: 0 | O19: 22.5 | P19: 0 | Q19: 2745 | R19: 0
C20: UAN + Sulfur (28% N) | D20: 2.11 | F20: CWT | G20: 17.36 | I20: 36.6296 | J20: 0 | K20: 0 | M20: 0 | N20: 0 | O20: 36.6296 | P20: 0 | Q20: 4468.8112 | R20: 0
C21: Mg, 4% Liquid | D21: 5.5 | F21: Gallon | G21: 21.7 | I21: 119.35 | J21: 0 | K21: 0 | M21: 0 | N21: 0 | O21: 119.35 | P21: 0 | Q21: 14560.7 | R21: 0
C22: N-32 in Water | D22: 469 | F22: Pound | G22: 0.168 | I22: 78.792 | J22: 0 | K22: 0 | M22: 0 | N22: 0 | O22: 78.792 | P22: 0 | Q22: 9612.624 | R22: 0
B23: Custom
C24: Custom Harvest Spinach | D24: 400 | F24: Carton | G24: 6.65 | I24: 2660 | J24: 0 | K24: 0 | M24: 0 | N24: 0 | O24: 2660 | P24: 0 | Q24: 324520 | R24: 0
B25: Seed
C26: Spinach Seed | D26: 600 | F26: Thousand | G26: 0.33 | I26: 198 | J26: 0 | K26: 0 | M26: 0 | N26: 0 | O26: 198 | P26: 0 | Q26: 24156 | R26: 0
B27: Miscellaneous
C28: Miscellaneous Spinach Overhead | D28: 2 | F28: Acre | G28: 4 | I28: 8 | J28: 0 | K28: 0 | M28: 0 | N28: 0 | O28: 8 | P28: 0 | Q28: 976 | R28: 0
B29: Herbicide
C30: Dual Magnum | D30: 1 | F30: Pint | G30: 11.4375 | I30: 11.4375 | J30: 0 | K30: 0 | M30: 0 | N30: 0 | O30: 11.4375 | P30: 0 | Q30: 1395.375 | R30: 0
B31: Insecticide
C32: Mustang Max | D32: 9 | F32: Ounce | G32: 1.4375 | I32: 12.9375 | J32: 0 | K32: 0 | M32: 0 | N32: 0 | O32: 12.9375 | P32: 0 | Q32: 1578.375 | R32: 0
C33: Diazinon | D33: 2.5 | F33: Quart | G33: 12.375 | I33: 30.9375 | J33: 0 | K33: 0 | M33: 0 | N33: 0 | O33: 30.9375 | P33: 0 | Q33: 3774.375 | R33: 0
B34: Fungicides
C35: Ridomil Gold Bravo | D35: 2.5 | F35: Pint | G35: 14.9375 | I35: 37.34375 | J35: 0 | K35: 0 | M35: 0 | N35: 0 | O35: 37.34375 | P35: 0 | Q35: 4555.9375 | R35: 0
C36: Quadris | D36: 24 | F36: Ounce | G36: 1.6875 | I36: 40.5 | J36: 0 | K36: 0 | M36: 0 | N36: 0 | O36: 40.5 | P36: 0 | Q36: 4941 | R36: 0
B37: Other Labor
C38: Hand Labor | D38: 3.5 | F38: Hour | G38: 8.5 | I38: 29.75 | J38: 0 | K38: 0 | M38: 0 | N38: 0 | O38: 29.75 | P38: 0 | Q38: 3629.5 | R38: 0
D39: 0 | G39: 0 | I39: 0 | J39: 0 | K39: 0 | M39: 0 | N39: 0 | O39: 0 | P39: 0 | Q39: 0 | R39: 0
D40: 0 | G40: 0 | I40: 0 | J40: 0 | K40: 0 | M40: 0 | N40: 0 | O40: 0 | P40: 0 | Q40: 0 | R40: 0
D41: 0 | G41: 0 | I41: 0 | J41: =E41*H41 -> 0 | K41: 0 | M41: 0 | N41: =J41*L41 -> 0 | O41: 0 | P41: =+J41-N41 -> 0 | Q41: 0 | R41: =+J41*E$7 -> 0
B42: Irrigation
C43: Energy Cost | D43: 1056 | F43: kWh | G43: 0.17 | I43: 179.52 | J43: =E43*H43 -> 0 | K43: 0 | M43: 0 | N43: =J43*L43 -> 0 | O43: 179.52 | P43: =+J43-N43 -> 0 | Q43: 21901.44 | R43: =+J43*E$7 -> 0
C44: Irrigation Labor | D44: 0.128 | F44: Hour | G44: 17.5 | I44: 2.24 | J44: 0 | K44: 0 | M44: 0 | N44: 0 | O44: 2.24 | P44: 0 | Q44: 273.28 | R44: 0
B45: Machinery Labor
C46: Tractors/Self-Propelled | D46: 1.05 | F46: Hour | G46: 17.21 | I46: 18.0705 | J46: =E46*H46 -> 0 | K46: 0 | M46: 0 | N46: =J46*L46 -> 0 | O46: 18.0705 | P46: =+J46-N46 -> 0 | Q46: 2204.601 | R46: =+J46*E$7 -> 0
C47: Other Labor | D47: 0.04 | F47: Hour | G47: 17.21 | I47: 0.6884 | J47: =E47*H47 -> 0 | K47: 0 | M47: 0 | N47: =J47*L47 -> 0 | O47: 0.6884 | P47: =+J47-N47 -> 0 | Q47: 83.9848 | R47: =+J47*E$7 -> 0
B49: Diesel Fuel
C50: Pickup/General Use Equipment | D50: 1 | F50: Acre | G50: 0 | I50: 0 | J50: =E50*H50 -> 0 | K50: 0 | M50: 0 | N50: =J50*L50 -> 0 | O50: 0 | P50: =+J50-N50 -> 0 | Q50: 0 | R50: =+J50*E$7 -> 0
C51: Tractors/Self-Propelled | D51: 8.45 | F51: Gallon | G51: 3 | I51: 25.35 | J51: =E51*H51 -> 0 | K51: 0 | M51: 0 | N51: =J51*L51 -> 0 | O51: 25.35 | P51: =+J51-N51 -> 0 | Q51: 3092.7 | R51: =+J51*E$7 -> 0
B53: Gasoline
C54: Pickup/General Use Equipment | D54: 1 | F54: Acre | G54: 43.47715144 | I54: 43.47715144 | J54: =E54*H54 -> 0 | K54: 0 | M54: 0 | N54: =J54*L54 -> 0 | O54: 43.47715144 | P54: =+J54-N54 -> 0 | Q54: 5304.212475 | R54: =+J54*E$7 -> 0
C55: Tractors/Self-Propelled | D55: 0 | F55: Gallon | G55: 2.75 | I55: 0 | J55: =E55*H55 -> 0 | K55: 0 | M55: 0 | N55: =J55*L55 -> 0 | O55: 0 | P55: =+J55-N55 -> 0 | Q55: 0 | R55: =+J55*E$7 -> 0
B57: Repairs & Maintenance
C58: Pickup/General Use Equipment | D58: 1 | F58: Acre | G58: 7.9056 | I58: 7.9056 | J58: =E58*H58 -> 0 | K58: 0 | M58: 0 | N58: =J58*L58 -> 0 | O58: 7.9056 | P58: =+J58-N58 -> 0 | Q58: 964.4832 | R58: =+J58*E$7 -> 0
C59: Irrigation Equipment | D59: 1 | F59: Acre | G59: 9.953846496 | I59: 9.953846496 | J59: 0 | K59: 0 | M59: 0 | N59: 0 | O59: 9.953846496 | P59: 0 | Q59: 1214.369273 | R59: 0
C60: Tractors/Self-Propelled | D60: 1 | F60: Acre | G60: 22.16367392 | I60: 22.16367392 | J60: 0 | K60: 0 | M60: 0 | N60: 0 | O60: 22.16367392 | P60: 0 | Q60: 2703.968218 | R60: 0
C61: Implements | D61: 1 | F61: Acre | G61: 15.89657478 | I61: 15.89657478 | J61: 0 | K61: 0 | M61: 0 | N61: 0 | O61: 15.89657478 | P61: 0 | Q61: 1939.382123 | R61: 0
I62: 0 | J62: 0 | K62: 0 | M62: 0 | N62: 0 | O62: 0 | P62: 0 | Q62: 0 | R62: 0
I63: 0 | J63: 0 | K63: 0 | M63: 0 | N63: 0 | O63: 0 | P63: 0 | Q63: 0 | R63: 0
B64: Interest on Credit Line | G64: 0.086 | I64: 47.95497865 | J64: =+SUM(J17:J63)/2*H64 -> 0 | M64: 0 | N64: =+SUM(N17:N63)/2*L64 -> 0 | O64: 47.95497865 | P64: =+SUM(P17:P63)/2*L64 -> 0 | Q64: 5850.507396 | R64: =+J64*E$7 -> 0
A65: Total Variable Costs | I65: 3750.398575 | J65: =SUM(J18:J64) -> 0 | M65: 0 | N65: =SUM(N18:N64) -> 0 | O65: 3750.398575 | P65: =SUM(P18:P64) -> 0 | Q65: 457548.6262 | R65: =SUM(R18:R64) -> 0
A66: Planned Returns Above Variable Costs: | I66: 2789.601425 | J66: =+J13-J65 -> 0 | M66: 0 | N66: =+N13-N65 -> 0 | O66: 2789.601425 | P66: =+P13-P65 -> 0 | Q66: 340331.3738 | R66: =+R13-R65 -> 0
B67: Breakeven Price to Cover Variable Costs | G67: 9.375996438 | H67: =IF(E10=0,"n/a",(YVarExp-(YTotExp+YTotRet-J10))/E10) -> n/a | I67: Carton
Q68: Enterprise | R68: Enterprise
A69: FIXED COSTS | D69: Quantity | E69: Quantity | F69: Units | G69: $/Unit | H69: $/Unit | I69: Total | J69: Total | K69: Share | L69: Share | M69: Landlord | N69: Landlord | O69: Tenant | P69: Tenant | Q69: Total | R69: Total
B70: Machinery Depreciation
C71: Pickup/General Use Equipment | D71: 1 | F71: Acre | G71: 41.175 | I71: 41.175 | J71: =E71*H71 -> 0 | K71: 0 | M71: 0 | N71: =J71*L71 -> 0 | O71: 41.175 | P71: =+J71-N71 -> 0 | Q71: 5023.35 | R71: =+J71*E$7 -> 0
C72: Irrigation Equipment | D72: 1 | F72: Acre | G72: 80.58401639 | I72: 80.58401639 | J72: 0 | K72: 0 | M72: 0 | N72: =J72*L72 -> 0 | O72: 80.58401639 | P72: 0 | Q72: 9831.25 | R72: 0
C73: Tractors/Self-Propelled | D73: 1 | F73: Acre | G73: 24.83348163 | I73: 24.83348163 | J73: 0 | K73: 0 | M73: 0 | N73: =J73*L73 -> 0 | O73: 24.83348163 | P73: 0 | Q73: 3029.684759 | R73: 0
C74: Implements | D74: 1 | F74: Acre | G74: 18.89087153 | I74: 18.89087153 | J74: 0 | K74: 0 | M74: 0 | N74: =J74*L74 -> 0 | O74: 18.89087153 | P74: 0 | Q74: 2304.686327 | R74: 0
B75: Equipment Investment
C76: Pickup/General Use Equipment | D76: 171.5625 | F76: Dollars | G76: 0.086 | I76: 14.754375 | J76: =E76*H76 -> 0 | K76: 0 | M76: 0 | N76: =J76*L76 -> 0 | O76: 14.754375 | P76: =+J76-N76 -> 0 | Q76: 1800.03375 | R76: =+J76*E$7 -> 0
C77: Irrigation Equipment | D77: 646.0040984 | F77: Dollars | G77: 0.086 | I77: 55.55635246 | J77: 0 | K77: 0 | M77: 0 | N77: =J77*L77 -> 0 | O77: 55.55635246 | P77: 0 | Q77: 6777.875 | R77: 0
C78: Tractors/Self-Propelled | D78: 192.5132797 | F78: Dollars | G78: 0.086 | I78: 16.55614206 | J78: 0 | K78: 0 | M78: 0 | N78: =J78*L78 -> 0 | O78: 16.55614206 | P78: 0 | Q78: 2019.849331 | R78: 0
C79: Implements | D79: 82.17654008 | F79: Dollars | G79: 0.086 | I79: 7.067182447 | J79: 0 | K79: 0 | M79: 0 | N79: =J79*L79 -> 0 | O79: 7.067182447 | P79: 0 | Q79: 862.1962585 | R79: 0
B80: Salaried Labor | D80: 1 | F80: Acre | G80: 0 | I80: 0 | J80: 0 | K80: 0 | M80: 0 | N80: =J80*L80 -> 0 | O80: 0 | P80: =+J80-N80 -> 0 | Q80: 0 | R80: =+J80*E$7 -> 0
B81: Management Fee, Owner/Operator Labor | D81: 1 | F81: Acre | G81: 0 | I81: 0 | J81: 0 | K81: 0 | M81: 0 | N81: 0 | O81: 0 | P81: 0 | Q81: 0 | R81: 0
B82: Allocated Establishment Cost | D82: 1 | F82: Acre | G82: 0 | I82: 0 | J82: 0 | K82: 0 | M82: 0 | N82: 0 | O82: 0 | P82: 0 | Q82: 0 | R82: 0
B83: Irrigated Winter Garden Rent | D83: 1 | F83: Acre | G83: 50 | I83: 50 | J83: 0 | K83: 0 | M83: 0 | N83: 0 | O83: 50 | P83: 0 | Q83: 6100 | R83: 0
B84: Property Taxes | D84: 1 | F84: Acre | G84: 0 | I84: 0 | J84: 0 | K84: 0 | M84: 0 | N84: 0 | O84: 0 | P84: 0 | Q84: 0 | R84: 0
B85: Whole Farm Insurance | D85: 1 | F85: Acre | G85: 0 | I85: 0 | J85: 0 | K85: 0 | M85: 0 | N85: 0 | O85: 0 | P85: 0 | Q85: 0 | R85: 0
D86: 1 | G86: 0 | I86: 0 | J86: 0 | K86: 0 | M86: 0 | N86: 0 | O86: 0 | P86: 0 | Q86: 0 | R86: 0
D87: 1 | G87: 0 | I87: 0 | J87: =E87*H87 -> 0 | K87: 0 | M87: 0 | N87: 0 | O87: 0 | P87: 0 | Q87: 0 | R87: 0
A88: Total Fixed Costs | I88: 309.4174215 | J88: =+SUM(J71:J87) -> 0 | M88: 0 | N88: =+SUM(N71:N87) -> 0 | O88: 309.4174215 | P88: =+SUM(P71:P87) -> 0 | Q88: 37748.92543 | R88: =+SUM(R71:R87) -> 0
A89: Total Specified Costs | I89: 4059.815997 | J89: =+J65+J88 -> 0 | M89: 0 | N89: =+N65+N88 -> 0 | O89: 4059.815997 | P89: =+P65+P88 -> 0 | Q89: 495297.5516 | R89: =+R65+R88 -> 0
A91: Returns Above Specified Costs | I91: 2480.184003 | J91: =+J13-J89 -> 0 | M91: 0 | N91: =+N13-N89 -> 0 | O91: 2480.184003 | P91: =+P13-P89 -> 0 | Q91: 302582.4484 | R91: =+R13-R89 -> 0
A93: Breakeven Price to Cover Total Costs | G93: 10.14953999 | H93: =IF(E10=0,"n/a",(YTotExp-(YTotExp+YTotRet-J10))/E10) -> n/a | I93: Carton
D95: Example Breakeven Prices
B96: Example | C96: Example | D96: To Cover | G96: To Cover
B97: Yield | C97: Yield | D97: Variable | G97: Total
B98: Percent | C98: Carton | D98: Costs | G98: Costs
B99: 0.75 | C99: 300 | D99: 12.50132858 | G99: 13.53271999
B100: 0.9 | C100: 360 | D100: 10.41777382 | G100: 11.27726666
B101: 1 | C101: 400 | D101: 9.375996438 | G101: 10.14953999
B102: 1.1 | C102: 440 | D102: 8.523633126 | G102: 9.226854538
B103: 1.25 | C103: 500 | D103: 7.500797151 | G103: 8.119631994
D105: Your Breakeven Prices
B106: Your | C106: Your | E106: To Cover | H106: To Cover
B107: Yield | C107: Yield | E107: Variable | H107: Total
B108: Percent | C108: Carton | E108: Costs | H108: Costs
B109: 0.75 | C109: =E10*YPER1 -> 0 | E109: =IF($E$10=0,0,(YVarExp-(YTotExp+YTotRet-J10))/($E$10*YPER1)) -> 0 | H109: =IF($E$10=0,0,(YTotExp-(YTotExp+YTotRet-J10))/($E$10*YPER1)) -> 0
B110: 0.9 | C110: =E10*YPER2 -> 0 | E110: =IF($E$10=0,0,(YVarExp-(YTotExp+YTotRet-J10))/($E$10*YPER2)) -> 0 | H110: =IF($E$10=0,0,(YTotExp-(YTotExp+YTotRet-J10))/($E$10*YPER2)) -> 0
B111: 1 | C111: =+E10 -> 0 | E111: =IF($E$10=0,0,(YVarExp-(YTotExp+YTotRet-J10))/($E$10*YPER3)) -> 0 | H111: =IF($E$10=0,0,(YTotExp-(YTotExp+YTotRet-J10))/($E$10*YPER3)) -> 0
B112: 1.1 | C112: =E10*YPER4 -> 0 | E112: =IF($E$10=0,0,(YVarExp-(YTotExp+YTotRet-J10))/($E$10*YPER4)) -> 0 | H112: =IF($E$10=0,0,(YTotExp-(YTotExp+YTotRet-J10))/($E$10*YPER4)) -> 0
B113: 1.25 | C113: =E10*YPER5 -> 0 | E113: =IF($E$10=0,0,(YVarExp-(YTotExp+YTotRet-J10))/($E$10*YPER5)) -> 0 | H113: =IF($E$10=0,0,(YTotExp-(YTotExp+YTotRet-J10))/($E$10*YPER5)) -> 0
A115: Developed by Extension Agricultural Economists, Texas A&M AgriLife Extension, budgets@tamu.edu.
A117: Information presented is prepared solely as a general guide and not intended to recognize or predict the costs and returns from any one operation. Brand names are mentioned only as examples and imply no endorsement.

Sheet Pecans
A1: Projections for Planning Purposes Only -- Not to be Used without Updating
A2: 2025 Estimated Costs and Returns per Acre
A3: Pecan, Drip Irrigated Years 10-20
A4: Enter your name for this budget in the cell above.
A5: Enter Your Values in the cells highlighed in MAROON.
E6: Your Acres | R6: Your
C7: Crop Acres | D7: 120 | L7: Your | Q7: Enterprise | R7: Enterprise
E8: Your | H8: Your | I8: Cash | J8: Your | K8: Landlord | L8: Landlord | N8: Your | P8: Your | Q8: Total | R8: Total
A9: REVENUE | D9: Quantity | E9: Quantity | F9: Units | G9: $/Unit | H9: $/Unit | I9: Total | J9: Total | K9: Share | L9: Share | M9: Landlord | N9: Landlord | O9: Tenant | P9: Tenant | Q9: (120 acres) | R9: ="(" & E7 & " acres)" -> ( acres)
B10: Pecans | D10: 950 | F10: Pound | G10: 2 | I10: 1900 | J10: =E10*H10 -> 0 | K10: 0 | M10: 0 | N10: =J10*L10 -> 0 | O10: 1900 | P10: =+J10-N10 -> 0 | Q10: 228000 | R10: =+J10*E$7 -> 0
D11: 0 | G11: 0 | I11: 0 | J11: 0 | K11: 0 | M11: 0 | N11: 0 | O11: 0 | P11: =+J11-N11 -> 0 | Q11: 0 | R11: 0
D12: 0 | G12: 0 | I12: 0 | J12: 0 | K12: 0 | M12: 0 | N12: 0 | O12: 0 | P12: 0 | Q12: 0 | R12: 0
A13: Total Revenue | I13: 1900 | J13: =SUM(J10:J12) -> 0 | M13: 0 | N13: =SUM(N10:N12) -> 0 | O13: 1900 | P13: =SUM(P10:P12) -> 0 | Q13: 228000 | R13: =SUM(R10:R12) -> 0
Q14: Enterprise | R14: Enterprise
A15: VARIABLE COSTS | D15: Quantity | E15: Quantity | F15: Units | G15: $/Unit | H15: $/Unit | I15: Total | J15: Total | K15: Share | L15: Share | M15: Landlord | N15: Landlord | O15: Tenant | P15: Tenant | Q15: Total | R15: Total
A16: Production Costs
B17: Fertilizer
C18: Fertilizer 11-52-0 | D18: 80 | F18: Pound | G18: 0.37 | I18: 29.6 | J18: =E18*H18 -> 0 | K18: 0 | M18: 0 | N18: =J18*L18 -> 0 | O18: 29.6 | P18: =+J18-N18 -> 0 | Q18: 3552 | R18: =+J18*E$7 -> 0
C19: N-32 in Water | D19: 263.11 | F19: Pound | G19: 0.168 | I19: 44.20248 | J19: 0 | K19: 0 | M19: 0 | N19: 0 | O19: 44.20248 | P19: 0 | Q19: 5304.2976 | R19: 0
C20: Zinc, Chelated 7% | D20: 12.99 | F20: Pint | G20: 2.8125 | I20: 36.534375 | J20: 0 | K20: 0 | M20: 0 | N20: 0 | O20: 36.534375 | P20: 0 | Q20: 4384.125 | R20: 0
B21: Custom
C22: Hedging | D22: 0.33 | F22: Acre | G22: 100 | I22: 33 | J22: 0 | K22: 0 | M22: 0 | N22: 0 | O22: 33 | P22: 0 | Q22: 3960 | R22: 0
B23: Miscellaneous
C24: Miscellaneous Pecan Overhead | D24: 1 | F24: Acre | G24: 4 | I24: 4 | J24: 0 | K24: 0 | M24: 0 | N24: 0 | O24: 4 | P24: 0 | Q24: 480 | R24: 0
C25: Crop Insurance - Pecans | D25: 1 | F25: Acre | G25: 160 | I25: 160 | J25: 0 | K25: 0 | M25: 0 | N25: 0 | O25: 160 | P25: 0 | Q25: 19200 | R25: 0
C26: Electricity - Pecan Cleaning | D26: 641.25 | F26: KWhour | G26: 0.17 | I26: 109.0125 | J26: 0 | K26: 0 | M26: 0 | N26: 0 | O26: 109.0125 | P26: 0 | Q26: 13081.5 | R26: 0
C27: Pecan Cleaning Repairs | D27: 950 | F27: Pound | G27: 0 | I27: 0 | J27: 0 | K27: 0 | M27: 0 | N27: 0 | O27: 0 | P27: 0 | Q27: 0 | R27: 0
B28: Herbicide
C29: Glyphosate | D29: 16.98 | F29: Pint | G29: 1.63125 | I29: 27.698625 | J29: 0 | K29: 0 | M29: 0 | N29: 0 | O29: 27.698625 | P29: 0 | Q29: 3323.835 | R29: 0
B30: Insecticide
C31: Confirm 2F | D31: 12 | F31: Ounce | G31: 1.95 | I31: 23.4 | J31: 0 | K31: 0 | M31: 0 | N31: 0 | O31: 23.4 | P31: 0 | Q31: 2808 | R31: 0
C32: Lorsban 4E | D32: 4.5 | F32: Pint | G32: 4.519 | I32: 20.3355 | J32: 0 | K32: 0 | M32: 0 | N32: 0 | O32: 20.3355 | P32: 0 | Q32: 2440.26 | R32: 0
B33: Other Labor
C34: Pecan Cleaning | D34: 2.85 | F34: Hour | G34: 8.5 | I34: 24.225 | J34: 0 | K34: 0 | M34: 0 | N34: 0 | O34: 24.225 | P34: 0 | Q34: 2907 | R34: 0
D35: 0 | G35: 0 | I35: 0 | J35: 0 | K35: 0 | M35: 0 | N35: 0 | O35: 0 | P35: 0 | Q35: 0 | R35: 0
D36: 0 | G36: 0 | I36: 0 | J36: 0 | K36: 0 | M36: 0 | N36: 0 | O36: 0 | P36: 0 | Q36: 0 | R36: 0
D37: 0 | G37: 0 | I37: 0 | J37: =E37*H37 -> 0 | K37: 0 | M37: 0 | N37: =J37*L37 -> 0 | O37: 0 | P37: =+J37-N37 -> 0 | Q37: 0 | R37: =+J37*E$7 -> 0
B38: Irrigation
C39: Energy Cost | D39: 2116.8 | F39: kWh | G39: 0.17 | I39: 359.856 | J39: =E39*H39 -> 0 | K39: 0 | M39: 0 | N39: =J39*L39 -> 0 | O39: 359.856 | P39: =+J39-N39 -> 0 | Q39: 43182.72 | R39: =+J39*E$7 -> 0
C40: Irrigation Labor | D40: 0.448 | F40: Hour | G40: 17.5 | I40: 7.84 | J40: 0 | K40: 0 | M40: 0 | N40: 0 | O40: 7.84 | P40: 0 | Q40: 940.8 | R40: 0
B41: Machinery Labor
C42: Tractors/Self-Propelled | D42: 2.49 | F42: Hour | G42: 17.21 | I42: 42.8529 | J42: =E42*H42 -> 0 | K42: 0 | M42: 0 | N42: =J42*L42 -> 0 | O42: 42.8529 | P42: =+J42-N42 -> 0 | Q42: 5142.348 | R42: =+J42*E$7 -> 0
C43: Other Labor | D43: 0.59 | F43: Hour | G43: 17.21 | I43: 10.1539 | J43: =E43*H43 -> 0 | K43: 0 | M43: 0 | N43: =J43*L43 -> 0 | O43: 10.1539 | P43: =+J43-N43 -> 0 | Q43: 1218.468 | R43: =+J43*E$7 -> 0
B45: Diesel Fuel
C46: Pickup/General Use Equipment | D46: 1 | F46: Acre | G46: 0 | I46: 0 | J46: =E46*H46 -> 0 | K46: 0 | M46: 0 | N46: =J46*L46 -> 0 | O46: 0 | P46: =+J46-N46 -> 0 | Q46: 0 | R46: =+J46*E$7 -> 0
C47: Tractors/Self-Propelled | D47: 11.23 | F47: Gallon | G47: 3 | I47: 33.69 | J47: =E47*H47 -> 0 | K47: 0 | M47: 0 | N47: =J47*L47 -> 0 | O47: 33.69 | P47: =+J47-N47 -> 0 | Q47: 4042.8 | R47: =+J47*E$7 -> 0
B49: Gasoline
C50: Pickup/General Use Equipment | D50: 1 | F50: Acre | G50: 39.59667708 | I50: 39.59667708 | J50: =E50*H50 -> 0 | K50: 0 | M50: 0 | N50: =J50*L50 -> 0 | O50: 39.59667708 | P50: =+J50-N50 -> 0 | Q50: 4751.60125 | R50: =+J50*E$7 -> 0
C51: Tractors/Self-Propelled | D51: 0.818452381 | F51: Gallon | G51: 2.75 | I51: 2.250744048 | J51: =E51*H51 -> 0 | K51: 0 | M51: 0 | N51: =J51*L51 -> 0 | O51: 2.250744048 | P51: =+J51-N51 -> 0 | Q51: 270.0892857 | R51: =+J51*E$7 -> 0
B53: Repairs & Maintenance
C54: Pickup/General Use Equipment | D54: 1 | F54: Acre | G54: 14.4 | I54: 14.4 | J54: =E54*H54 -> 0 | K54: 0 | M54: 0 | N54: =J54*L54 -> 0 | O54: 14.4 | P54: =+J54-N54 -> 0 | Q54: 1728 | R54: =+J54*E$7 -> 0
C55: Irrigation Equipment | D55: 1 | F55: Acre | G55: 19.95293775 | I55: 19.95293775 | J55: 0 | K55: 0 | M55: 0 | N55: 0 | O55: 19.95293775 | P55: 0 | Q55: 2394.35253 | R55: 0
C56: Tractors/Self-Propelled | D56: 1 | F56: Acre | G56: 23.76341484 | I56: 23.76341484 | J56: 0 | K56: 0 | M56: 0 | N56: 0 | O56: 23.76341484 | P56: 0 | Q56: 2851.60978 | R56: 0
C57: Implements | D57: 1 | F57: Acre | G57: 6.834399543 | I57: 6.834399543 | J57: 0 | K57: 0 | M57: 0 | N57: 0 | O57: 6.834399543 | P57: 0 | Q57: 820.1279452 | R57: 0
I58: 0 | J58: 0 | K58: 0 | M58: 0 | N58: 0 | O58: 0 | P58: 0 | Q58: 0 | R58: 0
I59: 0 | J59: 0 | K59: 0 | M59: 0 | N59: 0 | O59: 0 | P59: 0 | Q59: 0 | R59: 0
B60: Interest on Credit Line | G60: 0.086 | I60: 48.05965607 | J60: =+SUM(J17:J59)/2*H60 -> 0 | M60: 0 | N60: =+SUM(N17:N59)/2*L60 -> 0 | O60: 48.05965607 | P60: =+SUM(P17:P59)/2*L60 -> 0 | Q60: 5767.158728 | R60: =+J60*E$7 -> 0
A61: Total Variable Costs | I61: 1121.259109 | J61: =SUM(J18:J60) -> 0 | M61: 0 | N61: =SUM(N18:N60) -> 0 | O61: 1121.259109 | P61: =SUM(P18:P60) -> 0 | Q61: 134551.0931 | R61: =SUM(R18:R60) -> 0
A62: Planned Returns Above Variable Costs: | I62: 778.7408907 | J62: =+J13-J61 -> 0 | M62: 0 | N62: =+N13-N61 -> 0 | O62: 778.7408907 | P62: =+P13-P61 -> 0 | Q62: 93448.90688 | R62: =+R13-R61 -> 0
B63: Breakeven Price to Cover Variable Costs | G63: 1.180272747 | H63: =IF(E10=0,"n/a",(YVarExp-(YTotExp+YTotRet-J10))/E10) -> n/a | I63: Pound
Q64: Enterprise | R64: Enterprise
A65: FIXED COSTS | D65: Quantity | E65: Quantity | F65: Units | G65: $/Unit | H65: $/Unit | I65: Total | J65: Total | K65: Share | L65: Share | M65: Landlord | N65: Landlord | O65: Tenant | P65: Tenant | Q65: Total | R65: Total
B66: Machinery Depreciation
C67: Irrigation Equipment | D67: 1 | F67: Acre | G67: 81.92708333 | I67: 81.92708333 | J67: =E67*H67 -> 0 | K67: 0 | M67: 0 | N67: =J67*L67 -> 0 | O67: 81.92708333 | P67: =+J67-N67 -> 0 | Q67: 9831.25 | R67: =+J67*E$7 -> 0
C68: Tractors/Self-Propelled | D68: 1 | F68: Acre | G68: 28.78733619 | I68: 28.78733619 | J68: 0 | K68: 0 | M68: 0 | N68: =J68*L68 -> 0 | O68: 28.78733619 | P68: 0 | Q68: 3454.480342 | R68: 0
C69: Implements | D69: 1 | F69: Acre | G69: 14.11113514 | I69: 14.11113514 | J69: 0 | K69: 0 | M69: 0 | N69: =J69*L69 -> 0 | O69: 14.11113514 | P69: 0 | Q69: 1693.336217 | R69: 0
B70: Equipment Investment
C71: Irrigation Equipment | D71: 656.7708333 | F71: Dollars | G71: 0.086 | I71: 56.48229167 | J71: =E71*H71 -> 0 | K71: 0 | M71: 0 | N71: =J71*L71 -> 0 | O71: 56.48229167 | P71: =+J71-N71 -> 0 | Q71: 6777.875 | R71: =+J71*E$7 -> 0
C72: Tractors/Self-Propelled | D72: 238.8092642 | F72: Dollars | G72: 0.086 | I72: 20.53759672 | J72: 0 | K72: 0 | M72: 0 | N72: =J72*L72 -> 0 | O72: 20.53759672 | P72: 0 | Q72: 2464.511607 | R72: 0
C73: Implements | D73: 66.11535072 | F73: Dollars | G73: 0.086 | I73: 5.685920162 | J73: 0 | K73: 0 | M73: 0 | N73: =J73*L73 -> 0 | O73: 5.685920162 | P73: 0 | Q73: 682.3104194 | R73: 0
B74: Equipment Fixed Costs
C75: Pickup/General Use Equipment | D75: 1 | F75: Acre | G75: 48.44 | I75: 48.44 | J75: =E75*H75 -> 0 | K75: 0 | M75: 0 | N75: =J75*L75 -> 0 | O75: 48.44 | P75: =+J75-N75 -> 0 | Q75: 5812.8 | R75: =+J75*E$7 -> 0
B76: Salaried Labor | D76: 1 | F76: Acre | G76: 0 | I76: 0 | J76: 0 | K76: 0 | M76: 0 | N76: 0 | O76: 0 | P76: 0 | Q76: 0 | R76: 0
B77: Management Fee, Owner/Operator Labor | D77: 1 | F77: Acre | G77: 0 | I77: 0 | J77: 0 | K77: 0 | M77: 0 | N77: 0 | O77: 0 | P77: 0 | Q77: 0 | R77: 0
B78: Allocated Establishment Cost | D78: 1 | F78: Acre | G78: 311.01 | I78: 311.01 | J78: 0 | K78: 0 | M78: 0 | N78: 0 | O78: 311.01 | P78: 0 | Q78: 37321.2 | R78: 0
B79: Irrigated Winter Garden Rent | D79: 1 | F79: Acre | G79: 50 | I79: 50 | J79: 0 | K79: 0 | M79: 0 | N79: 0 | O79: 50 | P79: 0 | Q79: 6000 | R79: 0
B80: Property Taxes | D80: 1 | F80: Acre | G80: 0 | I80: 0 | J80: 0 | K80: 0 | M80: 0 | N80: 0 | O80: 0 | P80: 0 | Q80: 0 | R80: 0
B81: Whole Farm Insurance | D81: 1 | F81: Acre | G81: 0 | I81: 0 | J81: 0 | K81: 0 | M81: 0 | N81: 0 | O81: 0 | P81: 0 | Q81: 0 | R81: 0
D82: 1 | G82: 0 | I82: 0 | J82: 0 | K82: 0 | M82: 0 | N82: 0 | O82: 0 | P82: 0 | Q82: 0 | R82: 0
D83: 1 | G83: 0 | I83: 0 | J83: =E83*H83 -> 0 | K83: 0 | M83: 0 | N83: 0 | O83: 0 | P83: 0 | Q83: 0 | R83: 0
A84: Total Fixed Costs | I84: 616.9813632 | J84: =+SUM(J67:J83) -> 0 | M84: 0 | N84: =+SUM(N67:N83) -> 0 | O84: 616.9813632 | P84: =+SUM(P67:P83) -> 0 | Q84: 74037.76359 | R84: =+SUM(R67:R83) -> 0
A85: Total Specified Costs | I85: 1738.240473 | J85: =+J61+J84 -> 0 | M85: 0 | N85: =+N61+N84 -> 0 | O85: 1738.240473 | P85: =+P61+P84 -> 0 | Q85: 208588.8567 | R85: =+R61+R84 -> 0
A87: Returns Above Specified Costs | I87: 161.7595275 | J87: =+J13-J85 -> 0 | M87: 0 | N87: =+N13-N85 -> 0 | O87: 161.7595275 | P87: =+P13-P85 -> 0 | Q87: 19411.1433 | R87: =+R13-R85 -> 0
A89: Breakeven Price to Cover Total Costs | G89: 1.829726813 | H89: =IF(E10=0,"n/a",(YTotExp-(YTotExp+YTotRet-J10))/E10) -> n/a | I89: Pound
D91: Example Breakeven Prices
B92: Example | C92: Example | D92: To Cover | G92: To Cover
B93: Yield | C93: Yield | D93: Variable | G93: Total
B94: Percent | C94: Pound | D94: Costs | G94: Costs
B95: 0.75 | C95: 712.5 | D95: 1.573696996 | G95: 2.439635751
B96: 0.9 | C96: 855 | D96: 1.311414163 | G96: 2.033029792
B97: 1 | C97: 950 | D97: 1.180272747 | G97: 1.829726813
B98: 1.1 | C98: 1045 | D98: 1.072975224 | G98: 1.663388012
B99: 1.25 | C99: 1187.5 | D99: 0.9442181973 | G99: 1.463781451
D101: Your Breakeven Prices
B102: Your | C102: Your | E102: To Cover | H102: To Cover
B103: Yield | C103: Yield | E103: Variable | H103: Total
B104: Percent | C104: Pound | E104: Costs | H104: Costs
B105: 0.75 | C105: =E10*YPER1 -> 0 | E105: =IF($E$10=0,0,(YVarExp-(YTotExp+YTotRet-J10))/($E$10*YPER1)) -> 0 | H105: =IF($E$10=0,0,(YTotExp-(YTotExp+YTotRet-J10))/($E$10*YPER1)) -> 0
B106: 0.9 | C106: =E10*YPER2 -> 0 | E106: =IF($E$10=0,0,(YVarExp-(YTotExp+YTotRet-J10))/($E$10*YPER2)) -> 0 | H106: =IF($E$10=0,0,(YTotExp-(YTotExp+YTotRet-J10))/($E$10*YPER2)) -> 0
B107: 1 | C107: =+E10 -> 0 | E107: =IF($E$10=0,0,(YVarExp-(YTotExp+YTotRet-J10))/($E$10*YPER3)) -> 0 | H107: =IF($E$10=0,0,(YTotExp-(YTotExp+YTotRet-J10))/($E$10*YPER3)) -> 0
B108: 1.1 | C108: =E10*YPER4 -> 0 | E108: =IF($E$10=0,0,(YVarExp-(YTotExp+YTotRet-J10))/($E$10*YPER4)) -> 0 | H108: =IF($E$10=0,0,(YTotExp-(YTotExp+YTotRet-J10))/($E$10*YPER4)) -> 0
B109: 1.25 | C109: =E10*YPER5 -> 0 | E109: =IF($E$10=0,0,(YVarExp-(YTotExp+YTotRet-J10))/($E$10*YPER5)) -> 0 | H109: =IF($E$10=0,0,(YTotExp-(YTotExp+YTotRet-J10))/($E$10*YPER5)) -> 0
A111: Developed by Extension Agricultural Economists, Texas A&M AgriLife Extension, budgets@tamu.edu.
A113: Information presented is prepared solely as a general guide and not intended to recognize or predict the costs and returns from any one operation. Brand names are mentioned only as examples and imply no endorsement.

Sheet Peaches
A1: Projections for Planning Purposes Only -- Not to be Used without Updating
A2: 2025 Estimated Costs and Returns per Acre
A3: Peaches, Drip Irrigated, Years 5-20
A4: Enter your name for this budget in the cell above.
A5: Enter Your Values in the cells highlighed in MAROON.
E6: Your Acres | R6: Your
C7: Crop Acres | D7: 50 | L7: Your | Q7: Enterprise | R7: Enterprise
E8: Your | H8: Your | I8: Cash | J8: Your | K8: Landlord | L8: Landlord | N8: Your | P8: Your | Q8: Total | R8: Total
A9: REVENUE | D9: Quantity | E9: Quantity | F9: Units | G9: $/Unit | H9: $/Unit | I9: Total | J9: Total | K9: Share | L9: Share | M9: Landlord | N9: Landlord | O9: Tenant | P9: Tenant | Q9: (50 acres) | R9: ="(" & E7 & " acres)" -> ( acres)
B10: Peaches | D10: 202 | F10: Bushel | G10: 50 | I10: 10100 | J10: =E10*H10 -> 0 | K10: 0 | M10: 0 | N10: =J10*L10 -> 0 | O10: 10100 | P10: =+J10-N10 -> 0 | Q10: 505000 | R10: =+J10*E$7 -> 0
D11: 0 | G11: 0 | I11: 0 | J11: 0 | K11: 0 | M11: 0 | N11: 0 | O11: 0 | P11: =+J11-N11 -> 0 | Q11: 0 | R11: 0
D12: 0 | G12: 0 | I12: 0 | J12: 0 | K12: 0 | M12: 0 | N12: 0 | O12: 0 | P12: 0 | Q12: 0 | R12: 0
A13: Total Revenue | I13: 10100 | J13: =SUM(J10:J12) -> 0 | M13: 0 | N13: =SUM(N10:N12) -> 0 | O13: 10100 | P13: =SUM(P10:P12) -> 0 | Q13: 505000 | R13: =SUM(R10:R12) -> 0
Q14: Enterprise | R14: Enterprise
A15: VARIABLE COSTS | D15: Quantity | E15: Quantity | F15: Units | G15: $/Unit | H15: $/Unit | I15: Total | J15: Total | K15: Share | L15: Share | M15: Landlord | N15: Landlord | O15: Tenant | P15: Tenant | Q15: Total | R15: Total
A16: Production Costs
B17: Fertilizer
C18: Ammonium Sulfate (21% N) | D18: 2.55 | F18: CWT | G18: 22.45 | I18: 57.2475 | J18: =E18*H18 -> 0 | K18: 0 | M18: 0 | N18: =J18*L18 -> 0 | O18: 57.2475 | P18: =+J18-N18 -> 0 | Q18: 2862.375 | R18: =+J18*E$7 -> 0
B19: Miscellaneous
C20: Miscellaneous Peach Overhead | D20: 1 | F20: Acre | G20: 4 | I20: 4 | J20: 0 | K20: 0 | M20: 0 | N20: 0 | O20: 4 | P20: 0 | Q20: 200 | R20: 0
B21: Insecticide
C22: Dormant Oil | D22: 6.5 | F22: Gallon | G22: 8.5 | I22: 55.25 | J22: 0 | K22: 0 | M22: 0 | N22: 0 | O22: 55.25 | P22: 0 | Q22: 2762.5 | R22: 0
C23: Permethrin 36.8% | D23: 0.4 | F23: Ounce | G23: 0.5078125 | I23: 0.203125 | J23: 0 | K23: 0 | M23: 0 | N23: 0 | O23: 0.203125 | P23: 0 | Q23: 10.15625 | R23: 0
C24: Carbaryl 4L | D24: 2.5 | F24: Quart | G24: 12.1875 | I24: 30.46875 | J24: 0 | K24: 0 | M24: 0 | N24: 0 | O24: 30.46875 | P24: 0 | Q24: 1523.4375 | R24: 0
B25: Herbicide
C26: Glyphosate | D26: 12 | F26: Pint | G26: 1.63125 | I26: 19.575 | J26: 0 | K26: 0 | M26: 0 | N26: 0 | O26: 19.575 | P26: 0 | Q26: 978.75 | R26: 0
B27: Other Labor
C28: Hand Labor | D28: 140 | F28: Hour | G28: 8.5 | I28: 1190 | J28: 0 | K28: 0 | M28: 0 | N28: 0 | O28: 1190 | P28: 0 | Q28: 59500 | R28: 0
B29: Fungicides
C30: Captan 4L | D30: 3 | F30: Quart | G30: 8.625 | I30: 25.875 | J30: 0 | K30: 0 | M30: 0 | N30: 0 | O30: 25.875 | P30: 0 | Q30: 1293.75 | R30: 0
D31: 0 | G31: 0 | I31: 0 | J31: 0 | K31: 0 | M31: 0 | N31: 0 | O31: 0 | P31: 0 | Q31: 0 | R31: 0
D32: 0 | G32: 0 | I32: 0 | J32: 0 | K32: 0 | M32: 0 | N32: 0 | O32: 0 | P32: 0 | Q32: 0 | R32: 0
D33: 0 | G33: 0 | I33: 0 | J33: =E33*H33 -> 0 | K33: 0 | M33: 0 | N33: =J33*L33 -> 0 | O33: 0 | P33: =+J33-N33 -> 0 | Q33: 0 | R33: =+J33*E$7 -> 0
B34: Irrigation
C35: Energy Cost | D35: 940.8 | F35: kWh | G35: 0.17 | I35: 159.936 | J35: =E35*H35 -> 0 | K35: 0 | M35: 0 | N35: =J35*L35 -> 0 | O35: 159.936 | P35: =+J35-N35 -> 0 | Q35: 7996.8 | R35: =+J35*E$7 -> 0
B36: Machinery Labor
C37: Tractors/Self-Propelled | D37: 0.86 | F37: Hour | G37: 17.21 | I37: 14.8006 | J37: =E37*H37 -> 0 | K37: 0 | M37: 0 | N37: =J37*L37 -> 0 | O37: 14.8006 | P37: =+J37-N37 -> 0 | Q37: 740.03 | R37: =+J37*E$7 -> 0
C38: Other Labor | D38: 0 | F38: Hour | G38: 17.21 | I38: 0 | J38: =E38*H38 -> 0 | K38: 0 | M38: 0 | N38: =J38*L38 -> 0 | O38: 0 | P38: =+J38-N38 -> 0 | Q38: 0 | R38: =+J38*E$7 -> 0
B40: Diesel Fuel
C41: Pickup/General Use Equipment | D41: 1 | F41: Acre | G41: 0 | I41: 0 | J41: =E41*H41 -> 0 | K41: 0 | M41: 0 | N41: =J41*L41 -> 0 | O41: 0 | P41: =+J41-N41 -> 0 | Q41: 0 | R41: =+J41*E$7 -> 0
C42: Tractors/Self-Propelled | D42: 2.72 | F42: Gallon | G42: 3 | I42: 8.16 | J42: =E42*H42 -> 0 | K42: 0 | M42: 0 | N42: =J42*L42 -> 0 | O42: 8.16 | P42: =+J42-N42 -> 0 | Q42: 408 | R42: =+J42*E$7 -> 0
B44: Gasoline
C45: Pickup/General Use Equipment | D45: 1 | F45: Acre | G45: 95.032025 | I45: 95.032025 | J45: =E45*H45 -> 0 | K45: 0 | M45: 0 | N45: =J45*L45 -> 0 | O45: 95.032025 | P45: =+J45-N45 -> 0 | Q45: 4751.60125 | R45: =+J45*E$7 -> 0
C46: Tractors/Self-Propelled | D46: 0.4092261905 | F46: Gallon | G46: 2.75 | I46: 1.125372024 | J46: =E46*H46 -> 0 | K46: 0 | M46: 0 | N46: =J46*L46 -> 0 | O46: 1.125372024 | P46: =+J46-N46 -> 0 | Q46: 56.26860119 | R46: =+J46*E$7 -> 0
B48: Repairs & Maintenance
C49: Pickup/General Use Equipment | D49: 1 | F49: Acre | G49: 17.28 | I49: 17.28 | J49: =E49*H49 -> 0 | K49: 0 | M49: 0 | N49: =J49*L49 -> 0 | O49: 17.28 | P49: =+J49-N49 -> 0 | Q49: 864 | R49: =+J49*E$7 -> 0
C50: Irrigation Equipment | D50: 1 | F50: Acre | G50: 7.36 | I50: 7.36 | J50: 0 | K50: 0 | M50: 0 | N50: 0 | O50: 7.36 | P50: 0 | Q50: 368 | R50: 0
C51: Tractors/Self-Propelled | D51: 1 | F51: Acre | G51: 7.594604727 | I51: 7.594604727 | J51: 0 | K51: 0 | M51: 0 | N51: 0 | O51: 7.594604727 | P51: 0 | Q51: 379.7302364 | R51: 0
C52: Implements | D52: 1 | F52: Acre | G52: 2.531671773 | I52: 2.531671773 | J52: 0 | K52: 0 | M52: 0 | N52: 0 | O52: 2.531671773 | P52: 0 | Q52: 126.5835886 | R52: 0
I53: 0 | J53: 0 | K53: 0 | M53: 0 | N53: 0 | O53: 0 | P53: 0 | Q53: 0 | R53: 0
I54: 0 | J54: 0 | K54: 0 | M54: 0 | N54: 0 | O54: 0 | P54: 0 | Q54: 0 | R54: 0
B55: Interest on Credit Line | G55: 0.086 | I55: 61.61431556 | J55: =+SUM(J17:J54)/2*H55 -> 0 | M55: 0 | N55: =+SUM(N17:N54)/2*L55 -> 0 | O55: 61.61431556 | P55: =+SUM(P17:P54)/2*L55 -> 0 | Q55: 3080.715778 | R55: =+J55*E$7 -> 0
A56: Total Variable Costs | I56: 1758.053964 | J56: =SUM(J18:J55) -> 0 | M56: 0 | N56: =SUM(N18:N55) -> 0 | O56: 1758.053964 | P56: =SUM(P18:P55) -> 0 | Q56: 87902.6982 | R56: =SUM(R18:R55) -> 0
A57: Planned Returns Above Variable Costs: | I57: 8341.946036 | J57: =+J13-J56 -> 0 | M57: 0 | N57: =+N13-N56 -> 0 | O57: 8341.946036 | P57: =+P13-P56 -> 0 | Q57: 417097.3018 | R57: =+R13-R56 -> 0
B58: Breakeven Price to Cover Variable Costs | G58: 8.703237446 | H58: =IF(E10=0,"n/a",(YVarExp-(YTotExp+YTotRet-J10))/E10) -> n/a | I58: Bushel
Q59: Enterprise | R59: Enterprise
A60: FIXED COSTS | D60: Quantity | E60: Quantity | F60: Units | G60: $/Unit | H60: $/Unit | I60: Total | J60: Total | K60: Share | L60: Share | M60: Landlord | N60: Landlord | O60: Tenant | P60: Tenant | Q60: Total | R60: Total
B61: Machinery Depreciation
C62: Pickup/General Use Equipment | D62: 1 | F62: Acre | G62: 90 | I62: 90 | J62: =E62*H62 -> 0 | K62: 0 | M62: 0 | N62: =J62*L62 -> 0 | O62: 90 | P62: =+J62-N62 -> 0 | Q62: 4500 | R62: =+J62*E$7 -> 0
C63: Irrigation Equipment | D63: 1 | F63: Acre | G63: 134.675 | I63: 134.675 | J63: 0 | K63: 0 | M63: 0 | N63: =J63*L63 -> 0 | O63: 134.675 | P63: 0 | Q63: 6733.75 | R63: 0
C64: Tractors/Self-Propelled | D64: 1 | F64: Acre | G64: 9.396445627 | I64: 9.396445627 | J64: 0 | K64: 0 | M64: 0 | N64: =J64*L64 -> 0 | O64: 9.396445627 | P64: 0 | Q64: 469.8222813 | R64: 0
C65: Implements | D65: 1 | F65: Acre | G65: 5.207261649 | I65: 5.207261649 | J65: 0 | K65: 0 | M65: 0 | N65: =J65*L65 -> 0 | O65: 5.207261649 | P65: 0 | Q65: 260.3630824 | R65: 0
B66: Equipment Investment
C67: Pickup/General Use Equipment | D67: 375 | F67: Dollars | G67: 0.086 | I67: 32.25 | J67: =E67*H67 -> 0 | K67: 0 | M67: 0 | N67: =J67*L67 -> 0 | O67: 32.25 | P67: =+J67-N67 -> 0 | Q67: 1612.5 | R67: =+J67*E$7 -> 0
C68: Irrigation Equipment | D68: 269.35 | F68: Dollars | G68: 0.086 | I68: 23.1641 | J68: 0 | K68: 0 | M68: 0 | N68: =J68*L68 -> 0 | O68: 23.1641 | P68: 0 | Q68: 1158.205 | R68: 0
C69: Tractors/Self-Propelled | D69: 74.55928753 | F69: Dollars | G69: 0.086 | I69: 6.412098727 | J69: 0 | K69: 0 | M69: 0 | N69: =J69*L69 -> 0 | O69: 6.412098727 | P69: 0 | Q69: 320.6049364 | R69: 0
C70: Implements | D70: 25.46713857 | F70: Dollars | G70: 0.086 | I70: 2.190173917 | J70: 0 | K70: 0 | M70: 0 | N70: =J70*L70 -> 0 | O70: 2.190173917 | P70: 0 | Q70: 109.5086958 | R70: 0
B71: Salaried Labor | D71: 1 | F71: Acre | G71: 0 | I71: 0 | J71: 0 | K71: 0 | M71: 0 | N71: =J71*L71 -> 0 | O71: 0 | P71: =+J71-N71 -> 0 | Q71: 0 | R71: =+J71*E$7 -> 0
B72: Management Fee, Owner/Operator Labor | D72: 1 | F72: Acre | G72: 0 | I72: 0 | J72: 0 | K72: 0 | M72: 0 | N72: 0 | O72: 0 | P72: 0 | Q72: 0 | R72: 0
B73: Allocated Establishment Cost | D73: 1 | F73: Acre | G73: 581.04 | I73: 581.04 | J73: 0 | K73: 0 | M73: 0 | N73: 0 | O73: 581.04 | P73: 0 | Q73: 29052 | R73: 0
B74: Irrigated Winter Garden Rent | D74: 1 | F74: Acre | G74: 50 | I74: 50 | J74: 0 | K74: 0 | M74: 0 | N74: 0 | O74: 50 | P74: 0 | Q74: 2500 | R74: 0
B75: Property Taxes | D75: 1 | F75: Acre | G75: 0 | I75: 0 | J75: 0 | K75: 0 | M75: 0 | N75: 0 | O75: 0 | P75: 0 | Q75: 0 | R75: 0
B76: Whole Farm Insurance | D76: 1 | F76: Acre | G76: 0 | I76: 0 | J76: 0 | K76: 0 | M76: 0 | N76: 0 | O76: 0 | P76: 0 | Q76: 0 | R76: 0
D77: 1 | G77: 0 | I77: 0 | J77: 0 | K77: 0 | M77: 0 | N77: 0 | O77: 0 | P77: 0 | Q77: 0 | R77: 0
D78: 1 | G78: 0 | I78: 0 | J78: =E78*H78 -> 0 | K78: 0 | M78: 0 | N78: 0 | O78: 0 | P78: 0 | Q78: 0 | R78: 0
A79: Total Fixed Costs | I79: 934.3350799 | J79: =+SUM(J62:J78) -> 0 | M79: 0 | N79: =+SUM(N62:N78) -> 0 | O79: 934.3350799 | P79: =+SUM(P62:P78) -> 0 | Q79: 46716.754 | R79: =+SUM(R62:R78) -> 0
